Workbook

Sheet Total Program Inputs
A1: MONTANA-DAKOTA UTILITIES CO.
A2: GAS UTILITY - SOUTH DAKOTA
A3: DSM SUMMARY
A4: 2024 ACTUAL
A6: Incentive Year: | C6: 2024
I8: Incentive | K8: Admin | M8: Admin | O8: Total
E9: Participants | G9: Dk Savings | I9: Expense | K9: Allocation | M9: Expense 1/ | O9: Expense | Q9: Incentive | S9: dk/part.
A10: Residential
A11: High Efficiency Furnace - 95%+ (new) | E11: 62 | G11: 382 | I11: 9300 | K11: =+ROUND(I11/$I$27,4) -> 0.1137 | M11: =+ROUND(K11*$E$32,0) -> 2336 | O11: =+I11+M11 -> 11636 | Q11: 150 | S11: =ROUND(+G11/E11,1) -> 6.2
A12: High Efficiency Furnace - 95%+ (replacement) | E12: 200 | G12: 3936 | I12: 60000 | K12: =+ROUND(I12/$I$27,4) -> 0.7337 | M12: =+ROUND(K12*$E$32,0) -> 15072 | O12: =+I12+M12 -> 75072 | Q12: 300 | S12: =ROUND(+G12/E12,1) -> 19.7
A13: Programmable Thermostats - Tier 1 | E13: 63 | G13: 145 | I13: 945 | K13: =+ROUND(I13/$I$27,4) -> 0.0116 | M13: =+ROUND(K13*$E$32,0) -> 238 | O13: =+I13+M13 -> 1183 | Q13: 15 | S13: 2.3
A14: Programmable Thermostats - Tier 2 | E14: 160 | G14: 996 | I14: 9586 | K14: =+ROUND(I14/$I$27,4) -> 0.1172 | M14: =+ROUND(K14*$E$32,0)-1 -> 2407 | O14: =+I14+M14 -> 11993 | Q14: 60 | S14: =ROUND(+G14/E14,1) -> 6.2
A15: Total Residential | E15: =SUM(E11:E14) -> 485 | G15: =SUM(G11:G14) -> 5459 | I15: =SUM(I11:I14) -> 79831 | K15: =SUM(K11:K14) -> 0.9762 | M15: =SUM(M11:M14) -> 20053 | O15: =SUM(O11:O14) -> 99884
A17: Commmercial & Industrial
A18: High Efficiency Furnace - 95%+ (new) | E18: 3 | G18: 18 | I18: 450 | K18: =+ROUND(I18/$I$27,4) -> 0.0055 | M18: =+ROUND(K18*$E$32,0) -> 113 | O18: =+I18+M18 -> 563 | Q18: 150 | S18: =ROUND(+G18/E18,1) -> 6
A19: High Efficiency Furnace - 95%+ (replacement) | E19: 5 | G19: 145 | I19: 1500 | K19: =+ROUND(I19/$I$27,4) -> 0.0183 | M19: =+ROUND(K19*$E$32,0) -> 376 | O19: =+I19+M19 -> 1876 | Q19: 300 | S19: =ROUND(+G19/E19,1) -> 29
A20: Custom | E20: 0 | G20: 0 | I20: 0 | K20: 0 | M20: =+ROUND(K20*$E$32,0) -> 0 | O20: =+I20+M20 -> 0 | Q20: =+I20 -> 0 | S20: 0
A21: Total Commercial and Industrial | E21: =SUM(E18:E20) -> 8 | G21: =SUM(G18:G20) -> 163 | I21: =SUM(I18:I20) -> 1950 | K21: =SUM(K18:K20) -> 0.0238 | M21: =SUM(M18:M20) -> 489 | O21: =SUM(O18:O20) -> 2439
A23: Subtotal | E23: =+E21+E15 -> 493 | G23: =+G21+G15 -> 5622 | I23: =+I21+I15 -> 81781 | K23: =+K21+K15 -> 1 | M23: =+M21+M15 -> 20542 | O23: =+O21+O15 -> 102323
A25: Energy Audits | E25: 0 | G25: 0 | I25: 0 | K25: =+ROUND(I25/$I$27,4) -> 0 | M25: =+ROUND(K25*$E$32,0) -> 0 | O25: =+I25+M25 -> 0
A27: Total South Dakota | E27: =+E25+E23 -> 493 | G27: =+G25+G23 -> 5622 | I27: =+I25+I23 -> 81781 | K27: =+K25+K23 -> 1 | M27: =+M25+M23 -> 20542 | O27: =+O25+O23 -> 102323
A30: 1/ Administration expense allocated on incentive and program costs.
A32: Admin costs | E32: =6155+14387 -> 20542

Sheet Database Inputs
A1: South Dakota Natural Gas DSM Programs
A2: Technical Assumptions
I3: Cost Assumptions
H5: Average | M5: Year 1 | N5: Total
C6: # of | F6: Average | G6: Average | H6: Non-Energy | L6: Avg | M6: Total | N6: Operating/ | O6: Admin &
B7: Customer | C7: Particip | D7: Project | E7: Baseline | F7: High | G7: dk Saved | H7: Benefits | I7: Cost | J7: Cost High | K7: Increm | L7: Incentive | M7: Admin | N7: Marketing | O7: Promo | R7: Total | S7: Total | T7: Total
A8: 2024 - 2026 Program Years | B8: Class | C8: =+'Total Program Inputs'!C6 -> 2024 | D8: Life | E8: Efficiency | F8: Efficiency | G8: / part | H8: / Part | I8: Std Equip | J8: Eff Equip | K8: Cost | L8: / Part | M8: Costs | N8: Costs | O8: Cost | P8: Technical Notes | Q8: Participation Notes | R8: Incentives | S8: Incentives | T8: Incentives
A9: Residential | R9: Year 1 | S9: Year 2 | T9: Year 3
A10: Furnace Tier 2 - 95%+ AFUE - New | B10: Res | C10: =+'Total Program Inputs'!E11 -> 62 | D10: 20 | E10: 90 | F10: 95 | G10: =+'Total Program Inputs'!S11 -> 6.2 | H10: 0 | I10: 1380 | J10: 2000 | K10: 165 | L10: 150 | M10: =+'Res .95+% Res Furnace - NEW'!$F$11 -> 2336 | N10: 0 | O10: =+'Total Program Inputs'!M11 -> 2336 | P10: 75,000 btuh Average | Q10: Past program History | R10: =ROUND(L10*C10,0) -> 9300 | S10: =ROUND(#REF!*L10,0) ->  | T10: =ROUND(L10*#REF!,0) ->  | V10: Updated to MN TRM 3.3
A11: Furnace Tier 2 - 95%+ AFUE - Replacement | B11: Res | C11: =+'Total Program Inputs'!E12 -> 200 | D11: 20 | E11: 80 | F11: 95 | G11: =+'Total Program Inputs'!S12 -> 19.7 | H11: 720 | I11: 880 | J11: 2000 | K11: 736 | L11: 300 | M11: =+'Res .95+% Res Furnace - Replace'!$F$11 -> 15072 | N11: 0 | O11: =+'Total Program Inputs'!M12 -> 15072 | P11: 75,000 btuh Average | Q11: Past program History | R11: =ROUND(L11*C11,0) -> 60000 | S11: =ROUND(#REF!*L11,0) ->  | T11: =ROUND(L11*#REF!,0) ->  | V11: Updated to MN TRM 3.3
A12: Programmable Thermostats - Tier 1 | B12: Res | C12: =+'Total Program Inputs'!E13 -> 63 | D12: 10 | E12: NA | F12: NA | G12: =+'Total Program Inputs'!S13 -> 2.3 | H12: 0 | I12: NA | J12: NA | K12: 30 | L12: 15 | M12: ='Programmable Tstats - Tier 1'!$F$11 -> 238 | N12: 0 | O12: =+'Total Program Inputs'!M13 -> 238 | P12: 1 showerhead, 1kitchen, 2 faucet | Q12: assume 50% app rate | R12: =ROUND(L12*C12,0) -> 945 | S12: =ROUND(#REF!*L12,0) ->  | T12: =ROUND(L12*#REF!,0) -> 
A13: Programmable Thermostats - Tier 2 | B13: Res | C13: =+'Total Program Inputs'!E14 -> 160 | D13: 10 | E13: NA | F13: NA | G13: =+'Total Program Inputs'!S14 -> 6.2 | H13: 41 | K13: =0.35*91+0.65*189 -> 154.7 | L13: 60 | O13: =+'Total Program Inputs'!M14 -> 2407 | S13: =ROUND(#REF!*L13,0) ->  | V13: 35% Tier 2, 65% Tier 3 per the table in the TRM
A14: Residential Energy Assessments | B14: Res | C14: 0 | D14: 0 | E14: 0 | F14: 0 | G14: 0 | H14: 0 | K14: 0 | L14: 0 | O14: 0 | S14: =ROUND(#REF!*L14,0) -> 
A15: Commercial
A16: Furnace Tier 2 - 95%+ AFUE - New | B16: Comm | C16: =+'Total Program Inputs'!E18 -> 3 | D16: 20 | E16: 90 | F16: 95 | G16: =+'Total Program Inputs'!S18 -> 6 | H16: 0 | I16: 880 | J16: 2000 | K16: 165 | L16: 150 | M16: =+'Comm 95+% Furnace - NEW'!$F$11 -> 113 | N16: 0 | O16: =+'Total Program Inputs'!M18 -> 113 | P16: 75,000 btuh Average | Q16: Market Information | R16: =ROUND(L16*C16,0) -> 450 | S16: =ROUND(#REF!*L16,0) ->  | T16: =ROUND(L16*#REF!,0) ->  | V16: Updated to MN TRM 3.3
A17: Furnace Tier 2 - 95%+ AFUE - Replacement | B17: Comm | C17: =+'Total Program Inputs'!E19 -> 5 | D17: 20 | E17: 80 | F17: 95 | G17: =+'Total Program Inputs'!S19 -> 29 | H17: 0 | I17: 880 | J17: 2000 | K17: 736 | L17: 300 | M17: =+'Comm 95+% Furnace - Replace'!$F$11 -> 376 | N17: 0 | O17: =+'Total Program Inputs'!M19 -> 376 | P17: 75,000 btuh Average | Q17: Market Information | R17: =ROUND(L17*C17,0) -> 1500 | S17: =ROUND(#REF!*L17,0) ->  | T17: =ROUND(L17*#REF!,0) ->  | V17: Updated to MN TRM 3.3
A18: Custom Efficiency | B18: Comm | C18: =+'Total Program Inputs'!E20 -> 0 | D18: 15 | E18: NA | F18: NA | G18: =+'Total Program Inputs'!S20 -> 0 | H18: 0 | I18: NA | J18: NA | K18: 7750 | L18: 3000 | M18: =+'Comm Custom'!F11 -> 0 | N18: 0 | O18: =+'Total Program Inputs'!M20 -> 0 | R18: =ROUND(L18*C18,0) -> 0 | S18: =ROUND(#REF!*L18,0) ->  | T18: =ROUND(L18*#REF!,0) -> 
A19: Totals | B19: =SUM(C19:C19) -> 493 | C19: =SUM(C10:C18) -> 493 | Q19: Total Incentives
Q20: Customer Education/info

Sheet Gas Input Table Summary
A1: Montana-Dakota Utilities Co.
A2: 2024 Input Data Summary
A3: South Dakota Natural Gas Conservation Model
A6: Input No. | B6: Input Data Description | C6: Information Source | D6: SD Res. | E6: SD Comm.
A7: 1 | B7: Retail Rate ($/dk) | C7: Projected average 2025 Cost of Gas plus authorized Distribution Delivery Charge. | D7: =+'Gas Costs'!C11 -> 8.031 | E7: =+'Gas Costs'!E11 -> 6.647
B8: Escalation Rate | D8: 0.03 | E8: 0.03
A9: 2 | B9: Non-Gas Fuel Retail ($/fuel/unit) | C9: Average retail cost of non gas fuel if measures also saves kWh, gallons of water, etc. (for analysis purposes, used electric as Non-Gas Fuel Retail Rate) | D9: =+'Gas Costs'!G41 -> 0.12956 | E9: =+'Gas Costs'!G54 -> 0.12552
B10: Escalation Rate | D10: 0.03 | E10: 0.03
B11: Non-Gas Fuel Units (ie. kWh, Gallons, etc) | D11: Kwh | E11: Kwh
A12: 3 | B12: Commodity Cost ($/dk) | C12: Estimated gas costs using projected 2025 winter gas costs February 2025 pipeline commodity | D12: =+'Gas Costs'!C20 -> 3.091 | E12: =+D12 -> 3.091
B13: Escalation Rate | D13: 0.03 | E13: 0.03
A14: 4 | B14: Demand Cost ($/dk/Yr) | C14: Annual cost of firm capacity on pipeline | D14: =+'Gas Costs'!C25 -> 176.69 | E14: =+D14 -> 176.69
B15: Escalation Rate | D15: 0.01 | E15: 0.01
A16: 5 | B16: Peak Reduction Factor | C16: Estimated average peak day reduction factor caused by implementing the measure (s) | D16: 0.01 | E16: 0.01
A17: 6 | B17: Variable O&M ($/dk) | C17: Estimated variable O&M that will be avoided due the implementing the measure | D17: 0 | E17: 0
B18: Escalation Rate | D18: 0 | E18: 0
A19: 7 | B19: Non-Gas Fuel Cost ($/Fuel Unit) | C19: Average commodity cost of non gas fuel if measures also saves kWh, gallons of water, etc. (for analysis purposes, used electric as Non-Gas Fuel Cost) | D19: =+'Gas Costs'!B56 -> 0.02062 | E19: =+D19 -> 0.02062
B20: Escalation Rate | D20: 0.03 | E20: 0.03
A21: 8 | B21: Non-Gas Fuel Loss Factor | C21: Non-Gas fuel loss factor (for analysis purposes, used total energy loss factor from Class Cost of Service in Docket No. EL23-020) | D21: 0.07719 | E21: =+D21 -> 0.07719
A22: 9 | B22: Gas Environmental Damage Factor | C22: Per Minnesota CIP triennial 2024-2026 | D22: 2.07 | E22: 2.07
B23: Escalation Rate | D23: 0.0169 | E23: =+D23 -> 0.0169
A24: 10 | B24: Non Gas Fuel Environmental Damage Factor | C24: Not Applicable | D24: 0 | E24: 0
B25: Escalation Rate | D25: 0 | E25: 0
A26: 11 | B26: Participant Discount Rate | C26: Federal Reserve Consumer Credit Interest Rate 12 Months ended December 31, 2022 | D26: 0.0987 | E26: =+D26 -> 0.0987
A27: 12 | B27: Utility Discount Rate | C27: Montana-Dakota's authorized average cost of capital | D27: 0.0701 | E27: 0.0701
A28: 13 | B28: Societal Discount Rate | C28: Equal to the 30 year T-Bill rate average for Twelve Months Ending December 31, 2024 | D28: ='T bill'!B64/100 -> 0.0234 | E28: =D28 -> 0.0234
A29: 14 | B29: General Input Data Year = | C29: Year data was input | D29: =+'Total Program Inputs'!C6 -> 2024 | E29: =+D29 -> 2024
A30: 15 | B30: Project Analysis Year | C30: Year(s) program will be implemented | D30: ='Total Program Inputs'!C6 -> 2024 | E30: =+D30 -> 2024
D31: =D30+1 -> 2025 | E31: =+D31 -> 2025
D32: 2026 | E32: =+D32 -> 2026
A33: 16 | B33: Utility Project Costs | C33: Total direct cost to the utility caused by implementing the program(s)
A34: 17 | B34: Direct Participant Costs ($/Part.) | C34: Direct costs that the participant would have to participate in the program
A35: 18 | B35: Participant Non-Energy Costs (Annual $/Part.) Yr. 1 | C35: Annual participant non-energy costs if applicable caused by implementing the measure (Not Applicable) | D35: 0 | E35: 0
B36: Yr. 2 | D36: 0 | E36: 0
B37: Yr. 3 | D37: 0 | E37: 0
B38: Escalation Rate Yr. 1 | D38: 0 | E38: 0
B39: Escalation Rate Yr. 2 | D39: 0 | E39: 0
B40: Escalation Rate Yr. 3 | D40: 0 | E40: 0
A41: 19 | B41: Participant Non-Energy Savings (Annual $/Part) Yr. 1 | C41: Participant non energy savings if applicable caused by implementing the measure (Not Applicable) | D41: 0 | E41: 0
B42: Yr. 2 | D42: 0 | E42: 0
B43: Yr. 3 | D43: 0 | E43: 0
B44: Escalation Rate Yr. 1 | D44: 0 | E44: 0
B45: Escalation Rate Yr. 2 | D45: 0 | E45: 0
B46: Escalation Rate Yr. 3 | D46: 0 | E46: 0
A47: 20 | B47: Project Life (Years) | C47: Based on the estimated useful life of the energy saving equipment (20 years maximum)
A48: 21 | B48: Avg. Dk/Part. Saved | C48: Avg energy reduction (Dk) caused by the program(s)
A49: 22 | B49: Avg Non-Gas Fuel Units/Part. Saved Yr. 1 | C49: Average non-gas fuel units saved or added due to implementing the measure (for analysis purposes, used Kwh)
B50: Yr. 2 | D50: 0 | E50: 0
B51: Yr. 3 | D51: 0 | E51: 0
A52: 22a | B52: Avg Additional Non-Gas Fuel Units/ Part. Used Yr. 1 | D52: 0 | E52: 0
B53: Yr. 2 | D53: 0 | E53: 0
B54: Yr. 3 | D54: 0 | E54: 0
A55: 23 | B55: Number of Participants | C55: Total number of expected participants is the program(s)
A56: 24 | B56: Total Annual Dk Saved | C56: Total Dk saved from the program in the year implemented
A57: 25 | B57: Incentive/Participant | C57: Incentive provided to the participant
A58: 26 | B58: Distribution Delivery Charge | C58: Weighted Average of Montana-Dakota's Distribution Delivery Charge | D58: =+'Gas Costs'!C10 -> 2.532 | E58: =+'Gas Costs'!E10 -> 1.148
A59: 27 | B59: Effective Fed & State Income Tax Rate | C59: Montana-Dakota's effective tax rate | D59: 0.21 | E59: 0.21

Sheet Gas Costs
A1: MONTANA-DAKOTA UTILITIES CO.
A2: GAS UTILITY - SOUTH DAKOTA
A3: PROJECTED COST OF GAS - 2025
C6: South Dakota
C7: Residential | E7: Firm General
A8: Retail Rate
A9: Average cost of gas 1/ | C9: 5.499 | E9: =+C9 -> 5.499
A10: Margin | C10: 2.532 | E10: 1.148 | F10: 2/
A11: Total Retail Rate | C11: =SUM(C9:C10) -> 8.031 | E11: =SUM(E9:E10) -> 6.647
A14: Gas Commodity | C14: 22158670
A15: Non-gas commodity | C15: 748604
A16: Total | C16: =SUM(C14:C15) -> 22907274
A18: Dk deliveries | C18: 7486037 | I18: Adjustment for Distribution Losses
C20: =ROUND(+C16/C18/I20,3) -> 3.091 | D20: per dk adj. for losses | I20: 0.99
A22: Demand Cost (Avoided Capacity) ($/dk/yr)
A23: Total Demand Charges (January 2025 PGA) | C23: 17417729
A24: Capacity requirements 3/ | C24: 98579
A25: Demand Costs | C25: =+ROUND(C23/C24,2) -> 176.69
A28: 1/ Based on January 2025 PGA adjusted to reflect the projected annual 2025 gas commodity cost.
A29: 2/ Meters rated < 500 cubic feet.
A30: 3/ FT-1, FT-1 negotiated contract and T-FTG-1 capacity.
A33: Electric - Black Hills Power
A34: Residential
A35: Base Rate | B35: 2020-01-01 | C35: 12 | E35: 12 | G35: 0 | H35: 4/
A36: Energy Charge
A37: All Kwh | C37: 12000 | E37: 0.08827 | G37: =C37*E37 -> 1059.24
A38: Cost Adjustment | C38: 12000 | E38: 0.04129 | G38: =C38*E38 -> 495.48
A39: Total Bill | G39: =SUM(G35:G38) -> 1554.72
A41: Average Realization | G41: =ROUND(G39/C37,5) -> 0.12956
A43: Commercial (Small general service)
A44: Base Rate | C44: 12 | E44: 15 | G44: 0 | H44: 4/
A45: Energy Charge
A46: First 3000 Kwh | C46: 3000 | E46: 0.077 | G46: =C46*E46 -> 231
A47: Over 3,000 Kwh | C47: 69000 | E47: 0.06026 | G47: =C47*E47 -> 4157.94
A48: Cost Adjustment | C48: =SUM(C46:C47) -> 72000 | E48: 0.04299 | G48: =C48*E48 -> 3095.28
A49: Demand Charge
A50: First 50 KW | C50: 50 | E50: 8 | G50: =C50*E50 -> 400
A51: Over 50 KW | C51: 150 | E51: 7.69 | G51: =C51*E51 -> 1153.5
A52: Total Bill | G52: =SUM(G44:G51) -> 9037.72
A54: Average Realization | G54: =ROUND(G52/C48,5) -> 0.12552
A56: Fuel Cost: | B56: 0.02062 | C56: BHE Section No. 3C, 17th Revised Sheet No. 12
A58: 4/ Base charge not included for conservation calculations as it has no relation to savings
A59: on consumption.

Sheet T bill
A2: Website Hyperlink: | B2: https://www.federalreserve.gov/datadownload/Choose.aspx?rel=H15
A6: Download Page | B6: H.15 Selected Interest Rates for Jan 13, 2025
A7: Series Description | B7: 3-month Treasury bill secondary market rate discount basis
A8: Unit: | B8: Percent:_Per_Year
A9: Multiplier: | B9: 1
A10: Currency: | B10: NA
A11: Unique Identifier: | B11: H15/H15/RIFSGFSM03_N.A
A12: Time Period | B12: RIFSGFSM03_N.A
A13: 1975 | B13: 5.79
A14: 1976 | B14: 4.98
A15: 1977 | B15: 5.26
A16: 1978 | B16: 7.18
A17: 1979 | B17: 10.05
A18: 1980 | B18: 11.39
A19: 1981 | B19: 14.04
A20: 1982 | B20: 10.6
A21: 1983 | B21: 8.62
A22: 1984 | B22: 9.54
A23: 1985 | B23: 7.47
A24: 1986 | B24: 5.97
A25: 1987 | B25: 5.78
A26: 1988 | B26: 6.67
A27: 1989 | B27: 8.11
A28: 1990 | B28: 7.5
A29: 1991 | B29: 5.38
A30: 1992 | B30: 3.43
A31: 1993 | B31: 3
A32: 1994 | B32: 4.25
A33: 1995 | B33: 5.49
A34: 1996 | B34: 5.01
A35: 1997 | B35: 5.06
A36: 1998 | B36: 4.78
A37: 1999 | B37: 4.64
A38: 2000 | B38: 5.82
A39: 2001 | B39: 3.4
A40: 2002 | B40: 1.61
A41: 2003 | B41: 1.01
A42: 2004 | B42: 1.37
A43: 2005 | B43: 3.15
A44: 2006 | B44: 4.73
A45: 2007 | B45: 4.36
A46: 2008 | B46: 1.37
A47: 2009 | B47: 0.15
A48: 2010 | B48: 0.14
A49: 2011 | B49: 0.05
A50: 2012 | B50: 0.09
A51: 2013 | B51: 0.06
A52: 2014 | B52: 0.03
A53: 2015 | B53: 0.05
A54: 2016 | B54: 0.32
A55: 2017 | B55: 0.93
A56: 2018 | B56: 1.94
A57: 2019 | B57: 2.06
A58: 2020 | B58: 0.35
A59: 2021 | B59: 0.05
A60: 2022 | B60: 2.02
A61: 2023 | B61: 5.07
A62: 2024 | B62: 4.97
A64: 30 Year Average | B64: =ROUND(AVERAGE(B33:B62),2) -> 2.34

Sheet Summary of Ratios
A1: Montana-Dakota Utilities Co.
A2: South Dakota Gas DSM Program Summary
B6: Customer | G6: Total Resource
A7: Program | B7: Class | C7: RIM | D7: Utility | E7: Societal | F7: Participant | G7: Cost
A8: Total Portfolio | C8: ='Total Program'!G42 -> 1.38 | D8: ='Total Program'!G43 -> 3.32 | E8: ='Total Program'!G44 -> 3.63 | F8: ='Total Program'!G45 -> 4.190185613 | G8: ='Total Program'!G46 -> 1.85
A10: Education and Outreach
A12: Furnace (92-94%) | B12: Residential | C12: =#REF! ->  | D12: =#REF! ->  | E12: =#REF! ->  | F12: =#REF! ->  | G12: =#REF! -> 
A13: Furnace (95+%) - New | B13: Residential | C13: ='Res .95+% Res Furnace - NEW'!G42 -> 1.11 | D13: ='Res .95+% Res Furnace - NEW'!G43 -> 2.15 | E13: ='Res .95+% Res Furnace - NEW'!G44 -> 4.13 | F13: ='Res .95+% Res Furnace - NEW'!G45 -> 4.39 | G13: ='Res .95+% Res Furnace - NEW'!G46 -> 1.99
A14: Furnace (95+%) - Replacement | B14: Residential | C14: ='Res .95+% Res Furnace - Replace'!G42 -> 1.38 | D14: ='Res .95+% Res Furnace - Replace'!G43 -> 3.44 | E14: ='Res .95+% Res Furnace - Replace'!G44 -> 3.72 | F14: ='Res .95+% Res Furnace - Replace'!G45 -> 4.37 | G14: ='Res .95+% Res Furnace - Replace'!G46 -> 1.87
A15: Boiler (85%) | B15: Residential | C15: =#REF! ->  | D15: =#REF! ->  | E15: =#REF! ->  | F15: =#REF! ->  | G15: =#REF! -> 
A16: Boiler (90%) | B16: Residential
A17: Furnace Tune-Up | B17: Residential | C17: =#REF! ->  | D17: =#REF! ->  | E17: =#REF! ->  | F17: =#REF! ->  | G17: =#REF! -> 
A18: Water Heating (.62 EF) | B18: Residential | C18: =#REF! ->  | D18: =#REF! ->  | E18: =#REF! ->  | F18: =#REF! ->  | G18: =#REF! -> 
A19: Water Heating (.67 EF) | B19: Residential | C19: =#REF! ->  | D19: =#REF! ->  | E19: =#REF! ->  | F19: =#REF! ->  | G19: =#REF! -> 
A20: Attic Insulation | B20: Residential
A21: Retrofit Bundle | B21: Residential | C21: =#REF! ->  | D21: =#REF! ->  | E21: =#REF! ->  | F21: =#REF! ->  | G21: =#REF! -> 
A22: New Home Bundle | B22: Residential
A23: ='Database Inputs'!#REF! ->  | B23: Residential | C23: =#REF! ->  | D23: =+#REF! ->  | E23: =#REF! ->  | F23: =#REF! ->  | G23: =#REF! -> 
A24: ='Database Inputs'!A12 -> Programmable Thermostats - Tier 1 | B24: Residential | C24: ='Programmable Tstats - Tier 1'!G42 -> 1.61 | D24: =+'Programmable Tstats - Tier 1'!AG42 -> 4.96 | E24: ='Programmable Tstats - Tier 1'!G44 -> 4.71 | F24: ='Programmable Tstats - Tier 1'!G45 -> 5.19 | G24: ='Programmable Tstats - Tier 1'!G46 -> 2.76
A25: ='Database Inputs'!A13 -> Programmable Thermostats - Tier 2 | B25: Residential | C25: ='Programmable Tstats - Tier 2'!G42 -> 1.38 | D25: ='Programmable Tstats - Tier 2'!G43 -> 3.33 | E25: ='Programmable Tstats - Tier 2'!G44 -> 2.57 | F25: ='Programmable Tstats - Tier 2'!G45 -> 3.1 | G25: ='Programmable Tstats - Tier 2'!G46 -> 1.51
A26: ='Database Inputs'!A14 -> Residential Energy Assessments | B26: Residential | C26: =#REF! ->  | D26: =#REF! ->  | E26: =#REF! ->  | F26: =#REF! ->  | G26: =#REF! -> 
A27: ='Database Inputs'!#REF! ->  | B27: Residential | C27: =#REF! ->  | D27: =#REF! ->  | E27: =#REF! ->  | F27: =#REF! ->  | G27: =#REF! -> 
A29: Furnace (92-94%) | B29: Commercial | C29: =#REF! ->  | D29: =#REF! ->  | E29: =#REF! ->  | F29: =#REF! ->  | G29: =#REF! -> 
A30: Furnace (95+%) - New | B30: Commercial | C30: ='Comm 95+% Furnace - NEW'!G42 -> 1.54 | D30: ='Comm 95+% Furnace - NEW'!G43 -> 2.17 | E30: ='Comm 95+% Furnace - NEW'!G44 -> 4.13 | F30: ='Comm 95+% Furnace - NEW'!G45 -> 3.72 | G30: ='Comm 95+% Furnace - NEW'!G46 -> 2.01
A31: Furnace (95+%) - Replacement | B31: Commercial | C31: ='Comm 95+% Furnace - Replace'!G42 -> 2.56 | D31: ='Comm 95+% Furnace - Replace'!G43 -> 5.13 | E31: ='Comm 95+% Furnace - Replace'!G44 -> 4.9 | F31: ='Comm 95+% Furnace - Replace'!G45 -> 3.44 | G31: ='Comm 95+% Furnace - Replace'!G46 -> 2.37
A32: Hot Water Boiler (85%)
A33: ='Database Inputs'!#REF! ->  | B33: Commercial | C33: =#REF! ->  | D33: =#REF! ->  | E33: =#REF! ->  | F33: =#REF! ->  | G33: =#REF! -> 
A34: ='Database Inputs'!#REF! ->  | B34: Commercial | C34: =#REF! ->  | D34: =#REF! ->  | E34: =#REF! ->  | F34: =#REF! ->  | G34: =#REF! -> 
A35: ='Database Inputs'!#REF! ->  | B35: Commercial | C35: =#REF! ->  | D35: =+#REF! ->  | E35: =#REF! ->  | F35: =#REF! ->  | G35: =#REF! -> 
A36: Hot Water Boiler (90%)
A37: ='Database Inputs'!#REF! ->  | B37: Commercial | C37: =#REF! ->  | D37: =#REF! ->  | E37: =#REF! ->  | F37: =#REF! ->  | G37: =#REF! -> 
A38: ='Database Inputs'!#REF! ->  | B38: Commercial | C38: =#REF! ->  | D38: =#REF! ->  | E38: =#REF! ->  | F38: =#REF! ->  | G38: =#REF! -> 
A39: ='Database Inputs'!#REF! ->  | B39: Commercial | C39: =#REF! ->  | D39: =#REF! ->  | E39: =#REF! ->  | F39: =#REF! ->  | G39: =#REF! -> 
A40: LP & HP Steam Boilers
A41: ='Database Inputs'!#REF! ->  | B41: Commercial | C41: =#REF! ->  | D41: =#REF! ->  | E41: =#REF! ->  | F41: =#REF! ->  | G41: =#REF! -> 
A42: ='Database Inputs'!#REF! ->  | B42: Commercial | C42: =#REF! ->  | D42: =#REF! ->  | E42: =#REF! ->  | F42: =#REF! ->  | G42: =#REF! -> 
A43: ='Database Inputs'!#REF! ->  | B43: Commercial | C43: =#REF! ->  | D43: =#REF! ->  | E43: =#REF! ->  | F43: =#REF! ->  | G43: =#REF! -> 
A44: Water Heating (.64EF) | B44: Commercial | C44: =#REF! ->  | D44: =#REF! ->  | E44: =#REF! ->  | F44: =#REF! ->  | G44: =#REF! -> 
A45: Water Heating (Storage 88% Cond) | B45: Commercial | C45: =#REF! ->  | D45: =#REF! ->  | E45: =#REF! ->  | F45: =#REF! ->  | G45: =#REF! -> 
A46: ='Database Inputs'!#REF! ->  | B46: Commercial | C46: =#REF! ->  | D46: =#REF! ->  | E46: =#REF! ->  | F46: =#REF! ->  | G46: =#REF! -> 
A47: ='Database Inputs'!#REF! ->  | B47: Commercial | C47: =#REF! ->  | D47: =#REF! ->  | E47: =#REF! ->  | F47: =#REF! ->  | G47: =#REF! -> 
A48: ='Database Inputs'!#REF! ->  | B48: Commercial | C48: =#REF! ->  | D48: =#REF! ->  | E48: =#REF! ->  | F48: =#REF! ->  | G48: =#REF! -> 
A49: ='Database Inputs'!#REF! ->  | B49: Commercial | C49: =#REF! ->  | D49: =#REF! ->  | E49: =#REF! ->  | F49: =#REF! ->  | G49: =#REF! -> 
A50: ='Database Inputs'!#REF! ->  | B50: Commercial | C50: =#REF! ->  | D50: =#REF! ->  | E50: =#REF! ->  | F50: =#REF! ->  | G50: =#REF! -> 
A51: Custom Efficiency | B51: Commercial | C51: =+'Comm Custom'!G42 -> 0 | D51: =+'Comm Custom'!G43 -> 0 | E51: =+'Comm Custom'!G44 -> 0 | F51: =+'Comm Custom'!G45 -> 0 | G51: =+'Comm Custom'!G46 -> 0

Sheet Total Program
A1: NATURAL GAS CONSERVATION PROGRAMS/DEMAND-SIDE MANAGEMENT | K1: Table 1 | AD1: Table 2 | AP1: Table 3 | BG1: Table 4 | BV1: Table 5
A2: BEN/COST ANALYSIS FOR GAS CONSERVATION | K2: Ratepayer Impact Measure Test | AD2: Utility Cost Test | AP2: Societal Test | BG2: Participant Test | BV2: Total Resource Cost Test
A4: Company: | B4: Montana-Dakota Utilities Co. | K4: Company: | M4: =B4 -> Montana-Dakota Utilities Co. | AD4: Company: | AF4: =B4 -> Montana-Dakota Utilities Co. | AP4: Company: | AR4: =AF4 -> Montana-Dakota Utilities Co. | BH4: Company: | BI4: =AR4 -> Montana-Dakota Utilities Co. | BW4: Company: | BX4: =BI4 -> Montana-Dakota Utilities Co.
A5: Project: | B5: Total South Dakota Program | K5: Project: | M5: =$B$5 -> Total South Dakota Program | AD5: Project: | AF5: =$B$5 -> Total South Dakota Program | AP5: Project: | AR5: =$B$5 -> Total South Dakota Program | BH5: Project: | BI5: =$B$5 -> Total South Dakota Program | BW5: Project: | BX5: =$B$5 -> Total South Dakota Program
A6: Program Years: | B6: =+'Total Program Inputs'!C6 -> 2024
N7: Benefits | X7: Costs | AF7: Benefits | AJ7: Costs | AR7: Benefits | BB7: Costs | BI7: Benefits | BR7: Costs | BX7: Benefits | CC7: Costs
A8: Input Data | F8: =+'Total Program Inputs'!C6 -> 2024 | AB8: Annual | AN8: Annual | AT8: Non-Gas | BE8: Annual | BT8: Annual | CG8: Annual
M9: Total | N9: Gas | O9: Gas | P9: Variable | Q9: Variable | R9: Total | S9: Peak Dk | T9: Dmd | U9: Total | W9: Distribution | Y9: Program | AA9: Total | AB9: Benefits | AF9: Total | AG9: Total | AH9: Annual | AJ9: Program | AL9: Utility | AN9: Benefits | AR9: Total | AS9: Total | AT9: Energy | AU9: Non-Gas | AV9: Environmental | AW9: Environmental | AZ9: Annual | BB9: Utility | BC9: Participants' | BD9: Annual | BE9: Benefits | BJ9: Total | BL9: Gas | BM9: Non-Gas | BN9: Non-Gas | BP9: Total | BR9: Direct | BT9: Benefits | BX9: Total | BY9: Total | BZ9: Non-Gas | CA9: Total | CC9: Utility | CD9: Participants' | CG9: Benefits
A10: 1) Retail Rate ($/Dk) = | E10: 16) Utility Project Costs | M10: Energy | N10: Commodity | O10: Commodity | P10: O & M | Q10: O & M | R10: Energy | S10: Demand | T10: Savings | U10: Demand | V10: Total | W10: Delivery | X10: Lost | Y10: Admin | Z10: Incentive | AA10: Program | AB10: Less | AF10: Energy | AG10: Demand | AH10: Total | AJ10: Admin | AK10: Incentive | AL10: Program | AN10: Less | AR10: Energy | AS10: Demand | AT10: Savings | AU10: Energy | AV10: Damage | AW10: Damage | AZ10: Total | BB10: Program | BC10: Costs Net | BD10: Total | BE10: Less | BI10: Incentives | BJ10: Energy | BK10: Retail | BL10: Bill | BM10: Fuel | BN10: Energy | BP10: Annual | BR10: Participant | BT10: Less | BX10: Energy | BY10: Demand | BZ10: Energy | CA10: Annual | CC10: Program | CD10: Costs Net | CE10: Total | CG10: Less
A11: Escalation Rate = | E11: 16a) Administrative & Operating Costs = 1/ | F11: =+'Res .95+% Res Furnace - NEW'!F11+'Res .95+% Res Furnace - Replace'!F11+'Programmable Tstats - Tier 1'!F11+'Programmable Tstats - Tier 2'!F11+'Comm 95+% Furnace - NEW'!F11+'Comm 95+% Furnace - Replace'!F11+'Comm Custom'!F11 -> 20542 | J11: t | M11: Reduction | N11: Cost/Dk | O11: Savings | P11: Cost/Dk | Q11: Savings | R11: Savings | S11: Reduction | T11: '/ Unit | U11: Savings | V11: Savings | W11: Charge | X11: Margin | Y11: Costs | Z11: Costs | AA11: Costs | AB11: Costs | AF11: Savings | AG11: Savings | AH11: Savings | AJ11: Costs | AK11: Costs | AL11: Costs | AN11: Costs | AR11: Savings | AS11: Savings | AT11: ($/Part.) | AU11: Savings | AV11: Savings/Dk | AW11: Savings | AZ11: Savings | BB11: Costs | BC11: of Rebate | BD11: Costs | BE11: Costs | BI11: Received | BJ11: Reduction | BK11: Rate | BL11: Savings | BM11: Retail Rate | BN11: Savings | BP11: Benefits | BR11: Costs | BT11: Costs | BX11: Savings | BY11: Savings | BZ11: Savings | CA11: Benefits | CC11: Costs | CD11: of Rebate | CE11: Costs | CG11: Costs
E12: 16b) Incentive Costs = | F12: =+'Res .95+% Res Furnace - NEW'!F12+'Res .95+% Res Furnace - Replace'!F12+'Programmable Tstats - Tier 1'!F12+'Programmable Tstats - Tier 2'!F12+'Comm 95+% Furnace - NEW'!F12+'Comm 95+% Furnace - Replace'!F12+'Comm Custom'!F12 -> 81781 | L12: Year | M12: (A) | N12: (B) | O12: (C) | P12: (D) | Q12: (E) | R12: (F) | S12: (G) | T12: (H) | U12: (I) | V12: (J) | W12: (K) | X12: (L) | Y12: (M) | Z12: (N) | AA12: (O) | AB12: (P) | AE12: Year | AF12: (A) | AG12: (B) | AH12: (C) | AJ12: (D) | AK12: (E) | AL12: (F) | AN12: (G) | AQ12: Year | AR12: (A) | AS12: (B) | AT12: (C) | AU12: (D) | AV12: (E) | AW12: (F) | AZ12: (G) | BB12: (H) | BC12: (I) | BD12: (J) | BE12: (K) | BH12: Year | BI12: (A) | BJ12: (B) | BK12: (C) | BL12: (D) | BM12: (E) | BN12: (F) | BP12: (G) | BR12: (H) | BT12: (I) | BW12: Year | BX12: (A) | BY12: (B) | BZ12: (C) | CA12: (D) | CC12: (E) | CD12: (F) | CE12: (G) | CG12: (H)
A13: 2) Non-Gas Fuel Retail Rate ($/Fuel Unit) = | E13: 16c) Total Utility Project Costs = | F13: =SUM(F11:F12) -> 102323
A14: Escalation Rate = | J14: =$C$47-$C$45 -> 0 | L14: =$C$47 -> 2024 | M14: =ROUND(+'Res .95+% Res Furnace - NEW'!M14+'Res .95+% Res Furnace - Replace'!M14+'Programmable Tstats - Tier 1'!M14+'Programmable Tstats - Tier 2'!M14+'Comm 95+% Furnace - NEW'!M14+'Comm 95+% Furnace - Replace'!M14+'Comm Custom'!M14,0) -> 5622 | O14: =ROUND(+'Res .95+% Res Furnace - NEW'!O14+'Res .95+% Res Furnace - Replace'!O14+'Programmable Tstats - Tier 1'!O14+'Programmable Tstats - Tier 2'!O14+'Comm 95+% Furnace - NEW'!O14+'Comm 95+% Furnace - Replace'!O14+'Comm Custom'!O14,0) -> 17378 | Q14: =ROUND(+'Res .95+% Res Furnace - NEW'!Q14+'Res .95+% Res Furnace - Replace'!Q14+'Programmable Tstats - Tier 1'!Q14+'Programmable Tstats - Tier 2'!Q14+'Comm 95+% Furnace - NEW'!Q14+'Comm 95+% Furnace - Replace'!Q14+'Comm Custom'!Q14,0) -> 0 | R14: =ROUND(+'Res .95+% Res Furnace - NEW'!R14+'Res .95+% Res Furnace - Replace'!R14+'Programmable Tstats - Tier 1'!R14+'Programmable Tstats - Tier 2'!R14+'Comm 95+% Furnace - NEW'!R14+'Comm 95+% Furnace - Replace'!R14+'Comm Custom'!R14,0) -> 17378 | S14: =ROUND(+'Res .95+% Res Furnace - NEW'!S14+'Res .95+% Res Furnace - Replace'!S14+'Programmable Tstats - Tier 1'!S14+'Programmable Tstats - Tier 2'!S14+'Comm 95+% Furnace - NEW'!S14+'Comm 95+% Furnace - Replace'!S14+'Comm Custom'!S14,0) -> 56 | U14: =ROUND(+'Res .95+% Res Furnace - NEW'!U14+'Res .95+% Res Furnace - Replace'!U14+'Programmable Tstats - Tier 1'!U14+'Programmable Tstats - Tier 2'!U14+'Comm 95+% Furnace - NEW'!U14+'Comm 95+% Furnace - Replace'!U14+'Comm Custom'!U14,0) -> 9984 | V14: =ROUND(+'Res .95+% Res Furnace - NEW'!V14+'Res .95+% Res Furnace - Replace'!V14+'Programmable Tstats - Tier 1'!V14+'Programmable Tstats - Tier 2'!V14+'Comm 95+% Furnace - NEW'!V14+'Comm 95+% Furnace - Replace'!V14+'Comm Custom'!V14,0) -> 27362 | X14: =ROUND(+'Res .95+% Res Furnace - NEW'!X14+'Res .95+% Res Furnace - Replace'!X14+'Programmable Tstats - Tier 1'!X14+'Programmable Tstats - Tier 2'!X14+'Comm 95+% Furnace - NEW'!X14+'Comm 95+% Furnace - Replace'!X14+'Comm Custom'!X14,0) -> 11067 | Y14: =ROUND(+'Res .95+% Res Furnace - NEW'!Y14+'Res .95+% Res Furnace - Replace'!Y14+'Programmable Tstats - Tier 1'!Y14+'Programmable Tstats - Tier 2'!Y14+'Comm 95+% Furnace - NEW'!Y14+'Comm 95+% Furnace - Replace'!Y14+'Comm Custom'!Y14,0) -> 20542 | Z14: =ROUND(+'Res .95+% Res Furnace - NEW'!Z14+'Res .95+% Res Furnace - Replace'!Z14+'Programmable Tstats - Tier 1'!Z14+'Programmable Tstats - Tier 2'!Z14+'Comm 95+% Furnace - NEW'!Z14+'Comm 95+% Furnace - Replace'!Z14+'Comm Custom'!Z14,0) -> 81781 | AA14: =ROUND(+'Res .95+% Res Furnace - NEW'!AA14+'Res .95+% Res Furnace - Replace'!AA14+'Programmable Tstats - Tier 1'!AA14+'Programmable Tstats - Tier 2'!AA14+'Comm 95+% Furnace - NEW'!AA14+'Comm 95+% Furnace - Replace'!AA14+'Comm Custom'!AA14,0) -> 113390 | AB14: =ROUND(+'Res .95+% Res Furnace - NEW'!AB14+'Res .95+% Res Furnace - Replace'!AB14+'Programmable Tstats - Tier 1'!AB14+'Programmable Tstats - Tier 2'!AB14+'Comm 95+% Furnace - NEW'!AB14+'Comm 95+% Furnace - Replace'!AB14+'Comm Custom'!AB14,0) -> -86028 | AE14: =$C$47 -> 2024 | AF14: =+R14 -> 17378 | AG14: =+U14 -> 9984 | AH14: =+AG14+AF14 -> 27362 | AJ14: =ROUND(Y14,0) -> 20542 | AK14: =ROUND(Z14,0) -> 81781 | AL14: =SUM(AJ14:AK14) -> 102323 | AN14: =+AH14-AL14 -> -74961 | AQ14: =$C$47 -> 2024 | AR14: =AF14 -> 17378 | AS14: =+AG14 -> 9984 | AU14: =ROUND(+'Res .95+% Res Furnace - NEW'!AU14+'Res .95+% Res Furnace - Replace'!AU14+'Programmable Tstats - Tier 1'!AU14+'Programmable Tstats - Tier 2'!AU14+'Comm 95+% Furnace - NEW'!AU14+'Comm 95+% Furnace - Replace'!AU14+'Comm Custom'!AU14,0) -> 3312 | AW14: =ROUND(+'Res .95+% Res Furnace - NEW'!AW14+'Res .95+% Res Furnace - Replace'!AW14+'Programmable Tstats - Tier 1'!AW14+'Programmable Tstats - Tier 2'!AW14+'Comm 95+% Furnace - NEW'!AW14+'Comm 95+% Furnace - Replace'!AW14+'Comm Custom'!AW14,0) -> 11638 | AZ14: =ROUND(AR14+AS14+AU14+AW14+AY14,0) -> 42312 | BB14: =ROUND(+'Res .95+% Res Furnace - NEW'!BB14+'Res .95+% Res Furnace - Replace'!BB14+'Programmable Tstats - Tier 1'!BB14+'Programmable Tstats - Tier 2'!BB14+'Comm 95+% Furnace - NEW'!BB14+'Comm 95+% Furnace - Replace'!BB14+'Comm Custom'!BB14,0) -> 102323 | BC14: =ROUND(+'Res .95+% Res Furnace - NEW'!BC14+'Res .95+% Res Furnace - Replace'!BC14+'Programmable Tstats - Tier 1'!BC14+'Programmable Tstats - Tier 2'!BC14+'Comm 95+% Furnace - NEW'!BC14+'Comm 95+% Furnace - Replace'!BC14+'Comm Custom'!BC14,0) -> 106514 | BD14: =BB14+BC14 -> 208837 | BE14: =AZ14-BD14 -> -166525 | BH14: =$C$47 -> 2024 | BI14: =ROUND(+'Res .95+% Res Furnace - NEW'!BI14+'Res .95+% Res Furnace - Replace'!BI14+'Programmable Tstats - Tier 1'!BI14+'Programmable Tstats - Tier 2'!BI14+'Comm 95+% Furnace - NEW'!BI14+'Comm 95+% Furnace - Replace'!BI14+'Comm Custom'!BI14,0) -> 81781 | BJ14: =ROUND(+'Res .95+% Res Furnace - NEW'!BJ14+'Res .95+% Res Furnace - Replace'!BJ14+'Programmable Tstats - Tier 1'!BJ14+'Programmable Tstats - Tier 2'!BJ14+'Comm 95+% Furnace - NEW'!BJ14+'Comm 95+% Furnace - Replace'!BJ14+'Comm Custom'!BJ14,0) -> 5622 | BL14: =ROUND(+'Res .95+% Res Furnace - NEW'!BL14+'Res .95+% Res Furnace - Replace'!BL14+'Programmable Tstats - Tier 1'!BL14+'Programmable Tstats - Tier 2'!BL14+'Comm 95+% Furnace - NEW'!BL14+'Comm 95+% Furnace - Replace'!BL14+'Comm Custom'!BL14,0) -> 44925 | BN14: =ROUND(+'Res .95+% Res Furnace - NEW'!BN14+'Res .95+% Res Furnace - Replace'!BN14+'Programmable Tstats - Tier 1'!BN14+'Programmable Tstats - Tier 2'!BN14+'Comm 95+% Furnace - NEW'!BN14+'Comm 95+% Furnace - Replace'!BN14+'Comm Custom'!BN14,0) -> 19573 | BP14: =BI14+BL14+BN14+BO14 -> 146279 | BR14: =ROUND(+'Res .95+% Res Furnace - NEW'!BR14+'Res .95+% Res Furnace - Replace'!BR14+'Programmable Tstats - Tier 1'!BR14+'Programmable Tstats - Tier 2'!BR14+'Comm 95+% Furnace - NEW'!BR14+'Comm 95+% Furnace - Replace'!BR14+'Comm Custom'!BR14,0) -> 188295 | BT14: =BP14-BR14 -> -42016 | BW14: =$C$47 -> 2024 | BX14: =$R14 -> 17378 | BY14: =U14 -> 9984 | BZ14: =AU14 -> 3312 | CA14: =SUM(BX14:BZ14) -> 30674 | CC14: =BB14 -> 102323 | CD14: =BC14 -> 106514 | CE14: =SUM(CC14:CD14) -> 208837 | CG14: =CA14-CE14 -> -178163
A15: Non-Gas Fuel Units (ie. kWh,Gallons, etc) = | E15: 17) Direct Participant Costs ($/Part.) = | J15: =J14+1 -> 1 | L15: =L14+1 -> 2025 | M15: =ROUND(+'Res .95+% Res Furnace - NEW'!M15+'Res .95+% Res Furnace - Replace'!M15+'Programmable Tstats - Tier 1'!M15+'Programmable Tstats - Tier 2'!M15+'Comm 95+% Furnace - NEW'!M15+'Comm 95+% Furnace - Replace'!M15+'Comm Custom'!M15,0) -> 5622 | O15: =ROUND(+'Res .95+% Res Furnace - NEW'!O15+'Res .95+% Res Furnace - Replace'!O15+'Programmable Tstats - Tier 1'!O15+'Programmable Tstats - Tier 2'!O15+'Comm 95+% Furnace - NEW'!O15+'Comm 95+% Furnace - Replace'!O15+'Comm Custom'!O15,0) -> 17900 | Q15: =ROUND(+'Res .95+% Res Furnace - NEW'!Q15+'Res .95+% Res Furnace - Replace'!Q15+'Programmable Tstats - Tier 1'!Q15+'Programmable Tstats - Tier 2'!Q15+'Comm 95+% Furnace - NEW'!Q15+'Comm 95+% Furnace - Replace'!Q15+'Comm Custom'!Q15,0) -> 0 | R15: =ROUND(+'Res .95+% Res Furnace - NEW'!R15+'Res .95+% Res Furnace - Replace'!R15+'Programmable Tstats - Tier 1'!R15+'Programmable Tstats - Tier 2'!R15+'Comm 95+% Furnace - NEW'!R15+'Comm 95+% Furnace - Replace'!R15+'Comm Custom'!R15,0) -> 17900 | S15: =ROUND(+'Res .95+% Res Furnace - NEW'!S15+'Res .95+% Res Furnace - Replace'!S15+'Programmable Tstats - Tier 1'!S15+'Programmable Tstats - Tier 2'!S15+'Comm 95+% Furnace - NEW'!S15+'Comm 95+% Furnace - Replace'!S15+'Comm Custom'!S15,0) -> 56 | U15: =ROUND(+'Res .95+% Res Furnace - NEW'!U15+'Res .95+% Res Furnace - Replace'!U15+'Programmable Tstats - Tier 1'!U15+'Programmable Tstats - Tier 2'!U15+'Comm 95+% Furnace - NEW'!U15+'Comm 95+% Furnace - Replace'!U15+'Comm Custom'!U15,0) -> 10039 | V15: =ROUND(+'Res .95+% Res Furnace - NEW'!V15+'Res .95+% Res Furnace - Replace'!V15+'Programmable Tstats - Tier 1'!V15+'Programmable Tstats - Tier 2'!V15+'Comm 95+% Furnace - NEW'!V15+'Comm 95+% Furnace - Replace'!V15+'Comm Custom'!V15,0) -> 27939 | X15: =ROUND(+'Res .95+% Res Furnace - NEW'!X15+'Res .95+% Res Furnace - Replace'!X15+'Programmable Tstats - Tier 1'!X15+'Programmable Tstats - Tier 2'!X15+'Comm 95+% Furnace - NEW'!X15+'Comm 95+% Furnace - Replace'!X15+'Comm Custom'!X15,0) -> 11399 | Y15: =ROUND(+'Res .95+% Res Furnace - NEW'!Y15+'Res .95+% Res Furnace - Replace'!Y15+'Programmable Tstats - Tier 1'!Y15+'Programmable Tstats - Tier 2'!Y15+'Comm 95+% Furnace - NEW'!Y15+'Comm 95+% Furnace - Replace'!Y15+'Comm Custom'!Y15,0) -> 0 | Z15: =ROUND(+'Res .95+% Res Furnace - NEW'!Z15+'Res .95+% Res Furnace - Replace'!Z15+'Programmable Tstats - Tier 1'!Z15+'Programmable Tstats - Tier 2'!Z15+'Comm 95+% Furnace - NEW'!Z15+'Comm 95+% Furnace - Replace'!Z15+'Comm Custom'!Z15,0) -> 0 | AA15: =ROUND(+'Res .95+% Res Furnace - NEW'!AA15+'Res .95+% Res Furnace - Replace'!AA15+'Programmable Tstats - Tier 1'!AA15+'Programmable Tstats - Tier 2'!AA15+'Comm 95+% Furnace - NEW'!AA15+'Comm 95+% Furnace - Replace'!AA15+'Comm Custom'!AA15,0) -> 11399 | AB15: =ROUND(+'Res .95+% Res Furnace - NEW'!AB15+'Res .95+% Res Furnace - Replace'!AB15+'Programmable Tstats - Tier 1'!AB15+'Programmable Tstats - Tier 2'!AB15+'Comm 95+% Furnace - NEW'!AB15+'Comm 95+% Furnace - Replace'!AB15+'Comm Custom'!AB15,0) -> 16540 | AE15: =AE14+1 -> 2025 | AF15: 17900 | AG15: 10039 | AH15: =+AG15+AF15 -> 27939 | AJ15: =ROUND(Y15,0) -> 0 | AK15: 0 | AL15: 0 | AN15: =+AH15-AL15 -> 27939 | AQ15: =AQ14+1 -> 2025 | AR15: 17900 | AS15: 10039 | AU15: =ROUND(+'Res .95+% Res Furnace - NEW'!AU15+'Res .95+% Res Furnace - Replace'!AU15+'Programmable Tstats - Tier 1'!AU15+'Programmable Tstats - Tier 2'!AU15+'Comm 95+% Furnace - NEW'!AU15+'Comm 95+% Furnace - Replace'!AU15+'Comm Custom'!AU15,0) -> 3463 | AW15: =ROUND(+'Res .95+% Res Furnace - NEW'!AW15+'Res .95+% Res Furnace - Replace'!AW15+'Programmable Tstats - Tier 1'!AW15+'Programmable Tstats - Tier 2'!AW15+'Comm 95+% Furnace - NEW'!AW15+'Comm 95+% Furnace - Replace'!AW15+'Comm Custom'!AW15,0) -> 11834 | AZ15: =ROUND(AR15+AS15+AU15+AW15+AY15,0) -> 43236 | BB15: =ROUND(+'Res .95+% Res Furnace - NEW'!BB15+'Res .95+% Res Furnace - Replace'!BB15+'Programmable Tstats - Tier 1'!BB15+'Programmable Tstats - Tier 2'!BB15+'Comm 95+% Furnace - NEW'!BB15+'Comm 95+% Furnace - Replace'!BB15+'Comm Custom'!BB15,0) -> 0 | BC15: =ROUND(+'Res .95+% Res Furnace - NEW'!BC15+'Res .95+% Res Furnace - Replace'!BC15+'Programmable Tstats - Tier 1'!BC15+'Programmable Tstats - Tier 2'!BC15+'Comm 95+% Furnace - NEW'!BC15+'Comm 95+% Furnace - Replace'!BC15+'Comm Custom'!BC15,0) -> 0 | BD15: =BB15+BC15 -> 0 | BE15: 43236 | BH15: =BH14+1 -> 2025 | BI15: =ROUND(+'Res .95+% Res Furnace - NEW'!BI15+'Res .95+% Res Furnace - Replace'!BI15+'Programmable Tstats - Tier 1'!BI15+'Programmable Tstats - Tier 2'!BI15+'Comm 95+% Furnace - NEW'!BI15+'Comm 95+% Furnace - Replace'!BI15+'Comm Custom'!BI15,0) -> 0 | BJ15: =ROUND(+'Res .95+% Res Furnace - NEW'!BJ15+'Res .95+% Res Furnace - Replace'!BJ15+'Programmable Tstats - Tier 1'!BJ15+'Programmable Tstats - Tier 2'!BJ15+'Comm 95+% Furnace - NEW'!BJ15+'Comm 95+% Furnace - Replace'!BJ15+'Comm Custom'!BJ15,0) -> 5622 | BL15: =ROUND(+'Res .95+% Res Furnace - NEW'!BL15+'Res .95+% Res Furnace - Replace'!BL15+'Programmable Tstats - Tier 1'!BL15+'Programmable Tstats - Tier 2'!BL15+'Comm 95+% Furnace - NEW'!BL15+'Comm 95+% Furnace - Replace'!BL15+'Comm Custom'!BL15,0) -> 46273 | BN15: =ROUND(+'Res .95+% Res Furnace - NEW'!BN15+'Res .95+% Res Furnace - Replace'!BN15+'Programmable Tstats - Tier 1'!BN15+'Programmable Tstats - Tier 2'!BN15+'Comm 95+% Furnace - NEW'!BN15+'Comm 95+% Furnace - Replace'!BN15+'Comm Custom'!BN15,0) -> 20024 | BP15: 66297 | BR15: =ROUND(+'Res .95+% Res Furnace - NEW'!BR15+'Res .95+% Res Furnace - Replace'!BR15+'Programmable Tstats - Tier 1'!BR15+'Programmable Tstats - Tier 2'!BR15+'Comm 95+% Furnace - NEW'!BR15+'Comm 95+% Furnace - Replace'!BR15+'Comm Custom'!BR15,0) -> 0 | BT15: =BP15-BR15 -> 66297 | BW15: =BW14+1 -> 2025 | BX15: =$R15 -> 17900 | BY15: =U15 -> 10039 | BZ15: =AU15 -> 3463 | CA15: =SUM(BX15:BZ15) -> 31402 | CC15: =BB15 -> 0 | CD15: =BC15 -> 0 | CE15: =SUM(CC15:CD15) -> 0 | CG15: =CA15-CE15 -> 31402
J16: 2 | L16: 2026 | M16: =ROUND(+'Res .95+% Res Furnace - NEW'!M16+'Res .95+% Res Furnace - Replace'!M16+'Programmable Tstats - Tier 1'!M16+'Programmable Tstats - Tier 2'!M16+'Comm 95+% Furnace - NEW'!M16+'Comm 95+% Furnace - Replace'!M16+'Comm Custom'!M16,0) -> 5622 | O16: =ROUND(+'Res .95+% Res Furnace - NEW'!O16+'Res .95+% Res Furnace - Replace'!O16+'Programmable Tstats - Tier 1'!O16+'Programmable Tstats - Tier 2'!O16+'Comm 95+% Furnace - NEW'!O16+'Comm 95+% Furnace - Replace'!O16+'Comm Custom'!O16,0) -> 18434 | Q16: =ROUND(+'Res .95+% Res Furnace - NEW'!Q16+'Res .95+% Res Furnace - Replace'!Q16+'Programmable Tstats - Tier 1'!Q16+'Programmable Tstats - Tier 2'!Q16+'Comm 95+% Furnace - NEW'!Q16+'Comm 95+% Furnace - Replace'!Q16+'Comm Custom'!Q16,0) -> 0 | R16: =ROUND(+'Res .95+% Res Furnace - NEW'!R16+'Res .95+% Res Furnace - Replace'!R16+'Programmable Tstats - Tier 1'!R16+'Programmable Tstats - Tier 2'!R16+'Comm 95+% Furnace - NEW'!R16+'Comm 95+% Furnace - Replace'!R16+'Comm Custom'!R16,0) -> 18434 | S16: =ROUND(+'Res .95+% Res Furnace - NEW'!S16+'Res .95+% Res Furnace - Replace'!S16+'Programmable Tstats - Tier 1'!S16+'Programmable Tstats - Tier 2'!S16+'Comm 95+% Furnace - NEW'!S16+'Comm 95+% Furnace - Replace'!S16+'Comm Custom'!S16,0) -> 56 | U16: =ROUND(+'Res .95+% Res Furnace - NEW'!U16+'Res .95+% Res Furnace - Replace'!U16+'Programmable Tstats - Tier 1'!U16+'Programmable Tstats - Tier 2'!U16+'Comm 95+% Furnace - NEW'!U16+'Comm 95+% Furnace - Replace'!U16+'Comm Custom'!U16,0) -> 10152 | V16: =ROUND(+'Res .95+% Res Furnace - NEW'!V16+'Res .95+% Res Furnace - Replace'!V16+'Programmable Tstats - Tier 1'!V16+'Programmable Tstats - Tier 2'!V16+'Comm 95+% Furnace - NEW'!V16+'Comm 95+% Furnace - Replace'!V16+'Comm Custom'!V16,0) -> 28586 | X16: =ROUND(+'Res .95+% Res Furnace - NEW'!X16+'Res .95+% Res Furnace - Replace'!X16+'Programmable Tstats - Tier 1'!X16+'Programmable Tstats - Tier 2'!X16+'Comm 95+% Furnace - NEW'!X16+'Comm 95+% Furnace - Replace'!X16+'Comm Custom'!X16,0) -> 11741 | Y16: =ROUND(+'Res .95+% Res Furnace - NEW'!Y16+'Res .95+% Res Furnace - Replace'!Y16+'Programmable Tstats - Tier 1'!Y16+'Programmable Tstats - Tier 2'!Y16+'Comm 95+% Furnace - NEW'!Y16+'Comm 95+% Furnace - Replace'!Y16+'Comm Custom'!Y16,0) -> 0 | Z16: =ROUND(+'Res .95+% Res Furnace - NEW'!Z16+'Res .95+% Res Furnace - Replace'!Z16+'Programmable Tstats - Tier 1'!Z16+'Programmable Tstats - Tier 2'!Z16+'Comm 95+% Furnace - NEW'!Z16+'Comm 95+% Furnace - Replace'!Z16+'Comm Custom'!Z16,0) -> 0 | AA16: =ROUND(+'Res .95+% Res Furnace - NEW'!AA16+'Res .95+% Res Furnace - Replace'!AA16+'Programmable Tstats - Tier 1'!AA16+'Programmable Tstats - Tier 2'!AA16+'Comm 95+% Furnace - NEW'!AA16+'Comm 95+% Furnace - Replace'!AA16+'Comm Custom'!AA16,0) -> 11741 | AB16: =ROUND(+'Res .95+% Res Furnace - NEW'!AB16+'Res .95+% Res Furnace - Replace'!AB16+'Programmable Tstats - Tier 1'!AB16+'Programmable Tstats - Tier 2'!AB16+'Comm 95+% Furnace - NEW'!AB16+'Comm 95+% Furnace - Replace'!AB16+'Comm Custom'!AB16,0) -> 16845 | AE16: 2026 | AF16: 18434 | AG16: 10152 | AH16: =+AG16+AF16 -> 28586 | AJ16: 0 | AK16: 0 | AL16: 0 | AN16: 28586 | AQ16: 2026 | AR16: 18434 | AS16: 10152 | AU16: =ROUND(+'Res .95+% Res Furnace - NEW'!AU16+'Res .95+% Res Furnace - Replace'!AU16+'Programmable Tstats - Tier 1'!AU16+'Programmable Tstats - Tier 2'!AU16+'Comm 95+% Furnace - NEW'!AU16+'Comm 95+% Furnace - Replace'!AU16+'Comm Custom'!AU16,0) -> 3613 | AW16: =ROUND(+'Res .95+% Res Furnace - NEW'!AW16+'Res .95+% Res Furnace - Replace'!AW16+'Programmable Tstats - Tier 1'!AW16+'Programmable Tstats - Tier 2'!AW16+'Comm 95+% Furnace - NEW'!AW16+'Comm 95+% Furnace - Replace'!AW16+'Comm Custom'!AW16,0) -> 12036 | AZ16: 44235 | BB16: =ROUND(+'Res .95+% Res Furnace - NEW'!BB16+'Res .95+% Res Furnace - Replace'!BB16+'Programmable Tstats - Tier 1'!BB16+'Programmable Tstats - Tier 2'!BB16+'Comm 95+% Furnace - NEW'!BB16+'Comm 95+% Furnace - Replace'!BB16+'Comm Custom'!BB16,0) -> 0 | BC16: =ROUND(+'Res .95+% Res Furnace - NEW'!BC16+'Res .95+% Res Furnace - Replace'!BC16+'Programmable Tstats - Tier 1'!BC16+'Programmable Tstats - Tier 2'!BC16+'Comm 95+% Furnace - NEW'!BC16+'Comm 95+% Furnace - Replace'!BC16+'Comm Custom'!BC16,0) -> 0 | BD16: 0 | BE16: 44235 | BH16: 2026 | BI16: =ROUND(+'Res .95+% Res Furnace - NEW'!BI16+'Res .95+% Res Furnace - Replace'!BI16+'Programmable Tstats - Tier 1'!BI16+'Programmable Tstats - Tier 2'!BI16+'Comm 95+% Furnace - NEW'!BI16+'Comm 95+% Furnace - Replace'!BI16+'Comm Custom'!BI16,0) -> 0 | BJ16: =ROUND(+'Res .95+% Res Furnace - NEW'!BJ16+'Res .95+% Res Furnace - Replace'!BJ16+'Programmable Tstats - Tier 1'!BJ16+'Programmable Tstats - Tier 2'!BJ16+'Comm 95+% Furnace - NEW'!BJ16+'Comm 95+% Furnace - Replace'!BJ16+'Comm Custom'!BJ16,0) -> 5622 | BL16: =ROUND(+'Res .95+% Res Furnace - NEW'!BL16+'Res .95+% Res Furnace - Replace'!BL16+'Programmable Tstats - Tier 1'!BL16+'Programmable Tstats - Tier 2'!BL16+'Comm 95+% Furnace - NEW'!BL16+'Comm 95+% Furnace - Replace'!BL16+'Comm Custom'!BL16,0) -> 47661 | BN16: =ROUND(+'Res .95+% Res Furnace - NEW'!BN16+'Res .95+% Res Furnace - Replace'!BN16+'Programmable Tstats - Tier 1'!BN16+'Programmable Tstats - Tier 2'!BN16+'Comm 95+% Furnace - NEW'!BN16+'Comm 95+% Furnace - Replace'!BN16+'Comm Custom'!BN16,0) -> 20627 | BP16: 68288 | BR16: =ROUND(+'Res .95+% Res Furnace - NEW'!BR16+'Res .95+% Res Furnace - Replace'!BR16+'Programmable Tstats - Tier 1'!BR16+'Programmable Tstats - Tier 2'!BR16+'Comm 95+% Furnace - NEW'!BR16+'Comm 95+% Furnace - Replace'!BR16+'Comm Custom'!BR16,0) -> 0 | BT16: 68288 | BW16: 2026 | BX16: 18434 | BY16: =U16 -> 10152 | BZ16: 3613 | CA16: 32199 | CC16: =BB16 -> 0 | CD16: 0 | CE16: =SUM(CC16:CD16) -> 0 | CG16: 32199
A17: 3) Commodity Cost ($/Dk) = | E17: 18) Participant Non-Energy Costs (Annual $/Part.) = | J17: 3 | L17: 2027 | M17: =ROUND(+'Res .95+% Res Furnace - NEW'!M17+'Res .95+% Res Furnace - Replace'!M17+'Programmable Tstats - Tier 1'!M17+'Programmable Tstats - Tier 2'!M17+'Comm 95+% Furnace - NEW'!M17+'Comm 95+% Furnace - Replace'!M17+'Comm Custom'!M17,0) -> 5622 | O17: =ROUND(+'Res .95+% Res Furnace - NEW'!O17+'Res .95+% Res Furnace - Replace'!O17+'Programmable Tstats - Tier 1'!O17+'Programmable Tstats - Tier 2'!O17+'Comm 95+% Furnace - NEW'!O17+'Comm 95+% Furnace - Replace'!O17+'Comm Custom'!O17,0) -> 18991 | Q17: =ROUND(+'Res .95+% Res Furnace - NEW'!Q17+'Res .95+% Res Furnace - Replace'!Q17+'Programmable Tstats - Tier 1'!Q17+'Programmable Tstats - Tier 2'!Q17+'Comm 95+% Furnace - NEW'!Q17+'Comm 95+% Furnace - Replace'!Q17+'Comm Custom'!Q17,0) -> 0 | R17: =ROUND(+'Res .95+% Res Furnace - NEW'!R17+'Res .95+% Res Furnace - Replace'!R17+'Programmable Tstats - Tier 1'!R17+'Programmable Tstats - Tier 2'!R17+'Comm 95+% Furnace - NEW'!R17+'Comm 95+% Furnace - Replace'!R17+'Comm Custom'!R17,0) -> 18991 | S17: =ROUND(+'Res .95+% Res Furnace - NEW'!S17+'Res .95+% Res Furnace - Replace'!S17+'Programmable Tstats - Tier 1'!S17+'Programmable Tstats - Tier 2'!S17+'Comm 95+% Furnace - NEW'!S17+'Comm 95+% Furnace - Replace'!S17+'Comm Custom'!S17,0) -> 56 | U17: =ROUND(+'Res .95+% Res Furnace - NEW'!U17+'Res .95+% Res Furnace - Replace'!U17+'Programmable Tstats - Tier 1'!U17+'Programmable Tstats - Tier 2'!U17+'Comm 95+% Furnace - NEW'!U17+'Comm 95+% Furnace - Replace'!U17+'Comm Custom'!U17,0) -> 10265 | V17: =ROUND(+'Res .95+% Res Furnace - NEW'!V17+'Res .95+% Res Furnace - Replace'!V17+'Programmable Tstats - Tier 1'!V17+'Programmable Tstats - Tier 2'!V17+'Comm 95+% Furnace - NEW'!V17+'Comm 95+% Furnace - Replace'!V17+'Comm Custom'!V17,0) -> 29256 | X17: =ROUND(+'Res .95+% Res Furnace - NEW'!X17+'Res .95+% Res Furnace - Replace'!X17+'Programmable Tstats - Tier 1'!X17+'Programmable Tstats - Tier 2'!X17+'Comm 95+% Furnace - NEW'!X17+'Comm 95+% Furnace - Replace'!X17+'Comm Custom'!X17,0) -> 12095 | Y17: =ROUND(+'Res .95+% Res Furnace - NEW'!Y17+'Res .95+% Res Furnace - Replace'!Y17+'Programmable Tstats - Tier 1'!Y17+'Programmable Tstats - Tier 2'!Y17+'Comm 95+% Furnace - NEW'!Y17+'Comm 95+% Furnace - Replace'!Y17+'Comm Custom'!Y17,0) -> 0 | Z17: =ROUND(+'Res .95+% Res Furnace - NEW'!Z17+'Res .95+% Res Furnace - Replace'!Z17+'Programmable Tstats - Tier 1'!Z17+'Programmable Tstats - Tier 2'!Z17+'Comm 95+% Furnace - NEW'!Z17+'Comm 95+% Furnace - Replace'!Z17+'Comm Custom'!Z17,0) -> 0 | AA17: =ROUND(+'Res .95+% Res Furnace - NEW'!AA17+'Res .95+% Res Furnace - Replace'!AA17+'Programmable Tstats - Tier 1'!AA17+'Programmable Tstats - Tier 2'!AA17+'Comm 95+% Furnace - NEW'!AA17+'Comm 95+% Furnace - Replace'!AA17+'Comm Custom'!AA17,0) -> 12095 | AB17: =ROUND(+'Res .95+% Res Furnace - NEW'!AB17+'Res .95+% Res Furnace - Replace'!AB17+'Programmable Tstats - Tier 1'!AB17+'Programmable Tstats - Tier 2'!AB17+'Comm 95+% Furnace - NEW'!AB17+'Comm 95+% Furnace - Replace'!AB17+'Comm Custom'!AB17,0) -> 17161 | AE17: 2027 | AF17: 18991 | AG17: 10265 | AH17: 29256 | AJ17: 0 | AK17: 0 | AL17: 0 | AN17: 29256 | AQ17: 2027 | AR17: 18991 | AS17: 10265 | AU17: =ROUND(+'Res .95+% Res Furnace - NEW'!AU17+'Res .95+% Res Furnace - Replace'!AU17+'Programmable Tstats - Tier 1'!AU17+'Programmable Tstats - Tier 2'!AU17+'Comm 95+% Furnace - NEW'!AU17+'Comm 95+% Furnace - Replace'!AU17+'Comm Custom'!AU17,0) -> 3613 | AW17: =ROUND(+'Res .95+% Res Furnace - NEW'!AW17+'Res .95+% Res Furnace - Replace'!AW17+'Programmable Tstats - Tier 1'!AW17+'Programmable Tstats - Tier 2'!AW17+'Comm 95+% Furnace - NEW'!AW17+'Comm 95+% Furnace - Replace'!AW17+'Comm Custom'!AW17,0) -> 12240 | AZ17: 45109 | BB17: =ROUND(+'Res .95+% Res Furnace - NEW'!BB17+'Res .95+% Res Furnace - Replace'!BB17+'Programmable Tstats - Tier 1'!BB17+'Programmable Tstats - Tier 2'!BB17+'Comm 95+% Furnace - NEW'!BB17+'Comm 95+% Furnace - Replace'!BB17+'Comm Custom'!BB17,0) -> 0 | BC17: =ROUND(+'Res .95+% Res Furnace - NEW'!BC17+'Res .95+% Res Furnace - Replace'!BC17+'Programmable Tstats - Tier 1'!BC17+'Programmable Tstats - Tier 2'!BC17+'Comm 95+% Furnace - NEW'!BC17+'Comm 95+% Furnace - Replace'!BC17+'Comm Custom'!BC17,0) -> 0 | BD17: 0 | BE17: 45109 | BH17: 2027 | BI17: =ROUND(+'Res .95+% Res Furnace - NEW'!BI17+'Res .95+% Res Furnace - Replace'!BI17+'Programmable Tstats - Tier 1'!BI17+'Programmable Tstats - Tier 2'!BI17+'Comm 95+% Furnace - NEW'!BI17+'Comm 95+% Furnace - Replace'!BI17+'Comm Custom'!BI17,0) -> 0 | BJ17: =ROUND(+'Res .95+% Res Furnace - NEW'!BJ17+'Res .95+% Res Furnace - Replace'!BJ17+'Programmable Tstats - Tier 1'!BJ17+'Programmable Tstats - Tier 2'!BJ17+'Comm 95+% Furnace - NEW'!BJ17+'Comm 95+% Furnace - Replace'!BJ17+'Comm Custom'!BJ17,0) -> 5622 | BL17: =ROUND(+'Res .95+% Res Furnace - NEW'!BL17+'Res .95+% Res Furnace - Replace'!BL17+'Programmable Tstats - Tier 1'!BL17+'Programmable Tstats - Tier 2'!BL17+'Comm 95+% Furnace - NEW'!BL17+'Comm 95+% Furnace - Replace'!BL17+'Comm Custom'!BL17,0) -> 49092 | BN17: =ROUND(+'Res .95+% Res Furnace - NEW'!BN17+'Res .95+% Res Furnace - Replace'!BN17+'Programmable Tstats - Tier 1'!BN17+'Programmable Tstats - Tier 2'!BN17+'Comm 95+% Furnace - NEW'!BN17+'Comm 95+% Furnace - Replace'!BN17+'Comm Custom'!BN17,0) -> 21380 | BP17: 70472 | BR17: =ROUND(+'Res .95+% Res Furnace - NEW'!BR17+'Res .95+% Res Furnace - Replace'!BR17+'Programmable Tstats - Tier 1'!BR17+'Programmable Tstats - Tier 2'!BR17+'Comm 95+% Furnace - NEW'!BR17+'Comm 95+% Furnace - Replace'!BR17+'Comm Custom'!BR17,0) -> 0 | BT17: 70472 | BW17: 2027 | BX17: 18991 | BY17: 10265 | BZ17: 3613 | CA17: 32869 | CC17: 0 | CD17: 0 | CE17: =SUM(CC17:CD17) -> 0 | CG17: 32869
A18: Escalation Rate = | E18: Escalation Rate = | J18: 4 | L18: 2028 | M18: =ROUND(+'Res .95+% Res Furnace - NEW'!M18+'Res .95+% Res Furnace - Replace'!M18+'Programmable Tstats - Tier 1'!M18+'Programmable Tstats - Tier 2'!M18+'Comm 95+% Furnace - NEW'!M18+'Comm 95+% Furnace - Replace'!M18+'Comm Custom'!M18,0) -> 5622 | O18: =ROUND(+'Res .95+% Res Furnace - NEW'!O18+'Res .95+% Res Furnace - Replace'!O18+'Programmable Tstats - Tier 1'!O18+'Programmable Tstats - Tier 2'!O18+'Comm 95+% Furnace - NEW'!O18+'Comm 95+% Furnace - Replace'!O18+'Comm Custom'!O18,0) -> 19558 | Q18: =ROUND(+'Res .95+% Res Furnace - NEW'!Q18+'Res .95+% Res Furnace - Replace'!Q18+'Programmable Tstats - Tier 1'!Q18+'Programmable Tstats - Tier 2'!Q18+'Comm 95+% Furnace - NEW'!Q18+'Comm 95+% Furnace - Replace'!Q18+'Comm Custom'!Q18,0) -> 0 | R18: =ROUND(+'Res .95+% Res Furnace - NEW'!R18+'Res .95+% Res Furnace - Replace'!R18+'Programmable Tstats - Tier 1'!R18+'Programmable Tstats - Tier 2'!R18+'Comm 95+% Furnace - NEW'!R18+'Comm 95+% Furnace - Replace'!R18+'Comm Custom'!R18,0) -> 19558 | S18: =ROUND(+'Res .95+% Res Furnace - NEW'!S18+'Res .95+% Res Furnace - Replace'!S18+'Programmable Tstats - Tier 1'!S18+'Programmable Tstats - Tier 2'!S18+'Comm 95+% Furnace - NEW'!S18+'Comm 95+% Furnace - Replace'!S18+'Comm Custom'!S18,0) -> 56 | U18: =ROUND(+'Res .95+% Res Furnace - NEW'!U18+'Res .95+% Res Furnace - Replace'!U18+'Programmable Tstats - Tier 1'!U18+'Programmable Tstats - Tier 2'!U18+'Comm 95+% Furnace - NEW'!U18+'Comm 95+% Furnace - Replace'!U18+'Comm Custom'!U18,0) -> 10378 | V18: =ROUND(+'Res .95+% Res Furnace - NEW'!V18+'Res .95+% Res Furnace - Replace'!V18+'Programmable Tstats - Tier 1'!V18+'Programmable Tstats - Tier 2'!V18+'Comm 95+% Furnace - NEW'!V18+'Comm 95+% Furnace - Replace'!V18+'Comm Custom'!V18,0) -> 29936 | X18: =ROUND(+'Res .95+% Res Furnace - NEW'!X18+'Res .95+% Res Furnace - Replace'!X18+'Programmable Tstats - Tier 1'!X18+'Programmable Tstats - Tier 2'!X18+'Comm 95+% Furnace - NEW'!X18+'Comm 95+% Furnace - Replace'!X18+'Comm Custom'!X18,0) -> 12456 | Y18: =ROUND(+'Res .95+% Res Furnace - NEW'!Y18+'Res .95+% Res Furnace - Replace'!Y18+'Programmable Tstats - Tier 1'!Y18+'Programmable Tstats - Tier 2'!Y18+'Comm 95+% Furnace - NEW'!Y18+'Comm 95+% Furnace - Replace'!Y18+'Comm Custom'!Y18,0) -> 0 | Z18: =ROUND(+'Res .95+% Res Furnace - NEW'!Z18+'Res .95+% Res Furnace - Replace'!Z18+'Programmable Tstats - Tier 1'!Z18+'Programmable Tstats - Tier 2'!Z18+'Comm 95+% Furnace - NEW'!Z18+'Comm 95+% Furnace - Replace'!Z18+'Comm Custom'!Z18,0) -> 0 | AA18: =ROUND(+'Res .95+% Res Furnace - NEW'!AA18+'Res .95+% Res Furnace - Replace'!AA18+'Programmable Tstats - Tier 1'!AA18+'Programmable Tstats - Tier 2'!AA18+'Comm 95+% Furnace - NEW'!AA18+'Comm 95+% Furnace - Replace'!AA18+'Comm Custom'!AA18,0) -> 12456 | AB18: =ROUND(+'Res .95+% Res Furnace - NEW'!AB18+'Res .95+% Res Furnace - Replace'!AB18+'Programmable Tstats - Tier 1'!AB18+'Programmable Tstats - Tier 2'!AB18+'Comm 95+% Furnace - NEW'!AB18+'Comm 95+% Furnace - Replace'!AB18+'Comm Custom'!AB18,0) -> 17480 | AE18: 2028 | AF18: 19558 | AG18: 10378 | AH18: 29936 | AJ18: 0 | AK18: 0 | AL18: 0 | AN18: 29936 | AQ18: 2028 | AR18: 19558 | AS18: 10378 | AU18: =ROUND(+'Res .95+% Res Furnace - NEW'!AU18+'Res .95+% Res Furnace - Replace'!AU18+'Programmable Tstats - Tier 1'!AU18+'Programmable Tstats - Tier 2'!AU18+'Comm 95+% Furnace - NEW'!AU18+'Comm 95+% Furnace - Replace'!AU18+'Comm Custom'!AU18,0) -> 3764 | AW18: =ROUND(+'Res .95+% Res Furnace - NEW'!AW18+'Res .95+% Res Furnace - Replace'!AW18+'Programmable Tstats - Tier 1'!AW18+'Programmable Tstats - Tier 2'!AW18+'Comm 95+% Furnace - NEW'!AW18+'Comm 95+% Furnace - Replace'!AW18+'Comm Custom'!AW18,0) -> 12447 | AZ18: 46147 | BB18: =ROUND(+'Res .95+% Res Furnace - NEW'!BB18+'Res .95+% Res Furnace - Replace'!BB18+'Programmable Tstats - Tier 1'!BB18+'Programmable Tstats - Tier 2'!BB18+'Comm 95+% Furnace - NEW'!BB18+'Comm 95+% Furnace - Replace'!BB18+'Comm Custom'!BB18,0) -> 0 | BC18: =ROUND(+'Res .95+% Res Furnace - NEW'!BC18+'Res .95+% Res Furnace - Replace'!BC18+'Programmable Tstats - Tier 1'!BC18+'Programmable Tstats - Tier 2'!BC18+'Comm 95+% Furnace - NEW'!BC18+'Comm 95+% Furnace - Replace'!BC18+'Comm Custom'!BC18,0) -> 0 | BD18: 0 | BE18: 46147 | BH18: 2028 | BI18: =ROUND(+'Res .95+% Res Furnace - NEW'!BI18+'Res .95+% Res Furnace - Replace'!BI18+'Programmable Tstats - Tier 1'!BI18+'Programmable Tstats - Tier 2'!BI18+'Comm 95+% Furnace - NEW'!BI18+'Comm 95+% Furnace - Replace'!BI18+'Comm Custom'!BI18,0) -> 0 | BJ18: =ROUND(+'Res .95+% Res Furnace - NEW'!BJ18+'Res .95+% Res Furnace - Replace'!BJ18+'Programmable Tstats - Tier 1'!BJ18+'Programmable Tstats - Tier 2'!BJ18+'Comm 95+% Furnace - NEW'!BJ18+'Comm 95+% Furnace - Replace'!BJ18+'Comm Custom'!BJ18,0) -> 5622 | BL18: =ROUND(+'Res .95+% Res Furnace - NEW'!BL18+'Res .95+% Res Furnace - Replace'!BL18+'Programmable Tstats - Tier 1'!BL18+'Programmable Tstats - Tier 2'!BL18+'Comm 95+% Furnace - NEW'!BL18+'Comm 95+% Furnace - Replace'!BL18+'Comm Custom'!BL18,0) -> 50565 | BN18: =ROUND(+'Res .95+% Res Furnace - NEW'!BN18+'Res .95+% Res Furnace - Replace'!BN18+'Programmable Tstats - Tier 1'!BN18+'Programmable Tstats - Tier 2'!BN18+'Comm 95+% Furnace - NEW'!BN18+'Comm 95+% Furnace - Replace'!BN18+'Comm Custom'!BN18,0) -> 21982 | BP18: 72547 | BR18: =ROUND(+'Res .95+% Res Furnace - NEW'!BR18+'Res .95+% Res Furnace - Replace'!BR18+'Programmable Tstats - Tier 1'!BR18+'Programmable Tstats - Tier 2'!BR18+'Comm 95+% Furnace - NEW'!BR18+'Comm 95+% Furnace - Replace'!BR18+'Comm Custom'!BR18,0) -> 0 | BT18: 72547 | BW18: 2028 | BX18: 19558 | BY18: 10378 | BZ18: 3764 | CA18: =SUM(BX18:BZ18) -> 33700 | CC18: 0 | CD18: 0 | CE18: 0 | CG18: 33700
J19: 5 | L19: 2029 | M19: =ROUND(+'Res .95+% Res Furnace - NEW'!M19+'Res .95+% Res Furnace - Replace'!M19+'Programmable Tstats - Tier 1'!M19+'Programmable Tstats - Tier 2'!M19+'Comm 95+% Furnace - NEW'!M19+'Comm 95+% Furnace - Replace'!M19+'Comm Custom'!M19,0) -> 5622 | O19: =ROUND(+'Res .95+% Res Furnace - NEW'!O19+'Res .95+% Res Furnace - Replace'!O19+'Programmable Tstats - Tier 1'!O19+'Programmable Tstats - Tier 2'!O19+'Comm 95+% Furnace - NEW'!O19+'Comm 95+% Furnace - Replace'!O19+'Comm Custom'!O19,0) -> 20145 | Q19: =ROUND(+'Res .95+% Res Furnace - NEW'!Q19+'Res .95+% Res Furnace - Replace'!Q19+'Programmable Tstats - Tier 1'!Q19+'Programmable Tstats - Tier 2'!Q19+'Comm 95+% Furnace - NEW'!Q19+'Comm 95+% Furnace - Replace'!Q19+'Comm Custom'!Q19,0) -> 0 | R19: =ROUND(+'Res .95+% Res Furnace - NEW'!R19+'Res .95+% Res Furnace - Replace'!R19+'Programmable Tstats - Tier 1'!R19+'Programmable Tstats - Tier 2'!R19+'Comm 95+% Furnace - NEW'!R19+'Comm 95+% Furnace - Replace'!R19+'Comm Custom'!R19,0) -> 20145 | S19: =ROUND(+'Res .95+% Res Furnace - NEW'!S19+'Res .95+% Res Furnace - Replace'!S19+'Programmable Tstats - Tier 1'!S19+'Programmable Tstats - Tier 2'!S19+'Comm 95+% Furnace - NEW'!S19+'Comm 95+% Furnace - Replace'!S19+'Comm Custom'!S19,0) -> 56 | U19: =ROUND(+'Res .95+% Res Furnace - NEW'!U19+'Res .95+% Res Furnace - Replace'!U19+'Programmable Tstats - Tier 1'!U19+'Programmable Tstats - Tier 2'!U19+'Comm 95+% Furnace - NEW'!U19+'Comm 95+% Furnace - Replace'!U19+'Comm Custom'!U19,0) -> 10490 | V19: =ROUND(+'Res .95+% Res Furnace - NEW'!V19+'Res .95+% Res Furnace - Replace'!V19+'Programmable Tstats - Tier 1'!V19+'Programmable Tstats - Tier 2'!V19+'Comm 95+% Furnace - NEW'!V19+'Comm 95+% Furnace - Replace'!V19+'Comm Custom'!V19,0) -> 30635 | X19: =ROUND(+'Res .95+% Res Furnace - NEW'!X19+'Res .95+% Res Furnace - Replace'!X19+'Programmable Tstats - Tier 1'!X19+'Programmable Tstats - Tier 2'!X19+'Comm 95+% Furnace - NEW'!X19+'Comm 95+% Furnace - Replace'!X19+'Comm Custom'!X19,0) -> 12828 | Y19: =ROUND(+'Res .95+% Res Furnace - NEW'!Y19+'Res .95+% Res Furnace - Replace'!Y19+'Programmable Tstats - Tier 1'!Y19+'Programmable Tstats - Tier 2'!Y19+'Comm 95+% Furnace - NEW'!Y19+'Comm 95+% Furnace - Replace'!Y19+'Comm Custom'!Y19,0) -> 0 | Z19: =ROUND(+'Res .95+% Res Furnace - NEW'!Z19+'Res .95+% Res Furnace - Replace'!Z19+'Programmable Tstats - Tier 1'!Z19+'Programmable Tstats - Tier 2'!Z19+'Comm 95+% Furnace - NEW'!Z19+'Comm 95+% Furnace - Replace'!Z19+'Comm Custom'!Z19,0) -> 0 | AA19: =ROUND(+'Res .95+% Res Furnace - NEW'!AA19+'Res .95+% Res Furnace - Replace'!AA19+'Programmable Tstats - Tier 1'!AA19+'Programmable Tstats - Tier 2'!AA19+'Comm 95+% Furnace - NEW'!AA19+'Comm 95+% Furnace - Replace'!AA19+'Comm Custom'!AA19,0) -> 12828 | AB19: =ROUND(+'Res .95+% Res Furnace - NEW'!AB19+'Res .95+% Res Furnace - Replace'!AB19+'Programmable Tstats - Tier 1'!AB19+'Programmable Tstats - Tier 2'!AB19+'Comm 95+% Furnace - NEW'!AB19+'Comm 95+% Furnace - Replace'!AB19+'Comm Custom'!AB19,0) -> 17807 | AE19: 2029 | AF19: 20145 | AG19: 10490 | AH19: 30635 | AJ19: 0 | AK19: 0 | AL19: 0 | AN19: 30635 | AQ19: 2029 | AR19: 20145 | AS19: 10490 | AU19: =ROUND(+'Res .95+% Res Furnace - NEW'!AU19+'Res .95+% Res Furnace - Replace'!AU19+'Programmable Tstats - Tier 1'!AU19+'Programmable Tstats - Tier 2'!AU19+'Comm 95+% Furnace - NEW'!AU19+'Comm 95+% Furnace - Replace'!AU19+'Comm Custom'!AU19,0) -> 3915 | AW19: =ROUND(+'Res .95+% Res Furnace - NEW'!AW19+'Res .95+% Res Furnace - Replace'!AW19+'Programmable Tstats - Tier 1'!AW19+'Programmable Tstats - Tier 2'!AW19+'Comm 95+% Furnace - NEW'!AW19+'Comm 95+% Furnace - Replace'!AW19+'Comm Custom'!AW19,0) -> 12655 | AZ19: 47205 | BB19: =ROUND(+'Res .95+% Res Furnace - NEW'!BB19+'Res .95+% Res Furnace - Replace'!BB19+'Programmable Tstats - Tier 1'!BB19+'Programmable Tstats - Tier 2'!BB19+'Comm 95+% Furnace - NEW'!BB19+'Comm 95+% Furnace - Replace'!BB19+'Comm Custom'!BB19,0) -> 0 | BC19: =ROUND(+'Res .95+% Res Furnace - NEW'!BC19+'Res .95+% Res Furnace - Replace'!BC19+'Programmable Tstats - Tier 1'!BC19+'Programmable Tstats - Tier 2'!BC19+'Comm 95+% Furnace - NEW'!BC19+'Comm 95+% Furnace - Replace'!BC19+'Comm Custom'!BC19,0) -> 0 | BD19: 0 | BE19: 47205 | BH19: 2029 | BI19: =ROUND(+'Res .95+% Res Furnace - NEW'!BI19+'Res .95+% Res Furnace - Replace'!BI19+'Programmable Tstats - Tier 1'!BI19+'Programmable Tstats - Tier 2'!BI19+'Comm 95+% Furnace - NEW'!BI19+'Comm 95+% Furnace - Replace'!BI19+'Comm Custom'!BI19,0) -> 0 | BJ19: =ROUND(+'Res .95+% Res Furnace - NEW'!BJ19+'Res .95+% Res Furnace - Replace'!BJ19+'Programmable Tstats - Tier 1'!BJ19+'Programmable Tstats - Tier 2'!BJ19+'Comm 95+% Furnace - NEW'!BJ19+'Comm 95+% Furnace - Replace'!BJ19+'Comm Custom'!BJ19,0) -> 5622 | BL19: =ROUND(+'Res .95+% Res Furnace - NEW'!BL19+'Res .95+% Res Furnace - Replace'!BL19+'Programmable Tstats - Tier 1'!BL19+'Programmable Tstats - Tier 2'!BL19+'Comm 95+% Furnace - NEW'!BL19+'Comm 95+% Furnace - Replace'!BL19+'Comm Custom'!BL19,0) -> 52079 | BN19: =ROUND(+'Res .95+% Res Furnace - NEW'!BN19+'Res .95+% Res Furnace - Replace'!BN19+'Programmable Tstats - Tier 1'!BN19+'Programmable Tstats - Tier 2'!BN19+'Comm 95+% Furnace - NEW'!BN19+'Comm 95+% Furnace - Replace'!BN19+'Comm Custom'!BN19,0) -> 22584 | BP19: 74663 | BR19: =ROUND(+'Res .95+% Res Furnace - NEW'!BR19+'Res .95+% Res Furnace - Replace'!BR19+'Programmable Tstats - Tier 1'!BR19+'Programmable Tstats - Tier 2'!BR19+'Comm 95+% Furnace - NEW'!BR19+'Comm 95+% Furnace - Replace'!BR19+'Comm Custom'!BR19,0) -> 0 | BT19: 74663 | BW19: 2029 | BX19: 20145 | BY19: 10490 | BZ19: 3915 | CA19: 34550 | CC19: 0 | CD19: 0 | CE19: 0 | CG19: 34550
A20: 4) Demand Cost ($/Unit/Yr) = | E20: 19) Participant Non-Energy Savings (Annual $/Part) = | J20: 6 | L20: 2030 | M20: =ROUND(+'Res .95+% Res Furnace - NEW'!M20+'Res .95+% Res Furnace - Replace'!M20+'Programmable Tstats - Tier 1'!M20+'Programmable Tstats - Tier 2'!M20+'Comm 95+% Furnace - NEW'!M20+'Comm 95+% Furnace - Replace'!M20+'Comm Custom'!M20,0) -> 5622 | O20: =ROUND(+'Res .95+% Res Furnace - NEW'!O20+'Res .95+% Res Furnace - Replace'!O20+'Programmable Tstats - Tier 1'!O20+'Programmable Tstats - Tier 2'!O20+'Comm 95+% Furnace - NEW'!O20+'Comm 95+% Furnace - Replace'!O20+'Comm Custom'!O20,0) -> 20750 | Q20: =ROUND(+'Res .95+% Res Furnace - NEW'!Q20+'Res .95+% Res Furnace - Replace'!Q20+'Programmable Tstats - Tier 1'!Q20+'Programmable Tstats - Tier 2'!Q20+'Comm 95+% Furnace - NEW'!Q20+'Comm 95+% Furnace - Replace'!Q20+'Comm Custom'!Q20,0) -> 0 | R20: =ROUND(+'Res .95+% Res Furnace - NEW'!R20+'Res .95+% Res Furnace - Replace'!R20+'Programmable Tstats - Tier 1'!R20+'Programmable Tstats - Tier 2'!R20+'Comm 95+% Furnace - NEW'!R20+'Comm 95+% Furnace - Replace'!R20+'Comm Custom'!R20,0) -> 20750 | S20: =ROUND(+'Res .95+% Res Furnace - NEW'!S20+'Res .95+% Res Furnace - Replace'!S20+'Programmable Tstats - Tier 1'!S20+'Programmable Tstats - Tier 2'!S20+'Comm 95+% Furnace - NEW'!S20+'Comm 95+% Furnace - Replace'!S20+'Comm Custom'!S20,0) -> 56 | U20: =ROUND(+'Res .95+% Res Furnace - NEW'!U20+'Res .95+% Res Furnace - Replace'!U20+'Programmable Tstats - Tier 1'!U20+'Programmable Tstats - Tier 2'!U20+'Comm 95+% Furnace - NEW'!U20+'Comm 95+% Furnace - Replace'!U20+'Comm Custom'!U20,0) -> 10603 | V20: =ROUND(+'Res .95+% Res Furnace - NEW'!V20+'Res .95+% Res Furnace - Replace'!V20+'Programmable Tstats - Tier 1'!V20+'Programmable Tstats - Tier 2'!V20+'Comm 95+% Furnace - NEW'!V20+'Comm 95+% Furnace - Replace'!V20+'Comm Custom'!V20,0) -> 31353 | X20: =ROUND(+'Res .95+% Res Furnace - NEW'!X20+'Res .95+% Res Furnace - Replace'!X20+'Programmable Tstats - Tier 1'!X20+'Programmable Tstats - Tier 2'!X20+'Comm 95+% Furnace - NEW'!X20+'Comm 95+% Furnace - Replace'!X20+'Comm Custom'!X20,0) -> 13213 | Y20: =ROUND(+'Res .95+% Res Furnace - NEW'!Y20+'Res .95+% Res Furnace - Replace'!Y20+'Programmable Tstats - Tier 1'!Y20+'Programmable Tstats - Tier 2'!Y20+'Comm 95+% Furnace - NEW'!Y20+'Comm 95+% Furnace - Replace'!Y20+'Comm Custom'!Y20,0) -> 0 | Z20: =ROUND(+'Res .95+% Res Furnace - NEW'!Z20+'Res .95+% Res Furnace - Replace'!Z20+'Programmable Tstats - Tier 1'!Z20+'Programmable Tstats - Tier 2'!Z20+'Comm 95+% Furnace - NEW'!Z20+'Comm 95+% Furnace - Replace'!Z20+'Comm Custom'!Z20,0) -> 0 | AA20: =ROUND(+'Res .95+% Res Furnace - NEW'!AA20+'Res .95+% Res Furnace - Replace'!AA20+'Programmable Tstats - Tier 1'!AA20+'Programmable Tstats - Tier 2'!AA20+'Comm 95+% Furnace - NEW'!AA20+'Comm 95+% Furnace - Replace'!AA20+'Comm Custom'!AA20,0) -> 13213 | AB20: =ROUND(+'Res .95+% Res Furnace - NEW'!AB20+'Res .95+% Res Furnace - Replace'!AB20+'Programmable Tstats - Tier 1'!AB20+'Programmable Tstats - Tier 2'!AB20+'Comm 95+% Furnace - NEW'!AB20+'Comm 95+% Furnace - Replace'!AB20+'Comm Custom'!AB20,0) -> 18140 | AE20: 2030 | AF20: 20750 | AG20: 10603 | AH20: 31353 | AJ20: 0 | AK20: 0 | AL20: 0 | AN20: 31353 | AQ20: 2030 | AR20: 20750 | AS20: 10603 | AU20: =ROUND(+'Res .95+% Res Furnace - NEW'!AU20+'Res .95+% Res Furnace - Replace'!AU20+'Programmable Tstats - Tier 1'!AU20+'Programmable Tstats - Tier 2'!AU20+'Comm 95+% Furnace - NEW'!AU20+'Comm 95+% Furnace - Replace'!AU20+'Comm Custom'!AU20,0) -> 4065 | AW20: =ROUND(+'Res .95+% Res Furnace - NEW'!AW20+'Res .95+% Res Furnace - Replace'!AW20+'Programmable Tstats - Tier 1'!AW20+'Programmable Tstats - Tier 2'!AW20+'Comm 95+% Furnace - NEW'!AW20+'Comm 95+% Furnace - Replace'!AW20+'Comm Custom'!AW20,0) -> 12869 | AZ20: 48287 | BB20: =ROUND(+'Res .95+% Res Furnace - NEW'!BB20+'Res .95+% Res Furnace - Replace'!BB20+'Programmable Tstats - Tier 1'!BB20+'Programmable Tstats - Tier 2'!BB20+'Comm 95+% Furnace - NEW'!BB20+'Comm 95+% Furnace - Replace'!BB20+'Comm Custom'!BB20,0) -> 0 | BC20: =ROUND(+'Res .95+% Res Furnace - NEW'!BC20+'Res .95+% Res Furnace - Replace'!BC20+'Programmable Tstats - Tier 1'!BC20+'Programmable Tstats - Tier 2'!BC20+'Comm 95+% Furnace - NEW'!BC20+'Comm 95+% Furnace - Replace'!BC20+'Comm Custom'!BC20,0) -> 0 | BD20: 0 | BE20: 48287 | BH20: 2030 | BI20: =ROUND(+'Res .95+% Res Furnace - NEW'!BI20+'Res .95+% Res Furnace - Replace'!BI20+'Programmable Tstats - Tier 1'!BI20+'Programmable Tstats - Tier 2'!BI20+'Comm 95+% Furnace - NEW'!BI20+'Comm 95+% Furnace - Replace'!BI20+'Comm Custom'!BI20,0) -> 0 | BJ20: =ROUND(+'Res .95+% Res Furnace - NEW'!BJ20+'Res .95+% Res Furnace - Replace'!BJ20+'Programmable Tstats - Tier 1'!BJ20+'Programmable Tstats - Tier 2'!BJ20+'Comm 95+% Furnace - NEW'!BJ20+'Comm 95+% Furnace - Replace'!BJ20+'Comm Custom'!BJ20,0) -> 5622 | BL20: =ROUND(+'Res .95+% Res Furnace - NEW'!BL20+'Res .95+% Res Furnace - Replace'!BL20+'Programmable Tstats - Tier 1'!BL20+'Programmable Tstats - Tier 2'!BL20+'Comm 95+% Furnace - NEW'!BL20+'Comm 95+% Furnace - Replace'!BL20+'Comm Custom'!BL20,0) -> 53640 | BN20: =ROUND(+'Res .95+% Res Furnace - NEW'!BN20+'Res .95+% Res Furnace - Replace'!BN20+'Programmable Tstats - Tier 1'!BN20+'Programmable Tstats - Tier 2'!BN20+'Comm 95+% Furnace - NEW'!BN20+'Comm 95+% Furnace - Replace'!BN20+'Comm Custom'!BN20,0) -> 23337 | BP20: 76977 | BR20: =ROUND(+'Res .95+% Res Furnace - NEW'!BR20+'Res .95+% Res Furnace - Replace'!BR20+'Programmable Tstats - Tier 1'!BR20+'Programmable Tstats - Tier 2'!BR20+'Comm 95+% Furnace - NEW'!BR20+'Comm 95+% Furnace - Replace'!BR20+'Comm Custom'!BR20,0) -> 0 | BT20: 76977 | BW20: 2030 | BX20: 20750 | BY20: 10603 | BZ20: 4065 | CA20: 35418 | CC20: 0 | CD20: 0 | CE20: 0 | CG20: 35418
A21: Escalation Rate = | E21: Escalation Rate = | J21: 7 | L21: 2031 | M21: =ROUND(+'Res .95+% Res Furnace - NEW'!M21+'Res .95+% Res Furnace - Replace'!M21+'Programmable Tstats - Tier 1'!M21+'Programmable Tstats - Tier 2'!M21+'Comm 95+% Furnace - NEW'!M21+'Comm 95+% Furnace - Replace'!M21+'Comm Custom'!M21,0) -> 5622 | O21: =ROUND(+'Res .95+% Res Furnace - NEW'!O21+'Res .95+% Res Furnace - Replace'!O21+'Programmable Tstats - Tier 1'!O21+'Programmable Tstats - Tier 2'!O21+'Comm 95+% Furnace - NEW'!O21+'Comm 95+% Furnace - Replace'!O21+'Comm Custom'!O21,0) -> 21374 | Q21: =ROUND(+'Res .95+% Res Furnace - NEW'!Q21+'Res .95+% Res Furnace - Replace'!Q21+'Programmable Tstats - Tier 1'!Q21+'Programmable Tstats - Tier 2'!Q21+'Comm 95+% Furnace - NEW'!Q21+'Comm 95+% Furnace - Replace'!Q21+'Comm Custom'!Q21,0) -> 0 | R21: =ROUND(+'Res .95+% Res Furnace - NEW'!R21+'Res .95+% Res Furnace - Replace'!R21+'Programmable Tstats - Tier 1'!R21+'Programmable Tstats - Tier 2'!R21+'Comm 95+% Furnace - NEW'!R21+'Comm 95+% Furnace - Replace'!R21+'Comm Custom'!R21,0) -> 21374 | S21: =ROUND(+'Res .95+% Res Furnace - NEW'!S21+'Res .95+% Res Furnace - Replace'!S21+'Programmable Tstats - Tier 1'!S21+'Programmable Tstats - Tier 2'!S21+'Comm 95+% Furnace - NEW'!S21+'Comm 95+% Furnace - Replace'!S21+'Comm Custom'!S21,0) -> 56 | U21: =ROUND(+'Res .95+% Res Furnace - NEW'!U21+'Res .95+% Res Furnace - Replace'!U21+'Programmable Tstats - Tier 1'!U21+'Programmable Tstats - Tier 2'!U21+'Comm 95+% Furnace - NEW'!U21+'Comm 95+% Furnace - Replace'!U21+'Comm Custom'!U21,0) -> 10661 | V21: =ROUND(+'Res .95+% Res Furnace - NEW'!V21+'Res .95+% Res Furnace - Replace'!V21+'Programmable Tstats - Tier 1'!V21+'Programmable Tstats - Tier 2'!V21+'Comm 95+% Furnace - NEW'!V21+'Comm 95+% Furnace - Replace'!V21+'Comm Custom'!V21,0) -> 32035 | X21: =ROUND(+'Res .95+% Res Furnace - NEW'!X21+'Res .95+% Res Furnace - Replace'!X21+'Programmable Tstats - Tier 1'!X21+'Programmable Tstats - Tier 2'!X21+'Comm 95+% Furnace - NEW'!X21+'Comm 95+% Furnace - Replace'!X21+'Comm Custom'!X21,0) -> 13612 | Y21: =ROUND(+'Res .95+% Res Furnace - NEW'!Y21+'Res .95+% Res Furnace - Replace'!Y21+'Programmable Tstats - Tier 1'!Y21+'Programmable Tstats - Tier 2'!Y21+'Comm 95+% Furnace - NEW'!Y21+'Comm 95+% Furnace - Replace'!Y21+'Comm Custom'!Y21,0) -> 0 | Z21: =ROUND(+'Res .95+% Res Furnace - NEW'!Z21+'Res .95+% Res Furnace - Replace'!Z21+'Programmable Tstats - Tier 1'!Z21+'Programmable Tstats - Tier 2'!Z21+'Comm 95+% Furnace - NEW'!Z21+'Comm 95+% Furnace - Replace'!Z21+'Comm Custom'!Z21,0) -> 0 | AA21: =ROUND(+'Res .95+% Res Furnace - NEW'!AA21+'Res .95+% Res Furnace - Replace'!AA21+'Programmable Tstats - Tier 1'!AA21+'Programmable Tstats - Tier 2'!AA21+'Comm 95+% Furnace - NEW'!AA21+'Comm 95+% Furnace - Replace'!AA21+'Comm Custom'!AA21,0) -> 13612 | AB21: =ROUND(+'Res .95+% Res Furnace - NEW'!AB21+'Res .95+% Res Furnace - Replace'!AB21+'Programmable Tstats - Tier 1'!AB21+'Programmable Tstats - Tier 2'!AB21+'Comm 95+% Furnace - NEW'!AB21+'Comm 95+% Furnace - Replace'!AB21+'Comm Custom'!AB21,0) -> 18423 | AE21: 2031 | AF21: 21374 | AG21: 10661 | AH21: 32035 | AJ21: 0 | AK21: 0 | AL21: 0 | AN21: 32035 | AQ21: 2031 | AR21: 21374 | AS21: 10661 | AU21: =ROUND(+'Res .95+% Res Furnace - NEW'!AU21+'Res .95+% Res Furnace - Replace'!AU21+'Programmable Tstats - Tier 1'!AU21+'Programmable Tstats - Tier 2'!AU21+'Comm 95+% Furnace - NEW'!AU21+'Comm 95+% Furnace - Replace'!AU21+'Comm Custom'!AU21,0) -> 4065 | AW21: =ROUND(+'Res .95+% Res Furnace - NEW'!AW21+'Res .95+% Res Furnace - Replace'!AW21+'Programmable Tstats - Tier 1'!AW21+'Programmable Tstats - Tier 2'!AW21+'Comm 95+% Furnace - NEW'!AW21+'Comm 95+% Furnace - Replace'!AW21+'Comm Custom'!AW21,0) -> 13089 | AZ21: 49189 | BB21: =ROUND(+'Res .95+% Res Furnace - NEW'!BB21+'Res .95+% Res Furnace - Replace'!BB21+'Programmable Tstats - Tier 1'!BB21+'Programmable Tstats - Tier 2'!BB21+'Comm 95+% Furnace - NEW'!BB21+'Comm 95+% Furnace - Replace'!BB21+'Comm Custom'!BB21,0) -> 0 | BC21: =ROUND(+'Res .95+% Res Furnace - NEW'!BC21+'Res .95+% Res Furnace - Replace'!BC21+'Programmable Tstats - Tier 1'!BC21+'Programmable Tstats - Tier 2'!BC21+'Comm 95+% Furnace - NEW'!BC21+'Comm 95+% Furnace - Replace'!BC21+'Comm Custom'!BC21,0) -> 0 | BD21: 0 | BE21: 49189 | BH21: 2031 | BI21: =ROUND(+'Res .95+% Res Furnace - NEW'!BI21+'Res .95+% Res Furnace - Replace'!BI21+'Programmable Tstats - Tier 1'!BI21+'Programmable Tstats - Tier 2'!BI21+'Comm 95+% Furnace - NEW'!BI21+'Comm 95+% Furnace - Replace'!BI21+'Comm Custom'!BI21,0) -> 0 | BJ21: =ROUND(+'Res .95+% Res Furnace - NEW'!BJ21+'Res .95+% Res Furnace - Replace'!BJ21+'Programmable Tstats - Tier 1'!BJ21+'Programmable Tstats - Tier 2'!BJ21+'Comm 95+% Furnace - NEW'!BJ21+'Comm 95+% Furnace - Replace'!BJ21+'Comm Custom'!BJ21,0) -> 5622 | BL21: =ROUND(+'Res .95+% Res Furnace - NEW'!BL21+'Res .95+% Res Furnace - Replace'!BL21+'Programmable Tstats - Tier 1'!BL21+'Programmable Tstats - Tier 2'!BL21+'Comm 95+% Furnace - NEW'!BL21+'Comm 95+% Furnace - Replace'!BL21+'Comm Custom'!BL21,0) -> 55250 | BN21: =ROUND(+'Res .95+% Res Furnace - NEW'!BN21+'Res .95+% Res Furnace - Replace'!BN21+'Programmable Tstats - Tier 1'!BN21+'Programmable Tstats - Tier 2'!BN21+'Comm 95+% Furnace - NEW'!BN21+'Comm 95+% Furnace - Replace'!BN21+'Comm Custom'!BN21,0) -> 23939 | BP21: 79189 | BR21: =ROUND(+'Res .95+% Res Furnace - NEW'!BR21+'Res .95+% Res Furnace - Replace'!BR21+'Programmable Tstats - Tier 1'!BR21+'Programmable Tstats - Tier 2'!BR21+'Comm 95+% Furnace - NEW'!BR21+'Comm 95+% Furnace - Replace'!BR21+'Comm Custom'!BR21,0) -> 0 | BT21: 79189 | BW21: 2031 | BX21: 21374 | BY21: 10661 | BZ21: 4065 | CA21: 36100 | CC21: 0 | CD21: 0 | CE21: 0 | CG21: 36100
J22: 8 | L22: 2032 | M22: =ROUND(+'Res .95+% Res Furnace - NEW'!M22+'Res .95+% Res Furnace - Replace'!M22+'Programmable Tstats - Tier 1'!M22+'Programmable Tstats - Tier 2'!M22+'Comm 95+% Furnace - NEW'!M22+'Comm 95+% Furnace - Replace'!M22+'Comm Custom'!M22,0) -> 5622 | O22: =ROUND(+'Res .95+% Res Furnace - NEW'!O22+'Res .95+% Res Furnace - Replace'!O22+'Programmable Tstats - Tier 1'!O22+'Programmable Tstats - Tier 2'!O22+'Comm 95+% Furnace - NEW'!O22+'Comm 95+% Furnace - Replace'!O22+'Comm Custom'!O22,0) -> 22015 | Q22: =ROUND(+'Res .95+% Res Furnace - NEW'!Q22+'Res .95+% Res Furnace - Replace'!Q22+'Programmable Tstats - Tier 1'!Q22+'Programmable Tstats - Tier 2'!Q22+'Comm 95+% Furnace - NEW'!Q22+'Comm 95+% Furnace - Replace'!Q22+'Comm Custom'!Q22,0) -> 0 | R22: =ROUND(+'Res .95+% Res Furnace - NEW'!R22+'Res .95+% Res Furnace - Replace'!R22+'Programmable Tstats - Tier 1'!R22+'Programmable Tstats - Tier 2'!R22+'Comm 95+% Furnace - NEW'!R22+'Comm 95+% Furnace - Replace'!R22+'Comm Custom'!R22,0) -> 22015 | S22: =ROUND(+'Res .95+% Res Furnace - NEW'!S22+'Res .95+% Res Furnace - Replace'!S22+'Programmable Tstats - Tier 1'!S22+'Programmable Tstats - Tier 2'!S22+'Comm 95+% Furnace - NEW'!S22+'Comm 95+% Furnace - Replace'!S22+'Comm Custom'!S22,0) -> 56 | U22: =ROUND(+'Res .95+% Res Furnace - NEW'!U22+'Res .95+% Res Furnace - Replace'!U22+'Programmable Tstats - Tier 1'!U22+'Programmable Tstats - Tier 2'!U22+'Comm 95+% Furnace - NEW'!U22+'Comm 95+% Furnace - Replace'!U22+'Comm Custom'!U22,0) -> 10773 | V22: =ROUND(+'Res .95+% Res Furnace - NEW'!V22+'Res .95+% Res Furnace - Replace'!V22+'Programmable Tstats - Tier 1'!V22+'Programmable Tstats - Tier 2'!V22+'Comm 95+% Furnace - NEW'!V22+'Comm 95+% Furnace - Replace'!V22+'Comm Custom'!V22,0) -> 32788 | X22: =ROUND(+'Res .95+% Res Furnace - NEW'!X22+'Res .95+% Res Furnace - Replace'!X22+'Programmable Tstats - Tier 1'!X22+'Programmable Tstats - Tier 2'!X22+'Comm 95+% Furnace - NEW'!X22+'Comm 95+% Furnace - Replace'!X22+'Comm Custom'!X22,0) -> 14018 | Y22: =ROUND(+'Res .95+% Res Furnace - NEW'!Y22+'Res .95+% Res Furnace - Replace'!Y22+'Programmable Tstats - Tier 1'!Y22+'Programmable Tstats - Tier 2'!Y22+'Comm 95+% Furnace - NEW'!Y22+'Comm 95+% Furnace - Replace'!Y22+'Comm Custom'!Y22,0) -> 0 | Z22: =ROUND(+'Res .95+% Res Furnace - NEW'!Z22+'Res .95+% Res Furnace - Replace'!Z22+'Programmable Tstats - Tier 1'!Z22+'Programmable Tstats - Tier 2'!Z22+'Comm 95+% Furnace - NEW'!Z22+'Comm 95+% Furnace - Replace'!Z22+'Comm Custom'!Z22,0) -> 0 | AA22: =ROUND(+'Res .95+% Res Furnace - NEW'!AA22+'Res .95+% Res Furnace - Replace'!AA22+'Programmable Tstats - Tier 1'!AA22+'Programmable Tstats - Tier 2'!AA22+'Comm 95+% Furnace - NEW'!AA22+'Comm 95+% Furnace - Replace'!AA22+'Comm Custom'!AA22,0) -> 14018 | AB22: =ROUND(+'Res .95+% Res Furnace - NEW'!AB22+'Res .95+% Res Furnace - Replace'!AB22+'Programmable Tstats - Tier 1'!AB22+'Programmable Tstats - Tier 2'!AB22+'Comm 95+% Furnace - NEW'!AB22+'Comm 95+% Furnace - Replace'!AB22+'Comm Custom'!AB22,0) -> 18770 | AE22: 2032 | AF22: 22015 | AG22: 10773 | AH22: 32788 | AJ22: 0 | AK22: 0 | AL22: 0 | AN22: 32788 | AQ22: 2032 | AR22: 22015 | AS22: 10773 | AU22: =ROUND(+'Res .95+% Res Furnace - NEW'!AU22+'Res .95+% Res Furnace - Replace'!AU22+'Programmable Tstats - Tier 1'!AU22+'Programmable Tstats - Tier 2'!AU22+'Comm 95+% Furnace - NEW'!AU22+'Comm 95+% Furnace - Replace'!AU22+'Comm Custom'!AU22,0) -> 4216 | AW22: =ROUND(+'Res .95+% Res Furnace - NEW'!AW22+'Res .95+% Res Furnace - Replace'!AW22+'Programmable Tstats - Tier 1'!AW22+'Programmable Tstats - Tier 2'!AW22+'Comm 95+% Furnace - NEW'!AW22+'Comm 95+% Furnace - Replace'!AW22+'Comm Custom'!AW22,0) -> 13308 | AZ22: 50312 | BB22: =ROUND(+'Res .95+% Res Furnace - NEW'!BB22+'Res .95+% Res Furnace - Replace'!BB22+'Programmable Tstats - Tier 1'!BB22+'Programmable Tstats - Tier 2'!BB22+'Comm 95+% Furnace - NEW'!BB22+'Comm 95+% Furnace - Replace'!BB22+'Comm Custom'!BB22,0) -> 0 | BC22: =ROUND(+'Res .95+% Res Furnace - NEW'!BC22+'Res .95+% Res Furnace - Replace'!BC22+'Programmable Tstats - Tier 1'!BC22+'Programmable Tstats - Tier 2'!BC22+'Comm 95+% Furnace - NEW'!BC22+'Comm 95+% Furnace - Replace'!BC22+'Comm Custom'!BC22,0) -> 0 | BD22: 0 | BE22: 50312 | BH22: 2032 | BI22: =ROUND(+'Res .95+% Res Furnace - NEW'!BI22+'Res .95+% Res Furnace - Replace'!BI22+'Programmable Tstats - Tier 1'!BI22+'Programmable Tstats - Tier 2'!BI22+'Comm 95+% Furnace - NEW'!BI22+'Comm 95+% Furnace - Replace'!BI22+'Comm Custom'!BI22,0) -> 0 | BJ22: =ROUND(+'Res .95+% Res Furnace - NEW'!BJ22+'Res .95+% Res Furnace - Replace'!BJ22+'Programmable Tstats - Tier 1'!BJ22+'Programmable Tstats - Tier 2'!BJ22+'Comm 95+% Furnace - NEW'!BJ22+'Comm 95+% Furnace - Replace'!BJ22+'Comm Custom'!BJ22,0) -> 5622 | BL22: =ROUND(+'Res .95+% Res Furnace - NEW'!BL22+'Res .95+% Res Furnace - Replace'!BL22+'Programmable Tstats - Tier 1'!BL22+'Programmable Tstats - Tier 2'!BL22+'Comm 95+% Furnace - NEW'!BL22+'Comm 95+% Furnace - Replace'!BL22+'Comm Custom'!BL22,0) -> 56907 | BN22: =ROUND(+'Res .95+% Res Furnace - NEW'!BN22+'Res .95+% Res Furnace - Replace'!BN22+'Programmable Tstats - Tier 1'!BN22+'Programmable Tstats - Tier 2'!BN22+'Comm 95+% Furnace - NEW'!BN22+'Comm 95+% Furnace - Replace'!BN22+'Comm Custom'!BN22,0) -> 24692 | BP22: 81599 | BR22: =ROUND(+'Res .95+% Res Furnace - NEW'!BR22+'Res .95+% Res Furnace - Replace'!BR22+'Programmable Tstats - Tier 1'!BR22+'Programmable Tstats - Tier 2'!BR22+'Comm 95+% Furnace - NEW'!BR22+'Comm 95+% Furnace - Replace'!BR22+'Comm Custom'!BR22,0) -> 0 | BT22: 81599 | BW22: 2032 | BX22: 22015 | BY22: 10773 | BZ22: 4216 | CA22: 37004 | CC22: 0 | CD22: 0 | CE22: 0 | CG22: 37004
A23: 5) Peak Reduction Factor = | E23: 20) Project Life (Years) = | J23: 9 | L23: 2033 | M23: =ROUND(+'Res .95+% Res Furnace - NEW'!M23+'Res .95+% Res Furnace - Replace'!M23+'Programmable Tstats - Tier 1'!M23+'Programmable Tstats - Tier 2'!M23+'Comm 95+% Furnace - NEW'!M23+'Comm 95+% Furnace - Replace'!M23+'Comm Custom'!M23,0) -> 5622 | O23: =ROUND(+'Res .95+% Res Furnace - NEW'!O23+'Res .95+% Res Furnace - Replace'!O23+'Programmable Tstats - Tier 1'!O23+'Programmable Tstats - Tier 2'!O23+'Comm 95+% Furnace - NEW'!O23+'Comm 95+% Furnace - Replace'!O23+'Comm Custom'!O23,0) -> 22675 | Q23: =ROUND(+'Res .95+% Res Furnace - NEW'!Q23+'Res .95+% Res Furnace - Replace'!Q23+'Programmable Tstats - Tier 1'!Q23+'Programmable Tstats - Tier 2'!Q23+'Comm 95+% Furnace - NEW'!Q23+'Comm 95+% Furnace - Replace'!Q23+'Comm Custom'!Q23,0) -> 0 | R23: =ROUND(+'Res .95+% Res Furnace - NEW'!R23+'Res .95+% Res Furnace - Replace'!R23+'Programmable Tstats - Tier 1'!R23+'Programmable Tstats - Tier 2'!R23+'Comm 95+% Furnace - NEW'!R23+'Comm 95+% Furnace - Replace'!R23+'Comm Custom'!R23,0) -> 22675 | S23: =ROUND(+'Res .95+% Res Furnace - NEW'!S23+'Res .95+% Res Furnace - Replace'!S23+'Programmable Tstats - Tier 1'!S23+'Programmable Tstats - Tier 2'!S23+'Comm 95+% Furnace - NEW'!S23+'Comm 95+% Furnace - Replace'!S23+'Comm Custom'!S23,0) -> 56 | U23: =ROUND(+'Res .95+% Res Furnace - NEW'!U23+'Res .95+% Res Furnace - Replace'!U23+'Programmable Tstats - Tier 1'!U23+'Programmable Tstats - Tier 2'!U23+'Comm 95+% Furnace - NEW'!U23+'Comm 95+% Furnace - Replace'!U23+'Comm Custom'!U23,0) -> 10886 | V23: =ROUND(+'Res .95+% Res Furnace - NEW'!V23+'Res .95+% Res Furnace - Replace'!V23+'Programmable Tstats - Tier 1'!V23+'Programmable Tstats - Tier 2'!V23+'Comm 95+% Furnace - NEW'!V23+'Comm 95+% Furnace - Replace'!V23+'Comm Custom'!V23,0) -> 33561 | X23: =ROUND(+'Res .95+% Res Furnace - NEW'!X23+'Res .95+% Res Furnace - Replace'!X23+'Programmable Tstats - Tier 1'!X23+'Programmable Tstats - Tier 2'!X23+'Comm 95+% Furnace - NEW'!X23+'Comm 95+% Furnace - Replace'!X23+'Comm Custom'!X23,0) -> 14442 | Y23: =ROUND(+'Res .95+% Res Furnace - NEW'!Y23+'Res .95+% Res Furnace - Replace'!Y23+'Programmable Tstats - Tier 1'!Y23+'Programmable Tstats - Tier 2'!Y23+'Comm 95+% Furnace - NEW'!Y23+'Comm 95+% Furnace - Replace'!Y23+'Comm Custom'!Y23,0) -> 0 | Z23: =ROUND(+'Res .95+% Res Furnace - NEW'!Z23+'Res .95+% Res Furnace - Replace'!Z23+'Programmable Tstats - Tier 1'!Z23+'Programmable Tstats - Tier 2'!Z23+'Comm 95+% Furnace - NEW'!Z23+'Comm 95+% Furnace - Replace'!Z23+'Comm Custom'!Z23,0) -> 0 | AA23: =ROUND(+'Res .95+% Res Furnace - NEW'!AA23+'Res .95+% Res Furnace - Replace'!AA23+'Programmable Tstats - Tier 1'!AA23+'Programmable Tstats - Tier 2'!AA23+'Comm 95+% Furnace - NEW'!AA23+'Comm 95+% Furnace - Replace'!AA23+'Comm Custom'!AA23,0) -> 14442 | AB23: =ROUND(+'Res .95+% Res Furnace - NEW'!AB23+'Res .95+% Res Furnace - Replace'!AB23+'Programmable Tstats - Tier 1'!AB23+'Programmable Tstats - Tier 2'!AB23+'Comm 95+% Furnace - NEW'!AB23+'Comm 95+% Furnace - Replace'!AB23+'Comm Custom'!AB23,0) -> 19119 | AE23: 2033 | AF23: 22675 | AG23: 10886 | AH23: 33561 | AJ23: 0 | AK23: 0 | AL23: 0 | AN23: 33561 | AQ23: 2033 | AR23: 22675 | AS23: 10886 | AU23: =ROUND(+'Res .95+% Res Furnace - NEW'!AU23+'Res .95+% Res Furnace - Replace'!AU23+'Programmable Tstats - Tier 1'!AU23+'Programmable Tstats - Tier 2'!AU23+'Comm 95+% Furnace - NEW'!AU23+'Comm 95+% Furnace - Replace'!AU23+'Comm Custom'!AU23,0) -> 4366 | AW23: =ROUND(+'Res .95+% Res Furnace - NEW'!AW23+'Res .95+% Res Furnace - Replace'!AW23+'Programmable Tstats - Tier 1'!AW23+'Programmable Tstats - Tier 2'!AW23+'Comm 95+% Furnace - NEW'!AW23+'Comm 95+% Furnace - Replace'!AW23+'Comm Custom'!AW23,0) -> 13531 | AZ23: 51458 | BB23: =ROUND(+'Res .95+% Res Furnace - NEW'!BB23+'Res .95+% Res Furnace - Replace'!BB23+'Programmable Tstats - Tier 1'!BB23+'Programmable Tstats - Tier 2'!BB23+'Comm 95+% Furnace - NEW'!BB23+'Comm 95+% Furnace - Replace'!BB23+'Comm Custom'!BB23,0) -> 0 | BC23: =ROUND(+'Res .95+% Res Furnace - NEW'!BC23+'Res .95+% Res Furnace - Replace'!BC23+'Programmable Tstats - Tier 1'!BC23+'Programmable Tstats - Tier 2'!BC23+'Comm 95+% Furnace - NEW'!BC23+'Comm 95+% Furnace - Replace'!BC23+'Comm Custom'!BC23,0) -> 0 | BD23: 0 | BE23: 51458 | BH23: 2033 | BI23: =ROUND(+'Res .95+% Res Furnace - NEW'!BI23+'Res .95+% Res Furnace - Replace'!BI23+'Programmable Tstats - Tier 1'!BI23+'Programmable Tstats - Tier 2'!BI23+'Comm 95+% Furnace - NEW'!BI23+'Comm 95+% Furnace - Replace'!BI23+'Comm Custom'!BI23,0) -> 0 | BJ23: =ROUND(+'Res .95+% Res Furnace - NEW'!BJ23+'Res .95+% Res Furnace - Replace'!BJ23+'Programmable Tstats - Tier 1'!BJ23+'Programmable Tstats - Tier 2'!BJ23+'Comm 95+% Furnace - NEW'!BJ23+'Comm 95+% Furnace - Replace'!BJ23+'Comm Custom'!BJ23,0) -> 5622 | BL23: =ROUND(+'Res .95+% Res Furnace - NEW'!BL23+'Res .95+% Res Furnace - Replace'!BL23+'Programmable Tstats - Tier 1'!BL23+'Programmable Tstats - Tier 2'!BL23+'Comm 95+% Furnace - NEW'!BL23+'Comm 95+% Furnace - Replace'!BL23+'Comm Custom'!BL23,0) -> 58618 | BN23: =ROUND(+'Res .95+% Res Furnace - NEW'!BN23+'Res .95+% Res Furnace - Replace'!BN23+'Programmable Tstats - Tier 1'!BN23+'Programmable Tstats - Tier 2'!BN23+'Comm 95+% Furnace - NEW'!BN23+'Comm 95+% Furnace - Replace'!BN23+'Comm Custom'!BN23,0) -> 25445 | BP23: 84063 | BR23: =ROUND(+'Res .95+% Res Furnace - NEW'!BR23+'Res .95+% Res Furnace - Replace'!BR23+'Programmable Tstats - Tier 1'!BR23+'Programmable Tstats - Tier 2'!BR23+'Comm 95+% Furnace - NEW'!BR23+'Comm 95+% Furnace - Replace'!BR23+'Comm Custom'!BR23,0) -> 0 | BT23: 84063 | BW23: 2033 | BX23: 22675 | BY23: 10886 | BZ23: 4366 | CA23: 37927 | CC23: 0 | CD23: 0 | CE23: 0 | CG23: 37927
J24: 10 | L24: 2034 | M24: =ROUND(+'Res .95+% Res Furnace - NEW'!M24+'Res .95+% Res Furnace - Replace'!M24+'Programmable Tstats - Tier 1'!M24+'Programmable Tstats - Tier 2'!M24+'Comm 95+% Furnace - NEW'!M24+'Comm 95+% Furnace - Replace'!M24+'Comm Custom'!M24,0) -> 4481 | O24: =ROUND(+'Res .95+% Res Furnace - NEW'!O24+'Res .95+% Res Furnace - Replace'!O24+'Programmable Tstats - Tier 1'!O24+'Programmable Tstats - Tier 2'!O24+'Comm 95+% Furnace - NEW'!O24+'Comm 95+% Furnace - Replace'!O24+'Comm Custom'!O24,0) -> 18614 | Q24: =ROUND(+'Res .95+% Res Furnace - NEW'!Q24+'Res .95+% Res Furnace - Replace'!Q24+'Programmable Tstats - Tier 1'!Q24+'Programmable Tstats - Tier 2'!Q24+'Comm 95+% Furnace - NEW'!Q24+'Comm 95+% Furnace - Replace'!Q24+'Comm Custom'!Q24,0) -> 0 | R24: =ROUND(+'Res .95+% Res Furnace - NEW'!R24+'Res .95+% Res Furnace - Replace'!R24+'Programmable Tstats - Tier 1'!R24+'Programmable Tstats - Tier 2'!R24+'Comm 95+% Furnace - NEW'!R24+'Comm 95+% Furnace - Replace'!R24+'Comm Custom'!R24,0) -> 18614 | S24: =ROUND(+'Res .95+% Res Furnace - NEW'!S24+'Res .95+% Res Furnace - Replace'!S24+'Programmable Tstats - Tier 1'!S24+'Programmable Tstats - Tier 2'!S24+'Comm 95+% Furnace - NEW'!S24+'Comm 95+% Furnace - Replace'!S24+'Comm Custom'!S24,0) -> 45 | U24: =ROUND(+'Res .95+% Res Furnace - NEW'!U24+'Res .95+% Res Furnace - Replace'!U24+'Programmable Tstats - Tier 1'!U24+'Programmable Tstats - Tier 2'!U24+'Comm 95+% Furnace - NEW'!U24+'Comm 95+% Furnace - Replace'!U24+'Comm Custom'!U24,0) -> 8756 | V24: =ROUND(+'Res .95+% Res Furnace - NEW'!V24+'Res .95+% Res Furnace - Replace'!V24+'Programmable Tstats - Tier 1'!V24+'Programmable Tstats - Tier 2'!V24+'Comm 95+% Furnace - NEW'!V24+'Comm 95+% Furnace - Replace'!V24+'Comm Custom'!V24,0) -> 27370 | X24: =ROUND(+'Res .95+% Res Furnace - NEW'!X24+'Res .95+% Res Furnace - Replace'!X24+'Programmable Tstats - Tier 1'!X24+'Programmable Tstats - Tier 2'!X24+'Comm 95+% Furnace - NEW'!X24+'Comm 95+% Furnace - Replace'!X24+'Comm Custom'!X24,0) -> 11807 | Y24: =ROUND(+'Res .95+% Res Furnace - NEW'!Y24+'Res .95+% Res Furnace - Replace'!Y24+'Programmable Tstats - Tier 1'!Y24+'Programmable Tstats - Tier 2'!Y24+'Comm 95+% Furnace - NEW'!Y24+'Comm 95+% Furnace - Replace'!Y24+'Comm Custom'!Y24,0) -> 0 | Z24: =ROUND(+'Res .95+% Res Furnace - NEW'!Z24+'Res .95+% Res Furnace - Replace'!Z24+'Programmable Tstats - Tier 1'!Z24+'Programmable Tstats - Tier 2'!Z24+'Comm 95+% Furnace - NEW'!Z24+'Comm 95+% Furnace - Replace'!Z24+'Comm Custom'!Z24,0) -> 0 | AA24: =ROUND(+'Res .95+% Res Furnace - NEW'!AA24+'Res .95+% Res Furnace - Replace'!AA24+'Programmable Tstats - Tier 1'!AA24+'Programmable Tstats - Tier 2'!AA24+'Comm 95+% Furnace - NEW'!AA24+'Comm 95+% Furnace - Replace'!AA24+'Comm Custom'!AA24,0) -> 11807 | AB24: =ROUND(+'Res .95+% Res Furnace - NEW'!AB24+'Res .95+% Res Furnace - Replace'!AB24+'Programmable Tstats - Tier 1'!AB24+'Programmable Tstats - Tier 2'!AB24+'Comm 95+% Furnace - NEW'!AB24+'Comm 95+% Furnace - Replace'!AB24+'Comm Custom'!AB24,0) -> 15563 | AE24: 2034 | AF24: 18614 | AG24: 8756 | AH24: 27370 | AJ24: 0 | AK24: 0 | AL24: 0 | AN24: 27370 | AQ24: 2034 | AR24: 18614 | AS24: 8756 | AU24: =ROUND(+'Res .95+% Res Furnace - NEW'!AU24+'Res .95+% Res Furnace - Replace'!AU24+'Programmable Tstats - Tier 1'!AU24+'Programmable Tstats - Tier 2'!AU24+'Comm 95+% Furnace - NEW'!AU24+'Comm 95+% Furnace - Replace'!AU24+'Comm Custom'!AU24,0) -> 4320 | AW24: =ROUND(+'Res .95+% Res Furnace - NEW'!AW24+'Res .95+% Res Furnace - Replace'!AW24+'Programmable Tstats - Tier 1'!AW24+'Programmable Tstats - Tier 2'!AW24+'Comm 95+% Furnace - NEW'!AW24+'Comm 95+% Furnace - Replace'!AW24+'Comm Custom'!AW24,0) -> 10969 | AZ24: 42659 | BB24: =ROUND(+'Res .95+% Res Furnace - NEW'!BB24+'Res .95+% Res Furnace - Replace'!BB24+'Programmable Tstats - Tier 1'!BB24+'Programmable Tstats - Tier 2'!BB24+'Comm 95+% Furnace - NEW'!BB24+'Comm 95+% Furnace - Replace'!BB24+'Comm Custom'!BB24,0) -> 0 | BC24: =ROUND(+'Res .95+% Res Furnace - NEW'!BC24+'Res .95+% Res Furnace - Replace'!BC24+'Programmable Tstats - Tier 1'!BC24+'Programmable Tstats - Tier 2'!BC24+'Comm 95+% Furnace - NEW'!BC24+'Comm 95+% Furnace - Replace'!BC24+'Comm Custom'!BC24,0) -> 0 | BD24: 0 | BE24: 42659 | BH24: 2034 | BI24: =ROUND(+'Res .95+% Res Furnace - NEW'!BI24+'Res .95+% Res Furnace - Replace'!BI24+'Programmable Tstats - Tier 1'!BI24+'Programmable Tstats - Tier 2'!BI24+'Comm 95+% Furnace - NEW'!BI24+'Comm 95+% Furnace - Replace'!BI24+'Comm Custom'!BI24,0) -> 0 | BJ24: =ROUND(+'Res .95+% Res Furnace - NEW'!BJ24+'Res .95+% Res Furnace - Replace'!BJ24+'Programmable Tstats - Tier 1'!BJ24+'Programmable Tstats - Tier 2'!BJ24+'Comm 95+% Furnace - NEW'!BJ24+'Comm 95+% Furnace - Replace'!BJ24+'Comm Custom'!BJ24,0) -> 4481 | BL24: =ROUND(+'Res .95+% Res Furnace - NEW'!BL24+'Res .95+% Res Furnace - Replace'!BL24+'Programmable Tstats - Tier 1'!BL24+'Programmable Tstats - Tier 2'!BL24+'Comm 95+% Furnace - NEW'!BL24+'Comm 95+% Furnace - Replace'!BL24+'Comm Custom'!BL24,0) -> 48060 | BN24: =ROUND(+'Res .95+% Res Furnace - NEW'!BN24+'Res .95+% Res Furnace - Replace'!BN24+'Programmable Tstats - Tier 1'!BN24+'Programmable Tstats - Tier 2'!BN24+'Comm 95+% Furnace - NEW'!BN24+'Comm 95+% Furnace - Replace'!BN24+'Comm Custom'!BN24,0) -> 25056 | BP24: 73116 | BR24: =ROUND(+'Res .95+% Res Furnace - NEW'!BR24+'Res .95+% Res Furnace - Replace'!BR24+'Programmable Tstats - Tier 1'!BR24+'Programmable Tstats - Tier 2'!BR24+'Comm 95+% Furnace - NEW'!BR24+'Comm 95+% Furnace - Replace'!BR24+'Comm Custom'!BR24,0) -> 0 | BT24: 73116 | BW24: 2034 | BX24: 18614 | BY24: 8756 | BZ24: 4320 | CA24: 31690 | CC24: 0 | CD24: 0 | CE24: 0 | CG24: 31690
A25: 6) Variable O&M ($/Dk) = | E25: 21) Avg. Dk/Part. Saved = | J25: 11 | L25: 2035 | M25: =ROUND(+'Res .95+% Res Furnace - NEW'!M25+'Res .95+% Res Furnace - Replace'!M25+'Programmable Tstats - Tier 1'!M25+'Programmable Tstats - Tier 2'!M25+'Comm 95+% Furnace - NEW'!M25+'Comm 95+% Furnace - Replace'!M25+'Comm Custom'!M25,0) -> 4481 | O25: =ROUND(+'Res .95+% Res Furnace - NEW'!O25+'Res .95+% Res Furnace - Replace'!O25+'Programmable Tstats - Tier 1'!O25+'Programmable Tstats - Tier 2'!O25+'Comm 95+% Furnace - NEW'!O25+'Comm 95+% Furnace - Replace'!O25+'Comm Custom'!O25,0) -> 19174 | Q25: =ROUND(+'Res .95+% Res Furnace - NEW'!Q25+'Res .95+% Res Furnace - Replace'!Q25+'Programmable Tstats - Tier 1'!Q25+'Programmable Tstats - Tier 2'!Q25+'Comm 95+% Furnace - NEW'!Q25+'Comm 95+% Furnace - Replace'!Q25+'Comm Custom'!Q25,0) -> 0 | R25: =ROUND(+'Res .95+% Res Furnace - NEW'!R25+'Res .95+% Res Furnace - Replace'!R25+'Programmable Tstats - Tier 1'!R25+'Programmable Tstats - Tier 2'!R25+'Comm 95+% Furnace - NEW'!R25+'Comm 95+% Furnace - Replace'!R25+'Comm Custom'!R25,0) -> 19174 | S25: =ROUND(+'Res .95+% Res Furnace - NEW'!S25+'Res .95+% Res Furnace - Replace'!S25+'Programmable Tstats - Tier 1'!S25+'Programmable Tstats - Tier 2'!S25+'Comm 95+% Furnace - NEW'!S25+'Comm 95+% Furnace - Replace'!S25+'Comm Custom'!S25,0) -> 45 | U25: =ROUND(+'Res .95+% Res Furnace - NEW'!U25+'Res .95+% Res Furnace - Replace'!U25+'Programmable Tstats - Tier 1'!U25+'Programmable Tstats - Tier 2'!U25+'Comm 95+% Furnace - NEW'!U25+'Comm 95+% Furnace - Replace'!U25+'Comm Custom'!U25,0) -> 8846 | V25: =ROUND(+'Res .95+% Res Furnace - NEW'!V25+'Res .95+% Res Furnace - Replace'!V25+'Programmable Tstats - Tier 1'!V25+'Programmable Tstats - Tier 2'!V25+'Comm 95+% Furnace - NEW'!V25+'Comm 95+% Furnace - Replace'!V25+'Comm Custom'!V25,0) -> 28020 | X25: =ROUND(+'Res .95+% Res Furnace - NEW'!X25+'Res .95+% Res Furnace - Replace'!X25+'Programmable Tstats - Tier 1'!X25+'Programmable Tstats - Tier 2'!X25+'Comm 95+% Furnace - NEW'!X25+'Comm 95+% Furnace - Replace'!X25+'Comm Custom'!X25,0) -> 12162 | Y25: =ROUND(+'Res .95+% Res Furnace - NEW'!Y25+'Res .95+% Res Furnace - Replace'!Y25+'Programmable Tstats - Tier 1'!Y25+'Programmable Tstats - Tier 2'!Y25+'Comm 95+% Furnace - NEW'!Y25+'Comm 95+% Furnace - Replace'!Y25+'Comm Custom'!Y25,0) -> 0 | Z25: =ROUND(+'Res .95+% Res Furnace - NEW'!Z25+'Res .95+% Res Furnace - Replace'!Z25+'Programmable Tstats - Tier 1'!Z25+'Programmable Tstats - Tier 2'!Z25+'Comm 95+% Furnace - NEW'!Z25+'Comm 95+% Furnace - Replace'!Z25+'Comm Custom'!Z25,0) -> 0 | AA25: =ROUND(+'Res .95+% Res Furnace - NEW'!AA25+'Res .95+% Res Furnace - Replace'!AA25+'Programmable Tstats - Tier 1'!AA25+'Programmable Tstats - Tier 2'!AA25+'Comm 95+% Furnace - NEW'!AA25+'Comm 95+% Furnace - Replace'!AA25+'Comm Custom'!AA25,0) -> 12162 | AB25: =ROUND(+'Res .95+% Res Furnace - NEW'!AB25+'Res .95+% Res Furnace - Replace'!AB25+'Programmable Tstats - Tier 1'!AB25+'Programmable Tstats - Tier 2'!AB25+'Comm 95+% Furnace - NEW'!AB25+'Comm 95+% Furnace - Replace'!AB25+'Comm Custom'!AB25,0) -> 15858 | AE25: 2035 | AF25: 19174 | AG25: 8846 | AH25: 28020 | AJ25: 0 | AK25: 0 | AL25: 0 | AN25: 28020 | AQ25: 2035 | AR25: 19174 | AS25: 8846 | AU25: =ROUND(+'Res .95+% Res Furnace - NEW'!AU25+'Res .95+% Res Furnace - Replace'!AU25+'Programmable Tstats - Tier 1'!AU25+'Programmable Tstats - Tier 2'!AU25+'Comm 95+% Furnace - NEW'!AU25+'Comm 95+% Furnace - Replace'!AU25+'Comm Custom'!AU25,0) -> 4464 | AW25: =ROUND(+'Res .95+% Res Furnace - NEW'!AW25+'Res .95+% Res Furnace - Replace'!AW25+'Programmable Tstats - Tier 1'!AW25+'Programmable Tstats - Tier 2'!AW25+'Comm 95+% Furnace - NEW'!AW25+'Comm 95+% Furnace - Replace'!AW25+'Comm Custom'!AW25,0) -> 11154 | AZ25: 43638 | BB25: =ROUND(+'Res .95+% Res Furnace - NEW'!BB25+'Res .95+% Res Furnace - Replace'!BB25+'Programmable Tstats - Tier 1'!BB25+'Programmable Tstats - Tier 2'!BB25+'Comm 95+% Furnace - NEW'!BB25+'Comm 95+% Furnace - Replace'!BB25+'Comm Custom'!BB25,0) -> 0 | BC25: =ROUND(+'Res .95+% Res Furnace - NEW'!BC25+'Res .95+% Res Furnace - Replace'!BC25+'Programmable Tstats - Tier 1'!BC25+'Programmable Tstats - Tier 2'!BC25+'Comm 95+% Furnace - NEW'!BC25+'Comm 95+% Furnace - Replace'!BC25+'Comm Custom'!BC25,0) -> 0 | BD25: 0 | BE25: 43638 | BH25: 2035 | BI25: =ROUND(+'Res .95+% Res Furnace - NEW'!BI25+'Res .95+% Res Furnace - Replace'!BI25+'Programmable Tstats - Tier 1'!BI25+'Programmable Tstats - Tier 2'!BI25+'Comm 95+% Furnace - NEW'!BI25+'Comm 95+% Furnace - Replace'!BI25+'Comm Custom'!BI25,0) -> 0 | BJ25: =ROUND(+'Res .95+% Res Furnace - NEW'!BJ25+'Res .95+% Res Furnace - Replace'!BJ25+'Programmable Tstats - Tier 1'!BJ25+'Programmable Tstats - Tier 2'!BJ25+'Comm 95+% Furnace - NEW'!BJ25+'Comm 95+% Furnace - Replace'!BJ25+'Comm Custom'!BJ25,0) -> 4481 | BL25: =ROUND(+'Res .95+% Res Furnace - NEW'!BL25+'Res .95+% Res Furnace - Replace'!BL25+'Programmable Tstats - Tier 1'!BL25+'Programmable Tstats - Tier 2'!BL25+'Comm 95+% Furnace - NEW'!BL25+'Comm 95+% Furnace - Replace'!BL25+'Comm Custom'!BL25,0) -> 49504 | BN25: =ROUND(+'Res .95+% Res Furnace - NEW'!BN25+'Res .95+% Res Furnace - Replace'!BN25+'Programmable Tstats - Tier 1'!BN25+'Programmable Tstats - Tier 2'!BN25+'Comm 95+% Furnace - NEW'!BN25+'Comm 95+% Furnace - Replace'!BN25+'Comm Custom'!BN25,0) -> 25776 | BP25: 75280 | BR25: =ROUND(+'Res .95+% Res Furnace - NEW'!BR25+'Res .95+% Res Furnace - Replace'!BR25+'Programmable Tstats - Tier 1'!BR25+'Programmable Tstats - Tier 2'!BR25+'Comm 95+% Furnace - NEW'!BR25+'Comm 95+% Furnace - Replace'!BR25+'Comm Custom'!BR25,0) -> 0 | BT25: 75280 | BW25: 2035 | BX25: 19174 | BY25: 8846 | BZ25: 4464 | CA25: 32484 | CC25: 0 | CD25: 0 | CE25: 0 | CG25: 32484
A26: Escalation Rate = | J26: 12 | L26: 2036 | M26: =ROUND(+'Res .95+% Res Furnace - NEW'!M26+'Res .95+% Res Furnace - Replace'!M26+'Programmable Tstats - Tier 1'!M26+'Programmable Tstats - Tier 2'!M26+'Comm 95+% Furnace - NEW'!M26+'Comm 95+% Furnace - Replace'!M26+'Comm Custom'!M26,0) -> 4481 | O26: =ROUND(+'Res .95+% Res Furnace - NEW'!O26+'Res .95+% Res Furnace - Replace'!O26+'Programmable Tstats - Tier 1'!O26+'Programmable Tstats - Tier 2'!O26+'Comm 95+% Furnace - NEW'!O26+'Comm 95+% Furnace - Replace'!O26+'Comm Custom'!O26,0) -> 19747 | Q26: =ROUND(+'Res .95+% Res Furnace - NEW'!Q26+'Res .95+% Res Furnace - Replace'!Q26+'Programmable Tstats - Tier 1'!Q26+'Programmable Tstats - Tier 2'!Q26+'Comm 95+% Furnace - NEW'!Q26+'Comm 95+% Furnace - Replace'!Q26+'Comm Custom'!Q26,0) -> 0 | R26: =ROUND(+'Res .95+% Res Furnace - NEW'!R26+'Res .95+% Res Furnace - Replace'!R26+'Programmable Tstats - Tier 1'!R26+'Programmable Tstats - Tier 2'!R26+'Comm 95+% Furnace - NEW'!R26+'Comm 95+% Furnace - Replace'!R26+'Comm Custom'!R26,0) -> 19747 | S26: =ROUND(+'Res .95+% Res Furnace - NEW'!S26+'Res .95+% Res Furnace - Replace'!S26+'Programmable Tstats - Tier 1'!S26+'Programmable Tstats - Tier 2'!S26+'Comm 95+% Furnace - NEW'!S26+'Comm 95+% Furnace - Replace'!S26+'Comm Custom'!S26,0) -> 45 | U26: =ROUND(+'Res .95+% Res Furnace - NEW'!U26+'Res .95+% Res Furnace - Replace'!U26+'Programmable Tstats - Tier 1'!U26+'Programmable Tstats - Tier 2'!U26+'Comm 95+% Furnace - NEW'!U26+'Comm 95+% Furnace - Replace'!U26+'Comm Custom'!U26,0) -> 8936 | V26: =ROUND(+'Res .95+% Res Furnace - NEW'!V26+'Res .95+% Res Furnace - Replace'!V26+'Programmable Tstats - Tier 1'!V26+'Programmable Tstats - Tier 2'!V26+'Comm 95+% Furnace - NEW'!V26+'Comm 95+% Furnace - Replace'!V26+'Comm Custom'!V26,0) -> 28683 | X26: =ROUND(+'Res .95+% Res Furnace - NEW'!X26+'Res .95+% Res Furnace - Replace'!X26+'Programmable Tstats - Tier 1'!X26+'Programmable Tstats - Tier 2'!X26+'Comm 95+% Furnace - NEW'!X26+'Comm 95+% Furnace - Replace'!X26+'Comm Custom'!X26,0) -> 12525 | Y26: =ROUND(+'Res .95+% Res Furnace - NEW'!Y26+'Res .95+% Res Furnace - Replace'!Y26+'Programmable Tstats - Tier 1'!Y26+'Programmable Tstats - Tier 2'!Y26+'Comm 95+% Furnace - NEW'!Y26+'Comm 95+% Furnace - Replace'!Y26+'Comm Custom'!Y26,0) -> 0 | Z26: =ROUND(+'Res .95+% Res Furnace - NEW'!Z26+'Res .95+% Res Furnace - Replace'!Z26+'Programmable Tstats - Tier 1'!Z26+'Programmable Tstats - Tier 2'!Z26+'Comm 95+% Furnace - NEW'!Z26+'Comm 95+% Furnace - Replace'!Z26+'Comm Custom'!Z26,0) -> 0 | AA26: =ROUND(+'Res .95+% Res Furnace - NEW'!AA26+'Res .95+% Res Furnace - Replace'!AA26+'Programmable Tstats - Tier 1'!AA26+'Programmable Tstats - Tier 2'!AA26+'Comm 95+% Furnace - NEW'!AA26+'Comm 95+% Furnace - Replace'!AA26+'Comm Custom'!AA26,0) -> 12525 | AB26: =ROUND(+'Res .95+% Res Furnace - NEW'!AB26+'Res .95+% Res Furnace - Replace'!AB26+'Programmable Tstats - Tier 1'!AB26+'Programmable Tstats - Tier 2'!AB26+'Comm 95+% Furnace - NEW'!AB26+'Comm 95+% Furnace - Replace'!AB26+'Comm Custom'!AB26,0) -> 16158 | AE26: 2036 | AF26: 19747 | AG26: 8936 | AH26: 28683 | AJ26: 0 | AK26: 0 | AL26: 0 | AN26: 28683 | AQ26: 2036 | AR26: 19747 | AS26: 8936 | AU26: =ROUND(+'Res .95+% Res Furnace - NEW'!AU26+'Res .95+% Res Furnace - Replace'!AU26+'Programmable Tstats - Tier 1'!AU26+'Programmable Tstats - Tier 2'!AU26+'Comm 95+% Furnace - NEW'!AU26+'Comm 95+% Furnace - Replace'!AU26+'Comm Custom'!AU26,0) -> 4608 | AW26: =ROUND(+'Res .95+% Res Furnace - NEW'!AW26+'Res .95+% Res Furnace - Replace'!AW26+'Programmable Tstats - Tier 1'!AW26+'Programmable Tstats - Tier 2'!AW26+'Comm 95+% Furnace - NEW'!AW26+'Comm 95+% Furnace - Replace'!AW26+'Comm Custom'!AW26,0) -> 11342 | AZ26: 44633 | BB26: =ROUND(+'Res .95+% Res Furnace - NEW'!BB26+'Res .95+% Res Furnace - Replace'!BB26+'Programmable Tstats - Tier 1'!BB26+'Programmable Tstats - Tier 2'!BB26+'Comm 95+% Furnace - NEW'!BB26+'Comm 95+% Furnace - Replace'!BB26+'Comm Custom'!BB26,0) -> 0 | BC26: =ROUND(+'Res .95+% Res Furnace - NEW'!BC26+'Res .95+% Res Furnace - Replace'!BC26+'Programmable Tstats - Tier 1'!BC26+'Programmable Tstats - Tier 2'!BC26+'Comm 95+% Furnace - NEW'!BC26+'Comm 95+% Furnace - Replace'!BC26+'Comm Custom'!BC26,0) -> 0 | BD26: 0 | BE26: 44633 | BH26: 2036 | BI26: =ROUND(+'Res .95+% Res Furnace - NEW'!BI26+'Res .95+% Res Furnace - Replace'!BI26+'Programmable Tstats - Tier 1'!BI26+'Programmable Tstats - Tier 2'!BI26+'Comm 95+% Furnace - NEW'!BI26+'Comm 95+% Furnace - Replace'!BI26+'Comm Custom'!BI26,0) -> 0 | BJ26: =ROUND(+'Res .95+% Res Furnace - NEW'!BJ26+'Res .95+% Res Furnace - Replace'!BJ26+'Programmable Tstats - Tier 1'!BJ26+'Programmable Tstats - Tier 2'!BJ26+'Comm 95+% Furnace - NEW'!BJ26+'Comm 95+% Furnace - Replace'!BJ26+'Comm Custom'!BJ26,0) -> 4481 | BL26: =ROUND(+'Res .95+% Res Furnace - NEW'!BL26+'Res .95+% Res Furnace - Replace'!BL26+'Programmable Tstats - Tier 1'!BL26+'Programmable Tstats - Tier 2'!BL26+'Comm 95+% Furnace - NEW'!BL26+'Comm 95+% Furnace - Replace'!BL26+'Comm Custom'!BL26,0) -> 50986 | BN26: =ROUND(+'Res .95+% Res Furnace - NEW'!BN26+'Res .95+% Res Furnace - Replace'!BN26+'Programmable Tstats - Tier 1'!BN26+'Programmable Tstats - Tier 2'!BN26+'Comm 95+% Furnace - NEW'!BN26+'Comm 95+% Furnace - Replace'!BN26+'Comm Custom'!BN26,0) -> 26640 | BP26: 77626 | BR26: =ROUND(+'Res .95+% Res Furnace - NEW'!BR26+'Res .95+% Res Furnace - Replace'!BR26+'Programmable Tstats - Tier 1'!BR26+'Programmable Tstats - Tier 2'!BR26+'Comm 95+% Furnace - NEW'!BR26+'Comm 95+% Furnace - Replace'!BR26+'Comm Custom'!BR26,0) -> 0 | BT26: 77626 | BW26: 2036 | BX26: 19747 | BY26: 8936 | BZ26: 4608 | CA26: 33291 | CC26: 0 | CD26: 0 | CE26: 0 | CG26: 33291
E27: 22) Avg Non-Gas Fuel Units/Part. Saved = | J27: 13 | L27: 2037 | M27: =ROUND(+'Res .95+% Res Furnace - NEW'!M27+'Res .95+% Res Furnace - Replace'!M27+'Programmable Tstats - Tier 1'!M27+'Programmable Tstats - Tier 2'!M27+'Comm 95+% Furnace - NEW'!M27+'Comm 95+% Furnace - Replace'!M27+'Comm Custom'!M27,0) -> 4481 | O27: =ROUND(+'Res .95+% Res Furnace - NEW'!O27+'Res .95+% Res Furnace - Replace'!O27+'Programmable Tstats - Tier 1'!O27+'Programmable Tstats - Tier 2'!O27+'Comm 95+% Furnace - NEW'!O27+'Comm 95+% Furnace - Replace'!O27+'Comm Custom'!O27,0) -> 20340 | Q27: =ROUND(+'Res .95+% Res Furnace - NEW'!Q27+'Res .95+% Res Furnace - Replace'!Q27+'Programmable Tstats - Tier 1'!Q27+'Programmable Tstats - Tier 2'!Q27+'Comm 95+% Furnace - NEW'!Q27+'Comm 95+% Furnace - Replace'!Q27+'Comm Custom'!Q27,0) -> 0 | R27: =ROUND(+'Res .95+% Res Furnace - NEW'!R27+'Res .95+% Res Furnace - Replace'!R27+'Programmable Tstats - Tier 1'!R27+'Programmable Tstats - Tier 2'!R27+'Comm 95+% Furnace - NEW'!R27+'Comm 95+% Furnace - Replace'!R27+'Comm Custom'!R27,0) -> 20340 | S27: =ROUND(+'Res .95+% Res Furnace - NEW'!S27+'Res .95+% Res Furnace - Replace'!S27+'Programmable Tstats - Tier 1'!S27+'Programmable Tstats - Tier 2'!S27+'Comm 95+% Furnace - NEW'!S27+'Comm 95+% Furnace - Replace'!S27+'Comm Custom'!S27,0) -> 45 | U27: =ROUND(+'Res .95+% Res Furnace - NEW'!U27+'Res .95+% Res Furnace - Replace'!U27+'Programmable Tstats - Tier 1'!U27+'Programmable Tstats - Tier 2'!U27+'Comm 95+% Furnace - NEW'!U27+'Comm 95+% Furnace - Replace'!U27+'Comm Custom'!U27,0) -> 9025 | V27: =ROUND(+'Res .95+% Res Furnace - NEW'!V27+'Res .95+% Res Furnace - Replace'!V27+'Programmable Tstats - Tier 1'!V27+'Programmable Tstats - Tier 2'!V27+'Comm 95+% Furnace - NEW'!V27+'Comm 95+% Furnace - Replace'!V27+'Comm Custom'!V27,0) -> 29365 | X27: =ROUND(+'Res .95+% Res Furnace - NEW'!X27+'Res .95+% Res Furnace - Replace'!X27+'Programmable Tstats - Tier 1'!X27+'Programmable Tstats - Tier 2'!X27+'Comm 95+% Furnace - NEW'!X27+'Comm 95+% Furnace - Replace'!X27+'Comm Custom'!X27,0) -> 12900 | Y27: =ROUND(+'Res .95+% Res Furnace - NEW'!Y27+'Res .95+% Res Furnace - Replace'!Y27+'Programmable Tstats - Tier 1'!Y27+'Programmable Tstats - Tier 2'!Y27+'Comm 95+% Furnace - NEW'!Y27+'Comm 95+% Furnace - Replace'!Y27+'Comm Custom'!Y27,0) -> 0 | Z27: =ROUND(+'Res .95+% Res Furnace - NEW'!Z27+'Res .95+% Res Furnace - Replace'!Z27+'Programmable Tstats - Tier 1'!Z27+'Programmable Tstats - Tier 2'!Z27+'Comm 95+% Furnace - NEW'!Z27+'Comm 95+% Furnace - Replace'!Z27+'Comm Custom'!Z27,0) -> 0 | AA27: =ROUND(+'Res .95+% Res Furnace - NEW'!AA27+'Res .95+% Res Furnace - Replace'!AA27+'Programmable Tstats - Tier 1'!AA27+'Programmable Tstats - Tier 2'!AA27+'Comm 95+% Furnace - NEW'!AA27+'Comm 95+% Furnace - Replace'!AA27+'Comm Custom'!AA27,0) -> 12900 | AB27: =ROUND(+'Res .95+% Res Furnace - NEW'!AB27+'Res .95+% Res Furnace - Replace'!AB27+'Programmable Tstats - Tier 1'!AB27+'Programmable Tstats - Tier 2'!AB27+'Comm 95+% Furnace - NEW'!AB27+'Comm 95+% Furnace - Replace'!AB27+'Comm Custom'!AB27,0) -> 16465 | AE27: 2037 | AF27: 20340 | AG27: 9025 | AH27: 29365 | AJ27: 0 | AK27: 0 | AL27: 0 | AN27: 29365 | AQ27: 2037 | AR27: 20340 | AS27: 9025 | AU27: =ROUND(+'Res .95+% Res Furnace - NEW'!AU27+'Res .95+% Res Furnace - Replace'!AU27+'Programmable Tstats - Tier 1'!AU27+'Programmable Tstats - Tier 2'!AU27+'Comm 95+% Furnace - NEW'!AU27+'Comm 95+% Furnace - Replace'!AU27+'Comm Custom'!AU27,0) -> 4752 | AW27: =ROUND(+'Res .95+% Res Furnace - NEW'!AW27+'Res .95+% Res Furnace - Replace'!AW27+'Programmable Tstats - Tier 1'!AW27+'Programmable Tstats - Tier 2'!AW27+'Comm 95+% Furnace - NEW'!AW27+'Comm 95+% Furnace - Replace'!AW27+'Comm Custom'!AW27,0) -> 11533 | AZ27: 45650 | BB27: =ROUND(+'Res .95+% Res Furnace - NEW'!BB27+'Res .95+% Res Furnace - Replace'!BB27+'Programmable Tstats - Tier 1'!BB27+'Programmable Tstats - Tier 2'!BB27+'Comm 95+% Furnace - NEW'!BB27+'Comm 95+% Furnace - Replace'!BB27+'Comm Custom'!BB27,0) -> 0 | BC27: =ROUND(+'Res .95+% Res Furnace - NEW'!BC27+'Res .95+% Res Furnace - Replace'!BC27+'Programmable Tstats - Tier 1'!BC27+'Programmable Tstats - Tier 2'!BC27+'Comm 95+% Furnace - NEW'!BC27+'Comm 95+% Furnace - Replace'!BC27+'Comm Custom'!BC27,0) -> 0 | BD27: 0 | BE27: 45650 | BH27: 2037 | BI27: =ROUND(+'Res .95+% Res Furnace - NEW'!BI27+'Res .95+% Res Furnace - Replace'!BI27+'Programmable Tstats - Tier 1'!BI27+'Programmable Tstats - Tier 2'!BI27+'Comm 95+% Furnace - NEW'!BI27+'Comm 95+% Furnace - Replace'!BI27+'Comm Custom'!BI27,0) -> 0 | BJ27: =ROUND(+'Res .95+% Res Furnace - NEW'!BJ27+'Res .95+% Res Furnace - Replace'!BJ27+'Programmable Tstats - Tier 1'!BJ27+'Programmable Tstats - Tier 2'!BJ27+'Comm 95+% Furnace - NEW'!BJ27+'Comm 95+% Furnace - Replace'!BJ27+'Comm Custom'!BJ27,0) -> 4481 | BL27: =ROUND(+'Res .95+% Res Furnace - NEW'!BL27+'Res .95+% Res Furnace - Replace'!BL27+'Programmable Tstats - Tier 1'!BL27+'Programmable Tstats - Tier 2'!BL27+'Comm 95+% Furnace - NEW'!BL27+'Comm 95+% Furnace - Replace'!BL27+'Comm Custom'!BL27,0) -> 52517 | BN27: =ROUND(+'Res .95+% Res Furnace - NEW'!BN27+'Res .95+% Res Furnace - Replace'!BN27+'Programmable Tstats - Tier 1'!BN27+'Programmable Tstats - Tier 2'!BN27+'Comm 95+% Furnace - NEW'!BN27+'Comm 95+% Furnace - Replace'!BN27+'Comm Custom'!BN27,0) -> 27360 | BP27: 79877 | BR27: =ROUND(+'Res .95+% Res Furnace - NEW'!BR27+'Res .95+% Res Furnace - Replace'!BR27+'Programmable Tstats - Tier 1'!BR27+'Programmable Tstats - Tier 2'!BR27+'Comm 95+% Furnace - NEW'!BR27+'Comm 95+% Furnace - Replace'!BR27+'Comm Custom'!BR27,0) -> 0 | BT27: 79877 | BW27: 2037 | BX27: 20340 | BY27: 9025 | BZ27: 4752 | CA27: 34117 | CC27: 0 | CD27: 0 | CE27: 0 | CG27: 34117
A28: 7) Non-Gas Fuel Cost ($/Fuel Unit) = | E28: 22a) Avg Additional Non-Gas Fuel Units/ Part. Used = | J28: 14 | L28: 2038 | M28: =ROUND(+'Res .95+% Res Furnace - NEW'!M28+'Res .95+% Res Furnace - Replace'!M28+'Programmable Tstats - Tier 1'!M28+'Programmable Tstats - Tier 2'!M28+'Comm 95+% Furnace - NEW'!M28+'Comm 95+% Furnace - Replace'!M28+'Comm Custom'!M28,0) -> 4481 | O28: =ROUND(+'Res .95+% Res Furnace - NEW'!O28+'Res .95+% Res Furnace - Replace'!O28+'Programmable Tstats - Tier 1'!O28+'Programmable Tstats - Tier 2'!O28+'Comm 95+% Furnace - NEW'!O28+'Comm 95+% Furnace - Replace'!O28+'Comm Custom'!O28,0) -> 20949 | Q28: =ROUND(+'Res .95+% Res Furnace - NEW'!Q28+'Res .95+% Res Furnace - Replace'!Q28+'Programmable Tstats - Tier 1'!Q28+'Programmable Tstats - Tier 2'!Q28+'Comm 95+% Furnace - NEW'!Q28+'Comm 95+% Furnace - Replace'!Q28+'Comm Custom'!Q28,0) -> 0 | R28: =ROUND(+'Res .95+% Res Furnace - NEW'!R28+'Res .95+% Res Furnace - Replace'!R28+'Programmable Tstats - Tier 1'!R28+'Programmable Tstats - Tier 2'!R28+'Comm 95+% Furnace - NEW'!R28+'Comm 95+% Furnace - Replace'!R28+'Comm Custom'!R28,0) -> 20949 | S28: =ROUND(+'Res .95+% Res Furnace - NEW'!S28+'Res .95+% Res Furnace - Replace'!S28+'Programmable Tstats - Tier 1'!S28+'Programmable Tstats - Tier 2'!S28+'Comm 95+% Furnace - NEW'!S28+'Comm 95+% Furnace - Replace'!S28+'Comm Custom'!S28,0) -> 45 | U28: =ROUND(+'Res .95+% Res Furnace - NEW'!U28+'Res .95+% Res Furnace - Replace'!U28+'Programmable Tstats - Tier 1'!U28+'Programmable Tstats - Tier 2'!U28+'Comm 95+% Furnace - NEW'!U28+'Comm 95+% Furnace - Replace'!U28+'Comm Custom'!U28,0) -> 9115 | V28: =ROUND(+'Res .95+% Res Furnace - NEW'!V28+'Res .95+% Res Furnace - Replace'!V28+'Programmable Tstats - Tier 1'!V28+'Programmable Tstats - Tier 2'!V28+'Comm 95+% Furnace - NEW'!V28+'Comm 95+% Furnace - Replace'!V28+'Comm Custom'!V28,0) -> 30064 | X28: =ROUND(+'Res .95+% Res Furnace - NEW'!X28+'Res .95+% Res Furnace - Replace'!X28+'Programmable Tstats - Tier 1'!X28+'Programmable Tstats - Tier 2'!X28+'Comm 95+% Furnace - NEW'!X28+'Comm 95+% Furnace - Replace'!X28+'Comm Custom'!X28,0) -> 13289 | Y28: =ROUND(+'Res .95+% Res Furnace - NEW'!Y28+'Res .95+% Res Furnace - Replace'!Y28+'Programmable Tstats - Tier 1'!Y28+'Programmable Tstats - Tier 2'!Y28+'Comm 95+% Furnace - NEW'!Y28+'Comm 95+% Furnace - Replace'!Y28+'Comm Custom'!Y28,0) -> 0 | Z28: =ROUND(+'Res .95+% Res Furnace - NEW'!Z28+'Res .95+% Res Furnace - Replace'!Z28+'Programmable Tstats - Tier 1'!Z28+'Programmable Tstats - Tier 2'!Z28+'Comm 95+% Furnace - NEW'!Z28+'Comm 95+% Furnace - Replace'!Z28+'Comm Custom'!Z28,0) -> 0 | AA28: =ROUND(+'Res .95+% Res Furnace - NEW'!AA28+'Res .95+% Res Furnace - Replace'!AA28+'Programmable Tstats - Tier 1'!AA28+'Programmable Tstats - Tier 2'!AA28+'Comm 95+% Furnace - NEW'!AA28+'Comm 95+% Furnace - Replace'!AA28+'Comm Custom'!AA28,0) -> 13289 | AB28: =ROUND(+'Res .95+% Res Furnace - NEW'!AB28+'Res .95+% Res Furnace - Replace'!AB28+'Programmable Tstats - Tier 1'!AB28+'Programmable Tstats - Tier 2'!AB28+'Comm 95+% Furnace - NEW'!AB28+'Comm 95+% Furnace - Replace'!AB28+'Comm Custom'!AB28,0) -> 16775 | AE28: 2038 | AF28: 20949 | AG28: 9115 | AH28: 30064 | AJ28: 0 | AK28: 0 | AL28: 0 | AN28: 30064 | AQ28: 2038 | AR28: 20949 | AS28: 9115 | AU28: =ROUND(+'Res .95+% Res Furnace - NEW'!AU28+'Res .95+% Res Furnace - Replace'!AU28+'Programmable Tstats - Tier 1'!AU28+'Programmable Tstats - Tier 2'!AU28+'Comm 95+% Furnace - NEW'!AU28+'Comm 95+% Furnace - Replace'!AU28+'Comm Custom'!AU28,0) -> 4896 | AW28: =ROUND(+'Res .95+% Res Furnace - NEW'!AW28+'Res .95+% Res Furnace - Replace'!AW28+'Programmable Tstats - Tier 1'!AW28+'Programmable Tstats - Tier 2'!AW28+'Comm 95+% Furnace - NEW'!AW28+'Comm 95+% Furnace - Replace'!AW28+'Comm Custom'!AW28,0) -> 11727 | AZ28: 46687 | BB28: =ROUND(+'Res .95+% Res Furnace - NEW'!BB28+'Res .95+% Res Furnace - Replace'!BB28+'Programmable Tstats - Tier 1'!BB28+'Programmable Tstats - Tier 2'!BB28+'Comm 95+% Furnace - NEW'!BB28+'Comm 95+% Furnace - Replace'!BB28+'Comm Custom'!BB28,0) -> 0 | BC28: =ROUND(+'Res .95+% Res Furnace - NEW'!BC28+'Res .95+% Res Furnace - Replace'!BC28+'Programmable Tstats - Tier 1'!BC28+'Programmable Tstats - Tier 2'!BC28+'Comm 95+% Furnace - NEW'!BC28+'Comm 95+% Furnace - Replace'!BC28+'Comm Custom'!BC28,0) -> 0 | BD28: 0 | BE28: 46687 | BH28: 2038 | BI28: =ROUND(+'Res .95+% Res Furnace - NEW'!BI28+'Res .95+% Res Furnace - Replace'!BI28+'Programmable Tstats - Tier 1'!BI28+'Programmable Tstats - Tier 2'!BI28+'Comm 95+% Furnace - NEW'!BI28+'Comm 95+% Furnace - Replace'!BI28+'Comm Custom'!BI28,0) -> 0 | BJ28: =ROUND(+'Res .95+% Res Furnace - NEW'!BJ28+'Res .95+% Res Furnace - Replace'!BJ28+'Programmable Tstats - Tier 1'!BJ28+'Programmable Tstats - Tier 2'!BJ28+'Comm 95+% Furnace - NEW'!BJ28+'Comm 95+% Furnace - Replace'!BJ28+'Comm Custom'!BJ28,0) -> 4481 | BL28: =ROUND(+'Res .95+% Res Furnace - NEW'!BL28+'Res .95+% Res Furnace - Replace'!BL28+'Programmable Tstats - Tier 1'!BL28+'Programmable Tstats - Tier 2'!BL28+'Comm 95+% Furnace - NEW'!BL28+'Comm 95+% Furnace - Replace'!BL28+'Comm Custom'!BL28,0) -> 54095 | BN28: =ROUND(+'Res .95+% Res Furnace - NEW'!BN28+'Res .95+% Res Furnace - Replace'!BN28+'Programmable Tstats - Tier 1'!BN28+'Programmable Tstats - Tier 2'!BN28+'Comm 95+% Furnace - NEW'!BN28+'Comm 95+% Furnace - Replace'!BN28+'Comm Custom'!BN28,0) -> 28224 | BP28: 82319 | BR28: =ROUND(+'Res .95+% Res Furnace - NEW'!BR28+'Res .95+% Res Furnace - Replace'!BR28+'Programmable Tstats - Tier 1'!BR28+'Programmable Tstats - Tier 2'!BR28+'Comm 95+% Furnace - NEW'!BR28+'Comm 95+% Furnace - Replace'!BR28+'Comm Custom'!BR28,0) -> 0 | BT28: 82319 | BW28: 2038 | BX28: 20949 | BY28: 9115 | BZ28: 4896 | CA28: 34960 | CC28: 0 | CD28: 0 | CE28: 0 | CG28: 34960
A29: Escalation Rate = | J29: 15 | L29: 2039 | M29: =ROUND(+'Res .95+% Res Furnace - NEW'!M29+'Res .95+% Res Furnace - Replace'!M29+'Programmable Tstats - Tier 1'!M29+'Programmable Tstats - Tier 2'!M29+'Comm 95+% Furnace - NEW'!M29+'Comm 95+% Furnace - Replace'!M29+'Comm Custom'!M29,0) -> 4481 | O29: =ROUND(+'Res .95+% Res Furnace - NEW'!O29+'Res .95+% Res Furnace - Replace'!O29+'Programmable Tstats - Tier 1'!O29+'Programmable Tstats - Tier 2'!O29+'Comm 95+% Furnace - NEW'!O29+'Comm 95+% Furnace - Replace'!O29+'Comm Custom'!O29,0) -> 21581 | Q29: =ROUND(+'Res .95+% Res Furnace - NEW'!Q29+'Res .95+% Res Furnace - Replace'!Q29+'Programmable Tstats - Tier 1'!Q29+'Programmable Tstats - Tier 2'!Q29+'Comm 95+% Furnace - NEW'!Q29+'Comm 95+% Furnace - Replace'!Q29+'Comm Custom'!Q29,0) -> 0 | R29: =ROUND(+'Res .95+% Res Furnace - NEW'!R29+'Res .95+% Res Furnace - Replace'!R29+'Programmable Tstats - Tier 1'!R29+'Programmable Tstats - Tier 2'!R29+'Comm 95+% Furnace - NEW'!R29+'Comm 95+% Furnace - Replace'!R29+'Comm Custom'!R29,0) -> 21581 | S29: =ROUND(+'Res .95+% Res Furnace - NEW'!S29+'Res .95+% Res Furnace - Replace'!S29+'Programmable Tstats - Tier 1'!S29+'Programmable Tstats - Tier 2'!S29+'Comm 95+% Furnace - NEW'!S29+'Comm 95+% Furnace - Replace'!S29+'Comm Custom'!S29,0) -> 45 | U29: =ROUND(+'Res .95+% Res Furnace - NEW'!U29+'Res .95+% Res Furnace - Replace'!U29+'Programmable Tstats - Tier 1'!U29+'Programmable Tstats - Tier 2'!U29+'Comm 95+% Furnace - NEW'!U29+'Comm 95+% Furnace - Replace'!U29+'Comm Custom'!U29,0) -> 9205 | V29: =ROUND(+'Res .95+% Res Furnace - NEW'!V29+'Res .95+% Res Furnace - Replace'!V29+'Programmable Tstats - Tier 1'!V29+'Programmable Tstats - Tier 2'!V29+'Comm 95+% Furnace - NEW'!V29+'Comm 95+% Furnace - Replace'!V29+'Comm Custom'!V29,0) -> 30786 | X29: =ROUND(+'Res .95+% Res Furnace - NEW'!X29+'Res .95+% Res Furnace - Replace'!X29+'Programmable Tstats - Tier 1'!X29+'Programmable Tstats - Tier 2'!X29+'Comm 95+% Furnace - NEW'!X29+'Comm 95+% Furnace - Replace'!X29+'Comm Custom'!X29,0) -> 13688 | Y29: =ROUND(+'Res .95+% Res Furnace - NEW'!Y29+'Res .95+% Res Furnace - Replace'!Y29+'Programmable Tstats - Tier 1'!Y29+'Programmable Tstats - Tier 2'!Y29+'Comm 95+% Furnace - NEW'!Y29+'Comm 95+% Furnace - Replace'!Y29+'Comm Custom'!Y29,0) -> 0 | Z29: =ROUND(+'Res .95+% Res Furnace - NEW'!Z29+'Res .95+% Res Furnace - Replace'!Z29+'Programmable Tstats - Tier 1'!Z29+'Programmable Tstats - Tier 2'!Z29+'Comm 95+% Furnace - NEW'!Z29+'Comm 95+% Furnace - Replace'!Z29+'Comm Custom'!Z29,0) -> 0 | AA29: =ROUND(+'Res .95+% Res Furnace - NEW'!AA29+'Res .95+% Res Furnace - Replace'!AA29+'Programmable Tstats - Tier 1'!AA29+'Programmable Tstats - Tier 2'!AA29+'Comm 95+% Furnace - NEW'!AA29+'Comm 95+% Furnace - Replace'!AA29+'Comm Custom'!AA29,0) -> 13688 | AB29: =ROUND(+'Res .95+% Res Furnace - NEW'!AB29+'Res .95+% Res Furnace - Replace'!AB29+'Programmable Tstats - Tier 1'!AB29+'Programmable Tstats - Tier 2'!AB29+'Comm 95+% Furnace - NEW'!AB29+'Comm 95+% Furnace - Replace'!AB29+'Comm Custom'!AB29,0) -> 17098 | AE29: 2039 | AF29: 21581 | AG29: 9205 | AH29: 30786 | AJ29: 0 | AK29: 0 | AL29: 0 | AN29: 30786 | AQ29: 2039 | AR29: 21581 | AS29: 9205 | AU29: =ROUND(+'Res .95+% Res Furnace - NEW'!AU29+'Res .95+% Res Furnace - Replace'!AU29+'Programmable Tstats - Tier 1'!AU29+'Programmable Tstats - Tier 2'!AU29+'Comm 95+% Furnace - NEW'!AU29+'Comm 95+% Furnace - Replace'!AU29+'Comm Custom'!AU29,0) -> 5040 | AW29: =ROUND(+'Res .95+% Res Furnace - NEW'!AW29+'Res .95+% Res Furnace - Replace'!AW29+'Programmable Tstats - Tier 1'!AW29+'Programmable Tstats - Tier 2'!AW29+'Comm 95+% Furnace - NEW'!AW29+'Comm 95+% Furnace - Replace'!AW29+'Comm Custom'!AW29,0) -> 11929 | AZ29: 47755 | BB29: =ROUND(+'Res .95+% Res Furnace - NEW'!BB29+'Res .95+% Res Furnace - Replace'!BB29+'Programmable Tstats - Tier 1'!BB29+'Programmable Tstats - Tier 2'!BB29+'Comm 95+% Furnace - NEW'!BB29+'Comm 95+% Furnace - Replace'!BB29+'Comm Custom'!BB29,0) -> 0 | BC29: =ROUND(+'Res .95+% Res Furnace - NEW'!BC29+'Res .95+% Res Furnace - Replace'!BC29+'Programmable Tstats - Tier 1'!BC29+'Programmable Tstats - Tier 2'!BC29+'Comm 95+% Furnace - NEW'!BC29+'Comm 95+% Furnace - Replace'!BC29+'Comm Custom'!BC29,0) -> 0 | BD29: 0 | BE29: 47755 | BH29: 2039 | BI29: =ROUND(+'Res .95+% Res Furnace - NEW'!BI29+'Res .95+% Res Furnace - Replace'!BI29+'Programmable Tstats - Tier 1'!BI29+'Programmable Tstats - Tier 2'!BI29+'Comm 95+% Furnace - NEW'!BI29+'Comm 95+% Furnace - Replace'!BI29+'Comm Custom'!BI29,0) -> 0 | BJ29: =ROUND(+'Res .95+% Res Furnace - NEW'!BJ29+'Res .95+% Res Furnace - Replace'!BJ29+'Programmable Tstats - Tier 1'!BJ29+'Programmable Tstats - Tier 2'!BJ29+'Comm 95+% Furnace - NEW'!BJ29+'Comm 95+% Furnace - Replace'!BJ29+'Comm Custom'!BJ29,0) -> 4481 | BL29: =ROUND(+'Res .95+% Res Furnace - NEW'!BL29+'Res .95+% Res Furnace - Replace'!BL29+'Programmable Tstats - Tier 1'!BL29+'Programmable Tstats - Tier 2'!BL29+'Comm 95+% Furnace - NEW'!BL29+'Comm 95+% Furnace - Replace'!BL29+'Comm Custom'!BL29,0) -> 55715 | BN29: =ROUND(+'Res .95+% Res Furnace - NEW'!BN29+'Res .95+% Res Furnace - Replace'!BN29+'Programmable Tstats - Tier 1'!BN29+'Programmable Tstats - Tier 2'!BN29+'Comm 95+% Furnace - NEW'!BN29+'Comm 95+% Furnace - Replace'!BN29+'Comm Custom'!BN29,0) -> 29088 | BP29: 84803 | BR29: =ROUND(+'Res .95+% Res Furnace - NEW'!BR29+'Res .95+% Res Furnace - Replace'!BR29+'Programmable Tstats - Tier 1'!BR29+'Programmable Tstats - Tier 2'!BR29+'Comm 95+% Furnace - NEW'!BR29+'Comm 95+% Furnace - Replace'!BR29+'Comm Custom'!BR29,0) -> 0 | BT29: 84803 | BW29: 2039 | BX29: 21581 | BY29: 9205 | BZ29: 5040 | CA29: 35826 | CC29: 0 | CD29: 0 | CE29: 0 | CG29: 35826
E30: 23) Number of Participants = | F30: =+'Res .95+% Res Furnace - NEW'!F30+'Res .95+% Res Furnace - Replace'!F30+'Programmable Tstats - Tier 1'!F30+'Programmable Tstats - Tier 2'!F30+'Comm 95+% Furnace - NEW'!F30+'Comm 95+% Furnace - Replace'!F30+'Comm Custom'!F30 -> 493 | J30: 16 | L30: 2040 | M30: =ROUND(+'Res .95+% Res Furnace - NEW'!M30+'Res .95+% Res Furnace - Replace'!M30+'Programmable Tstats - Tier 1'!M30+'Programmable Tstats - Tier 2'!M30+'Comm 95+% Furnace - NEW'!M30+'Comm 95+% Furnace - Replace'!M30+'Comm Custom'!M30,0) -> 4481 | O30: =ROUND(+'Res .95+% Res Furnace - NEW'!O30+'Res .95+% Res Furnace - Replace'!O30+'Programmable Tstats - Tier 1'!O30+'Programmable Tstats - Tier 2'!O30+'Comm 95+% Furnace - NEW'!O30+'Comm 95+% Furnace - Replace'!O30+'Comm Custom'!O30,0) -> 22226 | Q30: =ROUND(+'Res .95+% Res Furnace - NEW'!Q30+'Res .95+% Res Furnace - Replace'!Q30+'Programmable Tstats - Tier 1'!Q30+'Programmable Tstats - Tier 2'!Q30+'Comm 95+% Furnace - NEW'!Q30+'Comm 95+% Furnace - Replace'!Q30+'Comm Custom'!Q30,0) -> 0 | R30: =ROUND(+'Res .95+% Res Furnace - NEW'!R30+'Res .95+% Res Furnace - Replace'!R30+'Programmable Tstats - Tier 1'!R30+'Programmable Tstats - Tier 2'!R30+'Comm 95+% Furnace - NEW'!R30+'Comm 95+% Furnace - Replace'!R30+'Comm Custom'!R30,0) -> 22226 | S30: =ROUND(+'Res .95+% Res Furnace - NEW'!S30+'Res .95+% Res Furnace - Replace'!S30+'Programmable Tstats - Tier 1'!S30+'Programmable Tstats - Tier 2'!S30+'Comm 95+% Furnace - NEW'!S30+'Comm 95+% Furnace - Replace'!S30+'Comm Custom'!S30,0) -> 45 | U30: =ROUND(+'Res .95+% Res Furnace - NEW'!U30+'Res .95+% Res Furnace - Replace'!U30+'Programmable Tstats - Tier 1'!U30+'Programmable Tstats - Tier 2'!U30+'Comm 95+% Furnace - NEW'!U30+'Comm 95+% Furnace - Replace'!U30+'Comm Custom'!U30,0) -> 9295 | V30: =ROUND(+'Res .95+% Res Furnace - NEW'!V30+'Res .95+% Res Furnace - Replace'!V30+'Programmable Tstats - Tier 1'!V30+'Programmable Tstats - Tier 2'!V30+'Comm 95+% Furnace - NEW'!V30+'Comm 95+% Furnace - Replace'!V30+'Comm Custom'!V30,0) -> 31521 | X30: =ROUND(+'Res .95+% Res Furnace - NEW'!X30+'Res .95+% Res Furnace - Replace'!X30+'Programmable Tstats - Tier 1'!X30+'Programmable Tstats - Tier 2'!X30+'Comm 95+% Furnace - NEW'!X30+'Comm 95+% Furnace - Replace'!X30+'Comm Custom'!X30,0) -> 14097 | Y30: =ROUND(+'Res .95+% Res Furnace - NEW'!Y30+'Res .95+% Res Furnace - Replace'!Y30+'Programmable Tstats - Tier 1'!Y30+'Programmable Tstats - Tier 2'!Y30+'Comm 95+% Furnace - NEW'!Y30+'Comm 95+% Furnace - Replace'!Y30+'Comm Custom'!Y30,0) -> 0 | Z30: =ROUND(+'Res .95+% Res Furnace - NEW'!Z30+'Res .95+% Res Furnace - Replace'!Z30+'Programmable Tstats - Tier 1'!Z30+'Programmable Tstats - Tier 2'!Z30+'Comm 95+% Furnace - NEW'!Z30+'Comm 95+% Furnace - Replace'!Z30+'Comm Custom'!Z30,0) -> 0 | AA30: =ROUND(+'Res .95+% Res Furnace - NEW'!AA30+'Res .95+% Res Furnace - Replace'!AA30+'Programmable Tstats - Tier 1'!AA30+'Programmable Tstats - Tier 2'!AA30+'Comm 95+% Furnace - NEW'!AA30+'Comm 95+% Furnace - Replace'!AA30+'Comm Custom'!AA30,0) -> 14097 | AB30: =ROUND(+'Res .95+% Res Furnace - NEW'!AB30+'Res .95+% Res Furnace - Replace'!AB30+'Programmable Tstats - Tier 1'!AB30+'Programmable Tstats - Tier 2'!AB30+'Comm 95+% Furnace - NEW'!AB30+'Comm 95+% Furnace - Replace'!AB30+'Comm Custom'!AB30,0) -> 17424 | AE30: 2040 | AF30: 22226 | AG30: 9295 | AH30: 31521 | AJ30: 0 | AK30: 0 | AL30: 0 | AN30: 31521 | AQ30: 2040 | AR30: 22226 | AS30: 9295 | AU30: =ROUND(+'Res .95+% Res Furnace - NEW'!AU30+'Res .95+% Res Furnace - Replace'!AU30+'Programmable Tstats - Tier 1'!AU30+'Programmable Tstats - Tier 2'!AU30+'Comm 95+% Furnace - NEW'!AU30+'Comm 95+% Furnace - Replace'!AU30+'Comm Custom'!AU30,0) -> 5184 | AW30: =ROUND(+'Res .95+% Res Furnace - NEW'!AW30+'Res .95+% Res Furnace - Replace'!AW30+'Programmable Tstats - Tier 1'!AW30+'Programmable Tstats - Tier 2'!AW30+'Comm 95+% Furnace - NEW'!AW30+'Comm 95+% Furnace - Replace'!AW30+'Comm Custom'!AW30,0) -> 12131 | AZ30: 48836 | BB30: =ROUND(+'Res .95+% Res Furnace - NEW'!BB30+'Res .95+% Res Furnace - Replace'!BB30+'Programmable Tstats - Tier 1'!BB30+'Programmable Tstats - Tier 2'!BB30+'Comm 95+% Furnace - NEW'!BB30+'Comm 95+% Furnace - Replace'!BB30+'Comm Custom'!BB30,0) -> 0 | BC30: =ROUND(+'Res .95+% Res Furnace - NEW'!BC30+'Res .95+% Res Furnace - Replace'!BC30+'Programmable Tstats - Tier 1'!BC30+'Programmable Tstats - Tier 2'!BC30+'Comm 95+% Furnace - NEW'!BC30+'Comm 95+% Furnace - Replace'!BC30+'Comm Custom'!BC30,0) -> 0 | BD30: 0 | BE30: 48836 | BH30: 2040 | BI30: =ROUND(+'Res .95+% Res Furnace - NEW'!BI30+'Res .95+% Res Furnace - Replace'!BI30+'Programmable Tstats - Tier 1'!BI30+'Programmable Tstats - Tier 2'!BI30+'Comm 95+% Furnace - NEW'!BI30+'Comm 95+% Furnace - Replace'!BI30+'Comm Custom'!BI30,0) -> 0 | BJ30: =ROUND(+'Res .95+% Res Furnace - NEW'!BJ30+'Res .95+% Res Furnace - Replace'!BJ30+'Programmable Tstats - Tier 1'!BJ30+'Programmable Tstats - Tier 2'!BJ30+'Comm 95+% Furnace - NEW'!BJ30+'Comm 95+% Furnace - Replace'!BJ30+'Comm Custom'!BJ30,0) -> 4481 | BL30: =ROUND(+'Res .95+% Res Furnace - NEW'!BL30+'Res .95+% Res Furnace - Replace'!BL30+'Programmable Tstats - Tier 1'!BL30+'Programmable Tstats - Tier 2'!BL30+'Comm 95+% Furnace - NEW'!BL30+'Comm 95+% Furnace - Replace'!BL30+'Comm Custom'!BL30,0) -> 57385 | BN30: =ROUND(+'Res .95+% Res Furnace - NEW'!BN30+'Res .95+% Res Furnace - Replace'!BN30+'Programmable Tstats - Tier 1'!BN30+'Programmable Tstats - Tier 2'!BN30+'Comm 95+% Furnace - NEW'!BN30+'Comm 95+% Furnace - Replace'!BN30+'Comm Custom'!BN30,0) -> 29952 | BP30: 87337 | BR30: =ROUND(+'Res .95+% Res Furnace - NEW'!BR30+'Res .95+% Res Furnace - Replace'!BR30+'Programmable Tstats - Tier 1'!BR30+'Programmable Tstats - Tier 2'!BR30+'Comm 95+% Furnace - NEW'!BR30+'Comm 95+% Furnace - Replace'!BR30+'Comm Custom'!BR30,0) -> 0 | BT30: 87337 | BW30: 2040 | BX30: 22226 | BY30: 9295 | BZ30: 5184 | CA30: 36705 | CC30: 0 | CD30: 0 | CE30: 0 | CG30: 36705
A31: 8) Non-Gas Fuel Loss Factor | J31: 17 | L31: 2041 | M31: =ROUND(+'Res .95+% Res Furnace - NEW'!M31+'Res .95+% Res Furnace - Replace'!M31+'Programmable Tstats - Tier 1'!M31+'Programmable Tstats - Tier 2'!M31+'Comm 95+% Furnace - NEW'!M31+'Comm 95+% Furnace - Replace'!M31+'Comm Custom'!M31,0) -> 4481 | O31: =ROUND(+'Res .95+% Res Furnace - NEW'!O31+'Res .95+% Res Furnace - Replace'!O31+'Programmable Tstats - Tier 1'!O31+'Programmable Tstats - Tier 2'!O31+'Comm 95+% Furnace - NEW'!O31+'Comm 95+% Furnace - Replace'!O31+'Comm Custom'!O31,0) -> 22894 | Q31: =ROUND(+'Res .95+% Res Furnace - NEW'!Q31+'Res .95+% Res Furnace - Replace'!Q31+'Programmable Tstats - Tier 1'!Q31+'Programmable Tstats - Tier 2'!Q31+'Comm 95+% Furnace - NEW'!Q31+'Comm 95+% Furnace - Replace'!Q31+'Comm Custom'!Q31,0) -> 0 | R31: =ROUND(+'Res .95+% Res Furnace - NEW'!R31+'Res .95+% Res Furnace - Replace'!R31+'Programmable Tstats - Tier 1'!R31+'Programmable Tstats - Tier 2'!R31+'Comm 95+% Furnace - NEW'!R31+'Comm 95+% Furnace - Replace'!R31+'Comm Custom'!R31,0) -> 22894 | S31: =ROUND(+'Res .95+% Res Furnace - NEW'!S31+'Res .95+% Res Furnace - Replace'!S31+'Programmable Tstats - Tier 1'!S31+'Programmable Tstats - Tier 2'!S31+'Comm 95+% Furnace - NEW'!S31+'Comm 95+% Furnace - Replace'!S31+'Comm Custom'!S31,0) -> 45 | U31: =ROUND(+'Res .95+% Res Furnace - NEW'!U31+'Res .95+% Res Furnace - Replace'!U31+'Programmable Tstats - Tier 1'!U31+'Programmable Tstats - Tier 2'!U31+'Comm 95+% Furnace - NEW'!U31+'Comm 95+% Furnace - Replace'!U31+'Comm Custom'!U31,0) -> 9385 | V31: =ROUND(+'Res .95+% Res Furnace - NEW'!V31+'Res .95+% Res Furnace - Replace'!V31+'Programmable Tstats - Tier 1'!V31+'Programmable Tstats - Tier 2'!V31+'Comm 95+% Furnace - NEW'!V31+'Comm 95+% Furnace - Replace'!V31+'Comm Custom'!V31,0) -> 32279 | X31: =ROUND(+'Res .95+% Res Furnace - NEW'!X31+'Res .95+% Res Furnace - Replace'!X31+'Programmable Tstats - Tier 1'!X31+'Programmable Tstats - Tier 2'!X31+'Comm 95+% Furnace - NEW'!X31+'Comm 95+% Furnace - Replace'!X31+'Comm Custom'!X31,0) -> 14520 | Y31: =ROUND(+'Res .95+% Res Furnace - NEW'!Y31+'Res .95+% Res Furnace - Replace'!Y31+'Programmable Tstats - Tier 1'!Y31+'Programmable Tstats - Tier 2'!Y31+'Comm 95+% Furnace - NEW'!Y31+'Comm 95+% Furnace - Replace'!Y31+'Comm Custom'!Y31,0) -> 0 | Z31: =ROUND(+'Res .95+% Res Furnace - NEW'!Z31+'Res .95+% Res Furnace - Replace'!Z31+'Programmable Tstats - Tier 1'!Z31+'Programmable Tstats - Tier 2'!Z31+'Comm 95+% Furnace - NEW'!Z31+'Comm 95+% Furnace - Replace'!Z31+'Comm Custom'!Z31,0) -> 0 | AA31: =ROUND(+'Res .95+% Res Furnace - NEW'!AA31+'Res .95+% Res Furnace - Replace'!AA31+'Programmable Tstats - Tier 1'!AA31+'Programmable Tstats - Tier 2'!AA31+'Comm 95+% Furnace - NEW'!AA31+'Comm 95+% Furnace - Replace'!AA31+'Comm Custom'!AA31,0) -> 14520 | AB31: =ROUND(+'Res .95+% Res Furnace - NEW'!AB31+'Res .95+% Res Furnace - Replace'!AB31+'Programmable Tstats - Tier 1'!AB31+'Programmable Tstats - Tier 2'!AB31+'Comm 95+% Furnace - NEW'!AB31+'Comm 95+% Furnace - Replace'!AB31+'Comm Custom'!AB31,0) -> 17759 | AE31: 2041 | AF31: 22894 | AG31: 9385 | AH31: 32279 | AJ31: 0 | AK31: 0 | AL31: 0 | AN31: 32279 | AQ31: 2041 | AR31: 22894 | AS31: 9385 | AU31: =ROUND(+'Res .95+% Res Furnace - NEW'!AU31+'Res .95+% Res Furnace - Replace'!AU31+'Programmable Tstats - Tier 1'!AU31+'Programmable Tstats - Tier 2'!AU31+'Comm 95+% Furnace - NEW'!AU31+'Comm 95+% Furnace - Replace'!AU31+'Comm Custom'!AU31,0) -> 5328 | AW31: =ROUND(+'Res .95+% Res Furnace - NEW'!AW31+'Res .95+% Res Furnace - Replace'!AW31+'Programmable Tstats - Tier 1'!AW31+'Programmable Tstats - Tier 2'!AW31+'Comm 95+% Furnace - NEW'!AW31+'Comm 95+% Furnace - Replace'!AW31+'Comm Custom'!AW31,0) -> 12332 | AZ31: 49939 | BB31: =ROUND(+'Res .95+% Res Furnace - NEW'!BB31+'Res .95+% Res Furnace - Replace'!BB31+'Programmable Tstats - Tier 1'!BB31+'Programmable Tstats - Tier 2'!BB31+'Comm 95+% Furnace - NEW'!BB31+'Comm 95+% Furnace - Replace'!BB31+'Comm Custom'!BB31,0) -> 0 | BC31: =ROUND(+'Res .95+% Res Furnace - NEW'!BC31+'Res .95+% Res Furnace - Replace'!BC31+'Programmable Tstats - Tier 1'!BC31+'Programmable Tstats - Tier 2'!BC31+'Comm 95+% Furnace - NEW'!BC31+'Comm 95+% Furnace - Replace'!BC31+'Comm Custom'!BC31,0) -> 0 | BD31: 0 | BE31: 49939 | BH31: 2041 | BI31: =ROUND(+'Res .95+% Res Furnace - NEW'!BI31+'Res .95+% Res Furnace - Replace'!BI31+'Programmable Tstats - Tier 1'!BI31+'Programmable Tstats - Tier 2'!BI31+'Comm 95+% Furnace - NEW'!BI31+'Comm 95+% Furnace - Replace'!BI31+'Comm Custom'!BI31,0) -> 0 | BJ31: =ROUND(+'Res .95+% Res Furnace - NEW'!BJ31+'Res .95+% Res Furnace - Replace'!BJ31+'Programmable Tstats - Tier 1'!BJ31+'Programmable Tstats - Tier 2'!BJ31+'Comm 95+% Furnace - NEW'!BJ31+'Comm 95+% Furnace - Replace'!BJ31+'Comm Custom'!BJ31,0) -> 4481 | BL31: =ROUND(+'Res .95+% Res Furnace - NEW'!BL31+'Res .95+% Res Furnace - Replace'!BL31+'Programmable Tstats - Tier 1'!BL31+'Programmable Tstats - Tier 2'!BL31+'Comm 95+% Furnace - NEW'!BL31+'Comm 95+% Furnace - Replace'!BL31+'Comm Custom'!BL31,0) -> 59108 | BN31: =ROUND(+'Res .95+% Res Furnace - NEW'!BN31+'Res .95+% Res Furnace - Replace'!BN31+'Programmable Tstats - Tier 1'!BN31+'Programmable Tstats - Tier 2'!BN31+'Comm 95+% Furnace - NEW'!BN31+'Comm 95+% Furnace - Replace'!BN31+'Comm Custom'!BN31,0) -> 30816 | BP31: 89924 | BR31: =ROUND(+'Res .95+% Res Furnace - NEW'!BR31+'Res .95+% Res Furnace - Replace'!BR31+'Programmable Tstats - Tier 1'!BR31+'Programmable Tstats - Tier 2'!BR31+'Comm 95+% Furnace - NEW'!BR31+'Comm 95+% Furnace - Replace'!BR31+'Comm Custom'!BR31,0) -> 0 | BT31: 89924 | BW31: 2041 | BX31: 22894 | BY31: 9385 | BZ31: 5328 | CA31: 37607 | CC31: 0 | CD31: 0 | CE31: 0 | CG31: 37607
E32: 24) Total Annual Dk Saved = | F32: =+'Res .95+% Res Furnace - NEW'!F32+'Res .95+% Res Furnace - Replace'!F32+'Programmable Tstats - Tier 1'!F32+'Programmable Tstats - Tier 2'!F32+'Comm 95+% Furnace - NEW'!F32+'Comm 95+% Furnace - Replace'!F32+'Comm Custom'!F32 -> 5622 | J32: 18 | L32: 2042 | M32: =ROUND(+'Res .95+% Res Furnace - NEW'!M32+'Res .95+% Res Furnace - Replace'!M32+'Programmable Tstats - Tier 1'!M32+'Programmable Tstats - Tier 2'!M32+'Comm 95+% Furnace - NEW'!M32+'Comm 95+% Furnace - Replace'!M32+'Comm Custom'!M32,0) -> 4481 | O32: =ROUND(+'Res .95+% Res Furnace - NEW'!O32+'Res .95+% Res Furnace - Replace'!O32+'Programmable Tstats - Tier 1'!O32+'Programmable Tstats - Tier 2'!O32+'Comm 95+% Furnace - NEW'!O32+'Comm 95+% Furnace - Replace'!O32+'Comm Custom'!O32,0) -> 23579 | Q32: =ROUND(+'Res .95+% Res Furnace - NEW'!Q32+'Res .95+% Res Furnace - Replace'!Q32+'Programmable Tstats - Tier 1'!Q32+'Programmable Tstats - Tier 2'!Q32+'Comm 95+% Furnace - NEW'!Q32+'Comm 95+% Furnace - Replace'!Q32+'Comm Custom'!Q32,0) -> 0 | R32: =ROUND(+'Res .95+% Res Furnace - NEW'!R32+'Res .95+% Res Furnace - Replace'!R32+'Programmable Tstats - Tier 1'!R32+'Programmable Tstats - Tier 2'!R32+'Comm 95+% Furnace - NEW'!R32+'Comm 95+% Furnace - Replace'!R32+'Comm Custom'!R32,0) -> 23579 | S32: =ROUND(+'Res .95+% Res Furnace - NEW'!S32+'Res .95+% Res Furnace - Replace'!S32+'Programmable Tstats - Tier 1'!S32+'Programmable Tstats - Tier 2'!S32+'Comm 95+% Furnace - NEW'!S32+'Comm 95+% Furnace - Replace'!S32+'Comm Custom'!S32,0) -> 45 | U32: =ROUND(+'Res .95+% Res Furnace - NEW'!U32+'Res .95+% Res Furnace - Replace'!U32+'Programmable Tstats - Tier 1'!U32+'Programmable Tstats - Tier 2'!U32+'Comm 95+% Furnace - NEW'!U32+'Comm 95+% Furnace - Replace'!U32+'Comm Custom'!U32,0) -> 9474 | V32: =ROUND(+'Res .95+% Res Furnace - NEW'!V32+'Res .95+% Res Furnace - Replace'!V32+'Programmable Tstats - Tier 1'!V32+'Programmable Tstats - Tier 2'!V32+'Comm 95+% Furnace - NEW'!V32+'Comm 95+% Furnace - Replace'!V32+'Comm Custom'!V32,0) -> 33053 | X32: =ROUND(+'Res .95+% Res Furnace - NEW'!X32+'Res .95+% Res Furnace - Replace'!X32+'Programmable Tstats - Tier 1'!X32+'Programmable Tstats - Tier 2'!X32+'Comm 95+% Furnace - NEW'!X32+'Comm 95+% Furnace - Replace'!X32+'Comm Custom'!X32,0) -> 14958 | Y32: =ROUND(+'Res .95+% Res Furnace - NEW'!Y32+'Res .95+% Res Furnace - Replace'!Y32+'Programmable Tstats - Tier 1'!Y32+'Programmable Tstats - Tier 2'!Y32+'Comm 95+% Furnace - NEW'!Y32+'Comm 95+% Furnace - Replace'!Y32+'Comm Custom'!Y32,0) -> 0 | Z32: =ROUND(+'Res .95+% Res Furnace - NEW'!Z32+'Res .95+% Res Furnace - Replace'!Z32+'Programmable Tstats - Tier 1'!Z32+'Programmable Tstats - Tier 2'!Z32+'Comm 95+% Furnace - NEW'!Z32+'Comm 95+% Furnace - Replace'!Z32+'Comm Custom'!Z32,0) -> 0 | AA32: =ROUND(+'Res .95+% Res Furnace - NEW'!AA32+'Res .95+% Res Furnace - Replace'!AA32+'Programmable Tstats - Tier 1'!AA32+'Programmable Tstats - Tier 2'!AA32+'Comm 95+% Furnace - NEW'!AA32+'Comm 95+% Furnace - Replace'!AA32+'Comm Custom'!AA32,0) -> 14958 | AB32: =ROUND(+'Res .95+% Res Furnace - NEW'!AB32+'Res .95+% Res Furnace - Replace'!AB32+'Programmable Tstats - Tier 1'!AB32+'Programmable Tstats - Tier 2'!AB32+'Comm 95+% Furnace - NEW'!AB32+'Comm 95+% Furnace - Replace'!AB32+'Comm Custom'!AB32,0) -> 18095 | AE32: 2042 | AF32: 23579 | AG32: 9474 | AH32: 33053 | AJ32: 0 | AK32: 0 | AL32: 0 | AN32: 33053 | AQ32: 2042 | AR32: 23579 | AS32: 9474 | AU32: =ROUND(+'Res .95+% Res Furnace - NEW'!AU32+'Res .95+% Res Furnace - Replace'!AU32+'Programmable Tstats - Tier 1'!AU32+'Programmable Tstats - Tier 2'!AU32+'Comm 95+% Furnace - NEW'!AU32+'Comm 95+% Furnace - Replace'!AU32+'Comm Custom'!AU32,0) -> 5472 | AW32: =ROUND(+'Res .95+% Res Furnace - NEW'!AW32+'Res .95+% Res Furnace - Replace'!AW32+'Programmable Tstats - Tier 1'!AW32+'Programmable Tstats - Tier 2'!AW32+'Comm 95+% Furnace - NEW'!AW32+'Comm 95+% Furnace - Replace'!AW32+'Comm Custom'!AW32,0) -> 12542 | AZ32: 51067 | BB32: =ROUND(+'Res .95+% Res Furnace - NEW'!BB32+'Res .95+% Res Furnace - Replace'!BB32+'Programmable Tstats - Tier 1'!BB32+'Programmable Tstats - Tier 2'!BB32+'Comm 95+% Furnace - NEW'!BB32+'Comm 95+% Furnace - Replace'!BB32+'Comm Custom'!BB32,0) -> 0 | BC32: =ROUND(+'Res .95+% Res Furnace - NEW'!BC32+'Res .95+% Res Furnace - Replace'!BC32+'Programmable Tstats - Tier 1'!BC32+'Programmable Tstats - Tier 2'!BC32+'Comm 95+% Furnace - NEW'!BC32+'Comm 95+% Furnace - Replace'!BC32+'Comm Custom'!BC32,0) -> 0 | BD32: 0 | BE32: 51067 | BH32: 2042 | BI32: =ROUND(+'Res .95+% Res Furnace - NEW'!BI32+'Res .95+% Res Furnace - Replace'!BI32+'Programmable Tstats - Tier 1'!BI32+'Programmable Tstats - Tier 2'!BI32+'Comm 95+% Furnace - NEW'!BI32+'Comm 95+% Furnace - Replace'!BI32+'Comm Custom'!BI32,0) -> 0 | BJ32: =ROUND(+'Res .95+% Res Furnace - NEW'!BJ32+'Res .95+% Res Furnace - Replace'!BJ32+'Programmable Tstats - Tier 1'!BJ32+'Programmable Tstats - Tier 2'!BJ32+'Comm 95+% Furnace - NEW'!BJ32+'Comm 95+% Furnace - Replace'!BJ32+'Comm Custom'!BJ32,0) -> 4481 | BL32: =ROUND(+'Res .95+% Res Furnace - NEW'!BL32+'Res .95+% Res Furnace - Replace'!BL32+'Programmable Tstats - Tier 1'!BL32+'Programmable Tstats - Tier 2'!BL32+'Comm 95+% Furnace - NEW'!BL32+'Comm 95+% Furnace - Replace'!BL32+'Comm Custom'!BL32,0) -> 60881 | BN32: =ROUND(+'Res .95+% Res Furnace - NEW'!BN32+'Res .95+% Res Furnace - Replace'!BN32+'Programmable Tstats - Tier 1'!BN32+'Programmable Tstats - Tier 2'!BN32+'Comm 95+% Furnace - NEW'!BN32+'Comm 95+% Furnace - Replace'!BN32+'Comm Custom'!BN32,0) -> 31824 | BP32: 92705 | BR32: =ROUND(+'Res .95+% Res Furnace - NEW'!BR32+'Res .95+% Res Furnace - Replace'!BR32+'Programmable Tstats - Tier 1'!BR32+'Programmable Tstats - Tier 2'!BR32+'Comm 95+% Furnace - NEW'!BR32+'Comm 95+% Furnace - Replace'!BR32+'Comm Custom'!BR32,0) -> 0 | BT32: 92705 | BW32: 2042 | BX32: 23579 | BY32: 9474 | BZ32: 5472 | CA32: 38525 | CC32: 0 | CD32: 0 | CE32: 0 | CG32: 38525
A33: 9) Gas Environmental Damage Factor = | J33: 19 | L33: 2043 | M33: =ROUND(+'Res .95+% Res Furnace - NEW'!M33+'Res .95+% Res Furnace - Replace'!M33+'Programmable Tstats - Tier 1'!M33+'Programmable Tstats - Tier 2'!M33+'Comm 95+% Furnace - NEW'!M33+'Comm 95+% Furnace - Replace'!M33+'Comm Custom'!M33,0) -> 4481 | O33: =ROUND(+'Res .95+% Res Furnace - NEW'!O33+'Res .95+% Res Furnace - Replace'!O33+'Programmable Tstats - Tier 1'!O33+'Programmable Tstats - Tier 2'!O33+'Comm 95+% Furnace - NEW'!O33+'Comm 95+% Furnace - Replace'!O33+'Comm Custom'!O33,0) -> 24287 | Q33: =ROUND(+'Res .95+% Res Furnace - NEW'!Q33+'Res .95+% Res Furnace - Replace'!Q33+'Programmable Tstats - Tier 1'!Q33+'Programmable Tstats - Tier 2'!Q33+'Comm 95+% Furnace - NEW'!Q33+'Comm 95+% Furnace - Replace'!Q33+'Comm Custom'!Q33,0) -> 0 | R33: =ROUND(+'Res .95+% Res Furnace - NEW'!R33+'Res .95+% Res Furnace - Replace'!R33+'Programmable Tstats - Tier 1'!R33+'Programmable Tstats - Tier 2'!R33+'Comm 95+% Furnace - NEW'!R33+'Comm 95+% Furnace - Replace'!R33+'Comm Custom'!R33,0) -> 24287 | S33: =ROUND(+'Res .95+% Res Furnace - NEW'!S33+'Res .95+% Res Furnace - Replace'!S33+'Programmable Tstats - Tier 1'!S33+'Programmable Tstats - Tier 2'!S33+'Comm 95+% Furnace - NEW'!S33+'Comm 95+% Furnace - Replace'!S33+'Comm Custom'!S33,0) -> 45 | U33: =ROUND(+'Res .95+% Res Furnace - NEW'!U33+'Res .95+% Res Furnace - Replace'!U33+'Programmable Tstats - Tier 1'!U33+'Programmable Tstats - Tier 2'!U33+'Comm 95+% Furnace - NEW'!U33+'Comm 95+% Furnace - Replace'!U33+'Comm Custom'!U33,0) -> 9564 | V33: =ROUND(+'Res .95+% Res Furnace - NEW'!V33+'Res .95+% Res Furnace - Replace'!V33+'Programmable Tstats - Tier 1'!V33+'Programmable Tstats - Tier 2'!V33+'Comm 95+% Furnace - NEW'!V33+'Comm 95+% Furnace - Replace'!V33+'Comm Custom'!V33,0) -> 33851 | X33: =ROUND(+'Res .95+% Res Furnace - NEW'!X33+'Res .95+% Res Furnace - Replace'!X33+'Programmable Tstats - Tier 1'!X33+'Programmable Tstats - Tier 2'!X33+'Comm 95+% Furnace - NEW'!X33+'Comm 95+% Furnace - Replace'!X33+'Comm Custom'!X33,0) -> 15406 | Y33: =ROUND(+'Res .95+% Res Furnace - NEW'!Y33+'Res .95+% Res Furnace - Replace'!Y33+'Programmable Tstats - Tier 1'!Y33+'Programmable Tstats - Tier 2'!Y33+'Comm 95+% Furnace - NEW'!Y33+'Comm 95+% Furnace - Replace'!Y33+'Comm Custom'!Y33,0) -> 0 | Z33: =ROUND(+'Res .95+% Res Furnace - NEW'!Z33+'Res .95+% Res Furnace - Replace'!Z33+'Programmable Tstats - Tier 1'!Z33+'Programmable Tstats - Tier 2'!Z33+'Comm 95+% Furnace - NEW'!Z33+'Comm 95+% Furnace - Replace'!Z33+'Comm Custom'!Z33,0) -> 0 | AA33: =ROUND(+'Res .95+% Res Furnace - NEW'!AA33+'Res .95+% Res Furnace - Replace'!AA33+'Programmable Tstats - Tier 1'!AA33+'Programmable Tstats - Tier 2'!AA33+'Comm 95+% Furnace - NEW'!AA33+'Comm 95+% Furnace - Replace'!AA33+'Comm Custom'!AA33,0) -> 15406 | AB33: =ROUND(+'Res .95+% Res Furnace - NEW'!AB33+'Res .95+% Res Furnace - Replace'!AB33+'Programmable Tstats - Tier 1'!AB33+'Programmable Tstats - Tier 2'!AB33+'Comm 95+% Furnace - NEW'!AB33+'Comm 95+% Furnace - Replace'!AB33+'Comm Custom'!AB33,0) -> 18445 | AE33: 2043 | AF33: 24287 | AG33: 9564 | AH33: 33851 | AJ33: 0 | AK33: 0 | AL33: 0 | AN33: 33851 | AQ33: 2043 | AR33: 24287 | AS33: 9564 | AU33: =ROUND(+'Res .95+% Res Furnace - NEW'!AU33+'Res .95+% Res Furnace - Replace'!AU33+'Programmable Tstats - Tier 1'!AU33+'Programmable Tstats - Tier 2'!AU33+'Comm 95+% Furnace - NEW'!AU33+'Comm 95+% Furnace - Replace'!AU33+'Comm Custom'!AU33,0) -> 5616 | AW33: =ROUND(+'Res .95+% Res Furnace - NEW'!AW33+'Res .95+% Res Furnace - Replace'!AW33+'Programmable Tstats - Tier 1'!AW33+'Programmable Tstats - Tier 2'!AW33+'Comm 95+% Furnace - NEW'!AW33+'Comm 95+% Furnace - Replace'!AW33+'Comm Custom'!AW33,0) -> 12753 | AZ33: 52220 | BB33: =ROUND(+'Res .95+% Res Furnace - NEW'!BB33+'Res .95+% Res Furnace - Replace'!BB33+'Programmable Tstats - Tier 1'!BB33+'Programmable Tstats - Tier 2'!BB33+'Comm 95+% Furnace - NEW'!BB33+'Comm 95+% Furnace - Replace'!BB33+'Comm Custom'!BB33,0) -> 0 | BC33: =ROUND(+'Res .95+% Res Furnace - NEW'!BC33+'Res .95+% Res Furnace - Replace'!BC33+'Programmable Tstats - Tier 1'!BC33+'Programmable Tstats - Tier 2'!BC33+'Comm 95+% Furnace - NEW'!BC33+'Comm 95+% Furnace - Replace'!BC33+'Comm Custom'!BC33,0) -> 0 | BD33: 0 | BE33: 52220 | BH33: 2043 | BI33: =ROUND(+'Res .95+% Res Furnace - NEW'!BI33+'Res .95+% Res Furnace - Replace'!BI33+'Programmable Tstats - Tier 1'!BI33+'Programmable Tstats - Tier 2'!BI33+'Comm 95+% Furnace - NEW'!BI33+'Comm 95+% Furnace - Replace'!BI33+'Comm Custom'!BI33,0) -> 0 | BJ33: =ROUND(+'Res .95+% Res Furnace - NEW'!BJ33+'Res .95+% Res Furnace - Replace'!BJ33+'Programmable Tstats - Tier 1'!BJ33+'Programmable Tstats - Tier 2'!BJ33+'Comm 95+% Furnace - NEW'!BJ33+'Comm 95+% Furnace - Replace'!BJ33+'Comm Custom'!BJ33,0) -> 4481 | BL33: =ROUND(+'Res .95+% Res Furnace - NEW'!BL33+'Res .95+% Res Furnace - Replace'!BL33+'Programmable Tstats - Tier 1'!BL33+'Programmable Tstats - Tier 2'!BL33+'Comm 95+% Furnace - NEW'!BL33+'Comm 95+% Furnace - Replace'!BL33+'Comm Custom'!BL33,0) -> 62706 | BN33: =ROUND(+'Res .95+% Res Furnace - NEW'!BN33+'Res .95+% Res Furnace - Replace'!BN33+'Programmable Tstats - Tier 1'!BN33+'Programmable Tstats - Tier 2'!BN33+'Comm 95+% Furnace - NEW'!BN33+'Comm 95+% Furnace - Replace'!BN33+'Comm Custom'!BN33,0) -> 32688 | BP33: 95394 | BR33: =ROUND(+'Res .95+% Res Furnace - NEW'!BR33+'Res .95+% Res Furnace - Replace'!BR33+'Programmable Tstats - Tier 1'!BR33+'Programmable Tstats - Tier 2'!BR33+'Comm 95+% Furnace - NEW'!BR33+'Comm 95+% Furnace - Replace'!BR33+'Comm Custom'!BR33,0) -> 0 | BT33: 95394 | BW33: 2043 | BX33: 24287 | BY33: 9564 | BZ33: 5616 | CA33: 39467 | CC33: 0 | CD33: 0 | CE33: 0 | CG33: 39467
A34: Escalation Rate = | E34: 25) Incentive/Participant = | J34: 20 | L34: 2044 | M34: =ROUND(+'Res .95+% Res Furnace - NEW'!M34+'Res .95+% Res Furnace - Replace'!M34+'Programmable Tstats - Tier 1'!M34+'Programmable Tstats - Tier 2'!M34+'Comm 95+% Furnace - NEW'!M34+'Comm 95+% Furnace - Replace'!M34+'Comm Custom'!M34,0) -> 0 | O34: =ROUND(+'Res .95+% Res Furnace - NEW'!O34+'Res .95+% Res Furnace - Replace'!O34+'Programmable Tstats - Tier 1'!O34+'Programmable Tstats - Tier 2'!O34+'Comm 95+% Furnace - NEW'!O34+'Comm 95+% Furnace - Replace'!O34+'Comm Custom'!O34,0) -> 0 | Q34: =ROUND(+'Res .95+% Res Furnace - NEW'!Q34+'Res .95+% Res Furnace - Replace'!Q34+'Programmable Tstats - Tier 1'!Q34+'Programmable Tstats - Tier 2'!Q34+'Comm 95+% Furnace - NEW'!Q34+'Comm 95+% Furnace - Replace'!Q34+'Comm Custom'!Q34,0) -> 0 | R34: =ROUND(+'Res .95+% Res Furnace - NEW'!R34+'Res .95+% Res Furnace - Replace'!R34+'Programmable Tstats - Tier 1'!R34+'Programmable Tstats - Tier 2'!R34+'Comm 95+% Furnace - NEW'!R34+'Comm 95+% Furnace - Replace'!R34+'Comm Custom'!R34,0) -> 0 | S34: =ROUND(+'Res .95+% Res Furnace - NEW'!S34+'Res .95+% Res Furnace - Replace'!S34+'Programmable Tstats - Tier 1'!S34+'Programmable Tstats - Tier 2'!S34+'Comm 95+% Furnace - NEW'!S34+'Comm 95+% Furnace - Replace'!S34+'Comm Custom'!S34,0) -> 0 | U34: =ROUND(+'Res .95+% Res Furnace - NEW'!U34+'Res .95+% Res Furnace - Replace'!U34+'Programmable Tstats - Tier 1'!U34+'Programmable Tstats - Tier 2'!U34+'Comm 95+% Furnace - NEW'!U34+'Comm 95+% Furnace - Replace'!U34+'Comm Custom'!U34,0) -> 0 | V34: =ROUND(+'Res .95+% Res Furnace - NEW'!V34+'Res .95+% Res Furnace - Replace'!V34+'Programmable Tstats - Tier 1'!V34+'Programmable Tstats - Tier 2'!V34+'Comm 95+% Furnace - NEW'!V34+'Comm 95+% Furnace - Replace'!V34+'Comm Custom'!V34,0) -> 0 | X34: =ROUND(+'Res .95+% Res Furnace - NEW'!X34+'Res .95+% Res Furnace - Replace'!X34+'Programmable Tstats - Tier 1'!X34+'Programmable Tstats - Tier 2'!X34+'Comm 95+% Furnace - NEW'!X34+'Comm 95+% Furnace - Replace'!X34+'Comm Custom'!X34,0) -> 0 | Y34: =ROUND(+'Res .95+% Res Furnace - NEW'!Y34+'Res .95+% Res Furnace - Replace'!Y34+'Programmable Tstats - Tier 1'!Y34+'Programmable Tstats - Tier 2'!Y34+'Comm 95+% Furnace - NEW'!Y34+'Comm 95+% Furnace - Replace'!Y34+'Comm Custom'!Y34,0) -> 0 | Z34: =ROUND(+'Res .95+% Res Furnace - NEW'!Z34+'Res .95+% Res Furnace - Replace'!Z34+'Programmable Tstats - Tier 1'!Z34+'Programmable Tstats - Tier 2'!Z34+'Comm 95+% Furnace - NEW'!Z34+'Comm 95+% Furnace - Replace'!Z34+'Comm Custom'!Z34,0) -> 0 | AA34: =ROUND(+'Res .95+% Res Furnace - NEW'!AA34+'Res .95+% Res Furnace - Replace'!AA34+'Programmable Tstats - Tier 1'!AA34+'Programmable Tstats - Tier 2'!AA34+'Comm 95+% Furnace - NEW'!AA34+'Comm 95+% Furnace - Replace'!AA34+'Comm Custom'!AA34,0) -> 0 | AB34: =ROUND(+'Res .95+% Res Furnace - NEW'!AB34+'Res .95+% Res Furnace - Replace'!AB34+'Programmable Tstats - Tier 1'!AB34+'Programmable Tstats - Tier 2'!AB34+'Comm 95+% Furnace - NEW'!AB34+'Comm 95+% Furnace - Replace'!AB34+'Comm Custom'!AB34,0) -> 0 | AE34: 2044 | AF34: 0 | AG34: 0 | AH34: 0 | AJ34: 0 | AK34: 0 | AL34: 0 | AN34: 0 | AQ34: 2044 | AR34: 0 | AS34: 0 | AU34: =ROUND(+'Res .95+% Res Furnace - NEW'!AU34+'Res .95+% Res Furnace - Replace'!AU34+'Programmable Tstats - Tier 1'!AU34+'Programmable Tstats - Tier 2'!AU34+'Comm 95+% Furnace - NEW'!AU34+'Comm 95+% Furnace - Replace'!AU34+'Comm Custom'!AU34,0) -> 0 | AW34: =ROUND(+'Res .95+% Res Furnace - NEW'!AW34+'Res .95+% Res Furnace - Replace'!AW34+'Programmable Tstats - Tier 1'!AW34+'Programmable Tstats - Tier 2'!AW34+'Comm 95+% Furnace - NEW'!AW34+'Comm 95+% Furnace - Replace'!AW34+'Comm Custom'!AW34,0) -> 0 | AZ34: 0 | BB34: =ROUND(+'Res .95+% Res Furnace - NEW'!BB34+'Res .95+% Res Furnace - Replace'!BB34+'Programmable Tstats - Tier 1'!BB34+'Programmable Tstats - Tier 2'!BB34+'Comm 95+% Furnace - NEW'!BB34+'Comm 95+% Furnace - Replace'!BB34+'Comm Custom'!BB34,0) -> 0 | BC34: =ROUND(+'Res .95+% Res Furnace - NEW'!BC34+'Res .95+% Res Furnace - Replace'!BC34+'Programmable Tstats - Tier 1'!BC34+'Programmable Tstats - Tier 2'!BC34+'Comm 95+% Furnace - NEW'!BC34+'Comm 95+% Furnace - Replace'!BC34+'Comm Custom'!BC34,0) -> 0 | BD34: 0 | BE34: 0 | BH34: 2044 | BI34: =ROUND(+'Res .95+% Res Furnace - NEW'!BI34+'Res .95+% Res Furnace - Replace'!BI34+'Programmable Tstats - Tier 1'!BI34+'Programmable Tstats - Tier 2'!BI34+'Comm 95+% Furnace - NEW'!BI34+'Comm 95+% Furnace - Replace'!BI34+'Comm Custom'!BI34,0) -> 0 | BJ34: =ROUND(+'Res .95+% Res Furnace - NEW'!BJ34+'Res .95+% Res Furnace - Replace'!BJ34+'Programmable Tstats - Tier 1'!BJ34+'Programmable Tstats - Tier 2'!BJ34+'Comm 95+% Furnace - NEW'!BJ34+'Comm 95+% Furnace - Replace'!BJ34+'Comm Custom'!BJ34,0) -> 0 | BL34: =ROUND(+'Res .95+% Res Furnace - NEW'!BL34+'Res .95+% Res Furnace - Replace'!BL34+'Programmable Tstats - Tier 1'!BL34+'Programmable Tstats - Tier 2'!BL34+'Comm 95+% Furnace - NEW'!BL34+'Comm 95+% Furnace - Replace'!BL34+'Comm Custom'!BL34,0) -> 0 | BN34: =ROUND(+'Res .95+% Res Furnace - NEW'!BN34+'Res .95+% Res Furnace - Replace'!BN34+'Programmable Tstats - Tier 1'!BN34+'Programmable Tstats - Tier 2'!BN34+'Comm 95+% Furnace - NEW'!BN34+'Comm 95+% Furnace - Replace'!BN34+'Comm Custom'!BN34,0) -> 0 | BP34: 0 | BR34: =ROUND(+'Res .95+% Res Furnace - NEW'!BR34+'Res .95+% Res Furnace - Replace'!BR34+'Programmable Tstats - Tier 1'!BR34+'Programmable Tstats - Tier 2'!BR34+'Comm 95+% Furnace - NEW'!BR34+'Comm 95+% Furnace - Replace'!BR34+'Comm Custom'!BR34,0) -> 0 | BT34: 0 | BW34: 2044 | BX34: 0 | BY34: 0 | BZ34: 0 | CA34: 0 | CC34: 0 | CD34: 0 | CE34: 0 | CG34: 0
J35: 21 | L35: 2045 | M35: =ROUND(+'Res .95+% Res Furnace - NEW'!M35+'Res .95+% Res Furnace - Replace'!M35+'Programmable Tstats - Tier 1'!M35+'Programmable Tstats - Tier 2'!M35+'Comm 95+% Furnace - NEW'!M35+'Comm 95+% Furnace - Replace'!M35+'Comm Custom'!M35,0) -> 0 | O35: =ROUND(+'Res .95+% Res Furnace - NEW'!O35+'Res .95+% Res Furnace - Replace'!O35+'Programmable Tstats - Tier 1'!O35+'Programmable Tstats - Tier 2'!O35+'Comm 95+% Furnace - NEW'!O35+'Comm 95+% Furnace - Replace'!O35+'Comm Custom'!O35,0) -> 0 | Q35: =ROUND(+'Res .95+% Res Furnace - NEW'!Q35+'Res .95+% Res Furnace - Replace'!Q35+'Programmable Tstats - Tier 1'!Q35+'Programmable Tstats - Tier 2'!Q35+'Comm 95+% Furnace - NEW'!Q35+'Comm 95+% Furnace - Replace'!Q35+'Comm Custom'!Q35,0) -> 0 | R35: =ROUND(+'Res .95+% Res Furnace - NEW'!R35+'Res .95+% Res Furnace - Replace'!R35+'Programmable Tstats - Tier 1'!R35+'Programmable Tstats - Tier 2'!R35+'Comm 95+% Furnace - NEW'!R35+'Comm 95+% Furnace - Replace'!R35+'Comm Custom'!R35,0) -> 0 | S35: =ROUND(+'Res .95+% Res Furnace - NEW'!S35+'Res .95+% Res Furnace - Replace'!S35+'Programmable Tstats - Tier 1'!S35+'Programmable Tstats - Tier 2'!S35+'Comm 95+% Furnace - NEW'!S35+'Comm 95+% Furnace - Replace'!S35+'Comm Custom'!S35,0) -> 0 | U35: =ROUND(+'Res .95+% Res Furnace - NEW'!U35+'Res .95+% Res Furnace - Replace'!U35+'Programmable Tstats - Tier 1'!U35+'Programmable Tstats - Tier 2'!U35+'Comm 95+% Furnace - NEW'!U35+'Comm 95+% Furnace - Replace'!U35+'Comm Custom'!U35,0) -> 0 | V35: =ROUND(+'Res .95+% Res Furnace - NEW'!V35+'Res .95+% Res Furnace - Replace'!V35+'Programmable Tstats - Tier 1'!V35+'Programmable Tstats - Tier 2'!V35+'Comm 95+% Furnace - NEW'!V35+'Comm 95+% Furnace - Replace'!V35+'Comm Custom'!V35,0) -> 0 | X35: =ROUND(+'Res .95+% Res Furnace - NEW'!X35+'Res .95+% Res Furnace - Replace'!X35+'Programmable Tstats - Tier 1'!X35+'Programmable Tstats - Tier 2'!X35+'Comm 95+% Furnace - NEW'!X35+'Comm 95+% Furnace - Replace'!X35+'Comm Custom'!X35,0) -> 0 | Y35: =ROUND(+'Res .95+% Res Furnace - NEW'!Y35+'Res .95+% Res Furnace - Replace'!Y35+'Programmable Tstats - Tier 1'!Y35+'Programmable Tstats - Tier 2'!Y35+'Comm 95+% Furnace - NEW'!Y35+'Comm 95+% Furnace - Replace'!Y35+'Comm Custom'!Y35,0) -> 0 | Z35: =ROUND(+'Res .95+% Res Furnace - NEW'!Z35+'Res .95+% Res Furnace - Replace'!Z35+'Programmable Tstats - Tier 1'!Z35+'Programmable Tstats - Tier 2'!Z35+'Comm 95+% Furnace - NEW'!Z35+'Comm 95+% Furnace - Replace'!Z35+'Comm Custom'!Z35,0) -> 0 | AA35: =ROUND(+'Res .95+% Res Furnace - NEW'!AA35+'Res .95+% Res Furnace - Replace'!AA35+'Programmable Tstats - Tier 1'!AA35+'Programmable Tstats - Tier 2'!AA35+'Comm 95+% Furnace - NEW'!AA35+'Comm 95+% Furnace - Replace'!AA35+'Comm Custom'!AA35,0) -> 0 | AB35: =ROUND(+'Res .95+% Res Furnace - NEW'!AB35+'Res .95+% Res Furnace - Replace'!AB35+'Programmable Tstats - Tier 1'!AB35+'Programmable Tstats - Tier 2'!AB35+'Comm 95+% Furnace - NEW'!AB35+'Comm 95+% Furnace - Replace'!AB35+'Comm Custom'!AB35,0) -> 0 | AE35: 2045 | AF35: =+R35 -> 0 | AG35: =+U35 -> 0 | AH35: =+AG35+AF35 -> 0 | AJ35: =ROUND(Y35,0) -> 0 | AK35: =ROUND(Z35,0) -> 0 | AL35: =SUM(AJ35:AK35) -> 0 | AN35: =+AH35-AL35 -> 0 | AQ35: 2045 | AR35: =AF35 -> 0 | AS35: =+AG35 -> 0 | AU35: =ROUND(+'Res .95+% Res Furnace - NEW'!AU35+'Res .95+% Res Furnace - Replace'!AU35+'Programmable Tstats - Tier 1'!AU35+'Programmable Tstats - Tier 2'!AU35+'Comm 95+% Furnace - NEW'!AU35+'Comm 95+% Furnace - Replace'!AU35+'Comm Custom'!AU35,0) -> 0 | AW35: =ROUND(+'Res .95+% Res Furnace - NEW'!AW35+'Res .95+% Res Furnace - Replace'!AW35+'Programmable Tstats - Tier 1'!AW35+'Programmable Tstats - Tier 2'!AW35+'Comm 95+% Furnace - NEW'!AW35+'Comm 95+% Furnace - Replace'!AW35+'Comm Custom'!AW35,0) -> 0 | AZ35: =ROUND(AR35+AS35+AU35+AW35+AY35,0) -> 0 | BB35: =ROUND(+'Res .95+% Res Furnace - NEW'!BB35+'Res .95+% Res Furnace - Replace'!BB35+'Programmable Tstats - Tier 1'!BB35+'Programmable Tstats - Tier 2'!BB35+'Comm 95+% Furnace - NEW'!BB35+'Comm 95+% Furnace - Replace'!BB35+'Comm Custom'!BB35,0) -> 0 | BC35: =ROUND(+'Res .95+% Res Furnace - NEW'!BC35+'Res .95+% Res Furnace - Replace'!BC35+'Programmable Tstats - Tier 1'!BC35+'Programmable Tstats - Tier 2'!BC35+'Comm 95+% Furnace - NEW'!BC35+'Comm 95+% Furnace - Replace'!BC35+'Comm Custom'!BC35,0) -> 0 | BD35: =BB35+BC35 -> 0 | BE35: =AZ35-BD35 -> 0 | BH35: 2045 | BI35: =ROUND(+'Res .95+% Res Furnace - NEW'!BI35+'Res .95+% Res Furnace - Replace'!BI35+'Programmable Tstats - Tier 1'!BI35+'Programmable Tstats - Tier 2'!BI35+'Comm 95+% Furnace - NEW'!BI35+'Comm 95+% Furnace - Replace'!BI35+'Comm Custom'!BI35,0) -> 0 | BJ35: =ROUND(+'Res .95+% Res Furnace - NEW'!BJ35+'Res .95+% Res Furnace - Replace'!BJ35+'Programmable Tstats - Tier 1'!BJ35+'Programmable Tstats - Tier 2'!BJ35+'Comm 95+% Furnace - NEW'!BJ35+'Comm 95+% Furnace - Replace'!BJ35+'Comm Custom'!BJ35,0) -> 0 | BL35: =ROUND(+'Res .95+% Res Furnace - NEW'!BL35+'Res .95+% Res Furnace - Replace'!BL35+'Programmable Tstats - Tier 1'!BL35+'Programmable Tstats - Tier 2'!BL35+'Comm 95+% Furnace - NEW'!BL35+'Comm 95+% Furnace - Replace'!BL35+'Comm Custom'!BL35,0) -> 0 | BN35: =ROUND(+'Res .95+% Res Furnace - NEW'!BN35+'Res .95+% Res Furnace - Replace'!BN35+'Programmable Tstats - Tier 1'!BN35+'Programmable Tstats - Tier 2'!BN35+'Comm 95+% Furnace - NEW'!BN35+'Comm 95+% Furnace - Replace'!BN35+'Comm Custom'!BN35,0) -> 0 | BP35: =BI35+BL35+BN35+BO35 -> 0 | BR35: =ROUND(+'Res .95+% Res Furnace - NEW'!BR35+'Res .95+% Res Furnace - Replace'!BR35+'Programmable Tstats - Tier 1'!BR35+'Programmable Tstats - Tier 2'!BR35+'Comm 95+% Furnace - NEW'!BR35+'Comm 95+% Furnace - Replace'!BR35+'Comm Custom'!BR35,0) -> 0 | BT35: =BP35-BR35 -> 0 | BW35: 2045 | BX35: 0 | BY35: =U35 -> 0 | BZ35: =AU35 -> 0 | CA35: =SUM(BX35:BZ35) -> 0 | CC35: =BB35 -> 0 | CD35: =BC35 -> 0 | CE35: =SUM(CC35:CD35) -> 0 | CG35: =CA35-CE35 -> 0
A36: 10) Non Gas Fuel Environmental Damage Factor = | E36: 26) Distribution Delivery Charge | J36: 22 | L36: 2046 | M36: =ROUND(+'Res .95+% Res Furnace - NEW'!M36+'Res .95+% Res Furnace - Replace'!M36+'Programmable Tstats - Tier 1'!M36+'Programmable Tstats - Tier 2'!M36+'Comm 95+% Furnace - NEW'!M36+'Comm 95+% Furnace - Replace'!M36+'Comm Custom'!M36,0) -> 0 | O36: =ROUND(+'Res .95+% Res Furnace - NEW'!O36+'Res .95+% Res Furnace - Replace'!O36+'Programmable Tstats - Tier 1'!O36+'Programmable Tstats - Tier 2'!O36+'Comm 95+% Furnace - NEW'!O36+'Comm 95+% Furnace - Replace'!O36+'Comm Custom'!O36,0) -> 0 | Q36: =ROUND(+'Res .95+% Res Furnace - NEW'!Q36+'Res .95+% Res Furnace - Replace'!Q36+'Programmable Tstats - Tier 1'!Q36+'Programmable Tstats - Tier 2'!Q36+'Comm 95+% Furnace - NEW'!Q36+'Comm 95+% Furnace - Replace'!Q36+'Comm Custom'!Q36,0) -> 0 | R36: =ROUND(+'Res .95+% Res Furnace - NEW'!R36+'Res .95+% Res Furnace - Replace'!R36+'Programmable Tstats - Tier 1'!R36+'Programmable Tstats - Tier 2'!R36+'Comm 95+% Furnace - NEW'!R36+'Comm 95+% Furnace - Replace'!R36+'Comm Custom'!R36,0) -> 0 | S36: =ROUND(+'Res .95+% Res Furnace - NEW'!S36+'Res .95+% Res Furnace - Replace'!S36+'Programmable Tstats - Tier 1'!S36+'Programmable Tstats - Tier 2'!S36+'Comm 95+% Furnace - NEW'!S36+'Comm 95+% Furnace - Replace'!S36+'Comm Custom'!S36,0) -> 0 | U36: =ROUND(+'Res .95+% Res Furnace - NEW'!U36+'Res .95+% Res Furnace - Replace'!U36+'Programmable Tstats - Tier 1'!U36+'Programmable Tstats - Tier 2'!U36+'Comm 95+% Furnace - NEW'!U36+'Comm 95+% Furnace - Replace'!U36+'Comm Custom'!U36,0) -> 0 | V36: =ROUND(+'Res .95+% Res Furnace - NEW'!V36+'Res .95+% Res Furnace - Replace'!V36+'Programmable Tstats - Tier 1'!V36+'Programmable Tstats - Tier 2'!V36+'Comm 95+% Furnace - NEW'!V36+'Comm 95+% Furnace - Replace'!V36+'Comm Custom'!V36,0) -> 0 | X36: =ROUND(+'Res .95+% Res Furnace - NEW'!X36+'Res .95+% Res Furnace - Replace'!X36+'Programmable Tstats - Tier 1'!X36+'Programmable Tstats - Tier 2'!X36+'Comm 95+% Furnace - NEW'!X36+'Comm 95+% Furnace - Replace'!X36+'Comm Custom'!X36,0) -> 0 | Y36: =ROUND(+'Res .95+% Res Furnace - NEW'!Y36+'Res .95+% Res Furnace - Replace'!Y36+'Programmable Tstats - Tier 1'!Y36+'Programmable Tstats - Tier 2'!Y36+'Comm 95+% Furnace - NEW'!Y36+'Comm 95+% Furnace - Replace'!Y36+'Comm Custom'!Y36,0) -> 0 | Z36: =ROUND(+'Res .95+% Res Furnace - NEW'!Z36+'Res .95+% Res Furnace - Replace'!Z36+'Programmable Tstats - Tier 1'!Z36+'Programmable Tstats - Tier 2'!Z36+'Comm 95+% Furnace - NEW'!Z36+'Comm 95+% Furnace - Replace'!Z36+'Comm Custom'!Z36,0) -> 0 | AA36: =ROUND(+'Res .95+% Res Furnace - NEW'!AA36+'Res .95+% Res Furnace - Replace'!AA36+'Programmable Tstats - Tier 1'!AA36+'Programmable Tstats - Tier 2'!AA36+'Comm 95+% Furnace - NEW'!AA36+'Comm 95+% Furnace - Replace'!AA36+'Comm Custom'!AA36,0) -> 0 | AB36: =ROUND(+'Res .95+% Res Furnace - NEW'!AB36+'Res .95+% Res Furnace - Replace'!AB36+'Programmable Tstats - Tier 1'!AB36+'Programmable Tstats - Tier 2'!AB36+'Comm 95+% Furnace - NEW'!AB36+'Comm 95+% Furnace - Replace'!AB36+'Comm Custom'!AB36,0) -> 0 | AE36: 2046 | AF36: 0 | AG36: 0 | AH36: 0 | AJ36: 0 | AK36: 0 | AL36: 0 | AN36: 0 | AQ36: 2046 | AR36: 0 | AS36: 0 | AU36: =ROUND(+'Res .95+% Res Furnace - NEW'!AU36+'Res .95+% Res Furnace - Replace'!AU36+'Programmable Tstats - Tier 1'!AU36+'Programmable Tstats - Tier 2'!AU36+'Comm 95+% Furnace - NEW'!AU36+'Comm 95+% Furnace - Replace'!AU36+'Comm Custom'!AU36,0) -> 0 | AW36: =ROUND(+'Res .95+% Res Furnace - NEW'!AW36+'Res .95+% Res Furnace - Replace'!AW36+'Programmable Tstats - Tier 1'!AW36+'Programmable Tstats - Tier 2'!AW36+'Comm 95+% Furnace - NEW'!AW36+'Comm 95+% Furnace - Replace'!AW36+'Comm Custom'!AW36,0) -> 0 | AZ36: 0 | BB36: =ROUND(+'Res .95+% Res Furnace - NEW'!BB36+'Res .95+% Res Furnace - Replace'!BB36+'Programmable Tstats - Tier 1'!BB36+'Programmable Tstats - Tier 2'!BB36+'Comm 95+% Furnace - NEW'!BB36+'Comm 95+% Furnace - Replace'!BB36+'Comm Custom'!BB36,0) -> 0 | BC36: =ROUND(+'Res .95+% Res Furnace - NEW'!BC36+'Res .95+% Res Furnace - Replace'!BC36+'Programmable Tstats - Tier 1'!BC36+'Programmable Tstats - Tier 2'!BC36+'Comm 95+% Furnace - NEW'!BC36+'Comm 95+% Furnace - Replace'!BC36+'Comm Custom'!BC36,0) -> 0 | BD36: 0 | BE36: 0 | BH36: 2046 | BI36: =ROUND(+'Res .95+% Res Furnace - NEW'!BI36+'Res .95+% Res Furnace - Replace'!BI36+'Programmable Tstats - Tier 1'!BI36+'Programmable Tstats - Tier 2'!BI36+'Comm 95+% Furnace - NEW'!BI36+'Comm 95+% Furnace - Replace'!BI36+'Comm Custom'!BI36,0) -> 0 | BJ36: =ROUND(+'Res .95+% Res Furnace - NEW'!BJ36+'Res .95+% Res Furnace - Replace'!BJ36+'Programmable Tstats - Tier 1'!BJ36+'Programmable Tstats - Tier 2'!BJ36+'Comm 95+% Furnace - NEW'!BJ36+'Comm 95+% Furnace - Replace'!BJ36+'Comm Custom'!BJ36,0) -> 0 | BL36: =ROUND(+'Res .95+% Res Furnace - NEW'!BL36+'Res .95+% Res Furnace - Replace'!BL36+'Programmable Tstats - Tier 1'!BL36+'Programmable Tstats - Tier 2'!BL36+'Comm 95+% Furnace - NEW'!BL36+'Comm 95+% Furnace - Replace'!BL36+'Comm Custom'!BL36,0) -> 0 | BN36: =ROUND(+'Res .95+% Res Furnace - NEW'!BN36+'Res .95+% Res Furnace - Replace'!BN36+'Programmable Tstats - Tier 1'!BN36+'Programmable Tstats - Tier 2'!BN36+'Comm 95+% Furnace - NEW'!BN36+'Comm 95+% Furnace - Replace'!BN36+'Comm Custom'!BN36,0) -> 0 | BP36: 0 | BR36: =ROUND(+'Res .95+% Res Furnace - NEW'!BR36+'Res .95+% Res Furnace - Replace'!BR36+'Programmable Tstats - Tier 1'!BR36+'Programmable Tstats - Tier 2'!BR36+'Comm 95+% Furnace - NEW'!BR36+'Comm 95+% Furnace - Replace'!BR36+'Comm Custom'!BR36,0) -> 0 | BT36: 0 | BW36: 2046 | BX36: 0 | BY36: 0 | BZ36: 0 | CA36: 0 | CC36: 0 | CD36: 0 | CE36: 0 | CG36: 0
A37: Escalation Rate =
E38: 27) Effective Income Tax Rate = | K38: Total = | M38: =SUM(M14:M36) -> 101030 | V38: =SUM(V14:V36) -> 608443 | AA38: =SUM(AA14:AA36) -> 364546 | AB38: =SUM(AB14:AB36) -> 243897 | AD38: Total = | AH38: =SUM(AH14:AH36) -> 608443 | AL38: =SUM(AL14:AL36) -> 102323 | AN38: =SUM(AN14:AN36) -> 506120 | AP38: Total = | AZ38: =SUM(AZ14:AZ36) -> 940574 | BD38: =SUM(BD14:BD36) -> 208837 | BE38: =SUM(BE14:BE36) -> 731737 | BG38: Total = | BJ38: =SUM(BJ14:BJ36) -> 101030 | BP38: =SUM(BP14:BP36) -> 1658755 | BR38: =SUM(BR14:BR36) -> 188295 | BT38: =SUM(BT14:BT36) -> 1470460 | BZ38: Total = | CA38: =SUM(CA14:CA36) -> 696515 | CE38: =SUM(CE14:CE36) -> 208837 | CG38: =SUM(CG14:CG36) -> 487678
A39: 11) Participant Discount Rate = | C39: =+'Gas Input Table Summary'!$D$26 -> 0.0987 | E39: (Federal & State Taxes) | T39: NPV = | V39: =ROUND(V14+NPV($C$41,V15:V36),0) -> 339944 | AA39: =ROUND(AA14+NPV($C$41,AA15:AA36),0) -> 246878 | AB39: =ROUND(AB14+NPV($C$41,AB15:AB36),0) -> 93065 | AG39: NPV = | AH39: =ROUND(AH14+NPV($C$41,AH15:AH36),0) -> 339944 | AL39: =ROUND(AL14+NPV($C$41,AL15:AL36),0) -> 102323 | AN39: =+AH39-AL39 -> 237621 | AW39: NPV = | AZ39: =ROUND(AZ14+NPV($C$43,AZ15:AZ36),0) -> 758044 | BD39: =ROUND(BD14+NPV($C$43,BD15:BD36),0) -> 208837 | BE39: =AZ39-BD39 -> 549207 | BN39: NPV = | BP39: =ROUND(BP14+NPV($C$39,BP15:BP36),0) -> 788991 | BR39: =ROUND(BR14+NPV($C$39,BR15:BR36),0) -> 188295 | BT39: =ROUND(BT14+NPV($C$39,BT15:BT36),0) -> 600696 | BZ39: NPV = | CA39: =ROUND(CA14+NPV($C$41,CA15:CA36),0) -> 386968 | CE39: =ROUND(CE14+NPV($C$41,CE15:CE36),0) -> 208837 | CG39: =ROUND(CG14+NPV($C$41,CG15:CG36),0) -> 178131
A41: 12) Utility Discount Rate = | C41: =+'Gas Input Table Summary'!$D$27 -> 0.0701 | E41: Test Results | F41: NPV | G41: B/C | K41: Total NPV = | N41: =AB39 -> 93065 | AD41: Total NPV = | AG41: =AN39 -> 237621 | AP41: Total NPV = | AS41: =BE39 -> 549207 | BG41: Total NPV = | BJ41: =BT39 -> 600696 | BV41: Total NPV = | BY41: =CG39 -> 178131
E42: Ratepayer Impact Measure Test | F42: =N41 -> 93065 | G42: =N42 -> 1.38 | K42: Benefit/Cost Ratio = | N42: =ROUND(V39/AA39,2) -> 1.38 | AD42: Benefit/Cost Ratio = | AG42: =ROUND(AH39/AL39,2) -> 3.32 | AP42: Benefit/Cost Ratio = | AS42: =ROUND(AZ39/BD39,2) -> 3.63 | BG42: Benefit/Cost Ratio = | BJ42: =ROUND(BP39/BR39,20) -> 4.190185613 | BV42: Benefit/Cost Ratio = | BY42: =ROUND(CA39/CE39,2) -> 1.85
A43: 13) Societal Discount Rate = | C43: =+'Gas Input Table Summary'!$D$28 -> 0.0234 | E43: Utility Cost Test | F43: =AG41 -> 237621 | G43: =AG42 -> 3.32
E44: Societal Test | F44: =AS41 -> 549207 | G44: =AS42 -> 3.63 | J44: Worksheet Calculations | BV44: Worksheet Calculations
A45: 14) General Input Data Year = | C45: =+'Gas Input Table Summary'!$D$29 -> 2024 | E45: Participant Test | F45: =BJ41 -> 600696 | G45: =BJ42 -> 4.190185613 | J45: (A) | K45: = Average Dk/Participant Saved (21) x Number of Participants (23) for Project Life (20) | T45: (I) | U45: = (G) x (H) | AD45: Worksheet Calculations | AP45: Worksheet Calculations | BG45: Worksheet Calculations | BV45: (A) | BW45: = Table 1 (F)
E46: Total Resource Cost Test | F46: =BY41 -> 178131 | G46: =BY42 -> 1.85 | J46: (B) | K46: = Commodity Cost (3) escalated | T46: (J) | U46: = (F) + (I) | AD46: (A) | AE46: = Table 1 (F) | AP46: (A) | AQ46: = Table 1 (F) | AW46: (H) | AZ46: = Table 2 (F) | BG46: (A) | BH46: = Table 1 (N) | BL46: (G) | BM46: = (A) + (D) + (F) | BV46: (B) | BW46: = Table 1 (I)
A47: 15) Project Analysis Year 1 = | C47: =+'Total Program Inputs'!C6 -> 2024 | J47: (C) | K47: = (A) x (B) | T47: (K) | U47: = Distribution Delivery Charge (26) escalated. | AD47: (B) | AE47: = Table 1 (I) | AP47: (G) | AQ47: = Table 1 (I) | AW47: (I) | AZ47: = Direct Part. Costs (17) x No. of Part. (23) - Table 1 (N) | BG47: (B) | BH47: = Table 1 (A) | BL47: (H) | BM47: = Direct Participant Costs (17) x Number of Participants (23) | BV47: (C) | BW47: = Table 3 (D)
J48: (D) | K48: = Variable O&M Cost (6), escalated | T48: (L) | U48: = (A) x (K) x (1-Inverse of Tax Rate (27) | AD48: (C) | AE48: = Table 1 (J) | AP48: (C) | AQ48: = Non-Gas Fuel Cost (7), adjusted for losses (8), escalated.. | AW48: (J) | AZ48: = (H) + (I) | BG48: (C) | BH48: = Retail Rate (1) escalated. | BL48: (I) | BM48: = (G) - (H) | BV48: (D) | BW48: = (A) + (B) + (C)
J49: (E) | K49: = (A) x (D) | T49: (M) | U49: = Admin & Operating Costs (16a) | AD49: (D) | AE49: = Table 1 (M) | AP49: (D) | AQ49: = (C) x [Avg. Non-Gas Fuel Units/Part.Saved (22) x No. of Part. (23) | AW49: (K) | AZ49: = (G) - (J) | BG49: (D) | BH49: =(B) x (C) | BV49: (E) | BW49: = Table 3 (H)
J50: (F) | K50: = (C) + (E) | T50: (N) | U50: = Incentive Costs (16b) | AD50: (E) | AE50: = Table 1 (N) | AP50: (E) | AQ50: = Gas Environmental Damage Factor (9), escalated | BG50: (E) | BH50: = Non-Gas Fuel Retail Rate (2), escalated. | BV50: (F) | BW50: = Table 3 (I)
J51: (G) | K51: = (A) x Peak Reduction Factor (5) | T51: (O) | U51: = (L) + (M) + (N) | AD51: (F) | AE51: = (D) + (E) | AP51: (F) | AQ51: = Table 1 (A) x (E) | BG51: (F) | BH51: = (E) x [Avg. Non-Gas Fuel Units/Part.Saved (22) x No. of Part. (23) | BV51: (G) | BW51: = (E) + (F)
J52: (H) | K52: = Demand Cost (4) escalated. | T52: (P) | U52: = (J) - (O) | AD52: (G) | AE52: = (C) - (F) | AP52: (G) | AQ52: = (A) + (B) + (D) + (F) | BV52: (H) | BW52: = (D) - (G)
AB59: =+V57/AA57 -> 

Sheet Res .95+% Res Furnace - NEW
A1: NATURAL GAS CONSERVATION PROGRAMS/DEMAND-SIDE MANAGEMENT | K1: Table 1 | AD1: Table 2 | AP1: Table 3 | BG1: Table 4 | BV1: Table 5
A2: BEN/COST ANALYSIS FOR GAS CONSERVATION | K2: Ratepayer Impact Measure Test | AD2: Utility Cost Test | AP2: Societal Test | BG2: Participant Test | BV2: Total Resource Cost Test
A4: Company: | B4: Montana-Dakota Utilities Co. | K4: Company: | M4: =B4 -> Montana-Dakota Utilities Co. | AD4: Company: | AF4: =B4 -> Montana-Dakota Utilities Co. | AP4: Company: | AR4: =AF4 -> Montana-Dakota Utilities Co. | BH4: Company: | BI4: =AR4 -> Montana-Dakota Utilities Co. | BW4: Company: | BX4: =BI4 -> Montana-Dakota Utilities Co.
A5: Project: | B5: Residential 95+% AFUE Furnace - New | K5: Project: | M5: =$B$5 -> Residential 95+% AFUE Furnace - New | AD5: Project: | AF5: =$B$5 -> Residential 95+% AFUE Furnace - New | AP5: Project: | AR5: =$B$5 -> Residential 95+% AFUE Furnace - New | BH5: Project: | BI5: =$B$5 -> Residential 95+% AFUE Furnace - New | BW5: Project: | BX5: =$B$5 -> Residential 95+% AFUE Furnace - New
A6: Program Years: | B6: ='Total Program'!$B$6 -> 2024
N7: Benefits | X7: Costs | AF7: Benefits | AJ7: Costs | AR7: Benefits | BB7: Costs | BI7: Benefits | BR7: Costs | BX7: Benefits | CC7: Costs
A8: Input Data | F8: =+'Total Program Inputs'!C6 -> 2024 | AB8: Annual | AN8: Annual | AT8: Non-Gas | BE8: Annual | BT8: Annual | CG8: Annual
M9: Total | N9: Gas | O9: Gas | P9: Variable | Q9: Variable | R9: Total | S9: Peak Dk | T9: Demand | U9: Total | W9: Distribution | Y9: Program | AA9: Total | AB9: Benefits | AF9: Total | AG9: Total | AH9: Annual | AJ9: Program | AL9: Utility | AN9: Benefits | AR9: Total | AS9: Total | AT9: Energy | AU9: Non-Gas | AV9: Environmental | AW9: Environmental | AZ9: Annual | BB9: Utility | BC9: Participants' | BD9: Annual | BE9: Benefits | BJ9: Total | BL9: Gas | BM9: Non-Gas | BN9: Non-Gas | BP9: Total | BR9: Direct | BT9: Benefits | BX9: Total | BY9: Total | BZ9: Non-Gas | CA9: Total | CC9: Utility | CD9: Participants' | CG9: Benefits
A10: 1) Retail Rate ($/Dk) = | C10: =+'Gas Input Table Summary'!$D$7 -> 8.031 | E10: 16) Utility Project Costs | M10: Energy | N10: Commodity | O10: Commodity | P10: O & M | Q10: O & M | R10: Energy | S10: Demand | T10: Savings | U10: Demand | V10: Total | W10: Delivery | X10: Lost | Y10: Admin | Z10: Incentive | AA10: Program | AB10: Less | AF10: Energy | AG10: Demand | AH10: Total | AJ10: Admin | AK10: Incentive | AL10: Program | AN10: Less | AR10: Energy | AS10: Demand | AT10: Savings | AU10: Energy | AV10: Damage | AW10: Damage | AZ10: Total | BB10: Program | BC10: Costs Net | BD10: Total | BE10: Less | BI10: Incentives | BJ10: Energy | BK10: Retail | BL10: Bill | BM10: Fuel | BN10: Energy | BP10: Annual | BR10: Participant | BT10: Less | BX10: Energy | BY10: Demand | BZ10: Energy | CA10: Annual | CC10: Program | CD10: Costs Net | CE10: Total | CG10: Less
A11: Escalation Rate = | C11: =+'Gas Input Table Summary'!$D$8 -> 0.03 | E11: 16a) Administrative & Operating Costs = | F11: =+'Total Program Inputs'!M11 -> 2336 | J11: t | M11: Reduction | N11: Cost/Dk | O11: Savings | P11: Cost/Dk | Q11: Savings | R11: Savings | S11: Reduction | T11: Per Unit | U11: Savings | V11: Savings | W11: Charge | X11: Margin | Y11: Costs | Z11: Costs | AA11: Costs | AB11: Costs | AF11: Savings | AG11: Savings | AH11: Savings | AJ11: Costs | AK11: Costs | AL11: Costs | AN11: Costs | AR11: Savings | AS11: Savings | AT11: ($/Part.) | AU11: Savings | AV11: Savings/Dk | AW11: Savings | AZ11: Savings | BB11: Costs | BC11: of Rebate | BD11: Costs | BE11: Costs | BI11: Received | BJ11: Reduction | BK11: Rate | BL11: Savings | BM11: Retail Rate | BN11: Savings | BP11: Benefits | BR11: Costs | BT11: Costs | BX11: Savings | BY11: Savings | BZ11: Savings | CA11: Benefits | CC11: Costs | CD11: of Rebate | CE11: Costs | CG11: Costs
E12: 16b) Incentive Costs = | F12: =+'Total Program Inputs'!I11 -> 9300 | L12: Year | M12: (A) | N12: (B) | O12: (C) | P12: (D) | Q12: (E) | R12: (F) | S12: (G) | T12: (H) | U12: (I) | V12: (J) | W12: (K) | X12: (L) | Y12: (M) | Z12: (N) | AA12: (O) | AB12: (P) | AE12: Year | AF12: (A) | AG12: (B) | AH12: (C) | AJ12: (D) | AK12: (E) | AL12: (F) | AN12: (G) | AQ12: Year | AR12: (A) | AS12: (B) | AT12: (C) | AU12: (D) | AV12: (E) | AW12: (F) | AZ12: (G) | BB12: (H) | BC12: (I) | BD12: (J) | BE12: (K) | BH12: Year | BI12: (A) | BJ12: (B) | BK12: (C) | BL12: (D) | BM12: (E) | BN12: (F) | BP12: (G) | BR12: (H) | BT12: (I) | BW12: Year | BX12: (A) | BY12: (B) | BZ12: (C) | CA12: (D) | CC12: (E) | CD12: (F) | CE12: (G) | CG12: (H)
A13: 2) Non-Gas Fuel Retail Rate ($/Fuel Unit) = | C13: =+'Gas Input Table Summary'!$D$9 -> 0.12956 | E13: 16c) Total Utility Project Costs = | F13: =SUM(F11:F12) -> 11636
A14: Escalation Rate = | C14: =+'Gas Input Table Summary'!$D$10 -> 0.03 | J14: =$C$47-$C$45 -> 0 | L14: =$C$47 -> 2024 | M14: =ROUND(IF($C$47+$F$23>L14,F25*F30,0),0) -> 382 | N14: =ROUND($C$17*(1+$C$18)^J14,3) -> 3.091 | O14: =ROUND(M14*N14,0) -> 1181 | P14: =ROUND($C$25*(1+$C$26)^J14,3) -> 0 | Q14: =ROUND(M14*P14,0) -> 0 | R14: =O14+Q14 -> 1181 | S14: =ROUND(M14*$C$23,1) -> 3.8 | T14: =ROUND($C$20*(1+$C$21)^J14,0) -> 177 | U14: =ROUND(S14*T14,0) -> 673 | V14: =ROUND(+U14+R14,0) -> 1854 | W14: =ROUND($H$36*(1+$C$11)^J14,3) -> 2.532 | X14: =ROUND((1-$H$38)*(W14*M14),0) -> 764 | Y14: =ROUND($F$11,0) -> 2336 | Z14: =ROUND($F$12,0) -> 9300 | AA14: =SUM(X14:Z14) -> 12400 | AB14: =V14-AA14 -> -10546 | AE14: =$C$47 -> 2024 | AF14: =+R14 -> 1181 | AG14: =+U14 -> 673 | AH14: =+AG14+AF14 -> 1854 | AJ14: =ROUND(Y14,0) -> 2336 | AK14: =ROUND(Z14,0) -> 9300 | AL14: =SUM(AJ14:AK14) -> 11636 | AN14: =+AH14-AL14 -> -9782 | AQ14: =$C$47 -> 2024 | AR14: =AF14 -> 1181 | AS14: =+AG14 -> 673 | AT14: =ROUND(($C$28/(1-$C$31))*(1+$C$29)^J14,3) -> 0.022 | AU14: =ROUND(IF($C$47+$F$23>$AQ14,$F$30*$F$27,0)*AT14,0) -> 0 | AV14: =ROUND($C$33*(1+$C$34)^J14,3) -> 2.07 | AW14: =ROUND(AV14*M14,0) -> 791 | AZ14: =ROUND(AR14+AS14+AU14+AW14+AY14,0) -> 2645 | BB14: =ROUND($F$13,0) -> 11636 | BC14: =ROUND((F15*F30)-Z14,0) -> 930 | BD14: =BB14+BC14 -> 12566 | BE14: =AZ14-BD14 -> -9921 | BH14: =$C$47 -> 2024 | BI14: =+F12 -> 9300 | BJ14: =+M14 -> 382 | BK14: =ROUND($C$10*(1+$C$11)^J14,3) -> 8.031 | BL14: =ROUND(BJ14*BK14,0) -> 3068 | BM14: =ROUND($C$13*(1+$C$14)^J14,3) -> 0.13 | BN14: =ROUND(IF($C$47+$F$23>$BH14,$F$30*$F$27,0)*BM14,0) -> 0 | BP14: =BI14+BL14+BN14+BO14 -> 12368 | BR14: =ROUND(F15*F30,0) -> 10230 | BT14: =BP14-BR14 -> 2138 | BW14: =$C$47 -> 2024 | BX14: =$R14 -> 1181 | BY14: =U14 -> 673 | BZ14: =AU14 -> 0 | CA14: =SUM(BX14:BZ14) -> 1854 | CC14: =BB14 -> 11636 | CD14: =BC14 -> 930 | CE14: =SUM(CC14:CD14) -> 12566 | CG14: =CA14-CE14 -> -10712
A15: Non-Gas Fuel Units (ie. kWh,Gallons, etc) = | C15: =+'Gas Input Table Summary'!$D$11 -> Kwh | E15: 17) Direct Participant Costs ($/Part.) = | F15: =ROUND('Database Inputs'!K10,0) -> 165 | J15: =J14+1 -> 1 | L15: =L14+1 -> 2025 | M15: =ROUND(IF($C$47+$F$23>L15,$F$25*$F$30,0)+IF($C$48+$G$23>L15,$G$25*$G$30,0),0) -> 382 | N15: =ROUND($C$17*(1+$C$18)^J15,3) -> 3.184 | O15: =ROUND(M15*N15,0) -> 1216 | P15: 0 | Q15: =ROUND(M15*P15,0) -> 0 | R15: =O15+Q15 -> 1216 | S15: =ROUND(M15*$C$23,1) -> 3.8 | T15: =ROUND($C$20*(1+$C$21)^J15,0) -> 178 | U15: =ROUND(S15*T15,0) -> 676 | V15: =ROUND(+U15+R15,0) -> 1892 | W15: =ROUND($H$36*(1+$C$11)^J15,3) -> 2.608 | X15: =ROUND((1-$H$38)*(W15*M15),0) -> 787 | Y15: =ROUND($G$11,0) -> 0 | Z15: =ROUND($G$12,0) -> 0 | AA15: =SUM(X15:Z15) -> 787 | AB15: =V15-AA15 -> 1105 | AE15: =AE14+1 -> 2025 | AF15: =+R15 -> 1216 | AG15: =+U15 -> 676 | AH15: =+AG15+AF15 -> 1892 | AJ15: =ROUND(Y15,0) -> 0 | AK15: 0 | AL15: =SUM(AJ15:AK15) -> 0 | AN15: =+AH15-AL15 -> 1892 | AQ15: =AQ14+1 -> 2025 | AR15: 1216 | AS15: 676 | AT15: =ROUND(($C$28/(1-$C$31))*(1+$C$29)^J15,3) -> 0.023 | AU15: =ROUND((IF($C$47+$F$23>$AQ15,$F$27*$F$30,0)+IF($C$48+$G$23>AQ15,$G$27*$G$30,0))*AT15,0) -> 0 | AV15: =ROUND($C$33*(1+$C$34)^J15,3) -> 2.105 | AW15: =ROUND(AV15*M15,0) -> 804 | AZ15: =ROUND(AR15+AS15+AU15+AW15+AY15,0) -> 2696 | BB15: =ROUND($G$13,0) -> 0 | BC15: =ROUND(($G$15*$G$30)-$Z$15,0) -> 0 | BD15: =BB15+BC15 -> 0 | BE15: =AZ15-BD15 -> 2696 | BH15: =BH14+1 -> 2025 | BI15: =+G12 -> 0 | BJ15: 382 | BK15: =ROUND($C$10*(1+$C$11)^J15,3) -> 8.272 | BL15: =ROUND(BJ15*BK15,0) -> 3160 | BM15: =ROUND($C$13*(1+$C$14)^J15,3) -> 0.133 | BN15: =ROUND((IF($C$47+$F$23>BH15,$F$27*$F$30,0)+IF($C$48+$G$23>BH15,$G$27*$G$30,0))*BM15,0) -> 0 | BP15: =BI15+BL15+BN15+BO15 -> 3160 | BR15: =ROUND($G$15*$G$30,0) -> 0 | BT15: =BP15-BR15 -> 3160 | BW15: =BW14+1 -> 2025 | BX15: 1216 | BY15: =U15 -> 676 | BZ15: =AU15 -> 0 | CA15: =SUM(BX15:BZ15) -> 1892 | CC15: =BB15 -> 0 | CD15: 0 | CE15: =SUM(CC15:CD15) -> 0 | CG15: =CA15-CE15 -> 1892
J16: 2 | L16: 2026 | M16: =ROUND(IF($C$47+$F$23>L16,$F$25*$F$30,0)+IF($C$48+$G$23>L16,$G$25*$G$30,0)+IF($C$49+$H$23>L16,$H$25*$H$30,0),0) -> 382 | N16: =ROUND($C$17*(1+$C$18)^J16,3) -> 3.279 | O16: =ROUND(M16*N16,0) -> 1253 | P16: 0 | Q16: 0 | R16: =O16+Q16 -> 1253 | S16: =ROUND(M16*$C$23,1) -> 3.8 | T16: =ROUND($C$20*(1+$C$21)^J16,0) -> 180 | U16: =ROUND(S16*T16,0) -> 684 | V16: 1937 | W16: 2.686 | X16: =ROUND((1-$H$38)*(W16*M16),0) -> 811 | Y16: =ROUND($H$11,0) -> 0 | Z16: =ROUND($H$12,0) -> 0 | AA16: 811 | AB16: 1126 | AE16: 2026 | AF16: =+R16 -> 1253 | AG16: =+U16 -> 684 | AH16: =+AG16+AF16 -> 1937 | AJ16: 0 | AK16: 0 | AL16: =SUM(AJ16:AK16) -> 0 | AN16: 1937 | AQ16: 2026 | AR16: 1253 | AS16: 684 | AT16: 0.024 | AU16: =ROUND((IF($C$47+$F$23>$AQ16,$F$27*$F$30,0)+IF($C$48+$G$23>AQ16,$G$27*$G$30,0)+IF($C$49+$H$23>AQ16,$H$27*$H$30,0))*AT16,0) -> 0 | AV16: 2.141 | AW16: 818 | AZ16: 2755 | BB16: =ROUND($H$13,0) -> 0 | BC16: =ROUND(($H$15*$H$30)-$Z$16,0) -> 0 | BD16: 0 | BE16: =AZ16-BD16 -> 2755 | BH16: 2026 | BI16: =ROUND(H12,0) -> 0 | BJ16: 382 | BK16: 8.52 | BL16: =ROUND(BJ16*BK16,0) -> 3255 | BM16: 0.137 | BN16: =ROUND((IF($C$47+$F$23>BH16,$F$27*$F$30,0)+IF($C$49+$H$23>BH16,$H$27*$H$30,0)+IF($C$48+$G$23>BH16,$G$27*$G$30,0))*BM16,0) -> 0 | BP16: =BI16+BL16+BN16+BO16 -> 3255 | BR16: =ROUND($H$15*$H$30,0) -> 0 | BT16: 3255 | BW16: 2026 | BX16: 1253 | BY16: 684 | BZ16: 0 | CA16: 1937 | CC16: 0 | CD16: 0 | CE16: 0 | CG16: =CA16-CE16 -> 1937
A17: 3) Commodity Cost ($/Dk) = | C17: =+'Gas Input Table Summary'!$D$12 -> 3.091 | E17: 18) Participant Non-Energy Costs (Annual $/Part.) = | F17: =+'Gas Input Table Summary'!$D$35 -> 0 | J17: 3 | L17: 2027 | M17: =ROUND(IF($C$47+$F$23>L17,$F$25*$F$30,0)+IF($C$48+$G$23>L17,$G$25*$G$30,0)+IF($C$49+$H$23>L17,$H$25*$H$30,0),0) -> 382 | N17: 3.378 | O17: 1290 | P17: 0 | Q17: 0 | R17: =O17+Q17 -> 1290 | S17: 3.8 | T17: 182 | U17: 692 | V17: 1982 | W17: =ROUND($H$36*(1+$C$11)^J17,3) -> 2.767 | X17: =ROUND((1-$H$38)*(W17*M17),0) -> 835 | Y17: 0 | Z17: 0 | AA17: 835 | AB17: 1147 | AE17: 2027 | AF17: 1290 | AG17: 692 | AH17: 1982 | AJ17: 0 | AK17: 0 | AL17: 0 | AN17: 1982 | AQ17: 2027 | AR17: 1290 | AS17: 692 | AT17: 0.024 | AU17: =ROUND((IF($C$47+$F$23>$AQ17,$F$27*$F$30,0)+IF($C$48+$G$23>AQ17,$G$27*$G$30,0)+IF($C$49+$H$23>AQ17,$H$27*$H$30,0))*AT17,0) -> 0 | AV17: 2.177 | AW17: 832 | AZ17: 2814 | BB17: 0 | BC17: 0 | BD17: 0 | BE17: 2814 | BH17: 2027 | BI17: 0 | BJ17: 382 | BK17: 8.776 | BL17: 3352 | BM17: 0.142 | BN17: =ROUND((IF($C$47+$F$23>BH17,$F$27*$F$30,0)+IF($C$49+$H$23>BH17,$H$27*$H$30,0)+IF($C$48+$G$23>BH17,$G$27*$G$30,0))*BM17,0) -> 0 | BP17: 3352 | BR17: =+BC17 -> 0 | BT17: 3352 | BW17: 2027 | BX17: 1290 | BY17: 692 | BZ17: 0 | CA17: 1982 | CC17: 0 | CD17: 0 | CE17: 0 | CG17: 1982
A18: Escalation Rate = | C18: =+'Gas Input Table Summary'!$D$13 -> 0.03 | E18: Escalation Rate = | F18: =+'Gas Input Table Summary'!$D$38 -> 0 | J18: 4 | L18: 2028 | M18: =ROUND(IF($C$47+$F$23>L18,$F$25*$F$30,0)+IF($C$48+$G$23>L18,$G$25*$G$30,0)+IF($C$49+$H$23>L18,$H$25*$H$30,0),0) -> 382 | N18: 3.479 | O18: 1329 | P18: 0 | Q18: 0 | R18: 1329 | S18: 3.8 | T18: 184 | U18: 699 | V18: =ROUND(+U18+R18,0) -> 2028 | W18: 2.85 | X18: 860 | Y18: 0 | Z18: 0 | AA18: 860 | AB18: 1168 | AE18: 2028 | AF18: 1329 | AG18: 699 | AH18: 2028 | AJ18: 0 | AK18: 0 | AL18: 0 | AN18: 2028 | AQ18: 2028 | AR18: 1329 | AS18: 699 | AT18: 0.025 | AU18: 0 | AV18: 2.214 | AW18: 846 | AZ18: 2874 | BB18: 0 | BC18: 0 | BD18: 0 | BE18: 2874 | BH18: 2028 | BI18: 0 | BJ18: 382 | BK18: 9.039 | BL18: 3453 | BM18: 0.146 | BN18: 0 | BP18: 3453 | BR18: 0 | BT18: 3453 | BW18: 2028 | BX18: 1329 | BY18: 699 | BZ18: 0 | CA18: 2028 | CC18: 0 | CD18: 0 | CE18: 0 | CG18: 2028
J19: 5 | L19: 2029 | M19: 382 | N19: 3.583 | O19: 1369 | P19: 0 | Q19: 0 | R19: 1369 | S19: 3.8 | T19: 186 | U19: 707 | V19: 2076 | W19: 2.935 | X19: 886 | Y19: 0 | Z19: 0 | AA19: 886 | AB19: 1190 | AE19: 2029 | AF19: 1369 | AG19: 707 | AH19: 2076 | AJ19: 0 | AK19: 0 | AL19: 0 | AN19: 2076 | AQ19: 2029 | AR19: 1369 | AS19: 707 | AT19: 0.026 | AU19: 0 | AV19: 2.251 | AW19: 860 | AZ19: 2936 | BB19: 0 | BC19: 0 | BD19: 0 | BE19: 2936 | BH19: 2029 | BI19: 0 | BJ19: 382 | BK19: 9.31 | BL19: 3556 | BM19: 0.15 | BN19: 0 | BP19: 3556 | BR19: 0 | BT19: 3556 | BW19: 2029 | BX19: 1369 | BY19: 707 | BZ19: 0 | CA19: 2076 | CC19: 0 | CD19: 0 | CE19: 0 | CG19: 2076
A20: 4) Demand Cost ($/Unit/Yr) = | C20: =+'Gas Input Table Summary'!$D$14 -> 176.69 | E20: 19) Participant Non-Energy Savings (Annual $/Part) = | F20: =+'Gas Input Table Summary'!$D$41 -> 0 | J20: 6 | L20: 2030 | M20: 382 | N20: 3.691 | O20: 1410 | P20: 0 | Q20: 0 | R20: 1410 | S20: 3.8 | T20: 188 | U20: 714 | V20: 2124 | W20: =ROUND($H$36*(1+$C$11)^J20,3) -> 3.023 | X20: 912 | Y20: 0 | Z20: 0 | AA20: 912 | AB20: 1212 | AE20: 2030 | AF20: 1410 | AG20: 714 | AH20: 2124 | AJ20: 0 | AK20: 0 | AL20: 0 | AN20: 2124 | AQ20: 2030 | AR20: 1410 | AS20: 714 | AT20: 0.027 | AU20: =ROUND((IF($C$47+$F$23>$AQ20,$F$27*$F$30,0)+IF($C$48+$G$23>AQ20,$G$27*$G$30,0)+IF($C$49+$H$23>AQ20,$H$27*$H$30,0))*AT20,0) -> 0 | AV20: 2.289 | AW20: 874 | AZ20: 2998 | BB20: 0 | BC20: 0 | BD20: 0 | BE20: 2998 | BH20: 2030 | BI20: 0 | BJ20: 382 | BK20: 9.589 | BL20: 3663 | BM20: 0.155 | BN20: =ROUND((IF($C$47+$F$23>BH20,$F$27*$F$30,0)+IF($C$49+$H$23>BH20,$H$27*$H$30,0)+IF($C$48+$G$23>BH20,$G$27*$G$30,0))*BM20,0) -> 0 | BP20: 3663 | BR20: 0 | BT20: 3663 | BW20: 2030 | BX20: 1410 | BY20: 714 | BZ20: 0 | CA20: 2124 | CC20: 0 | CD20: 0 | CE20: 0 | CG20: 2124
A21: Escalation Rate = | C21: =+'Gas Input Table Summary'!$D$15 -> 0.01 | E21: Escalation Rate = | F21: =+'Gas Input Table Summary'!$D$44 -> 0 | J21: 7 | L21: 2031 | M21: 382 | N21: 3.802 | O21: 1452 | P21: 0 | Q21: 0 | R21: 1452 | S21: 3.8 | T21: 189 | U21: 718 | V21: 2170 | W21: 3.114 | X21: 940 | Y21: 0 | Z21: 0 | AA21: 940 | AB21: 1230 | AE21: 2031 | AF21: 1452 | AG21: 718 | AH21: 2170 | AJ21: 0 | AK21: 0 | AL21: 0 | AN21: 2170 | AQ21: 2031 | AR21: 1452 | AS21: 718 | AT21: 0.027 | AU21: 0 | AV21: 2.328 | AW21: 889 | AZ21: 3059 | BB21: 0 | BC21: 0 | BD21: 0 | BE21: 3059 | BH21: 2031 | BI21: 0 | BJ21: 382 | BK21: 9.877 | BL21: 3773 | BM21: 0.159 | BN21: 0 | BP21: 3773 | BR21: 0 | BT21: 3773 | BW21: 2031 | BX21: 1452 | BY21: 718 | BZ21: 0 | CA21: 2170 | CC21: 0 | CD21: 0 | CE21: 0 | CG21: 2170
J22: 8 | L22: 2032 | M22: 382 | N22: 3.916 | O22: 1496 | P22: 0 | Q22: 0 | R22: 1496 | S22: 3.8 | T22: 191 | U22: 726 | V22: 2222 | W22: 3.207 | X22: 968 | Y22: 0 | Z22: 0 | AA22: 968 | AB22: 1254 | AE22: 2032 | AF22: 1496 | AG22: 726 | AH22: 2222 | AJ22: 0 | AK22: 0 | AL22: 0 | AN22: 2222 | AQ22: 2032 | AR22: 1496 | AS22: 726 | AT22: 0.028 | AU22: 0 | AV22: 2.367 | AW22: 904 | AZ22: 3126 | BB22: 0 | BC22: 0 | BD22: 0 | BE22: 3126 | BH22: 2032 | BI22: 0 | BJ22: 382 | BK22: 10.173 | BL22: 3886 | BM22: 0.164 | BN22: 0 | BP22: 3886 | BR22: 0 | BT22: 3886 | BW22: 2032 | BX22: 1496 | BY22: 726 | BZ22: 0 | CA22: 2222 | CC22: 0 | CD22: 0 | CE22: 0 | CG22: 2222
A23: 5) Peak Reduction Factor = | C23: =+'Gas Input Table Summary'!$D$16 -> 0.01 | E23: 20) Project Life (Years) = | F23: =ROUND('Database Inputs'!D10,0) -> 20 | J23: 9 | L23: 2033 | M23: 382 | N23: 4.033 | O23: 1541 | P23: 0 | Q23: 0 | R23: 1541 | S23: 3.8 | T23: 193 | U23: 733 | V23: 2274 | W23: 3.304 | X23: 997 | Y23: 0 | Z23: 0 | AA23: 997 | AB23: 1277 | AE23: 2033 | AF23: 1541 | AG23: 733 | AH23: 2274 | AJ23: 0 | AK23: 0 | AL23: 0 | AN23: 2274 | AQ23: 2033 | AR23: 1541 | AS23: 733 | AT23: 0.029 | AU23: 0 | AV23: 2.407 | AW23: 919 | AZ23: 3193 | BB23: 0 | BC23: 0 | BD23: 0 | BE23: 3193 | BH23: 2033 | BI23: 0 | BJ23: 382 | BK23: 10.479 | BL23: 4003 | BM23: 0.169 | BN23: 0 | BP23: 4003 | BR23: 0 | BT23: 4003 | BW23: 2033 | BX23: 1541 | BY23: 733 | BZ23: 0 | CA23: 2274 | CC23: 0 | CD23: 0 | CE23: 0 | CG23: 2274
J24: 10 | L24: 2034 | M24: 382 | N24: 4.154 | O24: 1587 | P24: 0 | Q24: 0 | R24: 1587 | S24: 3.8 | T24: 195 | U24: 741 | V24: 2328 | W24: 3.403 | X24: 1027 | Y24: 0 | Z24: 0 | AA24: 1027 | AB24: 1301 | AE24: 2034 | AF24: 1587 | AG24: 741 | AH24: 2328 | AJ24: 0 | AK24: 0 | AL24: 0 | AN24: 2328 | AQ24: 2034 | AR24: 1587 | AS24: 741 | AT24: 0.03 | AU24: 0 | AV24: 2.448 | AW24: 935 | AZ24: 3263 | BB24: 0 | BC24: 0 | BD24: 0 | BE24: 3263 | BH24: 2034 | BI24: 0 | BJ24: 382 | BK24: 10.793 | BL24: 4123 | BM24: 0.174 | BN24: 0 | BP24: 4123 | BR24: 0 | BT24: 4123 | BW24: 2034 | BX24: 1587 | BY24: 741 | BZ24: 0 | CA24: =SUM(BX24:BZ24) -> 2328 | CC24: 0 | CD24: 0 | CE24: 0 | CG24: 2328
A25: 6) Variable O&M ($/Dk) = | C25: =+'Gas Input Table Summary'!$D$17 -> 0 | E25: 21) Avg. Dk/Part. Saved = | F25: =+ROUND(F32/F30,3) -> 6.161 | J25: 11 | L25: 2035 | M25: 382 | N25: 4.279 | O25: 1635 | P25: 0 | Q25: 0 | R25: 1635 | S25: 3.8 | T25: 197 | U25: 749 | V25: 2384 | W25: 3.505 | X25: 1058 | Y25: 0 | Z25: 0 | AA25: 1058 | AB25: 1326 | AE25: 2035 | AF25: 1635 | AG25: 749 | AH25: 2384 | AJ25: 0 | AK25: 0 | AL25: 0 | AN25: 2384 | AQ25: 2035 | AR25: 1635 | AS25: 749 | AT25: 0.031 | AU25: 0 | AV25: 2.489 | AW25: =ROUND(AV25*M25,0) -> 951 | AZ25: 3335 | BB25: 0 | BC25: 0 | BD25: 0 | BE25: 3335 | BH25: 2035 | BI25: 0 | BJ25: 382 | BK25: 11.117 | BL25: 4247 | BM25: 0.179 | BN25: 0 | BP25: 4247 | BR25: 0 | BT25: 4247 | BW25: 2035 | BX25: 1635 | BY25: 749 | BZ25: 0 | CA25: 2384 | CC25: 0 | CD25: 0 | CE25: 0 | CG25: 2384
A26: Escalation Rate = | C26: =+'Gas Input Table Summary'!$D$18 -> 0 | J26: 12 | L26: 2036 | M26: 382 | N26: =ROUND($C$17*(1+$C$18)^J26,3) -> 4.407 | O26: 1683 | P26: 0 | Q26: 0 | R26: 1683 | S26: 3.8 | T26: 199 | U26: 756 | V26: 2439 | W26: 3.61 | X26: 1089 | Y26: 0 | Z26: 0 | AA26: 1089 | AB26: 1350 | AE26: 2036 | AF26: 1683 | AG26: 756 | AH26: 2439 | AJ26: 0 | AK26: 0 | AL26: 0 | AN26: 2439 | AQ26: 2036 | AR26: 1683 | AS26: 756 | AT26: 0.032 | AU26: 0 | AV26: 2.531 | AW26: =ROUND(AV26*M26,0) -> 967 | AZ26: 3406 | BB26: 0 | BC26: 0 | BD26: 0 | BE26: 3406 | BH26: 2036 | BI26: 0 | BJ26: 382 | BK26: 11.45 | BL26: 4374 | BM26: 0.185 | BN26: 0 | BP26: 4374 | BR26: 0 | BT26: 4374 | BW26: 2036 | BX26: 1683 | BY26: 756 | BZ26: 0 | CA26: 2439 | CC26: 0 | CD26: 0 | CE26: 0 | CG26: 2439
E27: 22) Avg Non-Gas Fuel Units/Part. Saved = | F27: =+'Database Inputs'!H10 -> 0 | J27: 13 | L27: 2037 | M27: 382 | N27: 4.539 | O27: 1734 | P27: 0 | Q27: 0 | R27: 1734 | S27: 3.8 | T27: 201 | U27: =ROUND(S27*T27,0) -> 764 | V27: 2498 | W27: =ROUND($H$36*(1+$C$11)^J27,3) -> 3.718 | X27: 1122 | Y27: 0 | Z27: 0 | AA27: 1122 | AB27: 1376 | AE27: 2037 | AF27: 1734 | AG27: 764 | AH27: 2498 | AJ27: 0 | AK27: 0 | AL27: 0 | AN27: 2498 | AQ27: 2037 | AR27: 1734 | AS27: 764 | AT27: 0.033 | AU27: 0 | AV27: 2.574 | AW27: 983 | AZ27: 3481 | BB27: 0 | BC27: 0 | BD27: 0 | BE27: 3481 | BH27: 2037 | BI27: 0 | BJ27: 382 | BK27: 11.794 | BL27: 4505 | BM27: 0.19 | BN27: 0 | BP27: 4505 | BR27: 0 | BT27: 4505 | BW27: 2037 | BX27: 1734 | BY27: 764 | BZ27: 0 | CA27: 2498 | CC27: 0 | CD27: 0 | CE27: 0 | CG27: 2498
A28: 7) Non-Gas Fuel Cost ($/Fuel Unit) = | C28: =+'Gas Input Table Summary'!$D$19 -> 0.02062 | E28: 22a) Avg Additional Non-Gas Fuel Units/ Part. Used = | F28: 0 | J28: 14 | L28: 2038 | M28: 382 | N28: 4.675 | O28: 1786 | P28: 0 | Q28: 0 | R28: 1786 | S28: 3.8 | T28: 203 | U28: 771 | V28: 2557 | W28: 3.83 | X28: 1156 | Y28: 0 | Z28: 0 | AA28: 1156 | AB28: 1401 | AE28: 2038 | AF28: 1786 | AG28: 771 | AH28: 2557 | AJ28: 0 | AK28: 0 | AL28: 0 | AN28: 2557 | AQ28: 2038 | AR28: 1786 | AS28: 771 | AT28: 0.034 | AU28: 0 | AV28: 2.617 | AW28: 1000 | AZ28: 3557 | BB28: 0 | BC28: 0 | BD28: 0 | BE28: 3557 | BH28: 2038 | BI28: 0 | BJ28: 382 | BK28: 12.148 | BL28: 4641 | BM28: 0.196 | BN28: 0 | BP28: 4641 | BR28: 0 | BT28: 4641 | BW28: 2038 | BX28: 1786 | BY28: 771 | BZ28: 0 | CA28: 2557 | CC28: 0 | CD28: 0 | CE28: 0 | CG28: 2557
A29: Escalation Rate = | C29: =+'Gas Input Table Summary'!$D$20 -> 0.03 | J29: 15 | L29: 2039 | M29: 382 | N29: 4.816 | O29: 1840 | P29: 0 | Q29: 0 | R29: 1840 | S29: 3.8 | T29: 205 | U29: 779 | V29: 2619 | W29: 3.945 | X29: =ROUND((1-$H$38)*(W29*M29),0) -> 1191 | Y29: 0 | Z29: 0 | AA29: 1191 | AB29: 1428 | AE29: 2039 | AF29: 1840 | AG29: 779 | AH29: 2619 | AJ29: 0 | AK29: 0 | AL29: 0 | AN29: 2619 | AQ29: 2039 | AR29: 1840 | AS29: 779 | AT29: 0.035 | AU29: 0 | AV29: 2.662 | AW29: 1017 | AZ29: 3636 | BB29: 0 | BC29: 0 | BD29: 0 | BE29: 3636 | BH29: 2039 | BI29: 0 | BJ29: 382 | BK29: 12.512 | BL29: 4780 | BM29: 0.202 | BN29: 0 | BP29: 4780 | BR29: 0 | BT29: 4780 | BW29: 2039 | BX29: 1840 | BY29: 779 | BZ29: 0 | CA29: 2619 | CC29: 0 | CD29: 0 | CE29: 0 | CG29: 2619
E30: 23) Number of Participants = | F30: =ROUND('Database Inputs'!C10,0) -> 62 | J30: 16 | L30: 2040 | M30: 382 | N30: 4.96 | O30: 1895 | P30: 0 | Q30: 0 | R30: 1895 | S30: 3.8 | T30: 207 | U30: 787 | V30: =ROUND(+U30+R30,0) -> 2682 | W30: 4.063 | X30: =ROUND((1-$H$38)*(W30*M30),0) -> 1226 | Y30: 0 | Z30: 0 | AA30: 1226 | AB30: 1456 | AE30: 2040 | AF30: 1895 | AG30: 787 | AH30: 2682 | AJ30: 0 | AK30: 0 | AL30: 0 | AN30: 2682 | AQ30: 2040 | AR30: 1895 | AS30: 787 | AT30: 0.036 | AU30: 0 | AV30: 2.707 | AW30: 1034 | AZ30: 3716 | BB30: 0 | BC30: 0 | BD30: 0 | BE30: 3716 | BH30: 2040 | BI30: 0 | BJ30: 382 | BK30: 12.887 | BL30: 4923 | BM30: 0.208 | BN30: 0 | BP30: 4923 | BR30: 0 | BT30: 4923 | BW30: 2040 | BX30: 1895 | BY30: 787 | BZ30: 0 | CA30: 2682 | CC30: 0 | CD30: 0 | CE30: 0 | CG30: 2682
A31: 8) Non-Gas Fuel Loss Factor | C31: =+'Gas Input Table Summary'!$D$21 -> 0.07719 | J31: 17 | L31: 2041 | M31: =ROUND(IF($C$47+$F$23>L31,$F$25*$F$30,0)+IF($C$48+$G$23>L31,$G$25*$G$30,0)+IF($C$49+$H$23>L31,$H$25*$H$30,0),0) -> 382 | N31: 5.109 | O31: 1952 | P31: 0 | Q31: 0 | R31: 1952 | S31: 3.8 | T31: 209 | U31: 794 | V31: =ROUND(+U31+R31,0) -> 2746 | W31: 4.185 | X31: 1263 | Y31: 0 | Z31: 0 | AA31: 1263 | AB31: 1483 | AE31: 2041 | AF31: 1952 | AG31: 794 | AH31: 2746 | AJ31: 0 | AK31: 0 | AL31: 0 | AN31: 2746 | AQ31: 2041 | AR31: 1952 | AS31: 794 | AT31: 0.037 | AU31: 0 | AV31: 2.752 | AW31: 1051 | AZ31: 3797 | BB31: 0 | BC31: 0 | BD31: 0 | BE31: 3797 | BH31: 2041 | BI31: 0 | BJ31: 382 | BK31: 13.274 | BL31: 5071 | BM31: 0.214 | BN31: 0 | BP31: 5071 | BR31: 0 | BT31: 5071 | BW31: 2041 | BX31: 1952 | BY31: 794 | BZ31: 0 | CA31: 2746 | CC31: 0 | CD31: 0 | CE31: 0 | CG31: 2746
E32: 24) Total Annual Dk Saved = | F32: =+'Total Program Inputs'!G11 -> 382 | J32: 18 | L32: 2042 | M32: 382 | N32: 5.262 | O32: 2010 | P32: 0 | Q32: 0 | R32: 2010 | S32: 3.8 | T32: 211 | U32: 802 | V32: 2812 | W32: 4.311 | X32: 1301 | Y32: 0 | Z32: 0 | AA32: 1301 | AB32: 1511 | AE32: 2042 | AF32: 2010 | AG32: 802 | AH32: 2812 | AJ32: 0 | AK32: 0 | AL32: 0 | AN32: 2812 | AQ32: 2042 | AR32: 2010 | AS32: 802 | AT32: 0.038 | AU32: 0 | AV32: 2.799 | AW32: 1069 | AZ32: 3881 | BB32: 0 | BC32: 0 | BD32: 0 | BE32: 3881 | BH32: 2042 | BI32: 0 | BJ32: 382 | BK32: 13.672 | BL32: 5223 | BM32: 0.221 | BN32: 0 | BP32: 5223 | BR32: 0 | BT32: 5223 | BW32: 2042 | BX32: 2010 | BY32: 802 | BZ32: 0 | CA32: 2812 | CC32: 0 | CD32: 0 | CE32: 0 | CG32: 2812
A33: 9) Gas Environmental Damage Factor = | C33: =+'Gas Input Table Summary'!$D$22 -> 2.07 | J33: 19 | L33: 2043 | M33: 382 | N33: 5.42 | O33: 2070 | P33: 0 | Q33: 0 | R33: 2070 | S33: 3.8 | T33: 213 | U33: 809 | V33: 2879 | W33: 4.44 | X33: 1340 | Y33: 0 | Z33: 0 | AA33: 1340 | AB33: 1539 | AE33: 2043 | AF33: 2070 | AG33: 809 | AH33: 2879 | AJ33: 0 | AK33: 0 | AL33: 0 | AN33: 2879 | AQ33: 2043 | AR33: 2070 | AS33: 809 | AT33: 0.039 | AU33: 0 | AV33: 2.846 | AW33: 1087 | AZ33: 3966 | BB33: 0 | BC33: 0 | BD33: 0 | BE33: 3966 | BH33: 2043 | BI33: 0 | BJ33: 382 | BK33: 14.082 | BL33: 5379 | BM33: 0.227 | BN33: 0 | BP33: 5379 | BR33: 0 | BT33: 5379 | BW33: 2043 | BX33: 2070 | BY33: 809 | BZ33: 0 | CA33: 2879 | CC33: 0 | CD33: 0 | CE33: 0 | CG33: 2879
A34: Escalation Rate = | C34: =+'Gas Input Table Summary'!$D$23 -> 0.0169 | E34: 25) Incentive/Participant = | F34: =ROUND('Database Inputs'!L10,0) -> 150 | J34: 20 | L34: 2044 | M34: =ROUND(IF($C$47+$F$23>L34,$F$25*$F$30,0)+IF($C$48+$G$23>L34,$G$25*$G$30,0)+IF($C$49+$H$23>L34,$H$25*$H$30,0),0) -> 0 | N34: 5.583 | O34: 0 | P34: 0 | Q34: 0 | R34: 0 | S34: 0 | T34: 216 | U34: 0 | V34: 0 | W34: 4.573 | X34: 0 | Y34: 0 | Z34: 0 | AA34: 0 | AB34: 0 | AE34: 2044 | AF34: =+R34 -> 0 | AG34: 0 | AH34: 0 | AJ34: 0 | AK34: 0 | AL34: 0 | AN34: 0 | AQ34: 2044 | AR34: 0 | AS34: 0 | AT34: 0.04 | AU34: 0 | AV34: 2.894 | AW34: 0 | AZ34: 0 | BB34: 0 | BC34: 0 | BD34: 0 | BE34: 0 | BH34: 2044 | BI34: 0 | BJ34: 0 | BK34: 14.505 | BL34: 0 | BM34: 0.234 | BN34: 0 | BP34: 0 | BR34: 0 | BT34: 0 | BW34: 2044 | BX34: 0 | BY34: 0 | BZ34: 0 | CA34: 0 | CC34: 0 | CD34: 0 | CE34: 0 | CG34: 0
J35: 21 | L35: 2045 | M35: =ROUND(IF($C$47+$F$23>L35,$F$25*$F$30,0)+IF($C$48+$G$23>L35,$G$25*$G$30,0)+IF($C$49+$H$23>L35,$H$25*$H$30,0),0) -> 0 | N35: =ROUND($C$17*(1+$C$18)^J35,3) -> 5.75 | O35: =ROUND(M35*N35,0) -> 0 | P35: =ROUND($C$25*(1+$C$26)^J35,3) -> 0 | Q35: =ROUND(M35*P35,0) -> 0 | R35: =O35+Q35 -> 0 | S35: =ROUND(M35*$C$23,1) -> 0 | T35: =ROUND($C$20*(1+$C$21)^J35,0) -> 218 | U35: =ROUND(S35*T35,0) -> 0 | V35: =ROUND(+U35+R35,0) -> 0 | W35: =ROUND($H$36*(1+$C$11)^J35,3) -> 4.71 | X35: =ROUND((1-$H$38)*(W35*M35),0) -> 0 | Y35: 0 | Z35: 0 | AA35: =SUM(X35:Z35) -> 0 | AB35: =V35-AA35 -> 0 | AE35: 2045 | AF35: =+R35 -> 0 | AG35: =+U35 -> 0 | AH35: =+AG35+AF35 -> 0 | AJ35: =ROUND(Y35,0) -> 0 | AK35: =ROUND(Z35,0) -> 0 | AL35: =SUM(AJ35:AK35) -> 0 | AN35: =+AH35-AL35 -> 0 | AQ35: 2045 | AR35: =AF35 -> 0 | AS35: =+AG35 -> 0 | AT35: =ROUND(($C$28/(1-$C$31))*(1+$C$29)^J35,3) -> 0.042 | AU35: =ROUND((IF($C$47+$F$23>$AQ35,$F$27*$F$30,0)+IF($C$48+$G$23>AQ35,$G$27*$G$30,0)+IF($C$49+$H$23>AQ35,$H$27*$H$30,0))*AT35,0) -> 0 | AV35: =ROUND($C$33*(1+$C$34)^J35,3) -> 2.943 | AW35: =ROUND(AV35*M35,0) -> 0 | AZ35: =ROUND(AR35+AS35+AU35+AW35+AY35,0) -> 0 | BB35: 0 | BC35: 0 | BD35: =BB35+BC35 -> 0 | BE35: =AZ35-BD35 -> 0 | BH35: 2045 | BI35: 0 | BJ35: =+M35 -> 0 | BK35: =ROUND($C$10*(1+$C$11)^J35,3) -> 14.94 | BL35: =ROUND(BJ35*BK35,0) -> 0 | BM35: =ROUND($C$13*(1+$C$14)^J35,3) -> 0.241 | BN35: =ROUND((IF($C$47+$F$23>BH35,$F$27*$F$30,0)+IF($C$49+$H$23>BH35,$H$27*$H$30,0)+IF($C$48+$G$23>BH35,$G$27*$G$30,0))*BM35,0) -> 0 | BP35: =BI35+BL35+BN35+BO35 -> 0 | BR35: =+BC35 -> 0 | BT35: =BP35-BR35 -> 0 | BW35: 2045 | BX35: 0 | BY35: =U35 -> 0 | BZ35: =AU35 -> 0 | CA35: =SUM(BX35:BZ35) -> 0 | CC35: =BB35 -> 0 | CD35: =BC35 -> 0 | CE35: =SUM(CC35:CD35) -> 0 | CG35: =CA35-CE35 -> 0
A36: 10) Non Gas Fuel Environmental Damage Factor = | C36: =+'Gas Input Table Summary'!$D$24 -> 0 | E36: 26) Distribution Delivery Charge | H36: =+'Gas Input Table Summary'!$D$58 -> 2.532 | J36: 22 | L36: 2046 | M36: =ROUND(IF($C$47+$F$23>L36,$F$25*$F$30,0)+IF($C$48+$G$23>L36,$G$25*$G$30,0)+IF($C$49+$H$23>L36,$H$25*$H$30,0),0) -> 0 | N36: 5.923 | O36: 0 | P36: 0 | Q36: 0 | R36: 0 | S36: 0 | T36: 220 | U36: 0 | V36: =ROUND(+U36+R36,0) -> 0 | W36: 4.852 | X36: 0 | Y36: 0 | Z36: 0 | AA36: 0 | AB36: 0 | AE36: 2046 | AF36: 0 | AG36: 0 | AH36: 0 | AJ36: 0 | AK36: 0 | AL36: 0 | AN36: 0 | AQ36: 2046 | AR36: =AF36 -> 0 | AS36: 0 | AT36: 0.043 | AU36: 0 | AV36: 2.993 | AW36: 0 | AZ36: 0 | BB36: 0 | BC36: 0 | BD36: 0 | BE36: 0 | BH36: 2046 | BI36: 0 | BJ36: 0 | BK36: 15.388 | BL36: 0 | BM36: 0.248 | BN36: 0 | BP36: 0 | BR36: 0 | BT36: =BP36-BR36 -> 0 | BW36: 2046 | BX36: 0 | BY36: 0 | BZ36: 0 | CA36: 0 | CC36: 0 | CD36: 0 | CE36: 0 | CG36: 0
A37: Escalation Rate = | C37: =+'Gas Input Table Summary'!$D$25 -> 0
E38: 27) Effective Income Tax Rate = | H38: =+'Gas Input Table Summary'!$D$59 -> 0.21 | K38: Total = | M38: =SUM(M14:M36) -> 7640 | V38: =SUM(V14:V36) -> 46503 | AA38: =SUM(AA14:AA36) -> 32169 | AB38: =SUM(AB14:AB36) -> 14334 | AD38: Total = | AH38: =SUM(AH14:AH36) -> 46503 | AL38: =SUM(AL14:AL36) -> 11636 | AN38: =SUM(AN14:AN36) -> 34867 | AP38: Total = | AZ38: =SUM(AZ14:AZ36) -> 65134 | BD38: =SUM(BD14:BD36) -> 12566 | BE38: =SUM(BE14:BE36) -> 52568 | BG38: Total = | BJ38: =SUM(BJ14:BJ36) -> 7640 | BP38: =SUM(BP14:BP36) -> 91735 | BR38: =SUM(BR14:BR36) -> 10230 | BT38: =SUM(BT14:BT36) -> 81505 | BZ38: Total = | CA38: =SUM(CA14:CA36) -> 46503 | CE38: =SUM(CE14:CE36) -> 12566 | CG38: =SUM(CG14:CG36) -> 33937
A39: 11) Participant Discount Rate = | C39: =+'Gas Input Table Summary'!$D$26 -> 0.0987 | E39: (Federal & State Taxes) | T39: NPV = | V39: =ROUND(V14+NPV($C$41,V15:V36),0) -> 25020 | AA39: =ROUND(AA14+NPV($C$41,AA15:AA36),0) -> 22528 | AB39: =ROUND(AB14+NPV($C$41,AB15:AB36),0) -> 2492 | AG39: NPV = | AH39: =ROUND(AH14+NPV($C$41,AH15:AH36),0) -> 25020 | AL39: =ROUND(AL14+NPV($C$41,AL15:AL36),0) -> 11636 | AN39: =+AH39-AL39 -> 13384 | AW39: NPV = | AZ39: =ROUND(AZ14+NPV($C$43,AZ15:AZ36),0) -> 51892 | BD39: =ROUND(BD14+NPV($C$43,BD15:BD36),0) -> 12566 | BE39: =AZ39-BD39 -> 39326 | BN39: NPV = | BP39: =ROUND(BP14+NPV($C$39,BP15:BP36),0) -> 44876 | BR39: =ROUND(BR14+NPV($C$39,BR15:BR36),0) -> 10230 | BT39: =ROUND(BT14+NPV($C$39,BT15:BT36),0) -> 34646 | BZ39: NPV = | CA39: =ROUND(CA14+NPV($C$41,CA15:CA36),0) -> 25020 | CE39: =ROUND(CE14+NPV($C$41,CE15:CE36),0) -> 12566 | CG39: =ROUND(CG14+NPV($C$41,CG15:CG36),0) -> 12454
A41: 12) Utility Discount Rate = | C41: =+'Gas Input Table Summary'!$D$27 -> 0.0701 | E41: Test Results | F41: NPV | G41: B/C | K41: Total NPV = | N41: =AB39 -> 2492 | AD41: Total NPV = | AG41: =AN39 -> 13384 | AP41: Total NPV = | AS41: =BE39 -> 39326 | BG41: Total NPV = | BJ41: =BT39 -> 34646 | BV41: Total NPV = | BY41: =CG39 -> 12454
E42: Ratepayer Impact Measure Test | F42: =N41 -> 2492 | G42: =N42 -> 1.11 | K42: Benefit/Cost Ratio = | N42: =ROUND(V39/AA39,2) -> 1.11 | AD42: Benefit/Cost Ratio = | AG42: =ROUND(AH39/AL39,2) -> 2.15 | AP42: Benefit/Cost Ratio = | AS42: =ROUND(AZ39/BD39,2) -> 4.13 | BG42: Benefit/Cost Ratio = | BJ42: =ROUND(BP39/BR39,2) -> 4.39 | BV42: Benefit/Cost Ratio = | BY42: =ROUND(CA39/CE39,2) -> 1.99
A43: 13) Societal Discount Rate = | C43: =+'Gas Input Table Summary'!$D$28 -> 0.0234 | E43: Utility Cost Test | F43: =AG41 -> 13384 | G43: =AG42 -> 2.15
E44: Societal Test | F44: =AS41 -> 39326 | G44: =AS42 -> 4.13 | J44: Worksheet Calculations | BV44: Worksheet Calculations
A45: 14) General Input Data Year = | C45: =+'Gas Input Table Summary'!$D$29 -> 2024 | E45: Participant Test | F45: =BJ41 -> 34646 | G45: =BJ42 -> 4.39 | J45: (A) | K45: = Average Dk/Participant Saved (21) x Number of Participants (23) for Project Life (20) | T45: (I) | U45: = (G) x (H) | AD45: Worksheet Calculations | AP45: Worksheet Calculations | BG45: Worksheet Calculations | BV45: (A) | BW45: = Table 1 (F)
E46: Total Resource Cost Test | F46: =BY41 -> 12454 | G46: =BY42 -> 1.99 | J46: (B) | K46: = Commodity Cost (3) escalated | T46: (J) | U46: = (F) + (I) | AD46: (A) | AE46: = Table 1 (F) | AP46: (A) | AQ46: = Table 1 (F) | AW46: (H) | AZ46: = Table 2 (F) | BG46: (A) | BH46: = Table 1 (N) | BL46: (G) | BM46: = (A) + (D) + (F) | BV46: (B) | BW46: = Table 1 (I)
A47: 15) Project Analysis Year 1 = | C47: =+'Total Program Inputs'!C6 -> 2024 | J47: (C) | K47: = (A) x (B) | T47: (K) | U47: = Distribution Delivery Charge (26) escalated. | AD47: (B) | AE47: = Table 1 (I) | AP47: (G) | AQ47: = Table 1 (I) | AW47: (I) | AZ47: = Direct Part. Costs (17) x No. of Part. (23) - Table 1 (N) | BG47: (B) | BH47: = Table 1 (A) | BL47: (H) | BM47: = Direct Participant Costs (17) x Number of Participants (23) | BV47: (C) | BW47: = Table 3 (D)
J48: (D) | K48: = Variable O&M Cost (6), escalated | T48: (L) | U48: = (A) x (K) x (1-Inverse of Tax Rate (27) | AD48: (C) | AE48: = Table 1 (J) | AP48: (C) | AQ48: = Non-Gas Fuel Cost (7), adjusted for losses (8), escalated.. | AW48: (J) | AZ48: = (H) + (I) | BG48: (C) | BH48: = Retail Rate (1) escalated. | BL48: (I) | BM48: = (G) - (H) | BV48: (D) | BW48: = (A) + (B) + (C)
J49: (E) | K49: = (A) x (D) | T49: (M) | U49: = Admin & Operating Costs (16a) | AD49: (D) | AE49: = Table 1 (M) | AP49: (D) | AQ49: = (C) x [Avg. Non-Gas Fuel Units/Part.Saved (22) x No. of Part. (23) | AW49: (K) | AZ49: = (G) - (J) | BG49: (D) | BH49: =(B) x (C) | BV49: (E) | BW49: = Table 3 (H)
J50: (F) | K50: = (C) + (E) | T50: (N) | U50: = Incentive Costs (16b) | AD50: (E) | AE50: = Table 1 (N) | AP50: (E) | AQ50: = Gas Environmental Damage Factor (9), escalated | BG50: (E) | BH50: = Non-Gas Fuel Retail Rate (2), escalated. | BV50: (F) | BW50: = Table 3 (I)
J51: (G) | K51: = (A) x Peak Reduction Factor (5) | T51: (O) | U51: = (L) + (M) + (N) | AD51: (F) | AE51: = (D) + (E) | AP51: (F) | AQ51: = Table 1 (A) x (E) | BG51: (F) | BH51: = (E) x [Avg. Non-Gas Fuel Units/Part.Saved (22) x No. of Part. (23) | BV51: (G) | BW51: = (E) + (F)
J52: (H) | K52: = Demand Cost (4) escalated. | T52: (P) | U52: = (J) - (O) | AD52: (G) | AE52: = (C) - (F) | AP52: (G) | AQ52: = (A) + (B) + (D) + (F) | BV52: (H) | BW52: = (D) - (G)

Sheet Res .95+% Res Furnace - Replace
A1: NATURAL GAS CONSERVATION PROGRAMS/DEMAND-SIDE MANAGEMENT | K1: Table 1 | AD1: Table 2 | AP1: Table 3 | BG1: Table 4 | BV1: Table 5
A2: BEN/COST ANALYSIS FOR GAS CONSERVATION | K2: Ratepayer Impact Measure Test | AD2: Utility Cost Test | AP2: Societal Test | BG2: Participant Test | BV2: Total Resource Cost Test
A4: Company: | B4: Montana-Dakota Utilities Co. | K4: Company: | M4: =B4 -> Montana-Dakota Utilities Co. | AD4: Company: | AF4: =B4 -> Montana-Dakota Utilities Co. | AP4: Company: | AR4: =AF4 -> Montana-Dakota Utilities Co. | BH4: Company: | BI4: =AR4 -> Montana-Dakota Utilities Co. | BW4: Company: | BX4: =BI4 -> Montana-Dakota Utilities Co.
A5: Project: | B5: Residential 95+% AFUE Furnace - Replacement | K5: Project: | M5: =$B$5 -> Residential 95+% AFUE Furnace - Replacement | AD5: Project: | AF5: =$B$5 -> Residential 95+% AFUE Furnace - Replacement | AP5: Project: | AR5: =$B$5 -> Residential 95+% AFUE Furnace - Replacement | BH5: Project: | BI5: =$B$5 -> Residential 95+% AFUE Furnace - Replacement | BW5: Project: | BX5: =$B$5 -> Residential 95+% AFUE Furnace - Replacement
A6: Program Years: | B6: ='Total Program'!$B$6 -> 2024
N7: Benefits | X7: Costs | AF7: Benefits | AJ7: Costs | AR7: Benefits | BB7: Costs | BI7: Benefits | BR7: Costs | BX7: Benefits | CC7: Costs
A8: Input Data | F8: =+'Total Program Inputs'!C6 -> 2024 | AB8: Annual | AN8: Annual | AT8: Non-Gas | BE8: Annual | BT8: Annual | CG8: Annual
M9: Total | N9: Gas | O9: Gas | P9: Variable | Q9: Variable | R9: Total | S9: Peak Dk | T9: Demand | U9: Total | W9: Distribution | Y9: Program | AA9: Total | AB9: Benefits | AF9: Total | AG9: Total | AH9: Annual | AJ9: Program | AL9: Utility | AN9: Benefits | AR9: Total | AS9: Total | AT9: Energy | AU9: Non-Gas | AV9: Environmental | AW9: Environmental | AZ9: Annual | BB9: Utility | BC9: Participants' | BD9: Annual | BE9: Benefits | BJ9: Total | BL9: Gas | BM9: Non-Gas | BN9: Non-Gas | BP9: Total | BR9: Direct | BT9: Benefits | BX9: Total | BY9: Total | BZ9: Non-Gas | CA9: Total | CC9: Utility | CD9: Participants' | CG9: Benefits
A10: 1) Retail Rate ($/Dk) = | C10: =+'Gas Input Table Summary'!$D$7 -> 8.031 | E10: 16) Utility Project Costs | M10: Energy | N10: Commodity | O10: Commodity | P10: O & M | Q10: O & M | R10: Energy | S10: Demand | T10: Savings | U10: Demand | V10: Total | W10: Delivery | X10: Lost | Y10: Admin | Z10: Incentive | AA10: Program | AB10: Less | AF10: Energy | AG10: Demand | AH10: Total | AJ10: Admin | AK10: Incentive | AL10: Program | AN10: Less | AR10: Energy | AS10: Demand | AT10: Savings | AU10: Energy | AV10: Damage | AW10: Damage | AZ10: Total | BB10: Program | BC10: Costs Net | BD10: Total | BE10: Less | BI10: Incentives | BJ10: Energy | BK10: Retail | BL10: Bill | BM10: Fuel | BN10: Energy | BP10: Annual | BR10: Participant | BT10: Less | BX10: Energy | BY10: Demand | BZ10: Energy | CA10: Annual | CC10: Program | CD10: Costs Net | CE10: Total | CG10: Less
A11: Escalation Rate = | C11: =+'Gas Input Table Summary'!$D$8 -> 0.03 | E11: 16a) Administrative & Operating Costs = | F11: =+'Total Program Inputs'!M12 -> 15072 | J11: t | M11: Reduction | N11: Cost/Dk | O11: Savings | P11: Cost/Dk | Q11: Savings | R11: Savings | S11: Reduction | T11: Per Unit | U11: Savings | V11: Savings | W11: Charge | X11: Margin | Y11: Costs | Z11: Costs | AA11: Costs | AB11: Costs | AF11: Savings | AG11: Savings | AH11: Savings | AJ11: Costs | AK11: Costs | AL11: Costs | AN11: Costs | AR11: Savings | AS11: Savings | AT11: ($/Part.) | AU11: Savings | AV11: Savings/Dk | AW11: Savings | AZ11: Savings | BB11: Costs | BC11: of Rebate | BD11: Costs | BE11: Costs | BI11: Received | BJ11: Reduction | BK11: Rate | BL11: Savings | BM11: Retail Rate | BN11: Savings | BP11: Benefits | BR11: Costs | BT11: Costs | BX11: Savings | BY11: Savings | BZ11: Savings | CA11: Benefits | CC11: Costs | CD11: of Rebate | CE11: Costs | CG11: Costs
E12: 16b) Incentive Costs = | F12: =+'Total Program Inputs'!I12 -> 60000 | L12: Year | M12: (A) | N12: (B) | O12: (C) | P12: (D) | Q12: (E) | R12: (F) | S12: (G) | T12: (H) | U12: (I) | V12: (J) | W12: (K) | X12: (L) | Y12: (M) | Z12: (N) | AA12: (O) | AB12: (P) | AE12: Year | AF12: (A) | AG12: (B) | AH12: (C) | AJ12: (D) | AK12: (E) | AL12: (F) | AN12: (G) | AQ12: Year | AR12: (A) | AS12: (B) | AT12: (C) | AU12: (D) | AV12: (E) | AW12: (F) | AZ12: (G) | BB12: (H) | BC12: (I) | BD12: (J) | BE12: (K) | BH12: Year | BI12: (A) | BJ12: (B) | BK12: (C) | BL12: (D) | BM12: (E) | BN12: (F) | BP12: (G) | BR12: (H) | BT12: (I) | BW12: Year | BX12: (A) | BY12: (B) | BZ12: (C) | CA12: (D) | CC12: (E) | CD12: (F) | CE12: (G) | CG12: (H)
A13: 2) Non-Gas Fuel Retail Rate ($/Fuel Unit) = | C13: =+'Gas Input Table Summary'!$D$9 -> 0.12956 | E13: 16c) Total Utility Project Costs = | F13: =SUM(F11:F12) -> 75072
A14: Escalation Rate = | C14: =+'Gas Input Table Summary'!$D$10 -> 0.03 | J14: =$C$47-$C$45 -> 0 | L14: =$C$47 -> 2024 | M14: =ROUND(IF($C$47+$F$23>L14,F25*F30,0),0) -> 3936 | N14: =ROUND($C$17*(1+$C$18)^J14,3) -> 3.091 | O14: =ROUND(M14*N14,0) -> 12166 | P14: =ROUND($C$25*(1+$C$26)^J14,3) -> 0 | Q14: =ROUND(M14*P14,0) -> 0 | R14: =O14+Q14 -> 12166 | S14: =ROUND(M14*$C$23,1) -> 39.4 | T14: =ROUND($C$20*(1+$C$21)^J14,0) -> 177 | U14: =ROUND(S14*T14,0) -> 6974 | V14: =ROUND(+U14+R14,0) -> 19140 | W14: =ROUND($H$36*(1+$C$11)^J14,3) -> 2.532 | X14: =ROUND((1-$H$38)*(W14*M14),0) -> 7873 | Y14: =ROUND($F$11,0) -> 15072 | Z14: =ROUND($F$12,0) -> 60000 | AA14: =SUM(X14:Z14) -> 82945 | AB14: =V14-AA14 -> -63805 | AE14: =$C$47 -> 2024 | AF14: =+R14 -> 12166 | AG14: =+U14 -> 6974 | AH14: =+AG14+AF14 -> 19140 | AJ14: =ROUND(Y14,0) -> 15072 | AK14: =ROUND(Z14,0) -> 60000 | AL14: =SUM(AJ14:AK14) -> 75072 | AN14: =+AH14-AL14 -> -55932 | AQ14: =$C$47 -> 2024 | AR14: =AF14 -> 12166 | AS14: =+AG14 -> 6974 | AT14: =ROUND(($C$28/(1-$C$31))*(1+$C$29)^J14,3) -> 0.022 | AU14: =ROUND(IF($C$47+$F$23>$AQ14,$F$30*$F$27,0)*AT14,0) -> 3168 | AV14: =ROUND($C$33*(1+$C$34)^J14,3) -> 2.07 | AW14: =ROUND(AV14*M14,0) -> 8148 | AZ14: =ROUND(AR14+AS14+AU14+AW14+AY14,0) -> 30456 | BB14: =ROUND($F$13,0) -> 75072 | BC14: =ROUND((F15*F30)-Z14,0) -> 87200 | BD14: =BB14+BC14 -> 162272 | BE14: =AZ14-BD14 -> -131816 | BH14: =$C$47 -> 2024 | BI14: =+F12 -> 60000 | BJ14: =+M14 -> 3936 | BK14: =ROUND($C$10*(1+$C$11)^J14,3) -> 8.031 | BL14: =ROUND(BJ14*BK14,0) -> 31610 | BM14: =ROUND($C$13*(1+$C$14)^J14,3) -> 0.13 | BN14: =ROUND(IF($C$47+$F$23>$BH14,$F$30*$F$27,0)*BM14,0) -> 18720 | BP14: =BI14+BL14+BN14+BO14 -> 110330 | BR14: =ROUND(F15*F30,0) -> 147200 | BT14: =BP14-BR14 -> -36870 | BW14: =$C$47 -> 2024 | BX14: =$R14 -> 12166 | BY14: =U14 -> 6974 | BZ14: =AU14 -> 3168 | CA14: =SUM(BX14:BZ14) -> 22308 | CC14: =BB14 -> 75072 | CD14: =BC14 -> 87200 | CE14: =SUM(CC14:CD14) -> 162272 | CG14: =CA14-CE14 -> -139964
A15: Non-Gas Fuel Units (ie. kWh,Gallons, etc) = | C15: =+'Gas Input Table Summary'!$D$11 -> Kwh | E15: 17) Direct Participant Costs ($/Part.) = | F15: =ROUND('Database Inputs'!K11,0) -> 736 | J15: =J14+1 -> 1 | L15: =L14+1 -> 2025 | M15: =ROUND(IF($C$47+$F$23>L15,$F$25*$F$30,0)+IF($C$48+$G$23>L15,$G$25*$G$30,0),0) -> 3936 | N15: 3.184 | O15: 12532 | P15: 0 | Q15: =ROUND(M15*P15,0) -> 0 | R15: =O15+Q15 -> 12532 | S15: =ROUND(M15*$C$23,1) -> 39.4 | T15: =ROUND($C$20*(1+$C$21)^J15,0) -> 178 | U15: =ROUND(S15*T15,0) -> 7013 | V15: =ROUND(+U15+R15,0) -> 19545 | W15: =ROUND($H$36*(1+$C$11)^J15,3) -> 2.608 | X15: =ROUND((1-$H$38)*(W15*M15),0) -> 8109 | Y15: =ROUND($G$11,0) -> 0 | Z15: =ROUND($G$12,0) -> 0 | AA15: =SUM(X15:Z15) -> 8109 | AB15: =V15-AA15 -> 11436 | AE15: =AE14+1 -> 2025 | AF15: 12532 | AG15: 7013 | AH15: =+AG15+AF15 -> 19545 | AJ15: =ROUND(Y15,0) -> 0 | AK15: 0 | AL15: 0 | AN15: 19545 | AQ15: =AQ14+1 -> 2025 | AR15: 12532 | AS15: =+AG15 -> 7013 | AT15: =ROUND(($C$28/(1-$C$31))*(1+$C$29)^J15,3) -> 0.023 | AU15: =ROUND((IF($C$47+$F$23>$AQ15,$F$27*$F$30,0)+IF($C$48+$G$23>AQ15,$G$27*$G$30,0))*AT15,0) -> 3312 | AV15: =ROUND($C$33*(1+$C$34)^J15,3) -> 2.105 | AW15: =ROUND(AV15*M15,0) -> 8285 | AZ15: =ROUND(AR15+AS15+AU15+AW15+AY15,0) -> 31142 | BB15: =ROUND($G$13,0) -> 0 | BC15: =ROUND(($G$15*$G$30)-$Z$15,0) -> 0 | BD15: =BB15+BC15 -> 0 | BE15: 31142 | BH15: =BH14+1 -> 2025 | BI15: =+G12 -> 0 | BJ15: 3936 | BK15: =ROUND($C$10*(1+$C$11)^J15,3) -> 8.272 | BL15: =ROUND(BJ15*BK15,0) -> 32559 | BM15: =ROUND($C$13*(1+$C$14)^J15,3) -> 0.133 | BN15: =ROUND((IF($C$47+$F$23>BH15,$F$27*$F$30,0)+IF($C$48+$G$23>BH15,$G$27*$G$30,0))*BM15,0) -> 19152 | BP15: 51711 | BR15: =ROUND($G$15*$G$30,0) -> 0 | BT15: =BP15-BR15 -> 51711 | BW15: =BW14+1 -> 2025 | BX15: 12532 | BY15: =U15 -> 7013 | BZ15: =AU15 -> 3312 | CA15: =SUM(BX15:BZ15) -> 22857 | CC15: =BB15 -> 0 | CD15: 0 | CE15: =SUM(CC15:CD15) -> 0 | CG15: =CA15-CE15 -> 22857
J16: 2 | L16: 2026 | M16: =ROUND(IF($C$47+$F$23>L16,$F$25*$F$30,0)+IF($C$48+$G$23>L16,$G$25*$G$30,0)+IF($C$49+$H$23>L16,$H$25*$H$30,0),0) -> 3936 | N16: 3.279 | O16: 12906 | P16: 0 | Q16: 0 | R16: 12906 | S16: 39.4 | T16: 180 | U16: =ROUND(S16*T16,0) -> 7092 | V16: =ROUND(+U16+R16,0) -> 19998 | W16: 2.686 | X16: 8352 | Y16: =ROUND($H$11,0) -> 0 | Z16: =ROUND($H$12,0) -> 0 | AA16: =SUM(X16:Z16) -> 8352 | AB16: =V16-AA16 -> 11646 | AE16: 2026 | AF16: 12906 | AG16: 7092 | AH16: =+AG16+AF16 -> 19998 | AJ16: 0 | AK16: 0 | AL16: =SUM(AJ16:AK16) -> 0 | AN16: =+AH16-AL16 -> 19998 | AQ16: 2026 | AR16: 12906 | AS16: 7092 | AT16: =ROUND(($C$28/(1-$C$31))*(1+$C$29)^J16,3) -> 0.024 | AU16: =ROUND((IF($C$47+$F$23>$AQ16,$F$27*$F$30,0)+IF($C$48+$G$23>AQ16,$G$27*$G$30,0)+IF($C$49+$H$23>AQ16,$H$27*$H$30,0))*AT16,0) -> 3456 | AV16: =ROUND($C$33*(1+$C$34)^J16,3) -> 2.141 | AW16: =ROUND(AV16*M16,0) -> 8427 | AZ16: =ROUND(AR16+AS16+AU16+AW16+AY16,0) -> 31881 | BB16: =ROUND($H$13,0) -> 0 | BC16: =ROUND(($H$15*$H$30)-$Z$16,0) -> 0 | BD16: =BB16+BC16 -> 0 | BE16: 31881 | BH16: 2026 | BI16: =ROUND(H12,0) -> 0 | BJ16: 3936 | BK16: 8.52 | BL16: =ROUND(BJ16*BK16,0) -> 33535 | BM16: 0.137 | BN16: =ROUND((IF($C$47+$F$23>BH16,$F$27*$F$30,0)+IF($C$49+$H$23>BH16,$H$27*$H$30,0)+IF($C$48+$G$23>BH16,$G$27*$G$30,0))*BM16,0) -> 19728 | BP16: =BI16+BL16+BN16+BO16 -> 53263 | BR16: =ROUND($H$15*$H$30,0) -> 0 | BT16: =BP16-BR16 -> 53263 | BW16: 2026 | BX16: 12906 | BY16: 7092 | BZ16: 3456 | CA16: =SUM(BX16:BZ16) -> 23454 | CC16: 0 | CD16: 0 | CE16: =SUM(CC16:CD16) -> 0 | CG16: =CA16-CE16 -> 23454
A17: 3) Commodity Cost ($/Dk) = | C17: =+'Gas Input Table Summary'!$D$12 -> 3.091 | E17: 18) Participant Non-Energy Costs (Annual $/Part.) = | F17: =+'Gas Input Table Summary'!$D$35 -> 0 | J17: 3 | L17: 2027 | M17: =ROUND(IF($C$47+$F$23>L17,$F$25*$F$30,0)+IF($C$48+$G$23>L17,$G$25*$G$30,0)+IF($C$49+$H$23>L17,$H$25*$H$30,0),0) -> 3936 | N17: 3.378 | O17: 13296 | P17: 0 | Q17: 0 | R17: 13296 | S17: 39.4 | T17: 182 | U17: 7171 | V17: 20467 | W17: 2.767 | X17: 8604 | Y17: 0 | Z17: 0 | AA17: 8604 | AB17: =V17-AA17 -> 11863 | AE17: 2027 | AF17: 13296 | AG17: 7171 | AH17: 20467 | AJ17: 0 | AK17: 0 | AL17: 0 | AN17: 20467 | AQ17: 2027 | AR17: 13296 | AS17: 7171 | AT17: 0.024 | AU17: =ROUND((IF($C$47+$F$23>$AQ17,$F$27*$F$30,0)+IF($C$48+$G$23>AQ17,$G$27*$G$30,0)+IF($C$49+$H$23>AQ17,$H$27*$H$30,0))*AT17,0) -> 3456 | AV17: 2.177 | AW17: 8569 | AZ17: 32492 | BB17: 0 | BC17: 0 | BD17: 0 | BE17: 32492 | BH17: 2027 | BI17: 0 | BJ17: 3936 | BK17: 8.776 | BL17: 34542 | BM17: 0.142 | BN17: =ROUND((IF($C$47+$F$23>BH17,$F$27*$F$30,0)+IF($C$49+$H$23>BH17,$H$27*$H$30,0)+IF($C$48+$G$23>BH17,$G$27*$G$30,0))*BM17,0) -> 20448 | BP17: 54990 | BR17: =+BC17 -> 0 | BT17: 54990 | BW17: 2027 | BX17: 13296 | BY17: 7171 | BZ17: 3456 | CA17: 23923 | CC17: 0 | CD17: 0 | CE17: 0 | CG17: 23923
A18: Escalation Rate = | C18: =+'Gas Input Table Summary'!$D$13 -> 0.03 | E18: Escalation Rate = | F18: =+'Gas Input Table Summary'!$D$38 -> 0 | J18: 4 | L18: 2028 | M18: 3936 | N18: 3.479 | O18: 13693 | P18: 0 | Q18: 0 | R18: 13693 | S18: 39.4 | T18: 184 | U18: 7250 | V18: 20943 | W18: 2.85 | X18: 8862 | Y18: 0 | Z18: 0 | AA18: 8862 | AB18: 12081 | AE18: 2028 | AF18: 13693 | AG18: 7250 | AH18: 20943 | AJ18: 0 | AK18: 0 | AL18: 0 | AN18: 20943 | AQ18: 2028 | AR18: 13693 | AS18: 7250 | AT18: 0.025 | AU18: 3600 | AV18: 2.214 | AW18: 8714 | AZ18: 33257 | BB18: 0 | BC18: 0 | BD18: 0 | BE18: 33257 | BH18: 2028 | BI18: 0 | BJ18: 3936 | BK18: 9.039 | BL18: 35578 | BM18: 0.146 | BN18: 21024 | BP18: 56602 | BR18: 0 | BT18: 56602 | BW18: 2028 | BX18: 13693 | BY18: 7250 | BZ18: 3600 | CA18: 24543 | CC18: 0 | CD18: 0 | CE18: 0 | CG18: 24543
J19: 5 | L19: 2029 | M19: 3936 | N19: 3.583 | O19: 14103 | P19: 0 | Q19: 0 | R19: 14103 | S19: 39.4 | T19: 186 | U19: 7328 | V19: 21431 | W19: 2.935 | X19: 9126 | Y19: 0 | Z19: 0 | AA19: 9126 | AB19: 12305 | AE19: 2029 | AF19: 14103 | AG19: 7328 | AH19: 21431 | AJ19: 0 | AK19: 0 | AL19: 0 | AN19: 21431 | AQ19: 2029 | AR19: 14103 | AS19: 7328 | AT19: 0.026 | AU19: 3744 | AV19: 2.251 | AW19: 8860 | AZ19: 34035 | BB19: 0 | BC19: 0 | BD19: 0 | BE19: 34035 | BH19: 2029 | BI19: 0 | BJ19: 3936 | BK19: 9.31 | BL19: 36644 | BM19: 0.15 | BN19: 21600 | BP19: 58244 | BR19: 0 | BT19: 58244 | BW19: 2029 | BX19: 14103 | BY19: 7328 | BZ19: 3744 | CA19: 25175 | CC19: 0 | CD19: 0 | CE19: 0 | CG19: 25175
A20: 4) Demand Cost ($/Unit/Yr) = | C20: =+'Gas Input Table Summary'!$D$14 -> 176.69 | E20: 19) Participant Non-Energy Savings (Annual $/Part) = | F20: =+'Gas Input Table Summary'!$D$41 -> 0 | J20: 6 | L20: 2030 | M20: 3936 | N20: 3.691 | O20: 14528 | P20: 0 | Q20: 0 | R20: 14528 | S20: 39.4 | T20: 188 | U20: 7407 | V20: 21935 | W20: 3.023 | X20: 9400 | Y20: 0 | Z20: 0 | AA20: 9400 | AB20: 12535 | AE20: 2030 | AF20: 14528 | AG20: 7407 | AH20: 21935 | AJ20: 0 | AK20: 0 | AL20: 0 | AN20: 21935 | AQ20: 2030 | AR20: 14528 | AS20: 7407 | AT20: 0.027 | AU20: 3888 | AV20: 2.289 | AW20: 9010 | AZ20: 34833 | BB20: 0 | BC20: 0 | BD20: 0 | BE20: 34833 | BH20: 2030 | BI20: 0 | BJ20: 3936 | BK20: 9.589 | BL20: 37742 | BM20: 0.155 | BN20: 22320 | BP20: 60062 | BR20: 0 | BT20: 60062 | BW20: 2030 | BX20: 14528 | BY20: 7407 | BZ20: 3888 | CA20: 25823 | CC20: 0 | CD20: 0 | CE20: 0 | CG20: 25823
A21: Escalation Rate = | C21: =+'Gas Input Table Summary'!$D$15 -> 0.01 | E21: Escalation Rate = | F21: =+'Gas Input Table Summary'!$D$44 -> 0 | J21: 7 | L21: 2031 | M21: 3936 | N21: 3.802 | O21: 14965 | P21: 0 | Q21: 0 | R21: 14965 | S21: 39.4 | T21: 189 | U21: 7447 | V21: 22412 | W21: 3.114 | X21: 9683 | Y21: 0 | Z21: 0 | AA21: 9683 | AB21: 12729 | AE21: 2031 | AF21: 14965 | AG21: 7447 | AH21: 22412 | AJ21: 0 | AK21: 0 | AL21: 0 | AN21: 22412 | AQ21: 2031 | AR21: 14965 | AS21: 7447 | AT21: 0.027 | AU21: 3888 | AV21: 2.328 | AW21: 9163 | AZ21: 35463 | BB21: 0 | BC21: 0 | BD21: 0 | BE21: 35463 | BH21: 2031 | BI21: 0 | BJ21: 3936 | BK21: 9.877 | BL21: 38876 | BM21: 0.159 | BN21: 22896 | BP21: 61772 | BR21: 0 | BT21: 61772 | BW21: 2031 | BX21: 14965 | BY21: 7447 | BZ21: 3888 | CA21: 26300 | CC21: 0 | CD21: 0 | CE21: 0 | CG21: 26300
J22: 8 | L22: 2032 | M22: 3936 | N22: 3.916 | O22: 15413 | P22: 0 | Q22: 0 | R22: 15413 | S22: 39.4 | T22: 191 | U22: 7525 | V22: 22938 | W22: 3.207 | X22: 9972 | Y22: 0 | Z22: 0 | AA22: 9972 | AB22: 12966 | AE22: 2032 | AF22: 15413 | AG22: 7525 | AH22: 22938 | AJ22: 0 | AK22: 0 | AL22: 0 | AN22: 22938 | AQ22: 2032 | AR22: 15413 | AS22: 7525 | AT22: 0.028 | AU22: 4032 | AV22: 2.367 | AW22: 9317 | AZ22: 36287 | BB22: 0 | BC22: 0 | BD22: 0 | BE22: 36287 | BH22: 2032 | BI22: 0 | BJ22: 3936 | BK22: 10.173 | BL22: 40041 | BM22: 0.164 | BN22: 23616 | BP22: 63657 | BR22: 0 | BT22: 63657 | BW22: 2032 | BX22: 15413 | BY22: 7525 | BZ22: 4032 | CA22: 26970 | CC22: 0 | CD22: 0 | CE22: 0 | CG22: 26970
A23: 5) Peak Reduction Factor = | C23: =+'Gas Input Table Summary'!$D$16 -> 0.01 | E23: 20) Project Life (Years) = | F23: =ROUND('Database Inputs'!D11,0) -> 20 | J23: 9 | L23: 2033 | M23: 3936 | N23: 4.033 | O23: 15874 | P23: 0 | Q23: 0 | R23: 15874 | S23: 39.4 | T23: 193 | U23: 7604 | V23: 23478 | W23: 3.304 | X23: 10274 | Y23: 0 | Z23: 0 | AA23: 10274 | AB23: 13204 | AE23: 2033 | AF23: 15874 | AG23: 7604 | AH23: 23478 | AJ23: 0 | AK23: 0 | AL23: 0 | AN23: 23478 | AQ23: 2033 | AR23: 15874 | AS23: 7604 | AT23: 0.029 | AU23: 4176 | AV23: 2.407 | AW23: 9474 | AZ23: 37128 | BB23: 0 | BC23: 0 | BD23: 0 | BE23: 37128 | BH23: 2033 | BI23: 0 | BJ23: 3936 | BK23: 10.479 | BL23: 41245 | BM23: 0.169 | BN23: 24336 | BP23: 65581 | BR23: 0 | BT23: 65581 | BW23: 2033 | BX23: 15874 | BY23: 7604 | BZ23: 4176 | CA23: 27654 | CC23: 0 | CD23: 0 | CE23: 0 | CG23: 27654
J24: 10 | L24: 2034 | M24: 3936 | N24: 4.154 | O24: 16350 | P24: 0 | Q24: 0 | R24: 16350 | S24: 39.4 | T24: 195 | U24: 7683 | V24: 24033 | W24: 3.403 | X24: 10581 | Y24: 0 | Z24: 0 | AA24: 10581 | AB24: 13452 | AE24: 2034 | AF24: 16350 | AG24: 7683 | AH24: 24033 | AJ24: 0 | AK24: 0 | AL24: 0 | AN24: 24033 | AQ24: 2034 | AR24: 16350 | AS24: 7683 | AT24: 0.03 | AU24: 4320 | AV24: 2.448 | AW24: 9635 | AZ24: 37988 | BB24: 0 | BC24: 0 | BD24: 0 | BE24: 37988 | BH24: 2034 | BI24: 0 | BJ24: 3936 | BK24: 10.793 | BL24: 42481 | BM24: 0.174 | BN24: 25056 | BP24: 67537 | BR24: 0 | BT24: 67537 | BW24: 2034 | BX24: 16350 | BY24: 7683 | BZ24: 4320 | CA24: 28353 | CC24: 0 | CD24: 0 | CE24: 0 | CG24: 28353
A25: 6) Variable O&M ($/Dk) = | C25: =+'Gas Input Table Summary'!$D$17 -> 0 | E25: 21) Avg. Dk/Part. Saved = | F25: =+ROUND(F32/F30,3) -> 19.68 | J25: 11 | L25: 2035 | M25: 3936 | N25: 4.279 | O25: 16842 | P25: 0 | Q25: 0 | R25: 16842 | S25: 39.4 | T25: 197 | U25: 7762 | V25: 24604 | W25: 3.505 | X25: 10899 | Y25: 0 | Z25: 0 | AA25: 10899 | AB25: 13705 | AE25: 2035 | AF25: 16842 | AG25: 7762 | AH25: 24604 | AJ25: 0 | AK25: 0 | AL25: 0 | AN25: 24604 | AQ25: 2035 | AR25: 16842 | AS25: 7762 | AT25: 0.031 | AU25: 4464 | AV25: 2.489 | AW25: 9797 | AZ25: 38865 | BB25: 0 | BC25: 0 | BD25: 0 | BE25: 38865 | BH25: 2035 | BI25: 0 | BJ25: 3936 | BK25: 11.117 | BL25: 43757 | BM25: 0.179 | BN25: 25776 | BP25: 69533 | BR25: 0 | BT25: 69533 | BW25: 2035 | BX25: 16842 | BY25: 7762 | BZ25: 4464 | CA25: 29068 | CC25: 0 | CD25: 0 | CE25: 0 | CG25: 29068
A26: Escalation Rate = | C26: =+'Gas Input Table Summary'!$D$18 -> 0 | J26: 12 | L26: 2036 | M26: 3936 | N26: 4.407 | O26: 17346 | P26: 0 | Q26: 0 | R26: 17346 | S26: 39.4 | T26: 199 | U26: 7841 | V26: 25187 | W26: 3.61 | X26: 11225 | Y26: 0 | Z26: 0 | AA26: 11225 | AB26: 13962 | AE26: 2036 | AF26: 17346 | AG26: 7841 | AH26: 25187 | AJ26: 0 | AK26: 0 | AL26: 0 | AN26: 25187 | AQ26: 2036 | AR26: 17346 | AS26: 7841 | AT26: 0.032 | AU26: 4608 | AV26: 2.531 | AW26: 9962 | AZ26: 39757 | BB26: 0 | BC26: 0 | BD26: 0 | BE26: 39757 | BH26: 2036 | BI26: 0 | BJ26: 3936 | BK26: 11.45 | BL26: 45067 | BM26: 0.185 | BN26: 26640 | BP26: 71707 | BR26: 0 | BT26: 71707 | BW26: 2036 | BX26: 17346 | BY26: 7841 | BZ26: 4608 | CA26: 29795 | CC26: 0 | CD26: 0 | CE26: 0 | CG26: 29795
E27: 22) Avg Non-Gas Fuel Units/Part. Saved = | F27: =+'Database Inputs'!H11 -> 720 | J27: 13 | L27: 2037 | M27: 3936 | N27: 4.539 | O27: 17866 | P27: 0 | Q27: 0 | R27: 17866 | S27: 39.4 | T27: 201 | U27: 7919 | V27: 25785 | W27: 3.718 | X27: 11561 | Y27: 0 | Z27: 0 | AA27: 11561 | AB27: 14224 | AE27: 2037 | AF27: 17866 | AG27: 7919 | AH27: 25785 | AJ27: 0 | AK27: 0 | AL27: 0 | AN27: 25785 | AQ27: 2037 | AR27: 17866 | AS27: 7919 | AT27: 0.033 | AU27: 4752 | AV27: 2.574 | AW27: 10131 | AZ27: 40668 | BB27: 0 | BC27: 0 | BD27: 0 | BE27: 40668 | BH27: 2037 | BI27: 0 | BJ27: 3936 | BK27: 11.794 | BL27: 46421 | BM27: 0.19 | BN27: 27360 | BP27: 73781 | BR27: 0 | BT27: 73781 | BW27: 2037 | BX27: 17866 | BY27: 7919 | BZ27: 4752 | CA27: 30537 | CC27: 0 | CD27: 0 | CE27: 0 | CG27: 30537
A28: 7) Non-Gas Fuel Cost ($/Fuel Unit) = | C28: =+'Gas Input Table Summary'!$D$19 -> 0.02062 | E28: 22a) Avg Additional Non-Gas Fuel Units/ Part. Used = | F28: 0 | J28: 14 | L28: 2038 | M28: 3936 | N28: 4.675 | O28: 18401 | P28: 0 | Q28: 0 | R28: 18401 | S28: 39.4 | T28: 203 | U28: 7998 | V28: 26399 | W28: 3.83 | X28: 11909 | Y28: 0 | Z28: 0 | AA28: 11909 | AB28: 14490 | AE28: 2038 | AF28: 18401 | AG28: 7998 | AH28: 26399 | AJ28: 0 | AK28: 0 | AL28: 0 | AN28: 26399 | AQ28: 2038 | AR28: 18401 | AS28: 7998 | AT28: 0.034 | AU28: 4896 | AV28: 2.617 | AW28: 10301 | AZ28: 41596 | BB28: 0 | BC28: 0 | BD28: 0 | BE28: 41596 | BH28: 2038 | BI28: 0 | BJ28: 3936 | BK28: 12.148 | BL28: 47815 | BM28: 0.196 | BN28: 28224 | BP28: 76039 | BR28: 0 | BT28: 76039 | BW28: 2038 | BX28: 18401 | BY28: 7998 | BZ28: 4896 | CA28: 31295 | CC28: 0 | CD28: 0 | CE28: 0 | CG28: 31295
A29: Escalation Rate = | C29: =+'Gas Input Table Summary'!$D$20 -> 0.03 | J29: 15 | L29: 2039 | M29: 3936 | N29: 4.816 | O29: 18956 | P29: 0 | Q29: 0 | R29: 18956 | S29: 39.4 | T29: 205 | U29: 8077 | V29: 27033 | W29: 3.945 | X29: 12267 | Y29: 0 | Z29: 0 | AA29: 12267 | AB29: 14766 | AE29: 2039 | AF29: 18956 | AG29: 8077 | AH29: 27033 | AJ29: 0 | AK29: 0 | AL29: 0 | AN29: 27033 | AQ29: 2039 | AR29: 18956 | AS29: 8077 | AT29: 0.035 | AU29: 5040 | AV29: 2.662 | AW29: 10478 | AZ29: 42551 | BB29: 0 | BC29: 0 | BD29: 0 | BE29: 42551 | BH29: 2039 | BI29: 0 | BJ29: 3936 | BK29: 12.512 | BL29: 49247 | BM29: 0.202 | BN29: 29088 | BP29: 78335 | BR29: 0 | BT29: 78335 | BW29: 2039 | BX29: 18956 | BY29: 8077 | BZ29: 5040 | CA29: 32073 | CC29: 0 | CD29: 0 | CE29: 0 | CG29: 32073
E30: 23) Number of Participants = | F30: =ROUND('Database Inputs'!C11,0) -> 200 | J30: 16 | L30: 2040 | M30: 3936 | N30: 4.96 | O30: 19523 | P30: 0 | Q30: 0 | R30: 19523 | S30: 39.4 | T30: 207 | U30: 8156 | V30: 27679 | W30: 4.063 | X30: 12634 | Y30: 0 | Z30: 0 | AA30: 12634 | AB30: 15045 | AE30: 2040 | AF30: 19523 | AG30: 8156 | AH30: 27679 | AJ30: 0 | AK30: 0 | AL30: 0 | AN30: 27679 | AQ30: 2040 | AR30: 19523 | AS30: 8156 | AT30: 0.036 | AU30: 5184 | AV30: 2.707 | AW30: 10655 | AZ30: 43518 | BB30: 0 | BC30: 0 | BD30: 0 | BE30: 43518 | BH30: 2040 | BI30: 0 | BJ30: 3936 | BK30: 12.887 | BL30: 50723 | BM30: 0.208 | BN30: 29952 | BP30: 80675 | BR30: 0 | BT30: 80675 | BW30: 2040 | BX30: 19523 | BY30: 8156 | BZ30: 5184 | CA30: 32863 | CC30: 0 | CD30: 0 | CE30: 0 | CG30: 32863
A31: 8) Non-Gas Fuel Loss Factor | C31: =+'Gas Input Table Summary'!$D$21 -> 0.07719 | J31: 17 | L31: 2041 | M31: 3936 | N31: 5.109 | O31: 20109 | P31: 0 | Q31: 0 | R31: 20109 | S31: 39.4 | T31: 209 | U31: 8235 | V31: 28344 | W31: 4.185 | X31: 13013 | Y31: 0 | Z31: 0 | AA31: 13013 | AB31: 15331 | AE31: 2041 | AF31: 20109 | AG31: 8235 | AH31: 28344 | AJ31: 0 | AK31: 0 | AL31: 0 | AN31: 28344 | AQ31: 2041 | AR31: 20109 | AS31: 8235 | AT31: 0.037 | AU31: 5328 | AV31: 2.752 | AW31: 10832 | AZ31: 44504 | BB31: 0 | BC31: 0 | BD31: 0 | BE31: 44504 | BH31: 2041 | BI31: 0 | BJ31: 3936 | BK31: 13.274 | BL31: 52246 | BM31: 0.214 | BN31: 30816 | BP31: 83062 | BR31: 0 | BT31: 83062 | BW31: 2041 | BX31: 20109 | BY31: 8235 | BZ31: 5328 | CA31: 33672 | CC31: 0 | CD31: 0 | CE31: 0 | CG31: 33672
E32: 24) Total Annual Dk Saved = | F32: =+'Total Program Inputs'!G12 -> 3936 | J32: 18 | L32: 2042 | M32: 3936 | N32: 5.262 | O32: 20711 | P32: 0 | Q32: 0 | R32: 20711 | S32: 39.4 | T32: 211 | U32: 8313 | V32: 29024 | W32: 4.311 | X32: 13405 | Y32: 0 | Z32: 0 | AA32: 13405 | AB32: 15619 | AE32: 2042 | AF32: 20711 | AG32: 8313 | AH32: 29024 | AJ32: 0 | AK32: 0 | AL32: 0 | AN32: 29024 | AQ32: 2042 | AR32: 20711 | AS32: 8313 | AT32: 0.038 | AU32: 5472 | AV32: 2.799 | AW32: 11017 | AZ32: 45513 | BB32: 0 | BC32: 0 | BD32: 0 | BE32: 45513 | BH32: 2042 | BI32: 0 | BJ32: 3936 | BK32: 13.672 | BL32: 53813 | BM32: 0.221 | BN32: 31824 | BP32: 85637 | BR32: 0 | BT32: 85637 | BW32: 2042 | BX32: 20711 | BY32: 8313 | BZ32: 5472 | CA32: 34496 | CC32: 0 | CD32: 0 | CE32: 0 | CG32: 34496
A33: 9) Gas Environmental Damage Factor = | C33: =+'Gas Input Table Summary'!$D$22 -> 2.07 | J33: 19 | L33: 2043 | M33: 3936 | N33: 5.42 | O33: 21333 | P33: 0 | Q33: 0 | R33: 21333 | S33: 39.4 | T33: 213 | U33: 8392 | V33: 29725 | W33: 4.44 | X33: 13806 | Y33: 0 | Z33: 0 | AA33: 13806 | AB33: 15919 | AE33: 2043 | AF33: 21333 | AG33: 8392 | AH33: 29725 | AJ33: 0 | AK33: 0 | AL33: 0 | AN33: 29725 | AQ33: 2043 | AR33: 21333 | AS33: 8392 | AT33: 0.039 | AU33: 5616 | AV33: 2.846 | AW33: 11202 | AZ33: 46543 | BB33: 0 | BC33: 0 | BD33: 0 | BE33: 46543 | BH33: 2043 | BI33: 0 | BJ33: 3936 | BK33: 14.082 | BL33: 55427 | BM33: 0.227 | BN33: 32688 | BP33: 88115 | BR33: 0 | BT33: 88115 | BW33: 2043 | BX33: 21333 | BY33: 8392 | BZ33: 5616 | CA33: 35341 | CC33: 0 | CD33: 0 | CE33: 0 | CG33: 35341
A34: Escalation Rate = | C34: =+'Gas Input Table Summary'!$D$23 -> 0.0169 | E34: 25) Incentive/Participant = | F34: =ROUND('Database Inputs'!L11,0) -> 300 | J34: 20 | L34: 2044 | M34: 0 | N34: 5.583 | O34: 0 | P34: 0 | Q34: 0 | R34: 0 | S34: 0 | T34: 216 | U34: 0 | V34: 0 | W34: 4.573 | X34: 0 | Y34: 0 | Z34: 0 | AA34: 0 | AB34: 0 | AE34: 2044 | AF34: 0 | AG34: 0 | AH34: 0 | AJ34: 0 | AK34: 0 | AL34: 0 | AN34: 0 | AQ34: 2044 | AR34: 0 | AS34: 0 | AT34: 0.04 | AU34: 0 | AV34: 2.894 | AW34: 0 | AZ34: 0 | BB34: 0 | BC34: 0 | BD34: 0 | BE34: 0 | BH34: 2044 | BI34: 0 | BJ34: 0 | BK34: 14.505 | BL34: 0 | BM34: 0.234 | BN34: 0 | BP34: 0 | BR34: 0 | BT34: 0 | BW34: 2044 | BX34: 0 | BY34: 0 | BZ34: 0 | CA34: 0 | CC34: 0 | CD34: 0 | CE34: 0 | CG34: 0
J35: 21 | L35: 2045 | M35: =ROUND(IF($C$47+$F$23>L35,$F$25*$F$30,0)+IF($C$48+$G$23>L35,$G$25*$G$30,0)+IF($C$49+$H$23>L35,$H$25*$H$30,0),0) -> 0 | N35: =ROUND($C$17*(1+$C$18)^J35,3) -> 5.75 | O35: =ROUND(M35*N35,0) -> 0 | P35: =ROUND($C$25*(1+$C$26)^J35,3) -> 0 | Q35: =ROUND(M35*P35,0) -> 0 | R35: =O35+Q35 -> 0 | S35: =ROUND(M35*$C$23,1) -> 0 | T35: =ROUND($C$20*(1+$C$21)^J35,0) -> 218 | U35: =ROUND(S35*T35,0) -> 0 | V35: =ROUND(+U35+R35,0) -> 0 | W35: =ROUND($H$36*(1+$C$11)^J35,3) -> 4.71 | X35: =ROUND((1-$H$38)*(W35*M35),0) -> 0 | Y35: 0 | Z35: 0 | AA35: =SUM(X35:Z35) -> 0 | AB35: =V35-AA35 -> 0 | AE35: 2045 | AF35: =+R35 -> 0 | AG35: =+U35 -> 0 | AH35: =+AG35+AF35 -> 0 | AJ35: =ROUND(Y35,0) -> 0 | AK35: =ROUND(Z35,0) -> 0 | AL35: =SUM(AJ35:AK35) -> 0 | AN35: =+AH35-AL35 -> 0 | AQ35: 2045 | AR35: =AF35 -> 0 | AS35: =+AG35 -> 0 | AT35: =ROUND(($C$28/(1-$C$31))*(1+$C$29)^J35,3) -> 0.042 | AU35: =ROUND((IF($C$47+$F$23>$AQ35,$F$27*$F$30,0)+IF($C$48+$G$23>AQ35,$G$27*$G$30,0)+IF($C$49+$H$23>AQ35,$H$27*$H$30,0))*AT35,0) -> 0 | AV35: =ROUND($C$33*(1+$C$34)^J35,3) -> 2.943 | AW35: =ROUND(AV35*M35,0) -> 0 | AZ35: =ROUND(AR35+AS35+AU35+AW35+AY35,0) -> 0 | BB35: 0 | BC35: 0 | BD35: =BB35+BC35 -> 0 | BE35: =AZ35-BD35 -> 0 | BH35: 2045 | BI35: 0 | BJ35: =+M35 -> 0 | BK35: =ROUND($C$10*(1+$C$11)^J35,3) -> 14.94 | BL35: =ROUND(BJ35*BK35,0) -> 0 | BM35: =ROUND($C$13*(1+$C$14)^J35,3) -> 0.241 | BN35: =ROUND((IF($C$47+$F$23>BH35,$F$27*$F$30,0)+IF($C$49+$H$23>BH35,$H$27*$H$30,0)+IF($C$48+$G$23>BH35,$G$27*$G$30,0))*BM35,0) -> 0 | BP35: =BI35+BL35+BN35+BO35 -> 0 | BR35: =+BC35 -> 0 | BT35: =BP35-BR35 -> 0 | BW35: 2045 | BX35: 0 | BY35: =U35 -> 0 | BZ35: =AU35 -> 0 | CA35: =SUM(BX35:BZ35) -> 0 | CC35: =BB35 -> 0 | CD35: =BC35 -> 0 | CE35: =SUM(CC35:CD35) -> 0 | CG35: =CA35-CE35 -> 0
A36: 10) Non Gas Fuel Environmental Damage Factor = | C36: =+'Gas Input Table Summary'!$D$24 -> 0 | E36: 26) Distribution Delivery Charge | H36: =+'Gas Input Table Summary'!D58 -> 2.532 | J36: 22 | L36: 2046 | M36: 0 | N36: 5.923 | O36: 0 | P36: 0 | Q36: 0 | R36: 0 | S36: 0 | T36: 220 | U36: 0 | V36: 0 | W36: 4.852 | X36: 0 | Y36: 0 | Z36: 0 | AA36: 0 | AB36: 0 | AE36: 2046 | AF36: 0 | AG36: 0 | AH36: 0 | AJ36: 0 | AK36: 0 | AL36: 0 | AN36: 0 | AQ36: 2046 | AR36: 0 | AS36: 0 | AT36: 0.043 | AU36: 0 | AV36: 2.993 | AW36: 0 | AZ36: 0 | BB36: 0 | BC36: 0 | BD36: 0 | BE36: 0 | BH36: 2046 | BI36: 0 | BJ36: 0 | BK36: 15.388 | BL36: 0 | BM36: 0.248 | BN36: 0 | BP36: 0 | BR36: 0 | BT36: 0 | BW36: 2046 | BX36: 0 | BY36: 0 | BZ36: 0 | CA36: 0 | CC36: 0 | CD36: 0 | CE36: 0 | CG36: 0
A37: Escalation Rate = | C37: =+'Gas Input Table Summary'!$D$25 -> 0
E38: 27) Effective Income Tax Rate = | H38: =+'Gas Input Table Summary'!D59 -> 0.21 | K38: Total = | M38: =SUM(M14:M36) -> 78720 | V38: =SUM(V14:V36) -> 480100 | AA38: =SUM(AA14:AA36) -> 286627 | AB38: =SUM(AB14:AB36) -> 193473 | AD38: Total = | AH38: =SUM(AH14:AH36) -> 480100 | AL38: =SUM(AL14:AL36) -> 75072 | AN38: =SUM(AN14:AN36) -> 405028 | AP38: Total = | AZ38: =SUM(AZ14:AZ36) -> 758477 | BD38: =SUM(BD14:BD36) -> 162272 | BE38: =SUM(BE14:BE36) -> 596205 | BG38: Total = | BJ38: =SUM(BJ14:BJ36) -> 78720 | BP38: =SUM(BP14:BP36) -> 1410633 | BR38: =SUM(BR14:BR36) -> 147200 | BT38: =SUM(BT14:BT36) -> 1263433 | BZ38: Total = | CA38: =SUM(CA14:CA36) -> 566500 | CE38: =SUM(CE14:CE36) -> 162272 | CG38: =SUM(CG14:CG36) -> 404228
A39: 11) Participant Discount Rate = | C39: =+'Gas Input Table Summary'!$D$26 -> 0.0987 | E39: (Federal & State Taxes) | T39: NPV = | V39: =ROUND(V14+NPV($C$41,V15:V36),0) -> 258318 | AA39: =ROUND(AA14+NPV($C$41,AA15:AA36),0) -> 187294 | AB39: =ROUND(AB14+NPV($C$41,AB15:AB36),0) -> 71024 | AG39: NPV = | AH39: =ROUND(AH14+NPV($C$41,AH15:AH36),0) -> 258318 | AL39: =ROUND(AL14+NPV($C$41,AL15:AL36),0) -> 75072 | AN39: =+AH39-AL39 -> 183246 | AW39: NPV = | AZ39: =ROUND(AZ14+NPV($C$43,AZ15:AZ36),0) -> 603832 | BD39: =ROUND(BD14+NPV($C$43,BD15:BD36),0) -> 162272 | BE39: =AZ39-BD39 -> 441560 | BN39: NPV = | BP39: =ROUND(BP14+NPV($C$39,BP15:BP36),0) -> 642889 | BR39: =ROUND(BR14+NPV($C$39,BR15:BR36),0) -> 147200 | BT39: =ROUND(BT14+NPV($C$39,BT15:BT36),0) -> 495689 | BZ39: NPV = | CA39: =ROUND(CA14+NPV($C$41,CA15:CA36),0) -> 304107 | CE39: =ROUND(CE14+NPV($C$41,CE15:CE36),0) -> 162272 | CG39: =ROUND(CG14+NPV($C$41,CG15:CG36),0) -> 141835
A41: 12) Utility Discount Rate = | C41: =+'Gas Input Table Summary'!$D$27 -> 0.0701 | E41: Test Results | F41: NPV | G41: B/C | K41: Total NPV = | N41: =AB39 -> 71024 | AD41: Total NPV = | AG41: =AN39 -> 183246 | AP41: Total NPV = | AS41: =BE39 -> 441560 | BG41: Total NPV = | BJ41: =BT39 -> 495689 | BV41: Total NPV = | BY41: =CG39 -> 141835
E42: Ratepayer Impact Measure Test | F42: =N41 -> 71024 | G42: =N42 -> 1.38 | K42: Benefit/Cost Ratio = | N42: =ROUND(V39/AA39,2) -> 1.38 | AD42: Benefit/Cost Ratio = | AG42: =ROUND(AH39/AL39,2) -> 3.44 | AP42: Benefit/Cost Ratio = | AS42: =ROUND(AZ39/BD39,2) -> 3.72 | BG42: Benefit/Cost Ratio = | BJ42: =ROUND(BP39/BR39,2) -> 4.37 | BV42: Benefit/Cost Ratio = | BY42: =ROUND(CA39/CE39,2) -> 1.87
A43: 13) Societal Discount Rate = | C43: =+'Gas Input Table Summary'!$D$28 -> 0.0234 | E43: Utility Cost Test | F43: =AG41 -> 183246 | G43: =AG42 -> 3.44
E44: Societal Test | F44: =AS41 -> 441560 | G44: =AS42 -> 3.72 | J44: Worksheet Calculations | BV44: Worksheet Calculations
A45: 14) General Input Data Year = | C45: =+'Gas Input Table Summary'!$D$29 -> 2024 | E45: Participant Test | F45: =BJ41 -> 495689 | G45: =BJ42 -> 4.37 | J45: (A) | K45: = Average Dk/Participant Saved (21) x Number of Participants (23) for Project Life (20) | T45: (I) | U45: = (G) x (H) | AD45: Worksheet Calculations | AP45: Worksheet Calculations | BG45: Worksheet Calculations | BV45: (A) | BW45: = Table 1 (F)
E46: Total Resource Cost Test | F46: =BY41 -> 141835 | G46: =BY42 -> 1.87 | J46: (B) | K46: = Commodity Cost (3) escalated | T46: (J) | U46: = (F) + (I) | AD46: (A) | AE46: = Table 1 (F) | AP46: (A) | AQ46: = Table 1 (F) | AW46: (H) | AZ46: = Table 2 (F) | BG46: (A) | BH46: = Table 1 (N) | BL46: (G) | BM46: = (A) + (D) + (F) | BV46: (B) | BW46: = Table 1 (I)
A47: 15) Project Analysis Year 1 = | C47: =+'Total Program Inputs'!C6 -> 2024 | J47: (C) | K47: = (A) x (B) | T47: (K) | U47: = Distribution Delivery Charge (26) escalated. | AD47: (B) | AE47: = Table 1 (I) | AP47: (G) | AQ47: = Table 1 (I) | AW47: (I) | AZ47: = Direct Part. Costs (17) x No. of Part. (23) - Table 1 (N) | BG47: (B) | BH47: = Table 1 (A) | BL47: (H) | BM47: = Direct Participant Costs (17) x Number of Participants (23) | BV47: (C) | BW47: = Table 3 (D)
J48: (D) | K48: = Variable O&M Cost (6), escalated | T48: (L) | U48: = (A) x (K) x (1-Inverse of Tax Rate (27) | AD48: (C) | AE48: = Table 1 (J) | AP48: (C) | AQ48: = Non-Gas Fuel Cost (7), adjusted for losses (8), escalated.. | AW48: (J) | AZ48: = (H) + (I) | BG48: (C) | BH48: = Retail Rate (1) escalated. | BL48: (I) | BM48: = (G) - (H) | BV48: (D) | BW48: = (A) + (B) + (C)
J49: (E) | K49: = (A) x (D) | T49: (M) | U49: = Admin & Operating Costs (16a) | AD49: (D) | AE49: = Table 1 (M) | AP49: (D) | AQ49: = (C) x [Avg. Non-Gas Fuel Units/Part.Saved (22) x No. of Part. (23) | AW49: (K) | AZ49: = (G) - (J) | BG49: (D) | BH49: =(B) x (C) | BV49: (E) | BW49: = Table 3 (H)
J50: (F) | K50: = (C) + (E) | T50: (N) | U50: = Incentive Costs (16b) | AD50: (E) | AE50: = Table 1 (N) | AP50: (E) | AQ50: = Gas Environmental Damage Factor (9), escalated | BG50: (E) | BH50: = Non-Gas Fuel Retail Rate (2), escalated. | BV50: (F) | BW50: = Table 3 (I)
J51: (G) | K51: = (A) x Peak Reduction Factor (5) | T51: (O) | U51: = (L) + (M) + (N) | AD51: (F) | AE51: = (D) + (E) | AP51: (F) | AQ51: = Table 1 (A) x (E) | BG51: (F) | BH51: = (E) x [Avg. Non-Gas Fuel Units/Part.Saved (22) x No. of Part. (23) | BV51: (G) | BW51: = (E) + (F)
J52: (H) | K52: = Demand Cost (4) escalated. | T52: (P) | U52: = (J) - (O) | AD52: (G) | AE52: = (C) - (F) | AP52: (G) | AQ52: = (A) + (B) + (D) + (F) | BV52: (H) | BW52: = (D) - (G)

Sheet Programmable Tstats - Tier 1
A1: NATURAL GAS CONSERVATION PROGRAMS/DEMAND-SIDE MANAGEMENT | K1: Table 1 | AD1: Table 2 | AP1: Table 3 | BG1: Table 4 | BV1: Table 5
A2: BEN/COST ANALYSIS FOR GAS CONSERVATION | K2: Ratepayer Impact Measure Test | AD2: Utility Cost Test | AP2: Societal Test | BG2: Participant Test | BV2: Total Resource Cost Test
A4: Company: | B4: Montana-Dakota Utilities Co. | K4: Company: | M4: =B4 -> Montana-Dakota Utilities Co. | AD4: Company: | AF4: =B4 -> Montana-Dakota Utilities Co. | AP4: Company: | AR4: =AF4 -> Montana-Dakota Utilities Co. | BH4: Company: | BI4: =AR4 -> Montana-Dakota Utilities Co. | BW4: Company: | BX4: =BI4 -> Montana-Dakota Utilities Co.
A5: Project: | B5: ='Database Inputs'!A12 -> Programmable Thermostats - Tier 1 | K5: Project: | M5: =$B$5 -> Programmable Thermostats - Tier 1 | AD5: Project: | AF5: =$B$5 -> Programmable Thermostats - Tier 1 | AP5: Project: | AR5: =$B$5 -> Programmable Thermostats - Tier 1 | BH5: Project: | BI5: =$B$5 -> Programmable Thermostats - Tier 1 | BW5: Project: | BX5: =$B$5 -> Programmable Thermostats - Tier 1
A6: Program Years: | B6: ='Total Program'!$B$6 -> 2024
N7: Benefits | X7: Costs | AF7: Benefits | AJ7: Costs | AR7: Benefits | BB7: Costs | BI7: Benefits | BR7: Costs | BX7: Benefits | CC7: Costs
A8: Input Data | F8: =+'Total Program Inputs'!C6 -> 2024 | AB8: Annual | AN8: Annual | AT8: Non-Gas | BE8: Annual | BT8: Annual | CG8: Annual
M9: Total | N9: Gas | O9: Gas | P9: Variable | Q9: Variable | R9: Total | S9: Peak Dk | T9: Demand | U9: Total | W9: Distribution | Y9: Program | AA9: Total | AB9: Benefits | AF9: Total | AG9: Total | AH9: Annual | AJ9: Program | AL9: Utility | AN9: Benefits | AR9: Total | AS9: Total | AT9: Energy | AU9: Non-Gas | AV9: Environmental | AW9: Environmental | AZ9: Annual | BB9: Utility | BC9: Participants' | BD9: Annual | BE9: Benefits | BJ9: Total | BL9: Gas | BM9: Non-Gas | BN9: Non-Gas | BP9: Total | BR9: Direct | BT9: Benefits | BX9: Total | BY9: Total | BZ9: Non-Gas | CA9: Total | CC9: Utility | CD9: Participants' | CG9: Benefits
A10: 1) Retail Rate ($/Dk) = | C10: =+'Gas Input Table Summary'!$D$7 -> 8.031 | E10: 16) Utility Project Costs | M10: Energy | N10: Commodity | O10: Commodity | P10: O & M | Q10: O & M | R10: Energy | S10: Demand | T10: Savings | U10: Demand | V10: Total | W10: Delivery | X10: Lost | Y10: Admin | Z10: Incentive | AA10: Program | AB10: Less | AF10: Energy | AG10: Demand | AH10: Total | AJ10: Admin | AK10: Incentive | AL10: Program | AN10: Less | AR10: Energy | AS10: Demand | AT10: Savings | AU10: Energy | AV10: Damage | AW10: Damage | AZ10: Total | BB10: Program | BC10: Costs Net | BD10: Total | BE10: Less | BI10: Incentives | BJ10: Energy | BK10: Retail | BL10: Bill | BM10: Fuel | BN10: Energy | BP10: Annual | BR10: Participant | BT10: Less | BX10: Energy | BY10: Demand | BZ10: Energy | CA10: Annual | CC10: Program | CD10: Costs Net | CE10: Total | CG10: Less
A11: Escalation Rate = | C11: =+'Gas Input Table Summary'!$D$8 -> 0.03 | E11: 16a) Administrative & Operating Costs = | F11: =+'Total Program Inputs'!M13 -> 238 | J11: t | M11: Reduction | N11: Cost/Dk | O11: Savings | P11: Cost/Dk | Q11: Savings | R11: Savings | S11: Reduction | T11: Per Unit | U11: Savings | V11: Savings | W11: Charge | X11: Margin | Y11: Costs | Z11: Costs | AA11: Costs | AB11: Costs | AF11: Savings | AG11: Savings | AH11: Savings | AJ11: Costs | AK11: Costs | AL11: Costs | AN11: Costs | AR11: Savings | AS11: Savings | AT11: ($/Part.) | AU11: Savings | AV11: Savings/Dk | AW11: Savings | AZ11: Savings | BB11: Costs | BC11: of Rebate | BD11: Costs | BE11: Costs | BI11: Received | BJ11: Reduction | BK11: Rate | BL11: Savings | BM11: Retail Rate | BN11: Savings | BP11: Benefits | BR11: Costs | BT11: Costs | BX11: Savings | BY11: Savings | BZ11: Savings | CA11: Benefits | CC11: Costs | CD11: of Rebate | CE11: Costs | CG11: Costs
E12: 16b) Incentive Costs = | F12: =+'Total Program Inputs'!I13 -> 945 | L12: Year | M12: (A) | N12: (B) | O12: (C) | P12: (D) | Q12: (E) | R12: (F) | S12: (G) | T12: (H) | U12: (I) | V12: (J) | W12: (K) | X12: (L) | Y12: (M) | Z12: (N) | AA12: (O) | AB12: (P) | AE12: Year | AF12: (A) | AG12: (B) | AH12: (C) | AJ12: (D) | AK12: (E) | AL12: (F) | AN12: (G) | AQ12: Year | AR12: (A) | AS12: (B) | AT12: (C) | AU12: (D) | AV12: (E) | AW12: (F) | AZ12: (G) | BB12: (H) | BC12: (I) | BD12: (J) | BE12: (K) | BH12: Year | BI12: (A) | BJ12: (B) | BK12: (C) | BL12: (D) | BM12: (E) | BN12: (F) | BP12: (G) | BR12: (H) | BT12: (I) | BW12: Year | BX12: (A) | BY12: (B) | BZ12: (C) | CA12: (D) | CC12: (E) | CD12: (F) | CE12: (G) | CG12: (H)
A13: 2) Non-Gas Fuel Retail Rate ($/Fuel Unit) = | C13: =+'Gas Input Table Summary'!$D$9 -> 0.12956 | E13: 16c) Total Utility Project Costs = | F13: =SUM(F11:F12) -> 1183
A14: Escalation Rate = | C14: =+'Gas Input Table Summary'!$D$10 -> 0.03 | J14: =$C$47-$C$45 -> 0 | L14: =$C$47 -> 2024 | M14: =ROUND(IF($C$47+$F$23>L14,F25*F30,0),0) -> 145 | N14: =ROUND($C$17*(1+$C$18)^J14,3) -> 3.091 | O14: =ROUND(M14*N14,0) -> 448 | P14: =ROUND($C$25*(1+$C$26)^J14,3) -> 0 | Q14: =ROUND(M14*P14,0) -> 0 | R14: =O14+Q14 -> 448 | S14: =ROUND(M14*$C$23,1) -> 1.5 | T14: =ROUND($C$20*(1+$C$21)^J14,0) -> 177 | U14: =ROUND(S14*T14,0) -> 266 | V14: =ROUND(+U14+R14,0) -> 714 | W14: =ROUND($H$36*(1+$C$11)^J14,3) -> 2.532 | X14: =ROUND((1-$H$38)*(W14*M14),0) -> 290 | Y14: =ROUND($F$11,0) -> 238 | Z14: =ROUND($F$12,0) -> 945 | AA14: =SUM(X14:Z14) -> 1473 | AB14: =V14-AA14 -> -759 | AE14: =$C$47 -> 2024 | AF14: =+R14 -> 448 | AG14: =+U14 -> 266 | AH14: =+AG14+AF14 -> 714 | AJ14: =ROUND(Y14,0) -> 238 | AK14: =ROUND(Z14,0) -> 945 | AL14: =SUM(AJ14:AK14) -> 1183 | AN14: =+AH14-AL14 -> -469 | AQ14: =$C$47 -> 2024 | AR14: =AF14 -> 448 | AS14: =+AG14 -> 266 | AT14: =ROUND(($C$28/(1-$C$31))*(1+$C$29)^J14,3) -> 0.022 | AU14: =ROUND(IF($C$47+$F$23>$AQ14,$F$30*$F$27,0)*AT14,0) -> 0 | AV14: =ROUND($C$33*(1+$C$34)^J14,3) -> 2.07 | AW14: =ROUND(AV14*M14,0) -> 300 | AZ14: =ROUND(AR14+AS14+AU14+AW14+AY14,0) -> 1014 | BB14: =ROUND($F$13,0) -> 1183 | BC14: =ROUND((F15*F30)-Z14,0) -> 945 | BD14: =BB14+BC14 -> 2128 | BE14: =AZ14-BD14 -> -1114 | BH14: =$C$47 -> 2024 | BI14: =+F12 -> 945 | BJ14: =+M14 -> 145 | BK14: =ROUND($C$10*(1+$C$11)^J14,3) -> 8.031 | BL14: =ROUND(BJ14*BK14,0) -> 1164 | BM14: =ROUND($C$13*(1+$C$14)^J14,3) -> 0.13 | BN14: =ROUND(IF($C$47+$F$23>$BH14,$F$30*$F$27,0)*BM14,0) -> 0 | BP14: =BI14+BL14+BN14+BO14 -> 2109 | BR14: =ROUND(F15*F30,0) -> 1890 | BT14: =BP14-BR14 -> 219 | BW14: =$C$47 -> 2024 | BX14: =$R14 -> 448 | BY14: =U14 -> 266 | BZ14: =AU14 -> 0 | CA14: =SUM(BX14:BZ14) -> 714 | CC14: =BB14 -> 1183 | CD14: =BC14 -> 945 | CE14: =SUM(CC14:CD14) -> 2128 | CG14: =CA14-CE14 -> -1414
A15: Non-Gas Fuel Units (ie. kWh,Gallons, etc) = | C15: =+'Gas Input Table Summary'!$D$11 -> Kwh | E15: 17) Direct Participant Costs ($/Part.) = | F15: =ROUND('Database Inputs'!K12,0) -> 30 | J15: =J14+1 -> 1 | L15: =L14+1 -> 2025 | M15: =ROUND(IF($C$47+$F$23>L15,$F$25*$F$30,0)+IF($C$48+$G$23>L15,$G$25*$G$30,0),0) -> 145 | N15: 3.184 | O15: 462 | P15: 0 | Q15: =ROUND(M15*P15,0) -> 0 | R15: 462 | S15: 1.5 | T15: 178 | U15: =ROUND(S15*T15,0) -> 267 | V15: =ROUND(+U15+R15,0) -> 729 | W15: =ROUND($H$36*(1+$C$11)^J15,3) -> 2.608 | X15: =ROUND((1-$H$38)*(W15*M15),0) -> 299 | Y15: =ROUND($G$11,0) -> 0 | Z15: =ROUND($G$12,0) -> 0 | AA15: =SUM(X15:Z15) -> 299 | AB15: 430 | AE15: =AE14+1 -> 2025 | AF15: 462 | AG15: 267 | AH15: =+AG15+AF15 -> 729 | AJ15: =ROUND(Y15,0) -> 0 | AK15: 0 | AL15: 0 | AN15: =+AH15-AL15 -> 729 | AQ15: =AQ14+1 -> 2025 | AR15: 462 | AS15: 267 | AT15: 0.023 | AU15: =ROUND((IF($C$47+$F$23>$AQ15,$F$27*$F$30,0)+IF($C$48+$G$23>AQ15,$G$27*$G$30,0))*AT15,0) -> 0 | AV15: 2.105 | AW15: 305 | AZ15: =ROUND(AR15+AS15+AU15+AW15+AY15,0) -> 1034 | BB15: =ROUND($G$13,0) -> 0 | BC15: =ROUND(($G$15*$G$30)-$Z$15,0) -> 0 | BD15: =BB15+BC15 -> 0 | BE15: =AZ15-BD15 -> 1034 | BH15: =BH14+1 -> 2025 | BI15: =+G12 -> 0 | BJ15: 145 | BK15: 8.272 | BL15: =ROUND(BJ15*BK15,0) -> 1199 | BM15: 0.133 | BN15: =ROUND((IF($C$47+$F$23>BH15,$F$27*$F$30,0)+IF($C$48+$G$23>BH15,$G$27*$G$30,0))*BM15,0) -> 0 | BP15: 1199 | BR15: =ROUND($G$15*$G$30,0) -> 0 | BT15: =BP15-BR15 -> 1199 | BW15: =BW14+1 -> 2025 | BX15: 462 | BY15: =U15 -> 267 | BZ15: =AU15 -> 0 | CA15: =SUM(BX15:BZ15) -> 729 | CC15: =BB15 -> 0 | CD15: 0 | CE15: =SUM(CC15:CD15) -> 0 | CG15: =CA15-CE15 -> 729
J16: 2 | L16: 2026 | M16: =ROUND(IF($C$47+$F$23>L16,$F$25*$F$30,0)+IF($C$48+$G$23>L16,$G$25*$G$30,0)+IF($C$49+$H$23>L16,$H$25*$H$30,0),0) -> 145 | N16: 3.279 | O16: 475 | P16: 0 | Q16: 0 | R16: 475 | S16: 1.5 | T16: =ROUND($C$20*(1+$C$21)^J16,0) -> 180 | U16: =ROUND(S16*T16,0) -> 270 | V16: =ROUND(+U16+R16,0) -> 745 | W16: =ROUND($H$36*(1+$C$11)^J16,3) -> 2.686 | X16: =ROUND((1-$H$38)*(W16*M16),0) -> 308 | Y16: =ROUND($H$11,0) -> 0 | Z16: =ROUND($H$12,0) -> 0 | AA16: =SUM(X16:Z16) -> 308 | AB16: =V16-AA16 -> 437 | AE16: 2026 | AF16: 475 | AG16: 270 | AH16: =+AG16+AF16 -> 745 | AJ16: 0 | AK16: 0 | AL16: =SUM(AJ16:AK16) -> 0 | AN16: =+AH16-AL16 -> 745 | AQ16: 2026 | AR16: 475 | AS16: 270 | AT16: =ROUND(($C$28/(1-$C$31))*(1+$C$29)^J16,3) -> 0.024 | AU16: =ROUND((IF($C$47+$F$23>$AQ16,$F$27*$F$30,0)+IF($C$48+$G$23>AQ16,$G$27*$G$30,0)+IF($C$49+$H$23>AQ16,$H$27*$H$30,0))*AT16,0) -> 0 | AV16: =ROUND($C$33*(1+$C$34)^J16,3) -> 2.141 | AW16: =ROUND(AV16*M16,0) -> 310 | AZ16: =ROUND(AR16+AS16+AU16+AW16+AY16,0) -> 1055 | BB16: =ROUND($H$13,0) -> 0 | BC16: =ROUND(($H$15*$H$30)-$Z$16,0) -> 0 | BD16: =BB16+BC16 -> 0 | BE16: 1055 | BH16: 2026 | BI16: =ROUND(H12,0) -> 0 | BJ16: 145 | BK16: =ROUND($C$10*(1+$C$11)^J16,3) -> 8.52 | BL16: =ROUND(BJ16*BK16,0) -> 1235 | BM16: =ROUND($C$13*(1+$C$14)^J16,3) -> 0.137 | BN16: =ROUND((IF($C$47+$F$23>BH16,$F$27*$F$30,0)+IF($C$49+$H$23>BH16,$H$27*$H$30,0)+IF($C$48+$G$23>BH16,$G$27*$G$30,0))*BM16,0) -> 0 | BP16: =BI16+BL16+BN16+BO16 -> 1235 | BR16: =ROUND($H$15*$H$30,0) -> 0 | BT16: =BP16-BR16 -> 1235 | BW16: 2026 | BX16: 475 | BY16: 270 | BZ16: 0 | CA16: 745 | CC16: 0 | CD16: 0 | CE16: =SUM(CC16:CD16) -> 0 | CG16: =CA16-CE16 -> 745
A17: 3) Commodity Cost ($/Dk) = | C17: =+'Gas Input Table Summary'!$D$12 -> 3.091 | E17: 18) Participant Non-Energy Costs (Annual $/Part.) = | F17: =+'Gas Input Table Summary'!$D$35 -> 0 | J17: 3 | L17: 2027 | M17: =ROUND(IF($C$47+$F$23>L17,$F$25*$F$30,0)+IF($C$48+$G$23>L17,$G$25*$G$30,0)+IF($C$49+$H$23>L17,$H$25*$H$30,0),0) -> 145 | N17: =ROUND($C$17*(1+$C$18)^J17,3) -> 3.378 | O17: 490 | P17: 0 | Q17: 0 | R17: 490 | S17: 1.5 | T17: 182 | U17: =ROUND(S17*T17,0) -> 273 | V17: 763 | W17: 2.767 | X17: 317 | Y17: 0 | Z17: 0 | AA17: 317 | AB17: 446 | AE17: 2027 | AF17: 490 | AG17: 273 | AH17: 763 | AJ17: 0 | AK17: 0 | AL17: 0 | AN17: 763 | AQ17: 2027 | AR17: 490 | AS17: 273 | AT17: 0.024 | AU17: =ROUND((IF($C$47+$F$23>$AQ17,$F$27*$F$30,0)+IF($C$48+$G$23>AQ17,$G$27*$G$30,0)+IF($C$49+$H$23>AQ17,$H$27*$H$30,0))*AT17,0) -> 0 | AV17: 2.177 | AW17: 316 | AZ17: 1079 | BB17: 0 | BC17: 0 | BD17: 0 | BE17: 1079 | BH17: 2027 | BI17: 0 | BJ17: 145 | BK17: 8.776 | BL17: =ROUND(BJ17*BK17,0) -> 1273 | BM17: 0.142 | BN17: =ROUND((IF($C$47+$F$23>BH17,$F$27*$F$30,0)+IF($C$49+$H$23>BH17,$H$27*$H$30,0)+IF($C$48+$G$23>BH17,$G$27*$G$30,0))*BM17,0) -> 0 | BP17: 1273 | BR17: =+BC17 -> 0 | BT17: 1273 | BW17: 2027 | BX17: 490 | BY17: 273 | BZ17: 0 | CA17: 763 | CC17: 0 | CD17: 0 | CE17: 0 | CG17: =CA17-CE17 -> 763
A18: Escalation Rate = | C18: =+'Gas Input Table Summary'!$D$13 -> 0.03 | E18: Escalation Rate = | F18: =+'Gas Input Table Summary'!$D$38 -> 0 | J18: 4 | L18: 2028 | M18: 145 | N18: 3.479 | O18: 504 | P18: 0 | Q18: 0 | R18: 504 | S18: 1.5 | T18: 184 | U18: 276 | V18: 780 | W18: 2.85 | X18: 326 | Y18: 0 | Z18: 0 | AA18: 326 | AB18: 454 | AE18: 2028 | AF18: 504 | AG18: 276 | AH18: 780 | AJ18: 0 | AK18: 0 | AL18: 0 | AN18: 780 | AQ18: 2028 | AR18: 504 | AS18: 276 | AT18: 0.025 | AU18: =ROUND((IF($C$47+$F$23>$AQ18,$F$27*$F$30,0)+IF($C$48+$G$23>AQ18,$G$27*$G$30,0)+IF($C$49+$H$23>AQ18,$H$27*$H$30,0))*AT18,0) -> 0 | AV18: 2.214 | AW18: 321 | AZ18: 1101 | BB18: 0 | BC18: 0 | BD18: 0 | BE18: 1101 | BH18: 2028 | BI18: 0 | BJ18: 145 | BK18: 9.039 | BL18: 1311 | BM18: 0.146 | BN18: 0 | BP18: 1311 | BR18: 0 | BT18: 1311 | BW18: 2028 | BX18: 504 | BY18: 276 | BZ18: 0 | CA18: 780 | CC18: 0 | CD18: 0 | CE18: 0 | CG18: 780
J19: 5 | L19: 2029 | M19: 145 | N19: =ROUND($C$17*(1+$C$18)^J19,3) -> 3.583 | O19: =ROUND(M19*N19,0) -> 520 | P19: 0 | Q19: 0 | R19: =O19+Q19 -> 520 | S19: =ROUND(M19*$C$23,1) -> 1.5 | T19: 186 | U19: 279 | V19: 799 | W19: 2.935 | X19: 336 | Y19: 0 | Z19: 0 | AA19: 336 | AB19: 463 | AE19: 2029 | AF19: 520 | AG19: 279 | AH19: 799 | AJ19: 0 | AK19: 0 | AL19: 0 | AN19: 799 | AQ19: 2029 | AR19: 520 | AS19: 279 | AT19: 0.026 | AU19: 0 | AV19: =ROUND($C$33*(1+$C$34)^J19,3) -> 2.251 | AW19: 326 | AZ19: 1125 | BB19: 0 | BC19: 0 | BD19: 0 | BE19: 1125 | BH19: 2029 | BI19: 0 | BJ19: 145 | BK19: 9.31 | BL19: 1350 | BM19: 0.15 | BN19: 0 | BP19: 1350 | BR19: 0 | BT19: 1350 | BW19: 2029 | BX19: 520 | BY19: 279 | BZ19: 0 | CA19: 799 | CC19: 0 | CD19: 0 | CE19: 0 | CG19: 799
A20: 4) Demand Cost ($/Unit/Yr) = | C20: =+'Gas Input Table Summary'!$D$14 -> 176.69 | E20: 19) Participant Non-Energy Savings (Annual $/Part) = | F20: =+'Gas Input Table Summary'!$D$41 -> 0 | J20: 6 | L20: 2030 | M20: 145 | N20: 3.691 | O20: 535 | P20: 0 | Q20: 0 | R20: 535 | S20: 1.5 | T20: 188 | U20: 282 | V20: 817 | W20: 3.023 | X20: 346 | Y20: 0 | Z20: 0 | AA20: 346 | AB20: 471 | AE20: 2030 | AF20: 535 | AG20: 282 | AH20: 817 | AJ20: 0 | AK20: 0 | AL20: 0 | AN20: 817 | AQ20: 2030 | AR20: 535 | AS20: 282 | AT20: 0.027 | AU20: 0 | AV20: 2.289 | AW20: 332 | AZ20: 1149 | BB20: 0 | BC20: 0 | BD20: 0 | BE20: 1149 | BH20: 2030 | BI20: 0 | BJ20: 145 | BK20: 9.589 | BL20: 1390 | BM20: 0.155 | BN20: 0 | BP20: 1390 | BR20: 0 | BT20: 1390 | BW20: 2030 | BX20: 535 | BY20: 282 | BZ20: 0 | CA20: =SUM(BX20:BZ20) -> 817 | CC20: 0 | CD20: 0 | CE20: 0 | CG20: 817
A21: Escalation Rate = | C21: =+'Gas Input Table Summary'!$D$15 -> 0.01 | E21: Escalation Rate = | F21: =+'Gas Input Table Summary'!$D$44 -> 0 | J21: 7 | L21: 2031 | M21: 145 | N21: 3.802 | O21: 551 | P21: 0 | Q21: 0 | R21: 551 | S21: 1.5 | T21: 189 | U21: 284 | V21: 835 | W21: 3.114 | X21: 357 | Y21: 0 | Z21: 0 | AA21: 357 | AB21: 478 | AE21: 2031 | AF21: 551 | AG21: 284 | AH21: 835 | AJ21: 0 | AK21: 0 | AL21: 0 | AN21: 835 | AQ21: 2031 | AR21: 551 | AS21: 284 | AT21: 0.027 | AU21: 0 | AV21: 2.328 | AW21: 338 | AZ21: 1173 | BB21: 0 | BC21: 0 | BD21: 0 | BE21: 1173 | BH21: 2031 | BI21: 0 | BJ21: 145 | BK21: 9.877 | BL21: 1432 | BM21: 0.159 | BN21: 0 | BP21: 1432 | BR21: 0 | BT21: 1432 | BW21: 2031 | BX21: 551 | BY21: 284 | BZ21: 0 | CA21: 835 | CC21: 0 | CD21: 0 | CE21: 0 | CG21: 835
J22: 8 | L22: 2032 | M22: 145 | N22: 3.916 | O22: 568 | P22: 0 | Q22: 0 | R22: 568 | S22: 1.5 | T22: 191 | U22: 287 | V22: 855 | W22: 3.207 | X22: 367 | Y22: 0 | Z22: 0 | AA22: 367 | AB22: 488 | AE22: 2032 | AF22: 568 | AG22: 287 | AH22: 855 | AJ22: 0 | AK22: 0 | AL22: 0 | AN22: 855 | AQ22: 2032 | AR22: 568 | AS22: 287 | AT22: 0.028 | AU22: 0 | AV22: 2.367 | AW22: 343 | AZ22: 1198 | BB22: 0 | BC22: 0 | BD22: 0 | BE22: 1198 | BH22: 2032 | BI22: 0 | BJ22: 145 | BK22: 10.173 | BL22: 1475 | BM22: 0.164 | BN22: 0 | BP22: 1475 | BR22: 0 | BT22: 1475 | BW22: 2032 | BX22: 568 | BY22: 287 | BZ22: 0 | CA22: 855 | CC22: 0 | CD22: 0 | CE22: 0 | CG22: 855
A23: 5) Peak Reduction Factor = | C23: =+'Gas Input Table Summary'!$D$16 -> 0.01 | E23: 20) Project Life (Years) = | F23: =ROUND('Database Inputs'!D12,0) -> 10 | J23: 9 | L23: 2033 | M23: 145 | N23: 4.033 | O23: 585 | P23: 0 | Q23: 0 | R23: 585 | S23: 1.5 | T23: 193 | U23: 290 | V23: 875 | W23: 3.304 | X23: 378 | Y23: 0 | Z23: 0 | AA23: 378 | AB23: 497 | AE23: 2033 | AF23: 585 | AG23: 290 | AH23: 875 | AJ23: 0 | AK23: 0 | AL23: 0 | AN23: 875 | AQ23: 2033 | AR23: 585 | AS23: 290 | AT23: 0.029 | AU23: 0 | AV23: 2.407 | AW23: 349 | AZ23: 1224 | BB23: 0 | BC23: 0 | BD23: 0 | BE23: 1224 | BH23: 2033 | BI23: 0 | BJ23: 145 | BK23: 10.479 | BL23: 1519 | BM23: 0.169 | BN23: 0 | BP23: 1519 | BR23: 0 | BT23: 1519 | BW23: 2033 | BX23: 585 | BY23: 290 | BZ23: 0 | CA23: 875 | CC23: 0 | CD23: 0 | CE23: 0 | CG23: 875
J24: 10 | L24: 2034 | M24: =ROUND(IF($C$47+$F$23>L24,$F$25*$F$30,0)+IF($C$48+$G$23>L24,$G$25*$G$30,0)+IF($C$49+$H$23>L24,$H$25*$H$30,0),0) -> 0 | N24: 4.154 | O24: 0 | P24: 0 | Q24: 0 | R24: 0 | S24: 0 | T24: 195 | U24: 0 | V24: 0 | W24: 3.403 | X24: 0 | Y24: 0 | Z24: 0 | AA24: 0 | AB24: 0 | AE24: 2034 | AF24: 0 | AG24: 0 | AH24: 0 | AJ24: 0 | AK24: 0 | AL24: 0 | AN24: 0 | AQ24: 2034 | AR24: 0 | AS24: 0 | AT24: 0.03 | AU24: 0 | AV24: 2.448 | AW24: 0 | AZ24: 0 | BB24: 0 | BC24: 0 | BD24: 0 | BE24: 0 | BH24: 2034 | BI24: 0 | BJ24: 0 | BK24: 10.793 | BL24: 0 | BM24: 0.174 | BN24: 0 | BP24: 0 | BR24: 0 | BT24: 0 | BW24: 2034 | BX24: 0 | BY24: 0 | BZ24: 0 | CA24: 0 | CC24: 0 | CD24: 0 | CE24: 0 | CG24: 0
A25: 6) Variable O&M ($/Dk) = | C25: =+'Gas Input Table Summary'!$D$17 -> 0 | E25: 21) Avg. Dk/Part. Saved = | F25: =+ROUND(F32/F30,3) -> 2.302 | J25: 11 | L25: 2035 | M25: =ROUND(IF($C$47+$F$23>L25,$F$25*$F$30,0)+IF($C$48+$G$23>L25,$G$25*$G$30,0)+IF($C$49+$H$23>L25,$H$25*$H$30,0),0) -> 0 | N25: =ROUND($C$17*(1+$C$18)^J25,3) -> 4.279 | O25: =ROUND(M25*N25,0) -> 0 | P25: 0 | Q25: 0 | R25: 0 | S25: =ROUND(M25*$C$23,1) -> 0 | T25: =ROUND($C$20*(1+$C$21)^J25,0) -> 197 | U25: 0 | V25: 0 | W25: 3.505 | X25: 0 | Y25: 0 | Z25: 0 | AA25: 0 | AB25: 0 | AE25: 2035 | AF25: 0 | AG25: 0 | AH25: 0 | AJ25: 0 | AK25: 0 | AL25: 0 | AN25: 0 | AQ25: 2035 | AR25: 0 | AS25: 0 | AT25: 0.031 | AU25: 0 | AV25: 2.489 | AW25: 0 | AZ25: 0 | BB25: 0 | BC25: 0 | BD25: 0 | BE25: 0 | BH25: 2035 | BI25: 0 | BJ25: 0 | BK25: 11.117 | BL25: 0 | BM25: 0.179 | BN25: 0 | BP25: 0 | BR25: 0 | BT25: 0 | BW25: 2035 | BX25: 0 | BY25: 0 | BZ25: 0 | CA25: 0 | CC25: 0 | CD25: 0 | CE25: 0 | CG25: 0
A26: Escalation Rate = | C26: =+'Gas Input Table Summary'!$D$18 -> 0 | J26: 12 | L26: 2036 | M26: 0 | N26: 4.407 | O26: 0 | P26: 0 | Q26: 0 | R26: 0 | S26: 0 | T26: 199 | U26: 0 | V26: 0 | W26: 3.61 | X26: 0 | Y26: 0 | Z26: 0 | AA26: 0 | AB26: 0 | AE26: 2036 | AF26: 0 | AG26: 0 | AH26: 0 | AJ26: 0 | AK26: 0 | AL26: 0 | AN26: 0 | AQ26: 2036 | AR26: 0 | AS26: 0 | AT26: 0.032 | AU26: 0 | AV26: 2.531 | AW26: 0 | AZ26: 0 | BB26: 0 | BC26: 0 | BD26: 0 | BE26: 0 | BH26: 2036 | BI26: 0 | BJ26: 0 | BK26: 11.45 | BL26: 0 | BM26: 0.185 | BN26: 0 | BP26: 0 | BR26: 0 | BT26: 0 | BW26: 2036 | BX26: 0 | BY26: 0 | BZ26: 0 | CA26: 0 | CC26: 0 | CD26: 0 | CE26: 0 | CG26: 0
E27: 22) Avg Non-Gas Fuel Units/Part. Saved = | F27: =+'Database Inputs'!H12 -> 0 | J27: 13 | L27: 2037 | M27: 0 | N27: =ROUND($C$17*(1+$C$18)^J27,3) -> 4.539 | O27: 0 | P27: 0 | Q27: 0 | R27: 0 | S27: 0 | T27: 201 | U27: 0 | V27: 0 | W27: 3.718 | X27: 0 | Y27: 0 | Z27: 0 | AA27: 0 | AB27: 0 | AE27: 2037 | AF27: 0 | AG27: 0 | AH27: 0 | AJ27: 0 | AK27: 0 | AL27: 0 | AN27: 0 | AQ27: 2037 | AR27: 0 | AS27: 0 | AT27: 0.033 | AU27: 0 | AV27: 2.574 | AW27: 0 | AZ27: 0 | BB27: 0 | BC27: 0 | BD27: 0 | BE27: 0 | BH27: 2037 | BI27: 0 | BJ27: 0 | BK27: 11.794 | BL27: 0 | BM27: 0.19 | BN27: 0 | BP27: 0 | BR27: 0 | BT27: 0 | BW27: 2037 | BX27: 0 | BY27: 0 | BZ27: 0 | CA27: 0 | CC27: 0 | CD27: 0 | CE27: 0 | CG27: 0
A28: 7) Non-Gas Fuel Cost ($/Fuel Unit) = | C28: =+'Gas Input Table Summary'!$D$19 -> 0.02062 | E28: 22a) Avg Additional Non-Gas Fuel Units/ Part. Used = | F28: 0 | J28: 14 | L28: 2038 | M28: 0 | N28: 4.675 | O28: 0 | P28: 0 | Q28: 0 | R28: 0 | S28: 0 | T28: 203 | U28: 0 | V28: 0 | W28: 3.83 | X28: 0 | Y28: 0 | Z28: 0 | AA28: 0 | AB28: 0 | AE28: 2038 | AF28: 0 | AG28: 0 | AH28: 0 | AJ28: 0 | AK28: 0 | AL28: 0 | AN28: 0 | AQ28: 2038 | AR28: 0 | AS28: 0 | AT28: 0.034 | AU28: 0 | AV28: 2.617 | AW28: 0 | AZ28: 0 | BB28: 0 | BC28: 0 | BD28: 0 | BE28: 0 | BH28: 2038 | BI28: 0 | BJ28: 0 | BK28: 12.148 | BL28: 0 | BM28: 0.196 | BN28: 0 | BP28: 0 | BR28: 0 | BT28: 0 | BW28: 2038 | BX28: 0 | BY28: 0 | BZ28: 0 | CA28: 0 | CC28: 0 | CD28: 0 | CE28: 0 | CG28: 0
A29: Escalation Rate = | C29: =+'Gas Input Table Summary'!$D$20 -> 0.03 | J29: 15 | L29: 2039 | M29: 0 | N29: 4.816 | O29: 0 | P29: 0 | Q29: 0 | R29: 0 | S29: 0 | T29: 205 | U29: 0 | V29: 0 | W29: 3.945 | X29: 0 | Y29: 0 | Z29: 0 | AA29: 0 | AB29: 0 | AE29: 2039 | AF29: 0 | AG29: 0 | AH29: 0 | AJ29: 0 | AK29: 0 | AL29: 0 | AN29: 0 | AQ29: 2039 | AR29: 0 | AS29: 0 | AT29: 0.035 | AU29: 0 | AV29: 2.662 | AW29: 0 | AZ29: 0 | BB29: 0 | BC29: 0 | BD29: 0 | BE29: 0 | BH29: 2039 | BI29: 0 | BJ29: 0 | BK29: 12.512 | BL29: 0 | BM29: 0.202 | BN29: 0 | BP29: 0 | BR29: 0 | BT29: 0 | BW29: 2039 | BX29: 0 | BY29: 0 | BZ29: 0 | CA29: 0 | CC29: 0 | CD29: 0 | CE29: 0 | CG29: 0
E30: 23) Number of Participants = | F30: =ROUND('Database Inputs'!C12,0) -> 63 | J30: 16 | L30: 2040 | M30: 0 | N30: 4.96 | O30: 0 | P30: 0 | Q30: 0 | R30: 0 | S30: 0 | T30: 207 | U30: 0 | V30: 0 | W30: 4.063 | X30: 0 | Y30: 0 | Z30: 0 | AA30: 0 | AB30: 0 | AE30: 2040 | AF30: 0 | AG30: 0 | AH30: 0 | AJ30: 0 | AK30: 0 | AL30: 0 | AN30: 0 | AQ30: 2040 | AR30: 0 | AS30: 0 | AT30: 0.036 | AU30: 0 | AV30: 2.707 | AW30: 0 | AZ30: 0 | BB30: 0 | BC30: 0 | BD30: 0 | BE30: 0 | BH30: 2040 | BI30: 0 | BJ30: 0 | BK30: 12.887 | BL30: 0 | BM30: 0.208 | BN30: 0 | BP30: 0 | BR30: 0 | BT30: 0 | BW30: 2040 | BX30: 0 | BY30: 0 | BZ30: 0 | CA30: 0 | CC30: 0 | CD30: 0 | CE30: 0 | CG30: 0
A31: 8) Non-Gas Fuel Loss Factor | C31: =+'Gas Input Table Summary'!$D$21 -> 0.07719 | J31: 17 | L31: 2041 | M31: 0 | N31: 5.109 | O31: 0 | P31: 0 | Q31: 0 | R31: 0 | S31: 0 | T31: 209 | U31: 0 | V31: 0 | W31: 4.185 | X31: 0 | Y31: 0 | Z31: 0 | AA31: 0 | AB31: 0 | AE31: 2041 | AF31: 0 | AG31: 0 | AH31: 0 | AJ31: 0 | AK31: 0 | AL31: 0 | AN31: 0 | AQ31: 2041 | AR31: 0 | AS31: 0 | AT31: 0.037 | AU31: 0 | AV31: 2.752 | AW31: 0 | AZ31: 0 | BB31: 0 | BC31: 0 | BD31: 0 | BE31: 0 | BH31: 2041 | BI31: 0 | BJ31: 0 | BK31: 13.274 | BL31: 0 | BM31: 0.214 | BN31: 0 | BP31: 0 | BR31: 0 | BT31: 0 | BW31: 2041 | BX31: 0 | BY31: 0 | BZ31: 0 | CA31: 0 | CC31: 0 | CD31: 0 | CE31: 0 | CG31: 0
E32: 24) Total Annual Dk Saved = | F32: =+'Total Program Inputs'!G13 -> 145 | J32: 18 | L32: 2042 | M32: 0 | N32: 5.262 | O32: 0 | P32: 0 | Q32: 0 | R32: 0 | S32: 0 | T32: 211 | U32: 0 | V32: 0 | W32: 4.311 | X32: 0 | Y32: 0 | Z32: 0 | AA32: 0 | AB32: 0 | AE32: 2042 | AF32: 0 | AG32: 0 | AH32: 0 | AJ32: 0 | AK32: 0 | AL32: 0 | AN32: 0 | AQ32: 2042 | AR32: 0 | AS32: 0 | AT32: 0.038 | AU32: 0 | AV32: 2.799 | AW32: 0 | AZ32: 0 | BB32: 0 | BC32: 0 | BD32: 0 | BE32: 0 | BH32: 2042 | BI32: 0 | BJ32: 0 | BK32: 13.672 | BL32: 0 | BM32: 0.221 | BN32: 0 | BP32: 0 | BR32: 0 | BT32: 0 | BW32: 2042 | BX32: 0 | BY32: 0 | BZ32: 0 | CA32: 0 | CC32: 0 | CD32: 0 | CE32: 0 | CG32: 0
A33: 9) Gas Environmental Damage Factor = | C33: =+'Gas Input Table Summary'!$D$22 -> 2.07 | J33: 19 | L33: 2043 | M33: 0 | N33: 5.42 | O33: 0 | P33: 0 | Q33: 0 | R33: 0 | S33: 0 | T33: 213 | U33: 0 | V33: 0 | W33: 4.44 | X33: 0 | Y33: 0 | Z33: 0 | AA33: 0 | AB33: 0 | AE33: 2043 | AF33: 0 | AG33: 0 | AH33: 0 | AJ33: 0 | AK33: 0 | AL33: 0 | AN33: 0 | AQ33: 2043 | AR33: 0 | AS33: 0 | AT33: 0.039 | AU33: 0 | AV33: 2.846 | AW33: 0 | AZ33: 0 | BB33: 0 | BC33: 0 | BD33: 0 | BE33: 0 | BH33: 2043 | BI33: 0 | BJ33: 0 | BK33: 14.082 | BL33: 0 | BM33: 0.227 | BN33: 0 | BP33: 0 | BR33: 0 | BT33: 0 | BW33: 2043 | BX33: 0 | BY33: 0 | BZ33: 0 | CA33: 0 | CC33: 0 | CD33: 0 | CE33: 0 | CG33: 0
A34: Escalation Rate = | C34: =+'Gas Input Table Summary'!$D$23 -> 0.0169 | E34: 25) Incentive/Participant = | F34: ='Database Inputs'!L12 -> 15 | J34: 20 | L34: 2044 | M34: 0 | N34: 5.583 | O34: 0 | P34: 0 | Q34: 0 | R34: 0 | S34: 0 | T34: 216 | U34: 0 | V34: 0 | W34: 4.573 | X34: 0 | Y34: 0 | Z34: 0 | AA34: 0 | AB34: 0 | AE34: 2044 | AF34: 0 | AG34: 0 | AH34: 0 | AJ34: 0 | AK34: 0 | AL34: 0 | AN34: 0 | AQ34: 2044 | AR34: 0 | AS34: 0 | AT34: 0.04 | AU34: 0 | AV34: 2.894 | AW34: 0 | AZ34: 0 | BB34: 0 | BC34: 0 | BD34: 0 | BE34: 0 | BH34: 2044 | BI34: 0 | BJ34: 0 | BK34: 14.505 | BL34: 0 | BM34: 0.234 | BN34: 0 | BP34: 0 | BR34: 0 | BT34: 0 | BW34: 2044 | BX34: 0 | BY34: 0 | BZ34: 0 | CA34: 0 | CC34: 0 | CD34: 0 | CE34: 0 | CG34: 0
J35: 21 | L35: 2045 | M35: =ROUND(IF($C$47+$F$23>L35,$F$25*$F$30,0)+IF($C$48+$G$23>L35,$G$25*$G$30,0)+IF($C$49+$H$23>L35,$H$25*$H$30,0),0) -> 0 | N35: =ROUND($C$17*(1+$C$18)^J35,3) -> 5.75 | O35: =ROUND(M35*N35,0) -> 0 | P35: =ROUND($C$25*(1+$C$26)^J35,3) -> 0 | Q35: =ROUND(M35*P35,0) -> 0 | R35: =O35+Q35 -> 0 | S35: =ROUND(M35*$C$23,1) -> 0 | T35: =ROUND($C$20*(1+$C$21)^J35,0) -> 218 | U35: =ROUND(S35*T35,0) -> 0 | V35: =ROUND(+U35+R35,0) -> 0 | W35: =ROUND($H$36*(1+$C$11)^J35,3) -> 4.71 | X35: =ROUND((1-$H$38)*(W35*M35),0) -> 0 | Y35: 0 | Z35: 0 | AA35: =SUM(X35:Z35) -> 0 | AB35: =V35-AA35 -> 0 | AE35: 2045 | AF35: =+R35 -> 0 | AG35: =+U35 -> 0 | AH35: =+AG35+AF35 -> 0 | AJ35: =ROUND(Y35,0) -> 0 | AK35: =ROUND(Z35,0) -> 0 | AL35: =SUM(AJ35:AK35) -> 0 | AN35: =+AH35-AL35 -> 0 | AQ35: 2045 | AR35: =AF35 -> 0 | AS35: =+AG35 -> 0 | AT35: =ROUND(($C$28/(1-$C$31))*(1+$C$29)^J35,3) -> 0.042 | AU35: =ROUND((IF($C$47+$F$23>$AQ35,$F$27*$F$30,0)+IF($C$48+$G$23>AQ35,$G$27*$G$30,0)+IF($C$49+$H$23>AQ35,$H$27*$H$30,0))*AT35,0) -> 0 | AV35: =ROUND($C$33*(1+$C$34)^J35,3) -> 2.943 | AW35: =ROUND(AV35*M35,0) -> 0 | AZ35: =ROUND(AR35+AS35+AU35+AW35+AY35,0) -> 0 | BB35: 0 | BC35: 0 | BD35: =BB35+BC35 -> 0 | BE35: =AZ35-BD35 -> 0 | BH35: 2045 | BI35: 0 | BJ35: =+M35 -> 0 | BK35: =ROUND($C$10*(1+$C$11)^J35,3) -> 14.94 | BL35: =ROUND(BJ35*BK35,0) -> 0 | BM35: =ROUND($C$13*(1+$C$14)^J35,3) -> 0.241 | BN35: =ROUND((IF($C$47+$F$23>BH35,$F$27*$F$30,0)+IF($C$49+$H$23>BH35,$H$27*$H$30,0)+IF($C$48+$G$23>BH35,$G$27*$G$30,0))*BM35,0) -> 0 | BP35: =BI35+BL35+BN35+BO35 -> 0 | BR35: =+BC35 -> 0 | BT35: =BP35-BR35 -> 0 | BW35: 2045 | BX35: 0 | BY35: =U35 -> 0 | BZ35: =AU35 -> 0 | CA35: =SUM(BX35:BZ35) -> 0 | CC35: =BB35 -> 0 | CD35: =BC35 -> 0 | CE35: =SUM(CC35:CD35) -> 0 | CG35: =CA35-CE35 -> 0
A36: 10) Non Gas Fuel Environmental Damage Factor = | C36: =+'Gas Input Table Summary'!$D$24 -> 0 | E36: 26) Distribution Delivery Charge | H36: =+'Gas Input Table Summary'!D58 -> 2.532 | J36: 22 | L36: 2046 | M36: 0 | N36: 5.923 | O36: 0 | P36: 0 | Q36: 0 | R36: 0 | S36: 0 | T36: 220 | U36: 0 | V36: 0 | W36: 4.852 | X36: 0 | Y36: 0 | Z36: 0 | AA36: 0 | AB36: 0 | AE36: 2046 | AF36: 0 | AG36: 0 | AH36: 0 | AJ36: 0 | AK36: 0 | AL36: 0 | AN36: 0 | AQ36: 2046 | AR36: 0 | AS36: 0 | AT36: 0.043 | AU36: 0 | AV36: 2.993 | AW36: 0 | AZ36: 0 | BB36: 0 | BC36: 0 | BD36: 0 | BE36: 0 | BH36: 2046 | BI36: 0 | BJ36: 0 | BK36: 15.388 | BL36: 0 | BM36: 0.248 | BN36: 0 | BP36: 0 | BR36: 0 | BT36: 0 | BW36: 2046 | BX36: 0 | BY36: 0 | BZ36: 0 | CA36: 0 | CC36: 0 | CD36: 0 | CE36: 0 | CG36: 0
A37: Escalation Rate = | C37: =+'Gas Input Table Summary'!$D$25 -> 0
E38: 27) Effective Income Tax Rate = | H38: =+'Gas Input Table Summary'!D59 -> 0.21 | K38: Total = | M38: =SUM(M14:M36) -> 1450 | V38: =SUM(V14:V36) -> 7912 | AA38: =SUM(AA14:AA36) -> 4507 | AB38: =SUM(AB14:AB36) -> 3405 | AD38: Total = | AH38: =SUM(AH14:AH36) -> 7912 | AL38: =SUM(AL14:AL36) -> 1183 | AN38: =SUM(AN14:AN36) -> 6729 | AP38: Total = | AZ38: =SUM(AZ14:AZ36) -> 11152 | BD38: =SUM(BD14:BD36) -> 2128 | BE38: =SUM(BE14:BE36) -> 9024 | BG38: Total = | BJ38: =SUM(BJ14:BJ36) -> 1450 | BP38: =SUM(BP14:BP36) -> 14293 | BR38: =SUM(BR14:BR36) -> 1890 | BT38: =SUM(BT14:BT36) -> 12403 | BZ38: Total = | CA38: =SUM(CA14:CA36) -> 7912 | CE38: =SUM(CE14:CE36) -> 2128 | CG38: =SUM(CG14:CG36) -> 5784
A39: 11) Participant Discount Rate = | C39: =+'Gas Input Table Summary'!$D$26 -> 0.0987 | E39: (Federal & State Taxes) | T39: NPV = | V39: =ROUND(V14+NPV($C$41,V15:V36),0) -> 5869 | AA39: =ROUND(AA14+NPV($C$41,AA15:AA36),0) -> 3640 | AB39: =ROUND(AB14+NPV($C$41,AB15:AB36),0) -> 2230 | AG39: NPV = | AH39: =ROUND(AH14+NPV($C$41,AH15:AH36),0) -> 5869 | AL39: =ROUND(AL14+NPV($C$41,AL15:AL36),0) -> 1183 | AN39: =+AH39-AL39 -> 4686 | AW39: NPV = | AZ39: =ROUND(AZ14+NPV($C$43,AZ15:AZ36),0) -> 10032 | BD39: =ROUND(BD14+NPV($C$43,BD15:BD36),0) -> 2128 | BE39: =AZ39-BD39 -> 7904 | BN39: NPV = | BP39: =ROUND(BP14+NPV($C$39,BP15:BP36),0) -> 9803 | BR39: =ROUND(BR14+NPV($C$39,BR15:BR36),0) -> 1890 | BT39: =ROUND(BT14+NPV($C$39,BT15:BT36),0) -> 7913 | BZ39: NPV = | CA39: =ROUND(CA14+NPV($C$41,CA15:CA36),0) -> 5869 | CE39: =ROUND(CE14+NPV($C$41,CE15:CE36),0) -> 2128 | CG39: =ROUND(CG14+NPV($C$41,CG15:CG36),0) -> 3741
A41: 12) Utility Discount Rate = | C41: =+'Gas Input Table Summary'!$D$27 -> 0.0701 | E41: Test Results | F41: NPV | G41: B/C | K41: Total NPV = | N41: =AB39 -> 2230 | AD41: Total NPV = | AG41: =AN39 -> 4686 | AP41: Total NPV = | AS41: =BE39 -> 7904 | BG41: Total NPV = | BJ41: =BT39 -> 7913 | BV41: Total NPV = | BY41: =CG39 -> 3741
E42: Ratepayer Impact Measure Test | F42: =N41 -> 2230 | G42: =N42 -> 1.61 | K42: Benefit/Cost Ratio = | N42: =ROUND(V39/AA39,2) -> 1.61 | AD42: Benefit/Cost Ratio = | AG42: =ROUND(AH39/AL39,2) -> 4.96 | AP42: Benefit/Cost Ratio = | AS42: =ROUND(AZ39/BD39,2) -> 4.71 | BG42: Benefit/Cost Ratio = | BJ42: =ROUND(BP39/BR39,2) -> 5.19 | BV42: Benefit/Cost Ratio = | BY42: =ROUND(CA39/CE39,2) -> 2.76
A43: 13) Societal Discount Rate = | C43: =+'Gas Input Table Summary'!$D$28 -> 0.0234 | E43: Utility Cost Test | F43: =AG41 -> 4686 | G43: =AG42 -> 4.96
E44: Societal Test | F44: =AS41 -> 7904 | G44: =AS42 -> 4.71 | J44: Worksheet Calculations | BV44: Worksheet Calculations
A45: 14) General Input Data Year = | C45: =+'Gas Input Table Summary'!$D$29 -> 2024 | E45: Participant Test | F45: =BJ41 -> 7913 | G45: =BJ42 -> 5.19 | J45: (A) | K45: = Average Dk/Participant Saved (21) x Number of Participants (23) for Project Life (20) | T45: (I) | U45: = (G) x (H) | AD45: Worksheet Calculations | AP45: Worksheet Calculations | BG45: Worksheet Calculations | BV45: (A) | BW45: = Table 1 (F)
E46: Total Resource Cost Test | F46: =BY41 -> 3741 | G46: =BY42 -> 2.76 | J46: (B) | K46: = Commodity Cost (3) escalated | T46: (J) | U46: = (F) + (I) | AD46: (A) | AE46: = Table 1 (F) | AP46: (A) | AQ46: = Table 1 (F) | AW46: (H) | AZ46: = Table 2 (F) | BG46: (A) | BH46: = Table 1 (N) | BL46: (G) | BM46: = (A) + (D) + (F) | BV46: (B) | BW46: = Table 1 (I)
A47: 15) Project Analysis Year 1 = | C47: =+'Total Program Inputs'!C6 -> 2024 | J47: (C) | K47: = (A) x (B) | T47: (K) | U47: = Distribution Delivery Charge (26) escalated. | AD47: (B) | AE47: = Table 1 (I) | AP47: (G) | AQ47: = Table 1 (I) | AW47: (I) | AZ47: = Direct Part. Costs (17) x No. of Part. (23) - Table 1 (N) | BG47: (B) | BH47: = Table 1 (A) | BL47: (H) | BM47: = Direct Participant Costs (17) x Number of Participants (23) | BV47: (C) | BW47: = Table 3 (D)
J48: (D) | K48: = Variable O&M Cost (6), escalated | T48: (L) | U48: = (A) x (K) x (1-Inverse of Tax Rate (27) | AD48: (C) | AE48: = Table 1 (J) | AP48: (C) | AQ48: = Non-Gas Fuel Cost (7), adjusted for losses (8), escalated.. | AW48: (J) | AZ48: = (H) + (I) | BG48: (C) | BH48: = Retail Rate (1) escalated. | BL48: (I) | BM48: = (G) - (H) | BV48: (D) | BW48: = (A) + (B) + (C)
J49: (E) | K49: = (A) x (D) | T49: (M) | U49: = Admin & Operating Costs (16a) | AD49: (D) | AE49: = Table 1 (M) | AP49: (D) | AQ49: = (C) x [Avg. Non-Gas Fuel Units/Part.Saved (22) x No. of Part. (23) | AW49: (K) | AZ49: = (G) - (J) | BG49: (D) | BH49: =(B) x (C) | BV49: (E) | BW49: = Table 3 (H)
J50: (F) | K50: = (C) + (E) | T50: (N) | U50: = Incentive Costs (16b) | AD50: (E) | AE50: = Table 1 (N) | AP50: (E) | AQ50: = Gas Environmental Damage Factor (9), escalated | BG50: (E) | BH50: = Non-Gas Fuel Retail Rate (2), escalated. | BV50: (F) | BW50: = Table 3 (I)
J51: (G) | K51: = (A) x Peak Reduction Factor (5) | T51: (O) | U51: = (L) + (M) + (N) | AD51: (F) | AE51: = (D) + (E) | AP51: (F) | AQ51: = Table 1 (A) x (E) | BG51: (F) | BH51: = (E) x [Avg. Non-Gas Fuel Units/Part.Saved (22) x No. of Part. (23) | BV51: (G) | BW51: = (E) + (F)
J52: (H) | K52: = Demand Cost (4) escalated. | T52: (P) | U52: = (J) - (O) | AD52: (G) | AE52: = (C) - (F) | AP52: (G) | AQ52: = (A) + (B) + (D) + (F) | BV52: (H) | BW52: = (D) - (G)

Sheet Programmable Tstats - Tier 2
A1: NATURAL GAS CONSERVATION PROGRAMS/DEMAND-SIDE MANAGEMENT | K1: Table 1 | AD1: Table 2 | AP1: Table 3 | BG1: Table 4 | BV1: Table 5
A2: BEN/COST ANALYSIS FOR GAS CONSERVATION | K2: Ratepayer Impact Measure Test | AD2: Utility Cost Test | AP2: Societal Test | BG2: Participant Test | BV2: Total Resource Cost Test
A4: Company: | B4: Montana-Dakota Utilities Co. | K4: Company: | M4: =B4 -> Montana-Dakota Utilities Co. | AD4: Company: | AF4: =B4 -> Montana-Dakota Utilities Co. | AP4: Company: | AR4: =AF4 -> Montana-Dakota Utilities Co. | BH4: Company: | BI4: =AR4 -> Montana-Dakota Utilities Co. | BW4: Company: | BX4: =BI4 -> Montana-Dakota Utilities Co.
A5: Project: | B5: ='Database Inputs'!A13 -> Programmable Thermostats - Tier 2 | K5: Project: | M5: =$B$5 -> Programmable Thermostats - Tier 2 | AD5: Project: | AF5: =$B$5 -> Programmable Thermostats - Tier 2 | AP5: Project: | AR5: =$B$5 -> Programmable Thermostats - Tier 2 | BH5: Project: | BI5: =$B$5 -> Programmable Thermostats - Tier 2 | BW5: Project: | BX5: =$B$5 -> Programmable Thermostats - Tier 2
A6: Program Years: | B6: ='Total Program'!$B$6 -> 2024
N7: Benefits | X7: Costs | AF7: Benefits | AJ7: Costs | AR7: Benefits | BB7: Costs | BI7: Benefits | BR7: Costs | BX7: Benefits | CC7: Costs
A8: Input Data | F8: =+'Total Program Inputs'!C6 -> 2024 | AB8: Annual | AN8: Annual | AT8: Non-Gas | BE8: Annual | BT8: Annual | CG8: Annual
M9: Total | N9: Gas | O9: Gas | P9: Variable | Q9: Variable | R9: Total | S9: Peak Dk | T9: Demand | U9: Total | W9: Distribution | Y9: Program | AA9: Total | AB9: Benefits | AF9: Total | AG9: Total | AH9: Annual | AJ9: Program | AL9: Utility | AN9: Benefits | AR9: Total | AS9: Total | AT9: Energy | AU9: Non-Gas | AV9: Environmental | AW9: Environmental | AZ9: Annual | BB9: Utility | BC9: Participants' | BD9: Annual | BE9: Benefits | BJ9: Total | BL9: Gas | BM9: Non-Gas | BN9: Non-Gas | BP9: Total | BR9: Direct | BT9: Benefits | BX9: Total | BY9: Total | BZ9: Non-Gas | CA9: Total | CC9: Utility | CD9: Participants' | CG9: Benefits
A10: 1) Retail Rate ($/Dk) = | C10: =+'Gas Input Table Summary'!$D$7 -> 8.031 | E10: 16) Utility Project Costs | M10: Energy | N10: Commodity | O10: Commodity | P10: O & M | Q10: O & M | R10: Energy | S10: Demand | T10: Savings | U10: Demand | V10: Total | W10: Delivery | X10: Lost | Y10: Admin | Z10: Incentive | AA10: Program | AB10: Less | AF10: Energy | AG10: Demand | AH10: Total | AJ10: Admin | AK10: Incentive | AL10: Program | AN10: Less | AR10: Energy | AS10: Demand | AT10: Savings | AU10: Energy | AV10: Damage | AW10: Damage | AZ10: Total | BB10: Program | BC10: Costs Net | BD10: Total | BE10: Less | BI10: Incentives | BJ10: Energy | BK10: Retail | BL10: Bill | BM10: Fuel | BN10: Energy | BP10: Annual | BR10: Participant | BT10: Less | BX10: Energy | BY10: Demand | BZ10: Energy | CA10: Annual | CC10: Program | CD10: Costs Net | CE10: Total | CG10: Less
A11: Escalation Rate = | C11: =+'Gas Input Table Summary'!$D$8 -> 0.03 | E11: 16a) Administrative & Operating Costs = | F11: =+'Total Program Inputs'!M14 -> 2407 | J11: t | M11: Reduction | N11: Cost/Dk | O11: Savings | P11: Cost/Dk | Q11: Savings | R11: Savings | S11: Reduction | T11: Per Unit | U11: Savings | V11: Savings | W11: Charge | X11: Margin | Y11: Costs | Z11: Costs | AA11: Costs | AB11: Costs | AF11: Savings | AG11: Savings | AH11: Savings | AJ11: Costs | AK11: Costs | AL11: Costs | AN11: Costs | AR11: Savings | AS11: Savings | AT11: ($/Part.) | AU11: Savings | AV11: Savings/Dk | AW11: Savings | AZ11: Savings | BB11: Costs | BC11: of Rebate | BD11: Costs | BE11: Costs | BI11: Received | BJ11: Reduction | BK11: Rate | BL11: Savings | BM11: Retail Rate | BN11: Savings | BP11: Benefits | BR11: Costs | BT11: Costs | BX11: Savings | BY11: Savings | BZ11: Savings | CA11: Benefits | CC11: Costs | CD11: of Rebate | CE11: Costs | CG11: Costs
E12: 16b) Incentive Costs = | F12: =+'Total Program Inputs'!I14 -> 9586 | L12: Year | M12: (A) | N12: (B) | O12: (C) | P12: (D) | Q12: (E) | R12: (F) | S12: (G) | T12: (H) | U12: (I) | V12: (J) | W12: (K) | X12: (L) | Y12: (M) | Z12: (N) | AA12: (O) | AB12: (P) | AE12: Year | AF12: (A) | AG12: (B) | AH12: (C) | AJ12: (D) | AK12: (E) | AL12: (F) | AN12: (G) | AQ12: Year | AR12: (A) | AS12: (B) | AT12: (C) | AU12: (D) | AV12: (E) | AW12: (F) | AZ12: (G) | BB12: (H) | BC12: (I) | BD12: (J) | BE12: (K) | BH12: Year | BI12: (A) | BJ12: (B) | BK12: (C) | BL12: (D) | BM12: (E) | BN12: (F) | BP12: (G) | BR12: (H) | BT12: (I) | BW12: Year | BX12: (A) | BY12: (B) | BZ12: (C) | CA12: (D) | CC12: (E) | CD12: (F) | CE12: (G) | CG12: (H)
A13: 2) Non-Gas Fuel Retail Rate ($/Fuel Unit) = | C13: =+'Gas Input Table Summary'!$D$9 -> 0.12956 | E13: 16c) Total Utility Project Costs = | F13: =SUM(F11:F12) -> 11993
A14: Escalation Rate = | C14: =+'Gas Input Table Summary'!$D$10 -> 0.03 | J14: =$C$47-$C$45 -> 0 | L14: =$C$47 -> 2024 | M14: =ROUND(IF($C$47+$F$23>L14,F25*F30,0),0) -> 996 | N14: =ROUND($C$17*(1+$C$18)^J14,3) -> 3.091 | O14: =ROUND(M14*N14,0) -> 3079 | P14: =ROUND($C$25*(1+$C$26)^J14,3) -> 0 | Q14: =ROUND(M14*P14,0) -> 0 | R14: =O14+Q14 -> 3079 | S14: =ROUND(M14*$C$23,1) -> 10 | T14: =ROUND($C$20*(1+$C$21)^J14,0) -> 177 | U14: =ROUND(S14*T14,0) -> 1770 | V14: =ROUND(+U14+R14,0) -> 4849 | W14: =ROUND($H$36*(1+$C$11)^J14,3) -> 2.532 | X14: =ROUND((1-$H$38)*(W14*M14),0) -> 1992 | Y14: =ROUND($F$11,0) -> 2407 | Z14: =ROUND($F$12,0) -> 9586 | AA14: =SUM(X14:Z14) -> 13985 | AB14: =V14-AA14 -> -9136 | AE14: =$C$47 -> 2024 | AF14: =+R14 -> 3079 | AG14: =+U14 -> 1770 | AH14: =+AG14+AF14 -> 4849 | AJ14: =ROUND(Y14,0) -> 2407 | AK14: =ROUND(Z14,0) -> 9586 | AL14: =SUM(AJ14:AK14) -> 11993 | AN14: =+AH14-AL14 -> -7144 | AQ14: =$C$47 -> 2024 | AR14: =AF14 -> 3079 | AS14: =+AG14 -> 1770 | AT14: =ROUND(($C$28/(1-$C$31))*(1+$C$29)^J14,3) -> 0.022 | AU14: =ROUND(IF($C$47+$F$23>$AQ14,$F$30*$F$27,0)*AT14,0) -> 144 | AV14: =ROUND($C$33*(1+$C$34)^J14,3) -> 2.07 | AW14: =ROUND(AV14*M14,0) -> 2062 | AZ14: =ROUND(AR14+AS14+AU14+AW14+AY14,0) -> 7055 | BB14: =ROUND($F$13,0) -> 11993 | BC14: =ROUND((F15*F30)-Z14,0) -> 15214 | BD14: =BB14+BC14 -> 27207 | BE14: =AZ14-BD14 -> -20152 | BH14: =$C$47 -> 2024 | BI14: =+F12 -> 9586 | BJ14: =+M14 -> 996 | BK14: =ROUND($C$10*(1+$C$11)^J14,3) -> 8.031 | BL14: =ROUND(BJ14*BK14,0) -> 7999 | BM14: =ROUND($C$13*(1+$C$14)^J14,3) -> 0.13 | BN14: =ROUND(IF($C$47+$F$23>$BH14,$F$30*$F$27,0)*BM14,0) -> 853 | BP14: =BI14+BL14+BN14+BO14 -> 18438 | BR14: =ROUND(F15*F30,0) -> 24800 | BT14: =BP14-BR14 -> -6362 | BW14: =$C$47 -> 2024 | BX14: =$R14 -> 3079 | BY14: =U14 -> 1770 | BZ14: =AU14 -> 144 | CA14: =SUM(BX14:BZ14) -> 4993 | CC14: =BB14 -> 11993 | CD14: =BC14 -> 15214 | CE14: =SUM(CC14:CD14) -> 27207 | CG14: =CA14-CE14 -> -22214
A15: Non-Gas Fuel Units (ie. kWh,Gallons, etc) = | C15: =+'Gas Input Table Summary'!$D$11 -> Kwh | E15: 17) Direct Participant Costs ($/Part.) = | F15: =ROUND('Database Inputs'!K13,0) -> 155 | J15: =J14+1 -> 1 | L15: =L14+1 -> 2025 | M15: =ROUND(IF($C$47+$F$23>L15,$F$25*$F$30,0)+IF($C$48+$G$23>L15,$G$25*$G$30,0),0) -> 996 | N15: 3.184 | O15: 3171 | P15: 0 | Q15: =ROUND(M15*P15,0) -> 0 | R15: 3171 | S15: 10 | T15: 178 | U15: =ROUND(S15*T15,0) -> 1780 | V15: =ROUND(+U15+R15,0) -> 4951 | W15: 2.608 | X15: 2052 | Y15: =ROUND($G$11,0) -> 0 | Z15: =ROUND($G$12,0) -> 0 | AA15: 2052 | AB15: 2899 | AE15: =AE14+1 -> 2025 | AF15: =+R15 -> 3171 | AG15: =+U15 -> 1780 | AH15: =+AG15+AF15 -> 4951 | AJ15: =ROUND(Y15,0) -> 0 | AK15: 0 | AL15: 0 | AN15: =+AH15-AL15 -> 4951 | AQ15: =AQ14+1 -> 2025 | AR15: 3171 | AS15: 1780 | AT15: 0.023 | AU15: =ROUND((IF($C$47+$F$23>$AQ15,$F$27*$F$30,0)+IF($C$48+$G$23>AQ15,$G$27*$G$30,0))*AT15,0) -> 151 | AV15: 2.105 | AW15: 2097 | AZ15: =ROUND(AR15+AS15+AU15+AW15+AY15,0) -> 7199 | BB15: =ROUND($G$13,0) -> 0 | BC15: =ROUND(($G$15*$G$30)-$Z$15,0) -> 0 | BD15: =BB15+BC15 -> 0 | BE15: 7199 | BH15: =BH14+1 -> 2025 | BI15: =+G12 -> 0 | BJ15: 996 | BK15: 8.272 | BL15: =ROUND(BJ15*BK15,0) -> 8239 | BM15: 0.133 | BN15: =ROUND((IF($C$47+$F$23>BH15,$F$27*$F$30,0)+IF($C$48+$G$23>BH15,$G$27*$G$30,0))*BM15,0) -> 872 | BP15: 9111 | BR15: =ROUND($G$15*$G$30,0) -> 0 | BT15: =BP15-BR15 -> 9111 | BW15: =BW14+1 -> 2025 | BX15: 3171 | BY15: =U15 -> 1780 | BZ15: =AU15 -> 151 | CA15: =SUM(BX15:BZ15) -> 5102 | CC15: =BB15 -> 0 | CD15: 0 | CE15: =SUM(CC15:CD15) -> 0 | CG15: =CA15-CE15 -> 5102
J16: 2 | L16: 2026 | M16: =ROUND(IF($C$47+$F$23>L16,$F$25*$F$30,0)+IF($C$48+$G$23>L16,$G$25*$G$30,0)+IF($C$49+$H$23>L16,$H$25*$H$30,0),0) -> 996 | N16: =ROUND($C$17*(1+$C$18)^J16,3) -> 3.279 | O16: =ROUND(M16*N16,0) -> 3266 | P16: =ROUND($C$25*(1+$C$26)^J16,3) -> 0 | Q16: 0 | R16: =O16+Q16 -> 3266 | S16: =ROUND(M16*$C$23,1) -> 10 | T16: =ROUND($C$20*(1+$C$21)^J16,0) -> 180 | U16: =ROUND(S16*T16,0) -> 1800 | V16: =ROUND(+U16+R16,0) -> 5066 | W16: =ROUND($H$36*(1+$C$11)^J16,3) -> 2.686 | X16: =ROUND((1-$H$38)*(W16*M16),0) -> 2113 | Y16: =ROUND($H$11,0) -> 0 | Z16: =ROUND($H$12,0) -> 0 | AA16: 2113 | AB16: =V16-AA16 -> 2953 | AE16: 2026 | AF16: 3266 | AG16: 1800 | AH16: =+AG16+AF16 -> 5066 | AJ16: 0 | AK16: 0 | AL16: 0 | AN16: 5066 | AQ16: 2026 | AR16: 3266 | AS16: 1800 | AT16: =ROUND(($C$28/(1-$C$31))*(1+$C$29)^J16,3) -> 0.024 | AU16: =ROUND((IF($C$47+$F$23>$AQ16,$F$27*$F$30,0)+IF($C$48+$G$23>AQ16,$G$27*$G$30,0)+IF($C$49+$H$23>AQ16,$H$27*$H$30,0))*AT16,0) -> 157 | AV16: 2.141 | AW16: 2132 | AZ16: 7355 | BB16: =ROUND($H$13,0) -> 0 | BC16: =ROUND(($H$15*$H$30)-$Z$16,0) -> 0 | BD16: 0 | BE16: 7355 | BH16: 2026 | BI16: =ROUND(H12,0) -> 0 | BJ16: 996 | BK16: 8.52 | BL16: =ROUND(BJ16*BK16,0) -> 8486 | BM16: 0.137 | BN16: =ROUND((IF($C$47+$F$23>BH16,$F$27*$F$30,0)+IF($C$49+$H$23>BH16,$H$27*$H$30,0)+IF($C$48+$G$23>BH16,$G$27*$G$30,0))*BM16,0) -> 899 | BP16: 9385 | BR16: =ROUND($H$15*$H$30,0) -> 0 | BT16: 9385 | BW16: 2026 | BX16: 3266 | BY16: 1800 | BZ16: 157 | CA16: 5223 | CC16: 0 | CD16: 0 | CE16: 0 | CG16: =CA16-CE16 -> 5223
A17: 3) Commodity Cost ($/Dk) = | C17: =+'Gas Input Table Summary'!$D$12 -> 3.091 | E17: 18) Participant Non-Energy Costs (Annual $/Part.) = | F17: =+'Gas Input Table Summary'!D35 -> 0 | J17: 3 | L17: 2027 | M17: =ROUND(IF($C$47+$F$23>L17,$F$25*$F$30,0)+IF($C$48+$G$23>L17,$G$25*$G$30,0)+IF($C$49+$H$23>L17,$H$25*$H$30,0),0) -> 996 | N17: 3.378 | O17: 3364 | P17: 0 | Q17: 0 | R17: 3364 | S17: 10 | T17: 182 | U17: =ROUND(S17*T17,0) -> 1820 | V17: 5184 | W17: 2.767 | X17: 2177 | Y17: 0 | Z17: 0 | AA17: 2177 | AB17: 3007 | AE17: 2027 | AF17: 3364 | AG17: 1820 | AH17: 5184 | AJ17: 0 | AK17: 0 | AL17: 0 | AN17: 5184 | AQ17: 2027 | AR17: 3364 | AS17: 1820 | AT17: =ROUND(($C$28/(1-$C$31))*(1+$C$29)^J17,3) -> 0.024 | AU17: =ROUND((IF($C$47+$F$23>$AQ17,$F$27*$F$30,0)+IF($C$48+$G$23>AQ17,$G$27*$G$30,0)+IF($C$49+$H$23>AQ17,$H$27*$H$30,0))*AT17,0) -> 157 | AV17: 2.177 | AW17: 2168 | AZ17: 7509 | BB17: 0 | BC17: 0 | BD17: 0 | BE17: 7509 | BH17: 2027 | BI17: 0 | BJ17: 996 | BK17: 8.776 | BL17: 8741 | BM17: 0.142 | BN17: =ROUND((IF($C$47+$F$23>BH17,$F$27*$F$30,0)+IF($C$49+$H$23>BH17,$H$27*$H$30,0)+IF($C$48+$G$23>BH17,$G$27*$G$30,0))*BM17,0) -> 932 | BP17: 9673 | BR17: =+BC17 -> 0 | BT17: 9673 | BW17: 2027 | BX17: 3364 | BY17: 1820 | BZ17: 157 | CA17: 5341 | CC17: 0 | CD17: 0 | CE17: 0 | CG17: 5341
A18: Escalation Rate = | C18: =+'Gas Input Table Summary'!$D$13 -> 0.03 | E18: Escalation Rate = | F18: =+'Gas Input Table Summary'!D38 -> 0 | J18: 4 | L18: 2028 | M18: 996 | N18: 3.479 | O18: 3465 | P18: 0 | Q18: 0 | R18: 3465 | S18: 10 | T18: 184 | U18: 1840 | V18: 5305 | W18: 2.85 | X18: 2242 | Y18: 0 | Z18: 0 | AA18: 2242 | AB18: 3063 | AE18: 2028 | AF18: 3465 | AG18: 1840 | AH18: 5305 | AJ18: 0 | AK18: 0 | AL18: 0 | AN18: 5305 | AQ18: 2028 | AR18: 3465 | AS18: 1840 | AT18: 0.025 | AU18: 164 | AV18: 2.214 | AW18: 2205 | AZ18: 7674 | BB18: 0 | BC18: 0 | BD18: 0 | BE18: 7674 | BH18: 2028 | BI18: 0 | BJ18: 996 | BK18: 9.039 | BL18: 9003 | BM18: 0.146 | BN18: 958 | BP18: 9961 | BR18: 0 | BT18: 9961 | BW18: 2028 | BX18: 3465 | BY18: 1840 | BZ18: 164 | CA18: 5469 | CC18: 0 | CD18: 0 | CE18: 0 | CG18: 5469
J19: 5 | L19: 2029 | M19: =ROUND(IF($C$47+$F$23>L19,$F$25*$F$30,0)+IF($C$48+$G$23>L19,$G$25*$G$30,0)+IF($C$49+$H$23>L19,$H$25*$H$30,0),0) -> 996 | N19: 3.583 | O19: 3569 | P19: 0 | Q19: 0 | R19: 3569 | S19: 10 | T19: 186 | U19: 1860 | V19: 5429 | W19: 2.935 | X19: 2309 | Y19: 0 | Z19: 0 | AA19: 2309 | AB19: 3120 | AE19: 2029 | AF19: 3569 | AG19: 1860 | AH19: 5429 | AJ19: 0 | AK19: 0 | AL19: 0 | AN19: 5429 | AQ19: 2029 | AR19: 3569 | AS19: 1860 | AT19: 0.026 | AU19: 171 | AV19: 2.251 | AW19: 2242 | AZ19: 7842 | BB19: 0 | BC19: 0 | BD19: 0 | BE19: 7842 | BH19: 2029 | BI19: 0 | BJ19: 996 | BK19: 9.31 | BL19: 9273 | BM19: 0.15 | BN19: 984 | BP19: 10257 | BR19: 0 | BT19: 10257 | BW19: 2029 | BX19: 3569 | BY19: 1860 | BZ19: 171 | CA19: 5600 | CC19: 0 | CD19: 0 | CE19: 0 | CG19: 5600
A20: 4) Demand Cost ($/Unit/Yr) = | C20: =+'Gas Input Table Summary'!$D$14 -> 176.69 | E20: 19) Participant Non-Energy Savings (Annual $/Part) = | F20: =+'Gas Input Table Summary'!D41 -> 0 | J20: 6 | L20: 2030 | M20: 996 | N20: 3.691 | O20: 3676 | P20: 0 | Q20: 0 | R20: 3676 | S20: 10 | T20: 188 | U20: 1880 | V20: 5556 | W20: 3.023 | X20: 2379 | Y20: 0 | Z20: 0 | AA20: 2379 | AB20: 3177 | AE20: 2030 | AF20: 3676 | AG20: 1880 | AH20: 5556 | AJ20: 0 | AK20: 0 | AL20: 0 | AN20: 5556 | AQ20: 2030 | AR20: 3676 | AS20: 1880 | AT20: 0.027 | AU20: 177 | AV20: 2.289 | AW20: 2280 | AZ20: 8013 | BB20: 0 | BC20: 0 | BD20: 0 | BE20: 8013 | BH20: 2030 | BI20: 0 | BJ20: 996 | BK20: 9.589 | BL20: 9551 | BM20: 0.155 | BN20: 1017 | BP20: 10568 | BR20: 0 | BT20: 10568 | BW20: 2030 | BX20: 3676 | BY20: 1880 | BZ20: 177 | CA20: 5733 | CC20: 0 | CD20: 0 | CE20: 0 | CG20: 5733
A21: Escalation Rate = | C21: =+'Gas Input Table Summary'!$D$15 -> 0.01 | E21: Escalation Rate = | F21: =+'Gas Input Table Summary'!D44 -> 0 | J21: 7 | L21: 2031 | M21: 996 | N21: 3.802 | O21: 3787 | P21: 0 | Q21: 0 | R21: 3787 | S21: 10 | T21: 189 | U21: 1890 | V21: 5677 | W21: 3.114 | X21: 2450 | Y21: 0 | Z21: 0 | AA21: 2450 | AB21: 3227 | AE21: 2031 | AF21: 3787 | AG21: 1890 | AH21: 5677 | AJ21: 0 | AK21: 0 | AL21: 0 | AN21: 5677 | AQ21: 2031 | AR21: 3787 | AS21: 1890 | AT21: 0.027 | AU21: 177 | AV21: 2.328 | AW21: 2319 | AZ21: 8173 | BB21: 0 | BC21: 0 | BD21: 0 | BE21: 8173 | BH21: 2031 | BI21: 0 | BJ21: 996 | BK21: 9.877 | BL21: 9837 | BM21: 0.159 | BN21: 1043 | BP21: 10880 | BR21: 0 | BT21: 10880 | BW21: 2031 | BX21: 3787 | BY21: 1890 | BZ21: 177 | CA21: 5854 | CC21: 0 | CD21: 0 | CE21: 0 | CG21: 5854
J22: 8 | L22: 2032 | M22: 996 | N22: 3.916 | O22: 3900 | P22: 0 | Q22: 0 | R22: 3900 | S22: 10 | T22: 191 | U22: 1910 | V22: 5810 | W22: 3.207 | X22: 2523 | Y22: 0 | Z22: 0 | AA22: 2523 | AB22: 3287 | AE22: 2032 | AF22: 3900 | AG22: 1910 | AH22: 5810 | AJ22: 0 | AK22: 0 | AL22: 0 | AN22: 5810 | AQ22: 2032 | AR22: 3900 | AS22: 1910 | AT22: 0.028 | AU22: 184 | AV22: 2.367 | AW22: 2358 | AZ22: 8352 | BB22: 0 | BC22: 0 | BD22: 0 | BE22: 8352 | BH22: 2032 | BI22: 0 | BJ22: 996 | BK22: 10.173 | BL22: 10132 | BM22: 0.164 | BN22: 1076 | BP22: 11208 | BR22: 0 | BT22: 11208 | BW22: 2032 | BX22: 3900 | BY22: 1910 | BZ22: 184 | CA22: 5994 | CC22: 0 | CD22: 0 | CE22: 0 | CG22: 5994
A23: 5) Peak Reduction Factor = | C23: =+'Gas Input Table Summary'!$D$16 -> 0.01 | E23: 20) Project Life (Years) = | F23: =ROUND('Database Inputs'!D13,0) -> 10 | J23: 9 | L23: 2033 | M23: 996 | N23: 4.033 | O23: 4017 | P23: 0 | Q23: 0 | R23: 4017 | S23: 10 | T23: 193 | U23: 1930 | V23: 5947 | W23: 3.304 | X23: 2600 | Y23: 0 | Z23: 0 | AA23: 2600 | AB23: 3347 | AE23: 2033 | AF23: 4017 | AG23: 1930 | AH23: 5947 | AJ23: 0 | AK23: 0 | AL23: 0 | AN23: 5947 | AQ23: 2033 | AR23: 4017 | AS23: 1930 | AT23: 0.029 | AU23: 190 | AV23: 2.407 | AW23: 2397 | AZ23: 8534 | BB23: 0 | BC23: 0 | BD23: 0 | BE23: 8534 | BH23: 2033 | BI23: 0 | BJ23: 996 | BK23: 10.479 | BL23: 10437 | BM23: 0.169 | BN23: 1109 | BP23: 11546 | BR23: 0 | BT23: 11546 | BW23: 2033 | BX23: 4017 | BY23: 1930 | BZ23: 190 | CA23: 6137 | CC23: 0 | CD23: 0 | CE23: 0 | CG23: 6137
J24: 10 | L24: 2034 | M24: 0 | N24: 4.154 | O24: 0 | P24: 0 | Q24: 0 | R24: 0 | S24: 0 | T24: 195 | U24: 0 | V24: 0 | W24: 3.403 | X24: 0 | Y24: 0 | Z24: 0 | AA24: 0 | AB24: 0 | AE24: 2034 | AF24: 0 | AG24: 0 | AH24: 0 | AJ24: 0 | AK24: 0 | AL24: 0 | AN24: 0 | AQ24: 2034 | AR24: 0 | AS24: 0 | AT24: 0.03 | AU24: 0 | AV24: 2.448 | AW24: 0 | AZ24: 0 | BB24: 0 | BC24: 0 | BD24: 0 | BE24: 0 | BH24: 2034 | BI24: 0 | BJ24: 0 | BK24: 10.793 | BL24: 0 | BM24: 0.174 | BN24: 0 | BP24: 0 | BR24: 0 | BT24: 0 | BW24: 2034 | BX24: 0 | BY24: 0 | BZ24: 0 | CA24: 0 | CC24: 0 | CD24: 0 | CE24: 0 | CG24: 0
A25: 6) Variable O&M ($/Dk) = | C25: =+'Gas Input Table Summary'!$D$17 -> 0 | E25: 21) Avg. Dk/Part. Saved = | F25: =+ROUND(F32/F30,3) -> 6.225 | J25: 11 | L25: 2035 | M25: 0 | N25: 4.279 | O25: 0 | P25: 0 | Q25: 0 | R25: 0 | S25: 0 | T25: 197 | U25: 0 | V25: 0 | W25: 3.505 | X25: 0 | Y25: 0 | Z25: 0 | AA25: 0 | AB25: 0 | AE25: 2035 | AF25: 0 | AG25: 0 | AH25: 0 | AJ25: 0 | AK25: 0 | AL25: 0 | AN25: 0 | AQ25: 2035 | AR25: 0 | AS25: 0 | AT25: 0.031 | AU25: 0 | AV25: 2.489 | AW25: 0 | AZ25: 0 | BB25: 0 | BC25: 0 | BD25: 0 | BE25: 0 | BH25: 2035 | BI25: 0 | BJ25: 0 | BK25: 11.117 | BL25: 0 | BM25: 0.179 | BN25: 0 | BP25: 0 | BR25: 0 | BT25: 0 | BW25: 2035 | BX25: 0 | BY25: 0 | BZ25: 0 | CA25: 0 | CC25: 0 | CD25: 0 | CE25: 0 | CG25: 0
A26: Escalation Rate = | C26: =+'Gas Input Table Summary'!$D$18 -> 0 | J26: 12 | L26: 2036 | M26: 0 | N26: 4.407 | O26: 0 | P26: 0 | Q26: 0 | R26: 0 | S26: 0 | T26: 199 | U26: 0 | V26: 0 | W26: 3.61 | X26: 0 | Y26: 0 | Z26: 0 | AA26: 0 | AB26: 0 | AE26: 2036 | AF26: 0 | AG26: 0 | AH26: 0 | AJ26: 0 | AK26: 0 | AL26: 0 | AN26: 0 | AQ26: 2036 | AR26: 0 | AS26: 0 | AT26: 0.032 | AU26: 0 | AV26: 2.531 | AW26: 0 | AZ26: 0 | BB26: 0 | BC26: 0 | BD26: 0 | BE26: 0 | BH26: 2036 | BI26: 0 | BJ26: 0 | BK26: 11.45 | BL26: 0 | BM26: 0.185 | BN26: 0 | BP26: 0 | BR26: 0 | BT26: 0 | BW26: 2036 | BX26: 0 | BY26: 0 | BZ26: 0 | CA26: 0 | CC26: 0 | CD26: 0 | CE26: 0 | CG26: 0
E27: 22) Avg Non-Gas Fuel Units/Part. Saved = | F27: =+'Database Inputs'!H13 -> 41 | J27: 13 | L27: 2037 | M27: 0 | N27: 4.539 | O27: 0 | P27: 0 | Q27: 0 | R27: 0 | S27: 0 | T27: 201 | U27: 0 | V27: 0 | W27: 3.718 | X27: 0 | Y27: 0 | Z27: 0 | AA27: 0 | AB27: 0 | AE27: 2037 | AF27: 0 | AG27: 0 | AH27: 0 | AJ27: 0 | AK27: 0 | AL27: 0 | AN27: 0 | AQ27: 2037 | AR27: 0 | AS27: 0 | AT27: 0.033 | AU27: 0 | AV27: 2.574 | AW27: 0 | AZ27: 0 | BB27: 0 | BC27: 0 | BD27: 0 | BE27: 0 | BH27: 2037 | BI27: 0 | BJ27: 0 | BK27: 11.794 | BL27: 0 | BM27: 0.19 | BN27: 0 | BP27: 0 | BR27: 0 | BT27: 0 | BW27: 2037 | BX27: 0 | BY27: 0 | BZ27: 0 | CA27: 0 | CC27: 0 | CD27: 0 | CE27: 0 | CG27: 0
A28: 7) Non-Gas Fuel Cost ($/Fuel Unit) = | C28: =+'Gas Input Table Summary'!$D$19 -> 0.02062 | E28: 22a) Avg Additional Non-Gas Fuel Units/ Part. Used = | F28: 0 | J28: 14 | L28: 2038 | M28: 0 | N28: 4.675 | O28: 0 | P28: 0 | Q28: 0 | R28: 0 | S28: 0 | T28: 203 | U28: 0 | V28: 0 | W28: 3.83 | X28: 0 | Y28: 0 | Z28: 0 | AA28: 0 | AB28: 0 | AE28: 2038 | AF28: 0 | AG28: 0 | AH28: 0 | AJ28: 0 | AK28: 0 | AL28: 0 | AN28: 0 | AQ28: 2038 | AR28: 0 | AS28: 0 | AT28: 0.034 | AU28: 0 | AV28: 2.617 | AW28: 0 | AZ28: 0 | BB28: 0 | BC28: 0 | BD28: 0 | BE28: 0 | BH28: 2038 | BI28: 0 | BJ28: 0 | BK28: 12.148 | BL28: 0 | BM28: 0.196 | BN28: 0 | BP28: 0 | BR28: 0 | BT28: 0 | BW28: 2038 | BX28: 0 | BY28: 0 | BZ28: 0 | CA28: 0 | CC28: 0 | CD28: 0 | CE28: 0 | CG28: 0
A29: Escalation Rate = | C29: =+'Gas Input Table Summary'!$D$20 -> 0.03 | J29: 15 | L29: 2039 | M29: 0 | N29: 4.816 | O29: 0 | P29: 0 | Q29: 0 | R29: 0 | S29: 0 | T29: 205 | U29: 0 | V29: 0 | W29: 3.945 | X29: 0 | Y29: 0 | Z29: 0 | AA29: 0 | AB29: 0 | AE29: 2039 | AF29: 0 | AG29: 0 | AH29: 0 | AJ29: 0 | AK29: 0 | AL29: 0 | AN29: 0 | AQ29: 2039 | AR29: 0 | AS29: 0 | AT29: 0.035 | AU29: 0 | AV29: 2.662 | AW29: 0 | AZ29: 0 | BB29: 0 | BC29: 0 | BD29: 0 | BE29: 0 | BH29: 2039 | BI29: 0 | BJ29: 0 | BK29: 12.512 | BL29: 0 | BM29: 0.202 | BN29: 0 | BP29: 0 | BR29: 0 | BT29: 0 | BW29: 2039 | BX29: 0 | BY29: 0 | BZ29: 0 | CA29: 0 | CC29: 0 | CD29: 0 | CE29: 0 | CG29: 0
E30: 23) Number of Participants = | F30: =ROUND('Database Inputs'!C13,0) -> 160 | J30: 16 | L30: 2040 | M30: 0 | N30: 4.96 | O30: 0 | P30: 0 | Q30: 0 | R30: 0 | S30: 0 | T30: 207 | U30: 0 | V30: 0 | W30: 4.063 | X30: 0 | Y30: 0 | Z30: 0 | AA30: 0 | AB30: 0 | AE30: 2040 | AF30: 0 | AG30: 0 | AH30: 0 | AJ30: 0 | AK30: 0 | AL30: 0 | AN30: 0 | AQ30: 2040 | AR30: 0 | AS30: 0 | AT30: 0.036 | AU30: 0 | AV30: 2.707 | AW30: 0 | AZ30: 0 | BB30: 0 | BC30: 0 | BD30: 0 | BE30: 0 | BH30: 2040 | BI30: 0 | BJ30: 0 | BK30: 12.887 | BL30: 0 | BM30: 0.208 | BN30: 0 | BP30: 0 | BR30: 0 | BT30: 0 | BW30: 2040 | BX30: 0 | BY30: 0 | BZ30: 0 | CA30: 0 | CC30: 0 | CD30: 0 | CE30: 0 | CG30: 0
A31: 8) Non-Gas Fuel Loss Factor | C31: =+'Gas Input Table Summary'!$D$21 -> 0.07719 | J31: 17 | L31: 2041 | M31: 0 | N31: 5.109 | O31: 0 | P31: 0 | Q31: 0 | R31: 0 | S31: 0 | T31: 209 | U31: 0 | V31: 0 | W31: 4.185 | X31: 0 | Y31: 0 | Z31: 0 | AA31: 0 | AB31: 0 | AE31: 2041 | AF31: 0 | AG31: 0 | AH31: 0 | AJ31: 0 | AK31: 0 | AL31: 0 | AN31: 0 | AQ31: 2041 | AR31: 0 | AS31: 0 | AT31: 0.037 | AU31: 0 | AV31: 2.752 | AW31: 0 | AZ31: 0 | BB31: 0 | BC31: 0 | BD31: 0 | BE31: 0 | BH31: 2041 | BI31: 0 | BJ31: 0 | BK31: 13.274 | BL31: 0 | BM31: 0.214 | BN31: 0 | BP31: 0 | BR31: 0 | BT31: 0 | BW31: 2041 | BX31: 0 | BY31: 0 | BZ31: 0 | CA31: 0 | CC31: 0 | CD31: 0 | CE31: 0 | CG31: 0
E32: 24) Total Annual Dk Saved = | F32: =+'Total Program Inputs'!G14 -> 996 | J32: 18 | L32: 2042 | M32: 0 | N32: 5.262 | O32: 0 | P32: 0 | Q32: 0 | R32: 0 | S32: 0 | T32: 211 | U32: 0 | V32: 0 | W32: 4.311 | X32: 0 | Y32: 0 | Z32: 0 | AA32: 0 | AB32: 0 | AE32: 2042 | AF32: 0 | AG32: 0 | AH32: 0 | AJ32: 0 | AK32: 0 | AL32: 0 | AN32: 0 | AQ32: 2042 | AR32: 0 | AS32: 0 | AT32: 0.038 | AU32: 0 | AV32: 2.799 | AW32: 0 | AZ32: 0 | BB32: 0 | BC32: 0 | BD32: 0 | BE32: 0 | BH32: 2042 | BI32: 0 | BJ32: 0 | BK32: 13.672 | BL32: 0 | BM32: 0.221 | BN32: 0 | BP32: 0 | BR32: 0 | BT32: 0 | BW32: 2042 | BX32: 0 | BY32: 0 | BZ32: 0 | CA32: 0 | CC32: 0 | CD32: 0 | CE32: 0 | CG32: 0
A33: 9) Gas Environmental Damage Factor = | C33: =+'Gas Input Table Summary'!$D$22 -> 2.07 | J33: 19 | L33: 2043 | M33: 0 | N33: 5.42 | O33: 0 | P33: 0 | Q33: 0 | R33: 0 | S33: 0 | T33: 213 | U33: 0 | V33: 0 | W33: 4.44 | X33: 0 | Y33: 0 | Z33: 0 | AA33: 0 | AB33: 0 | AE33: 2043 | AF33: 0 | AG33: 0 | AH33: 0 | AJ33: 0 | AK33: 0 | AL33: 0 | AN33: 0 | AQ33: 2043 | AR33: 0 | AS33: 0 | AT33: 0.039 | AU33: 0 | AV33: 2.846 | AW33: 0 | AZ33: 0 | BB33: 0 | BC33: 0 | BD33: 0 | BE33: 0 | BH33: 2043 | BI33: 0 | BJ33: 0 | BK33: 14.082 | BL33: 0 | BM33: 0.227 | BN33: 0 | BP33: 0 | BR33: 0 | BT33: 0 | BW33: 2043 | BX33: 0 | BY33: 0 | BZ33: 0 | CA33: 0 | CC33: 0 | CD33: 0 | CE33: 0 | CG33: 0
A34: Escalation Rate = | C34: =+'Gas Input Table Summary'!$D$23 -> 0.0169 | E34: 25) Incentive/Participant = | F34: =ROUND('Database Inputs'!L13,0) -> 60 | J34: 20 | L34: 2044 | M34: 0 | N34: 5.583 | O34: 0 | P34: 0 | Q34: 0 | R34: 0 | S34: 0 | T34: 216 | U34: 0 | V34: 0 | W34: 4.573 | X34: 0 | Y34: 0 | Z34: 0 | AA34: 0 | AB34: 0 | AE34: 2044 | AF34: 0 | AG34: 0 | AH34: 0 | AJ34: 0 | AK34: 0 | AL34: 0 | AN34: 0 | AQ34: 2044 | AR34: 0 | AS34: 0 | AT34: 0.04 | AU34: 0 | AV34: 2.894 | AW34: 0 | AZ34: 0 | BB34: 0 | BC34: 0 | BD34: 0 | BE34: 0 | BH34: 2044 | BI34: 0 | BJ34: 0 | BK34: 14.505 | BL34: 0 | BM34: 0.234 | BN34: 0 | BP34: 0 | BR34: 0 | BT34: 0 | BW34: 2044 | BX34: 0 | BY34: 0 | BZ34: 0 | CA34: 0 | CC34: 0 | CD34: 0 | CE34: 0 | CG34: 0
J35: 21 | L35: 2045 | M35: =ROUND(IF($C$47+$F$23>L35,$F$25*$F$30,0)+IF($C$48+$G$23>L35,$G$25*$G$30,0)+IF($C$49+$H$23>L35,$H$25*$H$30,0),0) -> 0 | N35: =ROUND($C$17*(1+$C$18)^J35,3) -> 5.75 | O35: =ROUND(M35*N35,0) -> 0 | P35: =ROUND($C$25*(1+$C$26)^J35,3) -> 0 | Q35: =ROUND(M35*P35,0) -> 0 | R35: =O35+Q35 -> 0 | S35: =ROUND(M35*$C$23,1) -> 0 | T35: =ROUND($C$20*(1+$C$21)^J35,0) -> 218 | U35: =ROUND(S35*T35,0) -> 0 | V35: =ROUND(+U35+R35,0) -> 0 | W35: =ROUND($H$36*(1+$C$11)^J35,3) -> 4.71 | X35: =ROUND((1-$H$38)*(W35*M35),0) -> 0 | Y35: 0 | Z35: 0 | AA35: =SUM(X35:Z35) -> 0 | AB35: =V35-AA35 -> 0 | AE35: 2045 | AF35: =+R35 -> 0 | AG35: =+U35 -> 0 | AH35: =+AG35+AF35 -> 0 | AJ35: =ROUND(Y35,0) -> 0 | AK35: =ROUND(Z35,0) -> 0 | AL35: =SUM(AJ35:AK35) -> 0 | AN35: =+AH35-AL35 -> 0 | AQ35: 2045 | AR35: =AF35 -> 0 | AS35: =+AG35 -> 0 | AT35: =ROUND(($C$28/(1-$C$31))*(1+$C$29)^J35,3) -> 0.042 | AU35: =ROUND((IF($C$47+$F$23>$AQ35,$F$27*$F$30,0)+IF($C$48+$G$23>AQ35,$G$27*$G$30,0)+IF($C$49+$H$23>AQ35,$H$27*$H$30,0))*AT35,0) -> 0 | AV35: =ROUND($C$33*(1+$C$34)^J35,3) -> 2.943 | AW35: =ROUND(AV35*M35,0) -> 0 | AZ35: =ROUND(AR35+AS35+AU35+AW35+AY35,0) -> 0 | BB35: 0 | BC35: 0 | BD35: =BB35+BC35 -> 0 | BE35: =AZ35-BD35 -> 0 | BH35: 2045 | BI35: 0 | BJ35: =+M35 -> 0 | BK35: =ROUND($C$10*(1+$C$11)^J35,3) -> 14.94 | BL35: =ROUND(BJ35*BK35,0) -> 0 | BM35: =ROUND($C$13*(1+$C$14)^J35,3) -> 0.241 | BN35: =ROUND((IF($C$47+$F$23>BH35,$F$27*$F$30,0)+IF($C$49+$H$23>BH35,$H$27*$H$30,0)+IF($C$48+$G$23>BH35,$G$27*$G$30,0))*BM35,0) -> 0 | BP35: =BI35+BL35+BN35+BO35 -> 0 | BR35: =+BC35 -> 0 | BT35: =BP35-BR35 -> 0 | BW35: 2045 | BX35: 0 | BY35: =U35 -> 0 | BZ35: =AU35 -> 0 | CA35: =SUM(BX35:BZ35) -> 0 | CC35: =BB35 -> 0 | CD35: =BC35 -> 0 | CE35: =SUM(CC35:CD35) -> 0 | CG35: =CA35-CE35 -> 0
A36: 10) Non Gas Fuel Environmental Damage Factor = | C36: =+'Gas Input Table Summary'!$D$24 -> 0 | E36: 26) Distribution Delivery Charge | H36: =+'Gas Input Table Summary'!D58 -> 2.532 | J36: 22 | L36: 2046 | M36: 0 | N36: 5.923 | O36: 0 | P36: 0 | Q36: 0 | R36: 0 | S36: 0 | T36: 220 | U36: 0 | V36: 0 | W36: 4.852 | X36: 0 | Y36: 0 | Z36: 0 | AA36: 0 | AB36: 0 | AE36: 2046 | AF36: 0 | AG36: 0 | AH36: 0 | AJ36: 0 | AK36: 0 | AL36: 0 | AN36: 0 | AQ36: 2046 | AR36: 0 | AS36: 0 | AT36: 0.043 | AU36: 0 | AV36: 2.993 | AW36: 0 | AZ36: 0 | BB36: 0 | BC36: 0 | BD36: 0 | BE36: 0 | BH36: 2046 | BI36: 0 | BJ36: 0 | BK36: 15.388 | BL36: 0 | BM36: 0.248 | BN36: 0 | BP36: 0 | BR36: 0 | BT36: 0 | BW36: 2046 | BX36: 0 | BY36: 0 | BZ36: 0 | CA36: 0 | CC36: 0 | CD36: 0 | CE36: 0 | CG36: 0
A37: Escalation Rate = | C37: =+'Gas Input Table Summary'!$D$25 -> 0
E38: 27) Effective Income Tax Rate = | H38: =+'Gas Input Table Summary'!D59 -> 0.21 | K38: Total = | M38: =SUM(M14:M36) -> 9960 | V38: =SUM(V14:V36) -> 53774 | AA38: =SUM(AA14:AA36) -> 34830 | AB38: =SUM(AB14:AB36) -> 18944 | AD38: Total = | AH38: =SUM(AH14:AH36) -> 53774 | AL38: =SUM(AL14:AL36) -> 11993 | AN38: =SUM(AN14:AN36) -> 41781 | AP38: Total = | AZ38: =SUM(AZ14:AZ36) -> 77706 | BD38: =SUM(BD14:BD36) -> 27207 | BE38: =SUM(BE14:BE36) -> 50499 | BG38: Total = | BJ38: =SUM(BJ14:BJ36) -> 9960 | BP38: =SUM(BP14:BP36) -> 111027 | BR38: =SUM(BR14:BR36) -> 24800 | BT38: =SUM(BT14:BT36) -> 86227 | BZ38: Total = | CA38: =SUM(CA14:CA36) -> 55446 | CE38: =SUM(CE14:CE36) -> 27207 | CG38: =SUM(CG14:CG36) -> 28239
A39: 11) Participant Discount Rate = | C39: =+'Gas Input Table Summary'!$D$26 -> 0.0987 | E39: (Federal & State Taxes) | T39: NPV = | V39: =ROUND(V14+NPV($C$41,V15:V36),0) -> 39889 | AA39: =ROUND(AA14+NPV($C$41,AA15:AA36),0) -> 28869 | AB39: =ROUND(AB14+NPV($C$41,AB15:AB36),0) -> 11020 | AG39: NPV = | AH39: =ROUND(AH14+NPV($C$41,AH15:AH36),0) -> 39889 | AL39: =ROUND(AL14+NPV($C$41,AL15:AL36),0) -> 11993 | AN39: =+AH39-AL39 -> 27896 | AW39: NPV = | AZ39: =ROUND(AZ14+NPV($C$43,AZ15:AZ36),0) -> 69896 | BD39: =ROUND(BD14+NPV($C$43,BD15:BD36),0) -> 27207 | BE39: =AZ39-BD39 -> 42689 | BN39: NPV = | BP39: =ROUND(BP14+NPV($C$39,BP15:BP36),0) -> 76905 | BR39: =ROUND(BR14+NPV($C$39,BR15:BR36),0) -> 24800 | BT39: =ROUND(BT14+NPV($C$39,BT15:BT36),0) -> 52105 | BZ39: NPV = | CA39: =ROUND(CA14+NPV($C$41,CA15:CA36),0) -> 41125 | CE39: =ROUND(CE14+NPV($C$41,CE15:CE36),0) -> 27207 | CG39: =ROUND(CG14+NPV($C$41,CG15:CG36),0) -> 13918
A41: 12) Utility Discount Rate = | C41: =+'Gas Input Table Summary'!$D$27 -> 0.0701 | E41: Test Results | F41: NPV | G41: B/C | K41: Total NPV = | N41: =AB39 -> 11020 | AD41: Total NPV = | AG41: =AN39 -> 27896 | AP41: Total NPV = | AS41: =BE39 -> 42689 | BG41: Total NPV = | BJ41: =BT39 -> 52105 | BV41: Total NPV = | BY41: =CG39 -> 13918
E42: Ratepayer Impact Measure Test | F42: =N41 -> 11020 | G42: =N42 -> 1.38 | K42: Benefit/Cost Ratio = | N42: =ROUND(V39/AA39,2) -> 1.38 | AD42: Benefit/Cost Ratio = | AG42: =ROUND(AH39/AL39,2) -> 3.33 | AP42: Benefit/Cost Ratio = | AS42: =ROUND(AZ39/BD39,2) -> 2.57 | BG42: Benefit/Cost Ratio = | BJ42: =ROUND(BP39/BR39,2) -> 3.1 | BV42: Benefit/Cost Ratio = | BY42: =ROUND(CA39/CE39,2) -> 1.51
A43: 13) Societal Discount Rate = | C43: =+'Gas Input Table Summary'!$D$28 -> 0.0234 | E43: Utility Cost Test | F43: =AG41 -> 27896 | G43: =AG42 -> 3.33
E44: Societal Test | F44: =AS41 -> 42689 | G44: =AS42 -> 2.57 | J44: Worksheet Calculations | BV44: Worksheet Calculations
A45: 14) General Input Data Year = | C45: =+'Gas Input Table Summary'!$D$29 -> 2024 | E45: Participant Test | F45: =BJ41 -> 52105 | G45: =BJ42 -> 3.1 | J45: (A) | K45: = Average Dk/Participant Saved (21) x Number of Participants (23) for Project Life (20) | T45: (I) | U45: = (G) x (H) | AD45: Worksheet Calculations | AP45: Worksheet Calculations | BG45: Worksheet Calculations | BV45: (A) | BW45: = Table 1 (F)
E46: Total Resource Cost Test | F46: =BY41 -> 13918 | G46: =BY42 -> 1.51 | J46: (B) | K46: = Commodity Cost (3) escalated | T46: (J) | U46: = (F) + (I) | AD46: (A) | AE46: = Table 1 (F) | AP46: (A) | AQ46: = Table 1 (F) | AW46: (H) | AZ46: = Table 2 (F) | BG46: (A) | BH46: = Table 1 (N) | BL46: (G) | BM46: = (A) + (D) + (F) | BV46: (B) | BW46: = Table 1 (I)
A47: 15) Project Analysis Year 1 = | C47: =+'Total Program Inputs'!C6 -> 2024 | J47: (C) | K47: = (A) x (B) | T47: (K) | U47: = Distribution Delivery Charge (26) escalated. | AD47: (B) | AE47: = Table 1 (I) | AP47: (G) | AQ47: = Table 1 (I) | AW47: (I) | AZ47: = Direct Part. Costs (17) x No. of Part. (23) - Table 1 (N) | BG47: (B) | BH47: = Table 1 (A) | BL47: (H) | BM47: = Direct Participant Costs (17) x Number of Participants (23) | BV47: (C) | BW47: = Table 3 (D)
J48: (D) | K48: = Variable O&M Cost (6), escalated | T48: (L) | U48: = (A) x (K) x (1-Inverse of Tax Rate (27) | AD48: (C) | AE48: = Table 1 (J) | AP48: (C) | AQ48: = Non-Gas Fuel Cost (7), adjusted for losses (8), escalated.. | AW48: (J) | AZ48: = (H) + (I) | BG48: (C) | BH48: = Retail Rate (1) escalated. | BL48: (I) | BM48: = (G) - (H) | BV48: (D) | BW48: = (A) + (B) + (C)
J49: (E) | K49: = (A) x (D) | T49: (M) | U49: = Admin & Operating Costs (16a) | AD49: (D) | AE49: = Table 1 (M) | AP49: (D) | AQ49: = (C) x [Avg. Non-Gas Fuel Units/Part.Saved (22) x No. of Part. (23) | AW49: (K) | AZ49: = (G) - (J) | BG49: (D) | BH49: =(B) x (C) | BV49: (E) | BW49: = Table 3 (H)
J50: (F) | K50: = (C) + (E) | T50: (N) | U50: = Incentive Costs (16b) | AD50: (E) | AE50: = Table 1 (N) | AP50: (E) | AQ50: = Gas Environmental Damage Factor (9), escalated | BG50: (E) | BH50: = Non-Gas Fuel Retail Rate (2), escalated. | BV50: (F) | BW50: = Table 3 (I)
J51: (G) | K51: = (A) x Peak Reduction Factor (5) | T51: (O) | U51: = (L) + (M) + (N) | AD51: (F) | AE51: = (D) + (E) | AP51: (F) | AQ51: = Table 1 (A) x (E) | BG51: (F) | BH51: = (E) x [Avg. Non-Gas Fuel Units/Part.Saved (22) x No. of Part. (23) | BV51: (G) | BW51: = (E) + (F)
J52: (H) | K52: = Demand Cost (4) escalated. | T52: (P) | U52: = (J) - (O) | AD52: (G) | AE52: = (C) - (F) | AP52: (G) | AQ52: = (A) + (B) + (D) + (F) | BV52: (H) | BW52: = (D) - (G)

Sheet Comm 95+% Furnace - NEW
A1: NATURAL GAS CONSERVATION PROGRAMS/DEMAND-SIDE MANAGEMENT | K1: Table 1 | AD1: Table 2 | AP1: Table 3 | BG1: Table 4 | BV1: Table 5
A2: BEN/COST ANALYSIS FOR GAS CONSERVATION | K2: Ratepayer Impact Measure Test | AD2: Utility Cost Test | AP2: Societal Test | BG2: Participant Test | BV2: Total Resource Cost Test
A4: Company: | B4: Montana-Dakota Utilities Co. | K4: Company: | M4: =B4 -> Montana-Dakota Utilities Co. | AD4: Company: | AF4: =B4 -> Montana-Dakota Utilities Co. | AP4: Company: | AR4: =AF4 -> Montana-Dakota Utilities Co. | BH4: Company: | BI4: =AR4 -> Montana-Dakota Utilities Co. | BW4: Company: | BX4: =BI4 -> Montana-Dakota Utilities Co.
A5: Project: | B5: Commercial 95+% AFUE Furnace - New | K5: Project: | M5: =$B$5 -> Commercial 95+% AFUE Furnace - New | AD5: Project: | AF5: =$B$5 -> Commercial 95+% AFUE Furnace - New | AP5: Project: | AR5: =$B$5 -> Commercial 95+% AFUE Furnace - New | BH5: Project: | BI5: =$B$5 -> Commercial 95+% AFUE Furnace - New | BW5: Project: | BX5: =$B$5 -> Commercial 95+% AFUE Furnace - New
A6: Program Years: | B6: ='Total Program'!$B$6 -> 2024
N7: Benefits | X7: Costs | AF7: Benefits | AJ7: Costs | AR7: Benefits | BB7: Costs | BI7: Benefits | BR7: Costs | BX7: Benefits | CC7: Costs
A8: Input Data | F8: =+'Total Program Inputs'!C6 -> 2024 | AB8: Annual | AN8: Annual | AT8: Non-Gas | BE8: Annual | BT8: Annual | CG8: Annual
M9: Total | N9: Gas | O9: Gas | P9: Variable | Q9: Variable | R9: Total | S9: Peak Dk | T9: Demand | U9: Total | W9: Distribution | Y9: Program | AA9: Total | AB9: Benefits | AF9: Total | AG9: Total | AH9: Annual | AJ9: Program | AL9: Utility | AN9: Benefits | AR9: Total | AS9: Total | AT9: Energy | AU9: Non-Gas | AV9: Environmental | AW9: Environmental | AZ9: Annual | BB9: Utility | BC9: Participants' | BD9: Annual | BE9: Benefits | BJ9: Total | BL9: Gas | BM9: Non-Gas | BN9: Non-Gas | BP9: Total | BR9: Direct | BT9: Benefits | BX9: Total | BY9: Total | BZ9: Non-Gas | CA9: Total | CC9: Utility | CD9: Participants' | CG9: Benefits
A10: 1) Retail Rate ($/Dk) = | C10: =+'Gas Input Table Summary'!$E$7 -> 6.647 | E10: 16) Utility Project Costs | M10: Energy | N10: Commodity | O10: Commodity | P10: O & M | Q10: O & M | R10: Energy | S10: Demand | T10: Savings | U10: Demand | V10: Total | W10: Delivery | X10: Lost | Y10: Admin | Z10: Incentive | AA10: Program | AB10: Less | AF10: Energy | AG10: Demand | AH10: Total | AJ10: Admin | AK10: Incentive | AL10: Program | AN10: Less | AR10: Energy | AS10: Demand | AT10: Savings | AU10: Energy | AV10: Damage | AW10: Damage | AZ10: Total | BB10: Program | BC10: Costs Net | BD10: Total | BE10: Less | BI10: Incentives | BJ10: Energy | BK10: Retail | BL10: Bill | BM10: Fuel | BN10: Energy | BP10: Annual | BR10: Participant | BT10: Less | BX10: Energy | BY10: Demand | BZ10: Energy | CA10: Annual | CC10: Program | CD10: Costs Net | CE10: Total | CG10: Less
